Workbook

Sheet RESUMO MODULO TOTAL
B1: EXECUÇÃO DE CAPA ASFÁLTICA COM CBUQ, EM VIAS DE MUNICÍPIOS DA REGIÃO DA MATA PERNAMBUCANA, ÁREA DE ATUAÇÃO DA CODEVASF NO ESTADO DE PERNAMBUCO.
A2: ='RESUMO MODULO TOTAL'!B1 -> EXECUÇÃO DE CAPA ASFÁLTICA COM CBUQ, EM VIAS DE MUNICÍPIOS DA REGIÃO DA MATA PERNAMBUCANA, ÁREA DE ATUAÇÃO DA CODEVASF NO ESTADO DE PERNAMBUCO. | M2: SICRO: | N2: ='SINTÉTICO SICRO'!B2 -> Pernambuco - Julho/2023
M3: SINAPI: | N3: =RIGHT('INSUMOS SINAPI'!A3,7) -> 09/2023
M4: Data base do orçamento: | N4: 2023-09-01
B5: =B1 -> EXECUÇÃO DE CAPA ASFÁLTICA COM CBUQ, EM VIAS DE MUNICÍPIOS DA REGIÃO DA MATA PERNAMBUCANA, ÁREA DE ATUAÇÃO DA CODEVASF NO ESTADO DE PERNAMBUCO.
B6: ITEM | C6: ORIGEM COMPOSIÇÃO | D6: CÓDIGO COMPOSIÇÃO | E6: DISCRIMINAÇÃO DOS SERVIÇOS | I6: BDI % = | J6: =BDI!C17 -> 0.2339 | K6: BDI DIFERENCIADO%: | L6: =BDI!C66 -> 0.15 | M6: R$/m² = | N6: =N48/I8 -> 92.65
I7: Total de m² | J7: Encargos Sociais: | K7: Horista R$ | L7: Mensalista R$ | M7: PREÇO UNITÁRIO COM BDI | N7: PREÇO TOTAL COM BDI
I8: =J11 -> 196000 | K8: 1.1545 | L8: 0.7091
I9: UND | J9: QTDE. | K9: BDI | L9: CUSTO UNITÁRIO
E10: MOBILIZAÇÃO
A11: =VLOOKUP(N11,'RESUMO MODULO TOTAL'!#REF!,2,0) ->  | B11: 1 | C11: Codevasf | D11: CPU-02 | E11: Mobilizações e Desmobilizações | I11: m² | J11: ='MC MODULOS'!N11 -> 196000 | K11: =$J$6 -> 0.2339 | L11: =TRUNC(IF(C11="CODEVASF",VLOOKUP(D11,'CPU CODEVASF'!E:I,5,FALSE),VLOOKUP(D11,'SINTÉTICO SICRO'!A:D,4,FALSE)),6) -> 0.54 | M11: =TRUNC(IF(C11="CODEVASF",VLOOKUP(D11,'CPU CODEVASF'!E:H,4,FALSE),VLOOKUP(D11,'SINTÉTICO SICRO'!A:D,4,FALSE)*(1+$J$6)),6) -> 0.67 | N11: =TRUNC(ROUND(J11,2)*ROUND(M11,6),2) -> 131320
A12: =VLOOKUP(N12,'RESUMO MODULO TOTAL'!#REF!,2,0) ->  | B12: 2 | C12: Codevasf | D12: CPU-03 | E12: Administração da Obra | I12: m² | J12: ='MC MODULOS'!N12 -> 196000 | K12: =$J$6 -> 0.2339 | L12: =TRUNC(IF(C12="CODEVASF",VLOOKUP(D12,'CPU CODEVASF'!E:I,5,FALSE),VLOOKUP(D12,'SINTÉTICO SICRO'!A:D,4,FALSE)),6) -> 3.09 | M12: =TRUNC(IF(C12="CODEVASF",VLOOKUP(D12,'CPU CODEVASF'!E:H,4,FALSE),VLOOKUP(D12,'SINTÉTICO SICRO'!A:D,4,FALSE)*(1+$J$6)),6) -> 3.81 | N12: =TRUNC(ROUND(J12,2)*ROUND(M12,6),2) -> 746760
A13: =VLOOKUP(N13,'RESUMO MODULO TOTAL'!#REF!,2,0) ->  | B13: 3 | C13: Codevasf | D13: CPU-04 | E13: Canteiro de Obras e Almoxarifado | I13: und | J13: ='MC MODULOS'!N13 -> 6.02 | K13: 0.2339 | L13: =TRUNC(IF(C13="CODEVASF",VLOOKUP(D13,'CPU CODEVASF'!E:I,5,FALSE),VLOOKUP(D13,'SINTÉTICO SICRO'!A:D,4,FALSE)),6) -> 1585.31 | M13: =TRUNC(IF(C13="CODEVASF",VLOOKUP(D13,'CPU CODEVASF'!E:H,4,FALSE),VLOOKUP(D13,'SINTÉTICO SICRO'!A:D,4,FALSE)*(1+$J$6)),6) -> 1956.11 | N13: 11775.78
A14: =VLOOKUP(N14,'RESUMO MODULO TOTAL'!#REF!,2,0) ->  | B14: 4 | C14: Codevasf | D14: CPU-01 | E14: Placa de Obra em Chapa de Aço Galvanizado | I14: und | J14: ='MC MODULOS'!N14 -> 14 | K14: 0.2339 | L14: =TRUNC(IF(C14="CODEVASF",VLOOKUP(D14,'CPU CODEVASF'!E:I,5,FALSE),VLOOKUP(D14,'SINTÉTICO SICRO'!A:D,4,FALSE)),6) -> 1125.45 | M14: =TRUNC(IF(C14="CODEVASF",VLOOKUP(D14,'CPU CODEVASF'!E:H,4,FALSE),VLOOKUP(D14,'SINTÉTICO SICRO'!A:D,4,FALSE)*(1+$J$6)),6) -> 1388.69 | N14: 19441.66
A15: =VLOOKUP(N15,'RESUMO MODULO TOTAL'!#REF!,2,0) ->  | E15: PAVIMENTAÇÃO
A16: =VLOOKUP(N16,'RESUMO MODULO TOTAL'!#REF!,2,0) ->  | B16: 5 | C16: SICRO | D16: 4011463 | E16: Concreto asfáltico - faixa C - areia e brita comerciais | I16: t | J16: ='MC MODULOS'!N18 -> 23520 | K16: 0.2339 | L16: =TRUNC(IF(C16="CODEVASF",VLOOKUP(D16,'CPU CODEVASF'!E:I,5,FALSE),VLOOKUP(D16,'SINTÉTICO SICRO'!A:D,4,FALSE)),6) -> 181.47 | M16: =TRUNC(IF(C16="CODEVASF",VLOOKUP(D16,'CPU CODEVASF'!E:H,4,FALSE),VLOOKUP(D16,'SINTÉTICO SICRO'!A:D,4,FALSE)*(1+$J$6)),6) -> 223.92 | N16: =TRUNC(ROUND(J16,2)*ROUND(M16,6),2) -> 5266598.4
B17: 6 | C17: SICRO | D17: 4011353 | E17: Pintura de ligação | I17: m² | J17: ='MC MODULOS'!N21 -> 196000 | K17: 0.2339 | L17: =TRUNC(IF(C17="CODEVASF",VLOOKUP(D17,'CPU CODEVASF'!E:I,5,FALSE),VLOOKUP(D17,'SINTÉTICO SICRO'!A:D,4,FALSE)),6) -> 0.27 | M17: =TRUNC(IF(C17="CODEVASF",VLOOKUP(D17,'CPU CODEVASF'!E:H,4,FALSE),VLOOKUP(D17,'SINTÉTICO SICRO'!A:D,4,FALSE)*(1+$J$6)),6) -> 0.33 | N17: =TRUNC(ROUND(J17,2)*ROUND(M17,6),2) -> 64680
A18: =VLOOKUP(N18,'RESUMO MODULO TOTAL'!#REF!,2,0) ->  | B18: 7 | C18: SICRO | D18: 4915661 | E18: Fresagem descontínua de revestimento asfáltico - espessura de 3 cm | I18: m³ | J18: ='MC MODULOS'!N24 -> 2352 | K18: 0.2339 | L18: =TRUNC(IF(C18="CODEVASF",VLOOKUP(D18,'CPU CODEVASF'!E:I,5,FALSE),VLOOKUP(D18,'SINTÉTICO SICRO'!A:D,4,FALSE)),6) -> 109.75 | M18: =TRUNC(IF(C18="CODEVASF",VLOOKUP(D18,'CPU CODEVASF'!E:H,4,FALSE),VLOOKUP(D18,'SINTÉTICO SICRO'!A:D,4,FALSE)*(1+$J$6)),6) -> 135.42 | N18: 318507.84
B19: 8 | C19: SICRO | D19: 4915757 | E19: Tapa buraco com pintura de ligação - demolição com serra corta piso | I19: m³ | J19: ='MC MODULOS'!N27 -> 403.2 | K19: 0.2339 | L19: =TRUNC(IF(C19="CODEVASF",VLOOKUP(D19,'CPU CODEVASF'!E:I,5,FALSE),VLOOKUP(D19,'SINTÉTICO SICRO'!A:D,4,FALSE)),6) -> 403.83 | M19: =TRUNC(IF(C19="CODEVASF",VLOOKUP(D19,'CPU CODEVASF'!E:H,4,FALSE),VLOOKUP(D19,'SINTÉTICO SICRO'!A:D,4,FALSE)*(1+$J$6)),6) -> 498.29 | N19: 200910.52
A20: =VLOOKUP(N20,'RESUMO MODULO TOTAL'!#REF!,2,0) ->  | E20: AQUISIÇÃO E TRANSPORTE DO MATERIAL BETUMINOSO
A21: =VLOOKUP(N21,'RESUMO MODULO TOTAL'!#REF!,2,0) ->  | B21: 9 | C21: CODEVASF | D21: CPU-13 | E21: AQUISIÇÃO DE CIMENTO ASFALTICO CAP 50/70 | I21: t | J21: =' CONSUMO DE MAT. B TOTAL'!P10 -> 1487.17 | K21: =(M21/L21-1) -> 0.15 | L21: =TRUNC(IF(C21="CODEVASF",VLOOKUP(D21,'CPU CODEVASF'!E:I,5,FALSE),VLOOKUP(D21,'SINTÉTICO SICRO'!A:D,4,FALSE)),6) -> 4236.83 | M21: =TRUNC(IF(C21="CODEVASF",VLOOKUP(D21,'CPU CODEVASF'!E:H,4,FALSE),VLOOKUP(D21,'SINTÉTICO SICRO'!A:D,4,FALSE)*(1+$J$6)),6) -> 4872.35 | N21: =TRUNC(ROUND(J21,2)*ROUND(M21,6),2) -> 7246012.74 | O21: =SUM(N21,N23)/N48 -> 0.41
A22: =VLOOKUP(N22,'RESUMO MODULO TOTAL'!#REF!,2,0) ->  | B22: 10 | C22: CODEVASF | D22: CPU-17 | E22: TRANSPORTE CAP 50/70 | I22: t | J22: =' CONSUMO DE MAT. B TOTAL'!P10 -> 1487.17 | K22: 0.15 | L22: =TRUNC(IF(C22="CODEVASF",VLOOKUP(D22,'CPU CODEVASF'!E:I,5,FALSE),VLOOKUP(D22,'SINTÉTICO SICRO'!A:D,4,FALSE)),6) -> 459.74 | M22: =TRUNC(IF(C22="CODEVASF",VLOOKUP(D22,'CPU CODEVASF'!E:H,4,FALSE),VLOOKUP(D22,'SINTÉTICO SICRO'!A:D,4,FALSE)*(1+$J$6)),6) -> 528.7 | N22: =TRUNC(ROUND(J22,2)*ROUND(M22,6),2) -> 786266.77
A23: =VLOOKUP(N23,'RESUMO MODULO TOTAL'!#REF!,2,0) ->  | B23: 11 | C23: CODEVASF | D23: CPU-15 | E23: AQUISIÇÃO DE EMULSÃO ASFÁLTICA RR-1C | I23: t | J23: =' CONSUMO DE MAT. B TOTAL'!P8 -> 78.4 | K23: 0.15 | L23: =TRUNC(IF(C23="CODEVASF",VLOOKUP(D23,'CPU CODEVASF'!E:I,5,FALSE),VLOOKUP(D23,'SINTÉTICO SICRO'!A:D,4,FALSE)),6) -> 3059.97 | M23: =TRUNC(IF(C23="CODEVASF",VLOOKUP(D23,'CPU CODEVASF'!E:H,4,FALSE),VLOOKUP(D23,'SINTÉTICO SICRO'!A:D,4,FALSE)*(1+$J$6)),6) -> 3518.97 | N23: 275887.24
A24: =VLOOKUP(N24,'RESUMO MODULO TOTAL'!#REF!,2,0) ->  | B24: 12 | C24: CODEVASF | D24: CPU-19 | E24: TRANSPORTE RR-1C | I24: t | J24: =' CONSUMO DE MAT. B TOTAL'!P8 -> 78.4 | K24: 0.15 | L24: =TRUNC(IF(C24="CODEVASF",VLOOKUP(D24,'CPU CODEVASF'!E:I,5,FALSE),VLOOKUP(D24,'SINTÉTICO SICRO'!A:D,4,FALSE)),6) -> 556.19 | M24: =TRUNC(IF(C24="CODEVASF",VLOOKUP(D24,'CPU CODEVASF'!E:H,4,FALSE),VLOOKUP(D24,'SINTÉTICO SICRO'!A:D,4,FALSE)*(1+$J$6)),6) -> 639.62 | N24: 50146.2
A25: =VLOOKUP(N25,'RESUMO MODULO TOTAL'!#REF!,2,0) ->  | E25: SINALIZAÇÃO
A26: =VLOOKUP(N26,'RESUMO MODULO TOTAL'!#REF!,2,0) ->  | B26: 13 | C26: SICRO | D26: 5213440 | E26: Fornecimento e implantação de placa de regulamentação em aço D = 0,60 m - película retrorrefletiva tipo I + SI | I26: und | J26: ='MC MODULOS'!N31 -> 14 | K26: =$J$6 -> 0.2339 | L26: =TRUNC(IF(C26="CODEVASF",VLOOKUP(D26,'CPU CODEVASF'!E:I,5,FALSE),VLOOKUP(D26,'SINTÉTICO SICRO'!A:D,4,FALSE)),6) -> 255.08 | M26: =TRUNC(IF(C26="CODEVASF",VLOOKUP(D26,'CPU CODEVASF'!E:H,4,FALSE),VLOOKUP(D26,'SINTÉTICO SICRO'!A:D,4,FALSE)*(1+$J$6)),6) -> 314.74 | N26: =TRUNC(ROUND(J26,2)*ROUND(M26,6),2) -> 4406.36
A27: =VLOOKUP(N27,'RESUMO MODULO TOTAL'!#REF!,2,0) ->  | B27: 14 | C27: SICRO | D27: 5213863 | E27: Suporte metálico galvanizado para placa de advertência ou regulamentação - lado ou diâmetro de 0,60 m - fornecimento e implantação | I27: und | J27: ='MC MODULOS'!N34 -> 14 | K27: 0.2339 | L27: =TRUNC(IF(C27="CODEVASF",VLOOKUP(D27,'CPU CODEVASF'!E:I,5,FALSE),VLOOKUP(D27,'SINTÉTICO SICRO'!A:D,4,FALSE)),6) -> 451.59 | M27: =TRUNC(IF(C27="CODEVASF",VLOOKUP(D27,'CPU CODEVASF'!E:H,4,FALSE),VLOOKUP(D27,'SINTÉTICO SICRO'!A:D,4,FALSE)*(1+$J$6)),6) -> 557.22 | N27: =TRUNC(ROUND(J27,2)*ROUND(M27,6),2) -> 7801.08
A28: =VLOOKUP(N28,'RESUMO MODULO TOTAL'!#REF!,2,0) ->  | B28: 15 | C28: SICRO | D28: 5213400 | E28: Pintura de faixa com tinta acrílica - espessura de 0,4 mm | I28: m² | J28: ='MC MODULOS'!N37 -> 2800 | K28: 0.2339 | L28: =TRUNC(IF(C28="CODEVASF",VLOOKUP(D28,'CPU CODEVASF'!E:I,5,FALSE),VLOOKUP(D28,'SINTÉTICO SICRO'!A:D,4,FALSE)),6) -> 30.79 | M28: =TRUNC(IF(C28="CODEVASF",VLOOKUP(D28,'CPU CODEVASF'!E:H,4,FALSE),VLOOKUP(D28,'SINTÉTICO SICRO'!A:D,4,FALSE)*(1+$J$6)),6) -> 37.99 | N28: 106372
A29: =VLOOKUP(N29,'RESUMO MODULO TOTAL'!#REF!,2,0) ->  | E29: DRENAGEM
A30: =VLOOKUP(N30,'RESUMO MODULO TOTAL'!#REF!,2,0) ->  | B30: 16 | C30: SICRO | D30: 4915708 | E30: Limpeza de sarjeta e meio-fio | I30: m | J30: ='MC MODULOS'!N41 -> 56000 | K30: 0.2339 | L30: =TRUNC(IF(C30="CODEVASF",VLOOKUP(D30,'CPU CODEVASF'!E:I,5,FALSE),VLOOKUP(D30,'SINTÉTICO SICRO'!A:D,4,FALSE)),6) -> 0.69 | M30: =TRUNC(IF(C30="CODEVASF",VLOOKUP(D30,'CPU CODEVASF'!E:H,4,FALSE),VLOOKUP(D30,'SINTÉTICO SICRO'!A:D,4,FALSE)*(1+$J$6)),6) -> 0.85 | N30: =TRUNC(ROUND(J30,2)*ROUND(M30,6),2) -> 47600
A31: =VLOOKUP(N31,'RESUMO MODULO TOTAL'!#REF!,2,0) ->  | B31: 17 | C31: SICRO | D31: 4915724 | E31: Caiação mecanizada com fixador de cal | I31: m² | J31: ='MC MODULOS'!N44 -> 0 | K31: 0.2339 | L31: =TRUNC(IF(C31="CODEVASF",VLOOKUP(D31,'CPU CODEVASF'!E:I,5,FALSE),VLOOKUP(D31,'SINTÉTICO SICRO'!A:D,4,FALSE)),6) -> 1.72 | M31: =TRUNC(IF(C31="CODEVASF",VLOOKUP(D31,'CPU CODEVASF'!E:H,4,FALSE),VLOOKUP(D31,'SINTÉTICO SICRO'!A:D,4,FALSE)*(1+$J$6)),6) -> 2.12 | N31: =TRUNC(ROUND(J31,2)*ROUND(M31,6),2) -> 0
A32: =VLOOKUP(N32,'RESUMO MODULO TOTAL'!#REF!,2,0) ->  | E32: SERVIÇOS COMPLEMENTARES
A33: =VLOOKUP(N33,'RESUMO MODULO TOTAL'!#REF!,2,0) ->  | B33: 18 | C33: Codevasf | D33: CPU-12 | E33: Conserto de quebra no ramal na rua sem pavimento com fornecimento de material hidráulico | I33: m | J33: ='MC MODULOS'!N48 -> 490 | K33: 0.2339 | L33: =TRUNC(IF(C33="CODEVASF",VLOOKUP(D33,'CPU CODEVASF'!E:I,5,FALSE),VLOOKUP(D33,'SINTÉTICO SICRO'!A:D,4,FALSE)),6) -> 43.38 | M33: =TRUNC(IF(C33="CODEVASF",VLOOKUP(D33,'CPU CODEVASF'!E:H,4,FALSE),VLOOKUP(D33,'SINTÉTICO SICRO'!A:D,4,FALSE)*(1+$J$6)),6) -> 53.52 | N33: =TRUNC(ROUND(J33,2)*ROUND(M33,6),2) -> 26224.8
A34: =VLOOKUP(N34,'RESUMO MODULO TOTAL'!#REF!,2,0) ->  | E34: PROJETO EXECUTIVO
A35: =VLOOKUP(N35,'RESUMO MODULO TOTAL'!#REF!,2,0) ->  | B35: 19 | C35: Codevasf | D35: CPU-20 | E35: Projeto Executivo | I35: m² | J35: ='MC MODULOS'!N52 -> 196000 | K35: 0.2339 | L35: =TRUNC(IF(C35="CODEVASF",VLOOKUP(D35,'CPU CODEVASF'!E:I,5,FALSE),VLOOKUP(D35,'SINTÉTICO SICRO'!A:D,4,FALSE)),6) -> 0.25 | M35: =TRUNC(IF(C35="CODEVASF",VLOOKUP(D35,'CPU CODEVASF'!E:H,4,FALSE),VLOOKUP(D35,'SINTÉTICO SICRO'!A:D,4,FALSE)*(1+$J$6)),6) -> 0.3 | N35: =TRUNC(ROUND(J35,2)*ROUND(M35,6),2) -> 58800
A36: =VLOOKUP(N36,'RESUMO MODULO TOTAL'!#REF!,2,0) ->  | E36: CONTROLE TECNOLÓGICO - OBRA
A37: =VLOOKUP(N37,'RESUMO MODULO TOTAL'!#REF!,2,0) ->  | B37: 20 | C37: Codevasf | D37: CPU-21 | E37: Controle tecnológico - Obra | I37: m² | J37: ='MC MODULOS'!N52 -> 196000 | K37: 0.2339 | L37: =TRUNC(IF(C37="CODEVASF",VLOOKUP(D37,'CPU CODEVASF'!E:I,5,FALSE),VLOOKUP(D37,'SINTÉTICO SICRO'!A:D,4,FALSE)),6) -> 0.4 | M37: =TRUNC(IF(C37="CODEVASF",VLOOKUP(D37,'CPU CODEVASF'!E:H,4,FALSE),VLOOKUP(D37,'SINTÉTICO SICRO'!A:D,4,FALSE)*(1+$J$6)),6) -> 0.49 | N37: =TRUNC(ROUND(J37,2)*ROUND(M37,6),2) -> 96040
A38: =VLOOKUP(N38,'RESUMO MODULO TOTAL'!#REF!,2,0) ->  | E38: MOMENTO DE TRANSPORTE
A39: =VLOOKUP(N39,'RESUMO MODULO TOTAL'!#REF!,2,0) ->  | B39: 21 | C39: SICRO | D39: 5914359 | E39: =IF(C39="CODEVASF",VLOOKUP(D39,'CPU CODEVASF'!E:H,2,FALSE),VLOOKUP(D39,'SINTÉTICO SICRO'!A:D,2,FALSE)) -> Transporte com caminhão basculante de 10 m³ - rodovia em leito natural | I39: tkm | J39: =ROUND(SUMIF('MOMENTO DE TRANSPORTE - PRINC'!A:A,'RESUMO MODULO TOTAL'!D39,'MOMENTO DE TRANSPORTE - PRINC'!K:K)+SUMIF('MOMENTO DE TRANSPORTE - AUX'!A:A,'RESUMO MODULO TOTAL'!D39,'MOMENTO DE TRANSPORTE - AUX'!K:K),2) -> 0 | K39: 0.2339 | L39: =ROUND(IF(C39="CODEVASF",VLOOKUP(D39,'CPU CODEVASF'!E:I,5,FALSE),VLOOKUP(D39,'SINTÉTICO SICRO'!A:D,4,FALSE)),6) -> 1.1 | M39: =ROUND(IF(C39="CODEVASF",VLOOKUP(D39,'CPU CODEVASF'!E:H,4,FALSE),VLOOKUP(D39,'SINTÉTICO SICRO'!A:D,4,FALSE)*(1+$J$6)),6) -> 1.36 | N39: =ROUND(ROUND(J39,2)*ROUND(M39,6),2) -> 0
A40: =VLOOKUP(N40,'RESUMO MODULO TOTAL'!#REF!,2,0) ->  | B40: 22 | C40: SICRO | D40: 5914374 | E40: =IF(C40="CODEVASF",VLOOKUP(D40,'CPU CODEVASF'!E:H,2,FALSE),VLOOKUP(D40,'SINTÉTICO SICRO'!A:D,2,FALSE)) -> Transporte com caminhão basculante de 10 m³ - rodovia em revestimento primário | I40: tkm | J40: =ROUND(SUMIF('MOMENTO DE TRANSPORTE - PRINC'!A:A,'RESUMO MODULO TOTAL'!D40,'MOMENTO DE TRANSPORTE - PRINC'!K:K)+SUMIF('MOMENTO DE TRANSPORTE - AUX'!A:A,'RESUMO MODULO TOTAL'!D40,'MOMENTO DE TRANSPORTE - AUX'!K:K),2) -> 0 | K40: 0.2339 | L40: =ROUND(IF(C40="CODEVASF",VLOOKUP(D40,'CPU CODEVASF'!E:I,5,FALSE),VLOOKUP(D40,'SINTÉTICO SICRO'!A:D,4,FALSE)),6) -> 0.88 | M40: =ROUND(IF(C40="CODEVASF",VLOOKUP(D40,'CPU CODEVASF'!E:H,4,FALSE),VLOOKUP(D40,'SINTÉTICO SICRO'!A:D,4,FALSE)*(1+$J$6)),6) -> 1.09 | N40: 0
A41: =VLOOKUP(N41,'RESUMO MODULO TOTAL'!#REF!,2,0) ->  | B41: 23 | C41: SICRO | D41: 5914389 | E41: =IF(C41="CODEVASF",VLOOKUP(D41,'CPU CODEVASF'!E:H,2,FALSE),VLOOKUP(D41,'SINTÉTICO SICRO'!A:D,2,FALSE)) -> Transporte com caminhão basculante de 10 m³ - rodovia pavimentada | I41: tkm | J41: =ROUND(SUMIF('MOMENTO DE TRANSPORTE - PRINC'!A:A,'RESUMO MODULO TOTAL'!D41,'MOMENTO DE TRANSPORTE - PRINC'!K:K)+SUMIF('MOMENTO DE TRANSPORTE - AUX'!A:A,'RESUMO MODULO TOTAL'!D41,'MOMENTO DE TRANSPORTE - AUX'!K:K),2)-516.29 -> 2948021.43 | K41: 0.2339 | L41: =TRUNC(IF(C41="CODEVASF",VLOOKUP(D41,'CPU CODEVASF'!E:I,5,FALSE),VLOOKUP(D41,'SINTÉTICO SICRO'!A:D,4,FALSE)),6) -> 0.72 | M41: =TRUNC(IF(C41="CODEVASF",VLOOKUP(D41,'CPU CODEVASF'!E:H,4,FALSE),VLOOKUP(D41,'SINTÉTICO SICRO'!A:D,4,FALSE)*(1+$J$6)),6) -> 0.89 | N41: =TRUNC(ROUND(J41,2)*ROUND(M41,6),2) -> 2623739.07
A42: =VLOOKUP(N42,'RESUMO MODULO TOTAL'!#REF!,2,0) ->  | B42: 24 | C42: SICRO | D42: 5914449 | E42: =IF(C42="CODEVASF",VLOOKUP(D42,'CPU CODEVASF'!E:H,2,FALSE),VLOOKUP(D42,'SINTÉTICO SICRO'!A:D,2,FALSE)) -> Transporte com caminhão carroceria de 15 t - rodovia em leito natural | I42: tkm | J42: =ROUND(SUMIF('MOMENTO DE TRANSPORTE - PRINC'!A:A,'RESUMO MODULO TOTAL'!D42,'MOMENTO DE TRANSPORTE - PRINC'!K:K)+SUMIF('MOMENTO DE TRANSPORTE - AUX'!A:A,'RESUMO MODULO TOTAL'!D42,'MOMENTO DE TRANSPORTE - AUX'!K:K),2) -> 0 | K42: 0.2339 | L42: =ROUND(IF(C42="CODEVASF",VLOOKUP(D42,'CPU CODEVASF'!E:I,5,FALSE),VLOOKUP(D42,'SINTÉTICO SICRO'!A:D,4,FALSE)),6) -> 1.01 | M42: =ROUND(IF(C42="CODEVASF",VLOOKUP(D42,'CPU CODEVASF'!E:H,4,FALSE),VLOOKUP(D42,'SINTÉTICO SICRO'!A:D,4,FALSE)*(1+$J$6)),6) -> 1.25 | N42: 0
A43: =VLOOKUP(N43,'RESUMO MODULO TOTAL'!#REF!,2,0) ->  | B43: 25 | C43: SICRO | D43: 5914464 | E43: =IF(C43="CODEVASF",VLOOKUP(D43,'CPU CODEVASF'!E:H,2,FALSE),VLOOKUP(D43,'SINTÉTICO SICRO'!A:D,2,FALSE)) -> Transporte com caminhão carroceria de 15 t - rodovia em revestimento primário | I43: tkm | J43: =ROUND(SUMIF('MOMENTO DE TRANSPORTE - PRINC'!A:A,'RESUMO MODULO TOTAL'!D43,'MOMENTO DE TRANSPORTE - PRINC'!K:K)+SUMIF('MOMENTO DE TRANSPORTE - AUX'!A:A,'RESUMO MODULO TOTAL'!D43,'MOMENTO DE TRANSPORTE - AUX'!K:K),2) -> 0 | K43: 0.2339 | L43: =ROUND(IF(C43="CODEVASF",VLOOKUP(D43,'CPU CODEVASF'!E:I,5,FALSE),VLOOKUP(D43,'SINTÉTICO SICRO'!A:D,4,FALSE)),6) -> 0.81 | M43: =ROUND(IF(C43="CODEVASF",VLOOKUP(D43,'CPU CODEVASF'!E:H,4,FALSE),VLOOKUP(D43,'SINTÉTICO SICRO'!A:D,4,FALSE)*(1+$J$6)),6) -> 1 | N43: 0
A44: =VLOOKUP(N44,'RESUMO MODULO TOTAL'!#REF!,2,0) ->  | B44: 26 | C44: SICRO | D44: 5914479 | E44: =IF(C44="CODEVASF",VLOOKUP(D44,'CPU CODEVASF'!E:H,2,FALSE),VLOOKUP(D44,'SINTÉTICO SICRO'!A:D,2,FALSE)) -> Transporte com caminhão carroceria de 15 t - rodovia pavimentada | I44: tkm | J44: =ROUND(SUMIF('MOMENTO DE TRANSPORTE - PRINC'!A:A,'RESUMO MODULO TOTAL'!D44,'MOMENTO DE TRANSPORTE - PRINC'!K:K)+SUMIF('MOMENTO DE TRANSPORTE - AUX'!A:A,'RESUMO MODULO TOTAL'!D44,'MOMENTO DE TRANSPORTE - AUX'!K:K),2) -> 0 | K44: 0.2339 | L44: =ROUND(IF(C44="CODEVASF",VLOOKUP(D44,'CPU CODEVASF'!E:I,5,FALSE),VLOOKUP(D44,'SINTÉTICO SICRO'!A:D,4,FALSE)),6) -> 0.66 | M44: =ROUND(IF(C44="CODEVASF",VLOOKUP(D44,'CPU CODEVASF'!E:H,4,FALSE),VLOOKUP(D44,'SINTÉTICO SICRO'!A:D,4,FALSE)*(1+$J$6)),6) -> 0.81 | N44: 0
A45: =VLOOKUP(N45,'RESUMO MODULO TOTAL'!#REF!,2,0) ->  | B45: 27 | C45: SICRO | D45: 5914364 | E45: =IF(C45="CODEVASF",VLOOKUP(D45,'CPU CODEVASF'!E:H,2,FALSE),VLOOKUP(D45,'SINTÉTICO SICRO'!A:D,2,FALSE)) -> Transporte de cimento ou cal hidratada a granel com caminhão silo de 30 m³ - rodovia em leito natural | I45: tkm | J45: =ROUND(SUMIF('MOMENTO DE TRANSPORTE - PRINC'!A:A,'RESUMO MODULO TOTAL'!D45,'MOMENTO DE TRANSPORTE - PRINC'!K:K)+SUMIF('MOMENTO DE TRANSPORTE - AUX'!A:A,'RESUMO MODULO TOTAL'!D45,'MOMENTO DE TRANSPORTE - AUX'!K:K),2) -> 0 | K45: 0.2339 | L45: =ROUND(IF(C45="CODEVASF",VLOOKUP(D45,'CPU CODEVASF'!E:I,5,FALSE),VLOOKUP(D45,'SINTÉTICO SICRO'!A:D,4,FALSE)),6) -> 0.81 | M45: =ROUND(IF(C45="CODEVASF",VLOOKUP(D45,'CPU CODEVASF'!E:H,4,FALSE),VLOOKUP(D45,'SINTÉTICO SICRO'!A:D,4,FALSE)*(1+$J$6)),6) -> 1 | N45: 0
A46: =VLOOKUP(N46,'RESUMO MODULO TOTAL'!#REF!,2,0) ->  | B46: 28 | C46: SICRO | D46: 5914365 | E46: =IF(C46="CODEVASF",VLOOKUP(D46,'CPU CODEVASF'!E:H,2,FALSE),VLOOKUP(D46,'SINTÉTICO SICRO'!A:D,2,FALSE)) -> Transporte de cimento ou cal hidratada a granel com caminhão silo de 30 m³ - rodovia em revestimento primário | I46: tkm | J46: =ROUND(SUMIF('MOMENTO DE TRANSPORTE - PRINC'!A:A,'RESUMO MODULO TOTAL'!D46,'MOMENTO DE TRANSPORTE - PRINC'!K:K)+SUMIF('MOMENTO DE TRANSPORTE - AUX'!A:A,'RESUMO MODULO TOTAL'!D46,'MOMENTO DE TRANSPORTE - AUX'!K:K),2) -> 0 | K46: 0.2339 | L46: =ROUND(IF(C46="CODEVASF",VLOOKUP(D46,'CPU CODEVASF'!E:I,5,FALSE),VLOOKUP(D46,'SINTÉTICO SICRO'!A:D,4,FALSE)),6) -> 0.64 | M46: =ROUND(IF(C46="CODEVASF",VLOOKUP(D46,'CPU CODEVASF'!E:H,4,FALSE),VLOOKUP(D46,'SINTÉTICO SICRO'!A:D,4,FALSE)*(1+$J$6)),6) -> 0.79 | N46: 0
A47: =VLOOKUP(N47,'RESUMO MODULO TOTAL'!#REF!,2,0) ->  | B47: 29 | C47: SICRO | D47: 5914366 | E47: =IF(C47="CODEVASF",VLOOKUP(D47,'CPU CODEVASF'!E:H,2,FALSE),VLOOKUP(D47,'SINTÉTICO SICRO'!A:D,2,FALSE)) -> Transporte de cimento ou cal hidratada a granel com caminhão silo de 30 m³ - rodovia pavimentada | I47: tkm | J47: =ROUND(SUMIF('MOMENTO DE TRANSPORTE - PRINC'!A:A,'RESUMO MODULO TOTAL'!D47,'MOMENTO DE TRANSPORTE - PRINC'!K:K)+SUMIF('MOMENTO DE TRANSPORTE - AUX'!A:A,'RESUMO MODULO TOTAL'!D47,'MOMENTO DE TRANSPORTE - AUX'!K:K),2) -> 107860.84 | K47: 0.2339 | L47: =TRUNC(IF(C47="CODEVASF",VLOOKUP(D47,'CPU CODEVASF'!E:I,5,FALSE),VLOOKUP(D47,'SINTÉTICO SICRO'!A:D,4,FALSE)),6) -> 0.53 | M47: =TRUNC(IF(C47="CODEVASF",VLOOKUP(D47,'CPU CODEVASF'!E:H,4,FALSE),VLOOKUP(D47,'SINTÉTICO SICRO'!A:D,4,FALSE)*(1+$J$6)),6) -> 0.65 | N47: =TRUNC(ROUND(J47,2)*ROUND(M47,6),2) -> 70109.54
J48: VALOR TOTAL DO SRP | N48: =SUM(N11:N47) -> 18159400
B49: Obs.: Os valores estão apresentados com apenas 2 casas decimais, mas os valores da presente planilha foram calculados utilizando a precisão de 6 casa decimais.
N83: =92.65*196000 -> 18159400

Sheet CRONOGRAMA TOTAL
B1: EXECUÇÃO DE CAPA ASFÁLTICA COM CBUQ, EM VIAS DE MUNICÍPIOS DA REGIÃO DA MATA PERNAMBUCANA, ÁREA DE ATUAÇÃO DA CODEVASF NO ESTADO DE PERNAMBUCO.
A2: ='RESUMO MODULO TOTAL'!B1 -> EXECUÇÃO DE CAPA ASFÁLTICA COM CBUQ, EM VIAS DE MUNICÍPIOS DA REGIÃO DA MATA PERNAMBUCANA, ÁREA DE ATUAÇÃO DA CODEVASF NO ESTADO DE PERNAMBUCO.
A3: Cronograma Físico e Financeiro
A4: Item | B4: Descrição | C4: Total Por Etapa | D4: 15 DIAS | E4: 30 DIAS | F4: 45 DIAS | G4: 60 DIAS | H4: 75 DIAS | I4: 90 DIAS | J4: 105 DIAS | K4: 120 DIAS | L4: 135 DIAS | M4: 150 DIAS | N4: 165 DIAS | O4: 180 DIAS
B5: ='RESUMO MODULO TOTAL'!E10 -> MOBILIZAÇÃO | C5: 1 | E5: =$C$5/11 -> 0.0909 | F5: =$C$5/11 -> 0.0909 | G5: 0.0909 | H5: 0.0909 | I5: 0.0909 | J5: 0.0909 | K5: 0.0909 | L5: 0.0909 | M5: 0.0909 | N5: 0.0909 | O5: 0.0909 | Q5: =SUM(D5:O5) -> 0.9999
C6: =SUM('RESUMO MODULO TOTAL'!N11:N14) -> 909297.44 | E6: =$C$6*E5 -> 82655.14 | F6: 82655.14 | G6: 82655.14 | H6: 82655.14 | I6: 82655.14 | J6: 82655.14 | K6: 82655.14 | L6: 82655.14 | M6: 82655.14 | N6: 82655.14 | O6: 82655.14 | Q6: =SUM(D6:O6) -> 909206.54 | R6: =C6 -> 909297.44 | S6: =Q6-R6 -> -90.9
B7: ='RESUMO MODULO TOTAL'!E15 -> PAVIMENTAÇÃO | C7: 1 | F7: 0.09 | G7: 0.09 | H7: 0.11 | I7: 0.11 | J7: 0.11 | K7: 0.11 | L7: 0.11 | M7: 0.09 | N7: 0.09 | O7: 0.09 | Q7: =SUM(F7:O7) -> 1
C8: =SUM('RESUMO MODULO TOTAL'!N16:N19) -> 5850696.76 | F8: =$C$8*F7 -> 526562.71 | G8: =$C$8*G7 -> 526562.71 | H8: 643576.64 | I8: 643576.64 | J8: 643576.64 | K8: 643576.64 | L8: 643576.64 | M8: 526562.71 | N8: 526562.71 | O8: 526562.71 | Q8: 5850696.75 | R8: =C8 -> 5850696.76 | S8: =Q8-R8 -> -0.01
B9: ='RESUMO MODULO TOTAL'!E25 -> SINALIZAÇÃO | C9: 1 | N9: 0.5 | O9: 0.5 | Q9: 1
C10: =SUM('RESUMO MODULO TOTAL'!N26:N28) -> 118579.44 | N10: =$C$10*N9 -> 59289.72 | O10: 59289.72 | Q10: 118579.44 | R10: =C10 -> 118579.44 | S10: 0
B11: ='RESUMO MODULO TOTAL'!E29 -> DRENAGEM | C11: 1 | M11: 0.3 | N11: 0.35 | O11: 0.35 | Q11: =SUM(D11:O11) -> 1
C12: =SUM('RESUMO MODULO TOTAL'!N30:N31) -> 47600 | F12: =$C$12*F11 -> 0 | G12: =$C$12*G11 -> 0 | H12: 0 | I12: 0 | J12: 0 | K12: 0 | L12: 0 | M12: 14280 | N12: 16660 | O12: 16660 | Q12: 47600 | R12: =C12 -> 47600 | S12: 0
B13: AQUISIÇÃO E TRANSPORTE DE MATERIAL BETUMINOSO | C13: 1 | F13: 0.09 | G13: 0.09 | H13: 0.11 | I13: 0.11 | J13: 0.11 | K13: 0.11 | L13: 0.11 | M13: 0.09 | N13: 0.09 | O13: 0.09
C14: =SUM('RESUMO MODULO TOTAL'!N21:N24) -> 8358312.95 | F14: =$C$14*F13 -> 752248.17 | G14: =$C$14*G13 -> 752248.17 | H14: 919414.42 | I14: 919414.42 | J14: 919414.42 | K14: 919414.42 | L14: 919414.42 | M14: 752248.17 | N14: 752248.17 | O14: 752248.17
B15: ='RESUMO MODULO TOTAL'!E32 -> SERVIÇOS COMPLEMENTARES | C15: 1 | F15: 0.09 | G15: 0.09 | H15: 0.11 | I15: 0.11 | J15: 0.11 | K15: 0.11 | L15: 0.11 | M15: 0.09 | N15: 0.09 | O15: 0.09 | Q15: =SUM(D15:O15) -> 1
C16: =SUM('RESUMO MODULO TOTAL'!N33) -> 26224.8 | F16: =$C$16*F15 -> 2360.23 | G16: =$C$16*G15 -> 2360.23 | H16: 2884.73 | I16: 2884.73 | J16: 2884.73 | K16: 2884.73 | L16: 2884.73 | M16: 2360.23 | N16: 2360.23 | O16: 2360.23 | Q16: 26224.8 | R16: =C16 -> 26224.8 | S16: =Q16-R16 -> 0
B17: ='RESUMO MODULO TOTAL'!E34 -> PROJETO EXECUTIVO | C17: 1 | D17: 0.5 | E17: 0.5 | Q17: 1
C18: =SUM('RESUMO MODULO TOTAL'!N35) -> 58800 | D18: =$C$18*D17 -> 29400 | E18: =$C$18*E17 -> 29400 | Q18: 58800 | R18: =C18 -> 58800 | S18: =Q18-R18 -> 0
B19: ='RESUMO MODULO TOTAL'!E36 -> CONTROLE TECNOLÓGICO - OBRA | C19: 1 | F19: 0.09 | G19: 0.09 | H19: 0.11 | I19: 0.11 | J19: 0.11 | K19: 0.11 | L19: 0.11 | M19: 0.09 | N19: 0.09 | O19: 0.09 | Q19: =SUM(D19:O19) -> 1
C20: =SUM('RESUMO MODULO TOTAL'!N37) -> 96040 | F20: =$C$20*F19 -> 8643.6 | G20: 8643.6 | H20: 10564.4 | I20: 10564.4 | J20: 10564.4 | K20: 10564.4 | L20: 10564.4 | M20: 8643.6 | N20: 8643.6 | O20: 8643.6 | Q20: 96040 | R20: =C20 -> 96040 | S20: =Q20-R20 -> 0
B21: ='RESUMO MODULO TOTAL'!E38 -> MOMENTO DE TRANSPORTE | C21: 1 | F21: 0.09 | G21: 0.09 | H21: 0.11 | I21: 0.11 | J21: 0.11 | K21: 0.11 | L21: 0.11 | M21: 0.09 | N21: 0.09 | O21: 0.09 | Q21: =SUM(D21:O21) -> 1
C22: =SUM('RESUMO MODULO TOTAL'!N39:N47) -> 2693848.61 | F22: =$C$22*F21 -> 242446.37 | G22: =$C$22*G21 -> 242446.37 | H22: 296323.35 | I22: 296323.35 | J22: 296323.35 | K22: 296323.35 | L22: 296323.35 | M22: 242446.37 | N22: 242446.37 | O22: 242446.37 | Q22: 2693848.6 | R22: =C22 -> 2693848.61 | S22: =Q22-R22 -> -0.01
A24: Porcentagem | D24: =SUM(D6+D8+D10+D12+D14+D16+D18)/$O$29 -> 0.0016 | E24: =SUM(E6+E8+E10+E12+E14+E16+E18)/$O$29 -> 0.0062 | F24: =SUM(F6+F8+F10+F12+F14+F16+F18+F20+F22)/$O$29 -> 0.0889 | G24: =SUM(G6+G8+G10+G12+G14+G16+G18+G20+G22)/$O$29 -> 0.0889 | H24: 0.1077 | I24: 0.1077 | J24: 0.1077 | K24: 0.1077 | L24: 0.1077 | M24: 0.0897 | N24: 0.0931 | O24: 0.0931
A25: Custo | D25: =$O$29*D24 -> 29055.04 | E25: =$O$29*E24 -> 112588.28 | F25: =$O$29*F24 -> 1614370.66 | G25: 1614370.66 | H25: 1955767.38 | I25: 1955767.38 | J25: 1955767.38 | K25: 1955767.38 | L25: 1955767.38 | M25: 1628898.18 | N25: 1690640.14 | O25: 1690640.14
A26: Porcentagem Acumulado | D26: =D24 -> 0.0016 | E26: =D26+E24 -> 0.0078 | F26: =E26+F24 -> 0.0967 | G26: 0.1856 | H26: 0.2933 | I26: 0.401 | J26: 0.5087 | K26: 0.6164 | L26: 0.7241 | M26: 0.8138 | N26: 0.9069 | O26: 1
A27: Custo Acumulado | D27: =D25 -> 29055.04 | E27: =D27+E25 -> 141643.32 | F27: 1756013.98 | G27: 3370384.64 | H27: 5326152.02 | I27: 7281919.4 | J27: 9237686.78 | K27: 11193454.16 | L27: 13149221.54 | M27: 14778119.72 | N27: 16468759.86 | O27: 18159400
D29: Total Geral | N29: R$ | O29: ='RESUMO MODULO TOTAL'!$N$48 -> 18159400

Sheet CPU CODEVASF
A4: ='RESUMO MODULO TOTAL'!B1 -> EXECUÇÃO DE CAPA ASFÁLTICA COM CBUQ, EM VIAS DE MUNICÍPIOS DA REGIÃO DA MATA PERNAMBUCANA, ÁREA DE ATUAÇÃO DA CODEVASF NO ESTADO DE PERNAMBUCO.
F5: BDI %: | G5: =BDI!C17 -> 0.2339
E6: Encargos Sociais: | G6: Horista | H6: Mensalista
G7: 1.1455 | H7: 0.7011
A8: COMPOSIÇÕES DE CUSTO UNITARIO
A9: CPU-01 | B9: CODEVASF | C9: 1 | D9: PLACA DE OBRA EM CHAPA DE ACO GALVANIZADO | E9: und | F9: COEF. | G9: PRECO UNITÁRIO (R$) | H9: TOTAL (R$)
A11: INS. SINAPI | B11: SINAPI | C11: 5075 | D11: PREGO 18X30. | E11: kg | F11: 0.11 | G11: =IFERROR(VLOOKUP(C11,'INSUMOS SINAPI'!A:E,5,FALSE),VLOOKUP(C11,'COMP Sint. Sinapi'!G:K,5,FALSE)) -> 18,31 | H11: =TRUNC(F11*G11,2) -> 2.01
A12: INS. SINAPI | B12: SINAPI | C12: 4491 | D12: PECA DE MADEIRA NATIVA / REGIONAL 7,5 X 7,5CM (3X3) NAO APARELHADA (P/FORMA) | E12: m | F12: 4 | G12: =IFERROR(VLOOKUP(C12,'INSUMOS SINAPI'!A:E,5,FALSE),VLOOKUP(C12,'COMP Sint. Sinapi'!G:K,5,FALSE)) -> 10,58 | H12: =TRUNC(F12*G12,2) -> 42.32
A13: INS. SINAPI | B13: SINAPI | C13: 4417 | D13: PECA DE MADEIRA DE LEI *2,5 X 7,5* CM (1" X 3"), NÃO APARELHADA, (P/TELHADO) | E13: m | F13: 1 | G13: =IFERROR(VLOOKUP(C13,'INSUMOS SINAPI'!A:E,5,FALSE),VLOOKUP(C13,'COMP Sint. Sinapi'!G:K,5,FALSE)) -> 8,43 | H13: =TRUNC(F13*G13,2) -> 8.43
A14: INS. SINAPI | B14: SINAPI | C14: 4813 | D14: PLACA DE OBRA (PARA CONSTRUCAO CIVIL) EM CHAPA GALVANIZADA *Nº 22*, DE *2,0 X 1,125* M | E14: m² | F14: 4 | G14: =IFERROR(VLOOKUP(C14,'INSUMOS SINAPI'!A:E,5,FALSE),VLOOKUP(C14,'COMP Sint. Sinapi'!G:K,5,FALSE)) -> 250,00 | H14: 1000
A15: INS. SINAPI | B15: SINAPI | C15: 370 | D15: AREIA MÉDIA | E15: m³ | F15: 0.0049 | G15: =IFERROR(VLOOKUP(C15,'INSUMOS SINAPI'!A:E,5,FALSE),VLOOKUP(C15,'COMP Sint. Sinapi'!G:K,5,FALSE)) -> 130,00 | H15: 0.63
A16: INS. SINAPI | B16: SINAPI | C16: 1379 | D16: CIMENTO PORTLAND COMPOSTO CP II-32 | E16: kg | F16: 1.5 | G16: =IFERROR(VLOOKUP(C16,'INSUMOS SINAPI'!A:E,5,FALSE),VLOOKUP(C16,'COMP Sint. Sinapi'!G:K,5,FALSE)) -> 0,70 | H16: 1.05
A17: INS. SINAPI | B17: SINAPI | C17: 4718 | D17: PEDRA BRITADA Nº 2 | E17: m³ | F17: 0.0098 | G17: =IFERROR(VLOOKUP(C17,'INSUMOS SINAPI'!A:E,5,FALSE),VLOOKUP(C17,'COMP Sint. Sinapi'!G:K,5,FALSE)) -> 105,03 | H17: 1.02
A18: COMP. SINAPI | B18: SINAPI | C18: ="87445" -> 87445 | D18: BETONEIRA CAPACIDADE NOMINAL 400 L, CAPACIDADE DE MISTURA 310 L, MOTOR A DIESEL POTÊNCIA 5,0 HP, SEM CARREGADOR MECANICO (LOCACAO) | E18: h | F18: 0.0065 | G18: =IFERROR(VLOOKUP(C18,'INSUMOS SINAPI'!A:E,5,FALSE),VLOOKUP(C18,'COMP Sint. Sinapi'!G:K,5,FALSE)) -> 5,64 | H18: 0.03
A19: COMP. SINAPI | B19: SINAPI | C19: ="88262" -> 88262 | D19: CARPINTEIRO DE FORMAS COM ENCARGOS COMPLEMENTARES | E19: h | F19: 1 | G19: =IFERROR(VLOOKUP(C19,'INSUMOS SINAPI'!A:E,5,FALSE),VLOOKUP(C19,'COMP Sint. Sinapi'!G:K,5,FALSE)) -> 26,13 | H19: 26.13
A20: COMP. SINAPI | B20: SINAPI | C20: ="88316" -> 88316 | D20: SERVENTE COM ENCARGOS COMPLEMENTARES | E20: h | F20: 2.06 | G20: =IFERROR(VLOOKUP(C20,'INSUMOS SINAPI'!A:E,5,FALSE),VLOOKUP(C20,'COMP Sint. Sinapi'!G:K,5,FALSE)) -> 21,28 | H20: 43.83
E21: Sub total: | H21: =SUM(H11:H20) -> 1125.45
F22: BDI | G22: =BDI!$C$17 -> 0.2339 | H22: =TRUNC(H21*G22,2) -> 263.24
G23: Total Serviços: | H23: =H21+H22 -> 1388.69
E24: =A9 -> CPU-01 | F24: PREÇO UNITÁRIO TOTAL: | H24: =H23 -> 1388.69 | I24: =H21 -> 1125.45
A26: CPU-02 | B26: CODEVASF | C26: Propria | D26: MOBILIZAÇÃO E DESMOBILIZAÇÃO (via Módulo Mínimo) | E26: m² | F26: COEF. | G26: PRECO UNITÁRIO (R$) | H26: TOTAL (R$)
A28: COMP. SINAPI | B28: SINAPI | C28: ="73340" -> 73340 | D28: CAMINHÃO TOCO, PBT 14.300 KG, CARGA ÚTIL MÁX. 9.710 KG, DIST. ENTRE EIXOS 3,56 M, POTÊNCIA 185 CV, INCLUSIVE CARROCERIA FIXA ABERTA DE MADEIRA P/ TR ANSPORTE GERAL DE CARGA SECA, DIMEN. APROX. 2,50 X 6,50 X 0,50 M - MATERIA IS NA OPERAÇÃO. AF_06/2014 | E28: CHP | F28: 4 | G28: =IFERROR(VLOOKUP(C28,'INSUMOS SINAPI'!A:E,5,FALSE),VLOOKUP(C28,'COMP Sint. Sinapi'!G:K,5,FALSE)) -> 162,72 | H28: =TRUNC(F28*G28,2) -> 650.88
A29: COMP. SINAPI | B29: SINAPI | C29: ="67826" -> 67826 | D29: CAMINHÃO BASCULANTE 6 M3 TOCO, PESO BRUTO TOTAL 16.000 KG, CARGA ÚTIL MÁXI CHP MA 11.130 KG, DISTÂNCIA ENTRE EIXOS 5,36 M, POTÊNCIA 185 CV, INCLUSIVE CAÇAMBA METÁLICA - CHP DIURNO. AF_06/2014 | E29: CHP | F29: 4 | G29: =IFERROR(VLOOKUP(C29,'INSUMOS SINAPI'!A:E,5,FALSE),VLOOKUP(C29,'COMP Sint. Sinapi'!G:K,5,FALSE)) -> 191,75 | H29: =TRUNC(F29*G29,2) -> 767
A30: COMP. SINAPI | B30: SINAPI | C30: ="6259" -> 6259 | D30: CAMINHÃO PIPA 6.000 L, PESO BRUTO TOTAL 13.000 KG, DISTÂNCIA ENTRE EIXOS 4 CHP ,80 M, POTÊNCIA 189 CV INCLUSIVE TANQUE DE AÇO PARA TRANSPORTE DE ÁGUA, CAPACIDADE 6 M3 - CHP DIURNO. AF_06/2014 | E30: CHP | F30: 4 | G30: =IFERROR(VLOOKUP(C30,'INSUMOS SINAPI'!A:E,5,FALSE),VLOOKUP(C30,'COMP Sint. Sinapi'!G:K,5,FALSE)) -> 264,10 | H30: =TRUNC(F30*G30,2) -> 1056.4
A31: COMP. SICRO | B31: SICRO | C31: 5914640 | D31: TRANSPORTE COM CAVALO MECÂNICO COM SEMIRREBOQUE COM CAPACIDADE DE 30 T - RODOVIA PAVIMENTADA | E31: T x km | F31: ='Mob e Desmob'!E41/'MC MODULOS'!N$8 -> 2563.3714 | G31: ='SINTÉTICO SICRO'!D5848 -> 1.98 | H31: 5075.47
A32: INSUMO | B32: ORSE | C32: 5896 | D32: VEÍCULO TIPO SEDAN OU PICK-UP CAPACIDADE 0,6 TON | E32: CHP | F32: 8 | G32: 8.33 | H32: 66.64
E33: Sub total: | H33: =SUM(H28:H32) -> 7616.39
F34: BDI | G34: =BDI!$C$17 -> 0.2339 | H34: =TRUNC(H33*G34,2) -> 1781.47
G35: Total Serviços: | H35: =H33+H34 -> 9397.86
F36: PREÇO UNITÁRIO TOTAL: | H36: =H35 -> 9397.86 | I36: =H33 -> 7616.39
E37: =A26 -> CPU-02 | G37: PREÇO POR M²: | H37: =TRUNC(H36/('MC MODULOS'!$C$7*'MC MODULOS'!$C$8),2) -> 0.67 | I37: =H33/('MC MODULOS'!$C$7*'MC MODULOS'!$C$8) -> 0.54
A39: CPU-03 | B39: CODEVASF | D39: ADMINISTRAÇÃO LOCAL (via módulo total) | E39: m² | F39: COEF. | G39: PRECO UNITÁRIO (R$) | H39: TOTAL (R$)
A41: COMP. SINAPI | B41: SINAPI | C41: ="90777" -> 90777 | D41: ENGENHEIRO CIVIL DE OBRA JUNIOR COM ENCARGOS COMPLEMENTARES | E41: H | F41: 20 | G41: =IFERROR(VLOOKUP(C41,'INSUMOS SINAPI'!A:E,5,FALSE),VLOOKUP(C41,'COMP Sint. Sinapi'!G:K,5,FALSE)) -> 113,54 | H41: =TRUNC(F41*G41,2) -> 2270.8
A42: COMP. SINAPI | B42: SINAPI | C42: ="90780" -> 90780 | D42: MESTRE DE OBRAS COM ENCARGOS COMPLEMENTARES | E42: H | F42: 40 | G42: =IFERROR(VLOOKUP(C42,'INSUMOS SINAPI'!A:E,5,FALSE),VLOOKUP(C42,'COMP Sint. Sinapi'!G:K,5,FALSE)) -> 59,31 | H42: 2372.4
A43: COMP. SINAPI | B43: SINAPI | C43: ="90772" -> 90772 | D43: AUXILIAR DE ESCRITORIO COM ENCARGOS COMPLEMENTARES | E43: H | F43: 40 | G43: =IFERROR(VLOOKUP(C43,'INSUMOS SINAPI'!A:E,5,FALSE),VLOOKUP(C43,'COMP Sint. Sinapi'!G:K,5,FALSE)) -> 17,95 | H43: 718
A44: COMP. SINAPI | B44: SINAPI | C44: ="100309" -> 100309 | D44: TÉCNICO EM SEGURANÇA DO TRABALHO COM ENCARGOS COMPLEMENTARES | E44: H | F44: 40 | G44: =IFERROR(VLOOKUP(C44,'INSUMOS SINAPI'!A:E,5,FALSE),VLOOKUP(C44,'COMP Sint. Sinapi'!G:K,5,FALSE)) -> 27,61 | H44: 1104.4
A45: INS. SINAPI | B45: SINAPI | C45: 14250 | D45: ENERGIA | E45: KW/H | F45: 100 | G45: =IFERROR(VLOOKUP(C45,'INSUMOS SINAPI'!A:E,5,FALSE),VLOOKUP(C45,'COMP Sint. Sinapi'!G:K,5,FALSE)) -> 0,97 | H45: 97
A46: INS. SINAPI | B46: SINAPI | C46: 44480 | D46: ÁGUA TARIFA "A" ENTRE 0 E 20M3 FORNECIMENTO D'AGUA | E46: M3 | F46: 6.3381571 | G46: =IFERROR(VLOOKUP(C46,'INSUMOS SINAPI'!A:E,5,FALSE),VLOOKUP(C46,'COMP Sint. Sinapi'!G:K,5,FALSE)) -> 18,35 | H46: 116.3
A47: INSUMO | B47: ORSE | C47: 4415 | D47: VEÍCULO LEVE - VOLKSWAGEN:GOL 1000 - AUTOMÓVEL ATÉ 100 HP | E47: h | F47: 40 | G47: 13.18 | H47: 527.2
E48: Subtotal (mês) : | H48: =SUM(H41:H47) -> 7206.1
D49: Meses: | E49: 6 | F49: BDI | G49: =BDI!$C$17 -> 0.2339 | H49: =TRUNC(H48*G49,2) -> 1685.5
E50: Custo para 6 meses: | H50: =TRUNC(E49*H48,2) -> 43236.6
F51: PREÇO TOTAL: | H51: =H50+E49*H49 -> 53349.6 | I51: =H50 -> 43236.6
E52: =A39 -> CPU-03 | G52: PREÇO POR M²: | H52: =H51/('MC MODULOS'!$C$7*'MC MODULOS'!$C$8) -> 3.81 | I52: =H50/('MC MODULOS'!$C$7*'MC MODULOS'!$C$8) -> 3.09
A54: CPU-04 | B54: CODEVASF | D54: CANTEIRO DE OBRAS E ALMOXARIFADO (Via prazo do módulo total) | E54: UND | F54: COEF. | G54: PRECO UNITÁRIO (R$) | H54: TOTAL (R$)
A56: INS. SINAPI | B56: SINAPI | C56: 10775 | D56: LOCACAO DE CONTAINER 2,30 X 6,00 M, ALT. 2,50 M, COM 1 SANITARIO, PARA ESCRITORIO, COMPLETO, SEM DIVISORIAS INTERNAS (NAO INCLUI MOBILIZACAO/DESMOBILIZACAO) | E56: mês | F56: 1 | G56: =IFERROR(VLOOKUP(C56,'INSUMOS SINAPI'!A:E,5,FALSE),VLOOKUP(C56,'COMP Sint. Sinapi'!G:K,5,FALSE)) -> 890,00 | H56: =TRUNC(F56*G56,2) -> 890
A57: INS. SINAPI | B57: SINAPI | C57: 10776 | D57: LOCACAO DE CONTAINER 2,30 X 6,00 M, ALT. 2,50 M, PARA ESCRITORIO, SEM DIVISORIAS INTERNAS E SEM SANITARIO (NAO INCLUI MOBILIZACAO/DESMOBILIZACAO) | E57: mês | F57: 1 | G57: =IFERROR(VLOOKUP(C57,'INSUMOS SINAPI'!A:E,5,FALSE),VLOOKUP(C57,'COMP Sint. Sinapi'!G:K,5,FALSE)) -> 695,31 | H57: 695.31
E58: Sub total: | H58: =SUM(H56:H57) -> 1585.31
F59: BDI | G59: =BDI!$C$17 -> 0.2339 | H59: =TRUNC(H58*G59,2) -> 370.8
G60: Total Serviços: | H60: =H58+H59 -> 1956.11
E61: =A54 -> CPU-04 | F61: PREÇO UNITÁRIO TOTAL: | H61: =H60 -> 1956.11 | I61: =H58 -> 1585.31
A63: CPU-12 | B63: CODEVASF | D63: Correção de vazamentos no ramal na rua sem pavimento com fornecimento do material hidráulico | E63: M | F63: COEF. | G63: PRECO UNITÁRIO (R$) | H63: TOTAL (R$)
A65: Composição Auxiliar | B65: SINAPI | C65: ="88316" -> 88316 | D65: SERVENTE COM ENCARGOS COMPLEMENTARES | E65: H | F65: 1 | G65: =IFERROR(VLOOKUP(C65,'INSUMOS SINAPI'!A:E,5,FALSE),VLOOKUP(C65,'COMP Sint. Sinapi'!G:K,5,FALSE)) -> 21,28 | H65: =TRUNC(F65*G65,2) -> 21.28
A66: Composição Auxiliar | B66: SINAPI | C66: ="88267" -> 88267 | D66: ENCANADOR OU BOMBEIRO HIDRÁULICO COM ENCARGOS COMPLEMENTARES | E66: H | F66: 0.5 | G66: =IFERROR(VLOOKUP(C66,'INSUMOS SINAPI'!A:E,5,FALSE),VLOOKUP(C66,'COMP Sint. Sinapi'!G:K,5,FALSE)) -> 25,76 | H66: 12.88
A67: Insumo | B67: SINAPI | C67: 9867 | D67: TUBO PVC, SOLDAVEL, DN 20 MM, AGUA FRIA (NBR-5648) | E67: m | F67: 1 | G67: =IFERROR(VLOOKUP(C67,'INSUMOS SINAPI'!A:E,5,FALSE),VLOOKUP(C67,'COMP Sint. Sinapi'!G:K,5,FALSE)) -> 4,06 | H67: 4.06
A68: Insumo | B68: ORSE | C68: 10585 | D68: Arco de serra | E68: un | F68: 0.1 | G68: 22.49 | H68: 2.24
A69: Insumo | B69: SINAPI | C69: 3859 | D69: LUVA SOLDAVEL COM ROSCA, PVC, 20 MM X 1/2", PARA AGUA FRIA PREDIAL | E69: un | F69: 2 | G69: =IFERROR(VLOOKUP(C69,'INSUMOS SINAPI'!A:E,5,FALSE),VLOOKUP(C69,'COMP Sint. Sinapi'!G:K,5,FALSE)) -> 1,46 | H69: 2.92
E70: Sub total: | H70: =SUM(H65:H69) -> 43.38
F71: BDI | G71: =BDI!$C$17 -> 0.2339 | H71: =TRUNC(H70*G71,2) -> 10.14
G72: Total Serviços: | H72: =H70+H71 -> 53.52
E73: =A63 -> CPU-12 | F73: PREÇO UNITÁRIO TOTAL: | H73: =H72 -> 53.52 | I73: =H70 -> 43.38
A75: CPU-13 | B75: CODEVASF | D75: AQUISIÇÃO DE CIMENTO ASFALTICO CAP 50/70 | E75: t | F75: COEF. | G75: PRECO UNITÁRIO (R$) | H75: TOTAL (R$)
B77: ANP | D77: CIMENTO ASFALTICO 50/70 | E77: t | F77: 1 | G77: =RESUMO_Aqui_Transp!V17 -> 4236.83 | H77: =TRUNC(F77*G77,2) -> 4236.83
E78: Sub total: | H78: =SUM(H77) -> 4236.83
F79: BDI | G79: 0.15 | H79: =TRUNC(H78*G79,4) -> 635.5245
G80: Total Serviços: | H80: =H78+H79 -> 4872.3545
E81: =A75 -> CPU-13 | F81: PREÇO UNITÁRIO TOTAL: | H81: =H80 -> 4872.35 | I81: =H78 -> 4236.83
A84: CPU-15 | B84: CODEVASF | D84: AQUISIÇÃO DE EMULSÃO ASFÁLTICA RR-1C | E84: t | F84: COEF. | G84: PRECO UNITÁRIO (R$) | H84: TOTAL (R$)
B86: ANP | D86: EMULSÃO ASFÁLTICA RR-1C | E86: t | F86: 1 | G86: =RESUMO_Aqui_Transp!V22 -> 3059.97 | H86: =TRUNC(F86*G86,2) -> 3059.97
E87: Sub total: | H87: =SUM(H86) -> 3059.97
F88: BDI | G88: 0.15 | H88: =TRUNC(H87*G88,4) -> 458.9955
G89: Total Serviços: | H89: =H87+H88 -> 3518.9655
E90: =A84 -> CPU-15 | F90: PREÇO UNITÁRIO TOTAL: | H90: =H89 -> 3518.97 | I90: =H87 -> 3059.97
A93: CPU-17 | B93: CODEVASF | D93: TRANSPORTE DE CIMENTO ASFALTICO CAP 50/70 | E93: t | F93: COEF. | G93: PRECO UNITÁRIO (R$) | H93: TOTAL (R$)
D95: TRANSPORTE DE CIMENTO ASFALTICO 50/70 | E95: t | F95: 1 | G95: =RESUMO_Aqui_Transp!U17 -> 459.74 | H95: =TRUNC(F95*G95,2) -> 459.74
E96: Sub total: | H96: =SUM(H95) -> 459.74
F97: BDI | G97: 0.15 | H97: =TRUNC(H96*G97,4) -> 68.961
G98: Total Serviços: | H98: =H96+H97 -> 528.701
E99: =A93 -> CPU-17 | F99: PREÇO UNITÁRIO TOTAL: | H99: =H98 -> 528.7 | I99: =H96 -> 459.74
A102: CPU-19 | B102: CODEVASF | D102: TRANSPORTE DE EMULSÃO ASFÁLTICA RR-1C | E102: UNID | F102: COEF. | G102: PRECO UNITÁRIO (R$) | H102: TOTAL (R$)
D104: TRANSPORTE DE EMULSÃO ASFÁLTICA RR-1C | E104: t | F104: 1 | G104: =RESUMO_Aqui_Transp!$U$22 -> 556.19 | H104: =TRUNC(F104*G104,2) -> 556.19
E105: Sub total: | H105: =SUM(H104) -> 556.19
F106: BDI | G106: 0.15 | H106: =TRUNC(H105*G106,4) -> 83.4285
G107: Total Serviços: | H107: =H105+H106 -> 639.6185
E108: =A102 -> CPU-19 | F108: PREÇO UNITÁRIO TOTAL: | H108: =H107 -> 639.62 | I108: =H105 -> 556.19
A110: CPU-20 | B110: CODEVASF | D110: PROJETO EXECUTIVO | E110: m² | F110: COEF. | G110: PRECO UNITÁRIO (R$) | H110: TOTAL (R$)
A112: Composição | B112: SINAPI | C112: ="100306" -> 100306 | D112: Engenheiro | E112: h | F112: =20*'MC MODULOS'!$C$52/'MC MODULOS'!$D$52 -> 0.0002 | G112: =IFERROR(VLOOKUP(C112,'INSUMOS SINAPI'!A:E,5,FALSE),VLOOKUP(C112,'COMP Sint. Sinapi'!G:K,5,FALSE))*1 -> 129.26 | H112: =TRUNC(F112*G112,4) -> 0.0258
A113: Composição | B113: SINAPI | C113: ="90781" -> 90781 | D113: Topógrafo | E113: h | F113: =10*'MC MODULOS'!$C$52/'MC MODULOS'!$D$52 -> 0.0001 | G113: =IFERROR(VLOOKUP(C113,'INSUMOS SINAPI'!A:E,5,FALSE),VLOOKUP(C113,'COMP Sint. Sinapi'!G:K,5,FALSE))*1 -> 29.9 | H113: =TRUNC(F113*G113,4) -> 0.0029
A114: Composição | B114: SINAPI | C114: ="88253" -> 88253 | D114: Auxiliar de topógrafo | E114: h | F114: =10*'MC MODULOS'!$C$52/'MC MODULOS'!$D$52 -> 0.0001 | G114: =IFERROR(VLOOKUP(C114,'INSUMOS SINAPI'!A:E,5,FALSE),VLOOKUP(C114,'COMP Sint. Sinapi'!G:K,5,FALSE))*1 -> 14.48 | H114: =TRUNC(F114*G114,4) -> 0.0014
A115: Composição | B115: SINAPI | C115: ="90775" -> 90775 | D115: Cadista/calculista | E115: h | F115: =20*'MC MODULOS'!$C$52/'MC MODULOS'!$D$52 -> 0.0002 | G115: =IFERROR(VLOOKUP(C115,'INSUMOS SINAPI'!A:E,5,FALSE),VLOOKUP(C115,'COMP Sint. Sinapi'!G:K,5,FALSE))*1 -> 22.77 | H115: 0.0045
A116: Mao de Obra | B116: SICRO | C116: P9858 | D116: Laboratorista | E116: mês | F116: ='MC MODULOS'!$C$52/'MC MODULOS'!$G$52 -> 1e-05 | G116: ='MO SICRO'!F49 -> 6939.06 | H116: 0.0693
A117: Mao de Obra | B117: SICRO | C117: P9833 | D117: Auxiliar de Laboratório | E117: mês | F117: ='MC MODULOS'!$C$52/'MC MODULOS'!$G$52 -> 1e-05 | G117: ='MO SICRO'!F29 -> 5376.08 | H117: 0.0537
A118: Insumo | B118: Taxa 3% Eq. Técnica | C118: - | D118: MATERIAIS DE CONSUMO | E118: % | F118: 1 | G118: 0.03 | H118: 0.03
A119: Insumo | B119: SINAPI | C119: ="92144" -> 92144 | D119: VEÍCULOS | E119: h | F119: =8*'MC MODULOS'!$C$52/'MC MODULOS'!$D$52 -> 8e-05 | G119: =IFERROR(VLOOKUP(C119,'INSUMOS SINAPI'!A:E,5,FALSE),VLOOKUP(C119,'COMP Sint. Sinapi'!G:K,5,FALSE)) -> 39,80 | H119: 0.0031
A120: Insumo | B120: SINAPI | C120: 4221 | D120: COMBUSTÍVEL | E120: L | F120: =5*'MC MODULOS'!$C$52/'MC MODULOS'!$D$52 -> 5e-05 | G120: =IFERROR(VLOOKUP(C120,'INSUMOS SINAPI'!A:E,5,FALSE),VLOOKUP(C120,'COMP Sint. Sinapi'!G:K,5,FALSE)) -> 6,29 | H120: 0.0003
A121: Composição | B121: SINAPI | C121: 7247 | D121: EQUIPAMENTOS, INSTALAÇÕES E MOBILIÁRIO | E121: h | F121: =16*'MC MODULOS'!$C$52/'MC MODULOS'!$D$52 -> 0.00016 | G121: =IFERROR(VLOOKUP(C121,'INSUMOS SINAPI'!A:E,5,FALSE),VLOOKUP(C121,'COMP Sint. Sinapi'!G:K,5,FALSE)) -> 2,25 | H121: 0.0003
A122: Composição | B122: SICRO | C122: *B8955 | D122: Laboratório de Asfalto | E122: mês | F122: ='MC MODULOS'!$C$52/'MC MODULOS'!$G$52 -> 1e-05 | G122: ='Consult SICRO'!G18 -> 5400.53 | H122: 0.054
B123: *Relatório de Custos Gerais do DNIT, página 1 | E123: Sub total: | H123: =SUM(H112:H122) -> 0.2453
F124: BDI | G124: =BDI!$C$17 -> 0.2339 | H124: =TRUNC(H123*G124,4) -> 0.0573
E125: CPU-20 | F125: PREÇO UNITÁRIO TOTAL: | H125: =H123+H124 -> 0.3 | I125: =H123 -> 0.25
A127: CPU-21 | B127: CODEVASF | D127: CONTROLE TECNOLÓGICO - OBRA | E127: m² | F127: COEF. | G127: PRECO UNITÁRIO (R$) | H127: TOTAL (R$)
A129: Composição | B129: SINAPI | C129: ="90781" -> 90781 | D129: Topógrafo | E129: h | F129: =10*'MC MODULOS'!$C$56/'MC MODULOS'!$D$56 -> 0.0002071 | G129: =IFERROR(VLOOKUP(C129,'INSUMOS SINAPI'!A:E,5,FALSE),VLOOKUP(C129,'COMP Sint. Sinapi'!G:K,5,FALSE))*1 -> 29.9 | H129: =TRUNC(F129*G129,4) -> 0.0061
A130: Composição | B130: SINAPI | C130: ="88253" -> 88253 | D130: Auxiliar de topógrafo | E130: h | F130: =10*'MC MODULOS'!$C$56/'MC MODULOS'!$D$56 -> 0.0002071 | G130: =IFERROR(VLOOKUP(C130,'INSUMOS SINAPI'!A:E,5,FALSE),VLOOKUP(C130,'COMP Sint. Sinapi'!G:K,5,FALSE))*1 -> 14.48 | H130: =TRUNC(F130*G130,4) -> 0.0029
A131: Composição | B131: SINAPI | C131: ="90775" -> 90775 | D131: Cadista/calculista | E131: h | F131: =20*'MC MODULOS'!$C$56/'MC MODULOS'!$D$56 -> 0.0004143 | G131: =IFERROR(VLOOKUP(C131,'INSUMOS SINAPI'!A:E,5,FALSE),VLOOKUP(C131,'COMP Sint. Sinapi'!G:K,5,FALSE))*1 -> 22.77 | H131: =TRUNC(F131*G131,4) -> 0.0094
A132: Mao de Obra | B132: SICRO | C132: P9858 | D132: Laboratorista | E132: mês | F132: ='MC MODULOS'!$C$56/'MC MODULOS'!$G$56 -> 2.07e-05 | G132: =VLOOKUP(C132,'MO SICRO'!A:G,6,0) -> 6939.06 | H132: 0.1436
A133: Mao de Obra | B133: SICRO | C133: P9833 | D133: Auxiliar de Laboratório | E133: mês | F133: ='MC MODULOS'!$C$56/'MC MODULOS'!$G$56 -> 2.07e-05 | G133: =VLOOKUP(C133,'MO SICRO'!A:G,6,0) -> 5376.08 | H133: 0.1112
A134: Insumo | B134: Taxa 3% Eq. Técnica | C134: - | D134: MATERIAIS DE CONSUMO | E134: % | F134: 1 | G134: 0.03 | H134: =G134*SUM(H129:H133) -> 0.008
A135: Insumo | B135: SINAPI | C135: ="92144" -> 92144 | D135: VEÍCULOS | E135: h | F135: =8*'MC MODULOS'!$C$56/'MC MODULOS'!$D$56 -> 0.0001657 | G135: =IFERROR(VLOOKUP(C135,'INSUMOS SINAPI'!A:E,5,FALSE),VLOOKUP(C135,'COMP Sint. Sinapi'!G:K,5,FALSE)) -> 39,80 | H135: 0.0065
A136: Insumo | B136: SINAPI | C136: 4221 | D136: COMBUSTÍVEL | E136: L | F136: =5*'MC MODULOS'!$C$56/'MC MODULOS'!$D$56 -> 0.0001036 | G136: =IFERROR(VLOOKUP(C136,'INSUMOS SINAPI'!A:E,5,FALSE),VLOOKUP(C136,'COMP Sint. Sinapi'!G:K,5,FALSE)) -> 6,29 | H136: 0.0006
A137: Composição | B137: SINAPI | C137: 7247 | D137: EQUIPAMENTOS, INSTALAÇÕES E MOBILIÁRIO | E137: h | F137: =16*'MC MODULOS'!$C$56/'MC MODULOS'!$D$56 -> 0.0003314 | G137: =IFERROR(VLOOKUP(C137,'INSUMOS SINAPI'!A:E,5,FALSE),VLOOKUP(C137,'COMP Sint. Sinapi'!G:K,5,FALSE)) -> 2,25 | H137: 0.0007
A138: Composição | B138: SICRO | C138: *B8955 | D138: Laboratório de Asfalto | E138: mês | F138: ='MC MODULOS'!$C$56/'MC MODULOS'!$G$56 -> 2.07e-05 | G138: ='Consult SICRO'!G18 -> 5400.53 | H138: 0.1117
B139: *Relatório de Custos Gerais do DNIT, página 1 | E139: Sub total: | H139: =SUM(H129:H138) -> 0.4007
F140: BDI | G140: =BDI!$C$17 -> 0.2339 | H140: =TRUNC(H139*G140,4) -> 0.0937
E141: CPU-21 | F141: PREÇO UNITÁRIO TOTAL: | H141: =H139+H140 -> 0.49 | I141: =H139 -> 0.4

Sheet MC MODULOS
B1: EXECUÇÃO DE CAPA ASFÁLTICA COM CBUQ, EM VIAS DE MUNICÍPIOS DA REGIÃO DA MATA PERNAMBUCANA, ÁREA DE ATUAÇÃO DA CODEVASF NO ESTADO DE PERNAMBUCO.
A2: ='RESUMO MODULO TOTAL'!B1 -> EXECUÇÃO DE CAPA ASFÁLTICA COM CBUQ, EM VIAS DE MUNICÍPIOS DA REGIÃO DA MATA PERNAMBUCANA, ÁREA DE ATUAÇÃO DA CODEVASF NO ESTADO DE PERNAMBUCO. | M2: SICRO: | N2: ='SINTÉTICO SICRO'!B2 -> Pernambuco - Julho/2023
M3: SINAPI: | N3: =RIGHT('INSUMOS SINAPI'!A3,7) -> 09/2023
M4: Data base do orçamento: | N4: 2023-10-01
B5: =B1 -> EXECUÇÃO DE CAPA ASFÁLTICA COM CBUQ, EM VIAS DE MUNICÍPIOS DA REGIÃO DA MATA PERNAMBUCANA, ÁREA DE ATUAÇÃO DA CODEVASF NO ESTADO DE PERNAMBUCO.
B6: Memória de Cálculo - MÓDULO MÍNIMO | I6: =CONCATENATE(B6," x",N8) -> Memória de Cálculo - MÓDULO MÍNIMO x14
B7: Extensão: | C7: 2000 | D7: metros | E7: Nº DE MESES: | G7: =(N7/N8)*1 -> 0.429 | I7: Extensão: | J7: =C7*N8 -> 28000 | K7: m | M7: Nº DE MESES: | N7: 6
B8: Largura: | C8: 7 | D8: metros | E8: Nº DE MODULOS: | G8: 1 | I8: Largura: | J8: 7 | K8: m | M8: Nº DE MODULOS: | N8: 14
B9: ITEM | C9: 1 | G9: Qtd total | I9: ITEM | J9: DESCRIÇÃO | N9: Qtd total
C10: MOBILIZAÇÃO | J10: MOBILIZAÇÃO
B11: 1 | C11: Mobilizações e Desmobilizações (m²) | G11: =G21 -> 14000 | I11: 1 | J11: Mobilizações e Desmobilizações (m²) | N11: =N8*G11 -> 196000
B12: 2 | C12: Administração da obra (m²) | G12: =G21 -> 14000 | I12: 2 | J12: Administração da obra | N12: =N8*G12 -> 196000
B13: 3 | C13: Canteiro de Obras e Almoxarifado (mês) | G13: =N7/N8 -> 0.43 | I13: 3 | J13: Canteiro de Obras e Almoxarifado | N13: =G13*N8 -> 6.02
B14: 4 | C14: Placa de Obra em Chapa de Aço Galvanizado (und) | G14: 1 | I14: 4 | J14: Placa de Obra em Chapa de Aço Galvanizado | N14: =G14*N8 -> 14
C15: PAVIMENTAÇÃO | J15: PAVIMENTAÇÃO
B16: 5 | C16: Concreto asfáltico - faixa C - areia e brita comerciais | I16: 5 | J16: Concreto asfáltico - faixa C - areia e brita comerciais
C17: Extensão (m) | D17: Largura (m) | E17: Espessura (m) | F17: Volume (m3) | G17: Massa (t) | J17: Extensão (m) | K17: Largura (m) | L17: Espessura (m) | M17: Densidade (t/m³) | N17: Volume (t)
C18: =$C$7 -> 2000 | D18: =$C$8 -> 7 | E18: 0.05 | F18: =C18*D18*E18+G27 -> 728.8 | G18: =F18*2.4 -> 1749.12 | J18: =$C$7*N8 -> 28000 | K18: =$C$8 -> 7 | L18: 0.05 | M18: 2.4 | N18: =J18*K18*L18*M18 -> 23520
B19: 6 | C19: Pintura de ligação | I19: 7 | J19: Pintura de ligação
C20: Extensão (m) | E20: Largura (m) | G20: Área (m2) | J20: Extensão (m) | L20: Largura (m) | N20: area (m2)
C21: =$C$7 -> 2000 | E21: =$C$8 -> 7 | G21: =C21*E21 -> 14000 | J21: =$C$7*N8 -> 28000 | L21: =$C$8 -> 7 | N21: =J21*L21 -> 196000
B22: 7 | C22: ='RESUMO MODULO TOTAL'!E18 -> Fresagem descontínua de revestimento asfáltico - espessura de 3 cm | I22: 7 | J22: =C22 -> Fresagem descontínua de revestimento asfáltico - espessura de 3 cm
C23: Extensão (m) | E23: Largura (m) | F23: espessura (m) | G23: Vol. (m3) | J23: Extensão (m) - (adotado 20% do módulo mínimo a ser ajsutado no Pojeto Executivo) | L23: Largura (m) | M23: espessura (m) | N23: Vol. (m3)
C24: =0.4*C7 -> 800 | E24: 7 | F24: 0.03 | G24: =C24*E24*F24 -> 168 | J24: =C24*N8 -> 11200 | L24: 7 | M24: 0.03 | N24: =J24*L24*M24 -> 2352
B25: 8 | C25: ='RESUMO MODULO TOTAL'!E19 -> Tapa buraco com pintura de ligação - demolição com serra corta piso | I25: 8 | J25: =C25 -> Tapa buraco com pintura de ligação - demolição com serra corta piso
C26: Comprimento (m) | D26: Largura (m) | E26: profundidade (m) | G26: Vol.(m3) | J26: Comprimento (m) | K26: Largura (m) | L26: profundidade (m) | N26: Vol.(m3)
C27: 800 | D27: 0.6 | E27: 0.06 | G27: =C27*D27*E27 -> 28.8 | J27: =C27*N8 -> 11200 | K27: =D27 -> 0.6 | L27: 0.06 | N27: =J27*K27*L27 -> 403.2
C28: SINALIZAÇÃO | J28: SINALIZAÇÃO
B29: 13 | C29: Placa de regulamentação em aço D = 0,60 m - película retrorrefletiva tipo I + SI | I29: 14 | J29: =C29 -> Placa de regulamentação em aço D = 0,60 m - película retrorrefletiva tipo I + SI
C30: Extensão (km) | E30: Quant. (un) por mão | G30: Quant. (un) | J30: Extensão (km) | L30: Quant. (un) | N30: Quant. (un)
C31: =C7/1000 -> 2 | E31: 8 | G31: =C31*E31 -> 16 | J31: =C31*$N$8 -> 28 | L31: 0.5 | N31: =J31*L31 -> 14
B32: 14 | C32: Suporte metálico galvanizado para placa de regulamentação - D = 0,60 m | I32: 15 | J32: =C32 -> Suporte metálico galvanizado para placa de regulamentação - D = 0,60 m
C33: Extensão (km) | E33: Quant. (un) por mão | G33: Quant. (un) | J33: Extensão (km) | L33: Quant. (un) | N33: Quant. (un)
C34: =C7/1000 -> 2 | E34: 8 | G34: =C34*E34 -> 16 | J34: =C34*$N$8 -> 28 | L34: 0.5 | N34: =J34*L34 -> 14
B35: 15 | C35: Pintura de faixa com tinta acrílica - espessura de 0,4 mm (bordos) | I35: 16 | J35: Pintura de faixa com tinta acrílica - espessura de 0,4 mm (bordos)
C36: Extensão (m) | D36: Espessura (m) | E36: nº de linhas faixas | G36: Quant. (m²) | J36: Extensão (m) | L36: Espessura (m) | N36: Quant. (m²)
C37: =C7 -> 2000 | D37: 0.1 | E37: 3 | G37: =C37*D37*E37 -> 600 | J37: =C7*N8 -> 28000 | L37: 0.1 | N37: =J37*L37 -> 2800
C38: DRENAGEM | J38: DRENAGEM
B39: 16 | C39: Limpeza de sarjeta e meio-fio | I39: 18 | J39: Limpeza de sarjeta e meio-fio
C40: Extensão (m) | E40: Quant. (un) | G40: Extensão(m) | J40: Extensão (m) | L40: Quant. (un) | N40: Extensão(m)
C41: =$C$7 -> 2000 | D41: x | E41: 2 | G41: =C41*E41 -> 4000 | J41: =$C$7*$N$8 -> 28000 | L41: 2 | N41: =J41*L41 -> 56000
B42: 17 | C42: Caiação mecanizada com fixador de cal | I42: 19 | J42: Caiação mecanizada com fixador de cal
C43: Extensão (m) | E43: Perimetro (m) | G43: Area (m²) | J43: Extensão (m) | L43: Perimetro (m) | N43: Area (m²)
C44: 0 | E44: 0 | G44: =C44*E44 -> 0 | J44: =C44*N8 -> 0 | L44: 0 | N44: =J44*L44 -> 0
C45: SERVIÇOS COMPLEMENTARES | J45: SERVIÇOS COMPLEMENTARES
B46: 18 | C46: Conserto de ramal rompido | I46: 20
C47: extensão ed tubulação rompida | G47: extensão (m) | J47: extensão de tubulação rompida | N47: extensão (m)
C48: =5*7 -> 35 | G48: =C48 -> 35 | J48: =C48*N8 -> 490 | N48: =J48 -> 490
C49: PROJETO EXECUTIVO | J49: PROJETO EXECUTIVO
B50: 19 | C50: Projeto Executivo | I50: 21 | J50: Projeto Executivo
C51: Meses | D51: área (m2) | G51: Área (m2) | J51: Meses | K51: área (m2) | N51: área (m2)
C52: =G7*(1/3) -> 0.14 | D52: =G21 -> 14000 | G52: =D52 -> 14000 | J52: =C52*N8 -> 1.96 | K52: =D52*N8 -> 196000 | N52: =G52*N8 -> 196000
C53: CONTROLE TECNOLOGICO - OBRA | J53: CONTROLE TECNOLOGICO - OBRA
B54: 20 | C54: Projeto Executivo | I54: 22 | J54: Projeto Executivo
C55: Meses | D55: área (m2) | F55: Quant. (un) | G55: Área (m2) | J55: Meses | K55: área (m2) | N55: área (m2)
C56: =G7*(2/3) -> 0.29 | D56: =G21 -> 14000 | G56: =D56 -> 14000 | J56: =C56*N8 -> 4.06 | K56: =D56*N8 -> 196000 | N56: =G56*N8 -> 196000

Sheet CONSUMO DE MAT. B TOTAL
B1: EXECUÇÃO DE CAPA ASFÁLTICA COM CBUQ, EM VIAS DE MUNICÍPIOS DA REGIÃO DA MATA PERNAMBUCANA, ÁREA DE ATUAÇÃO DA CODEVASF NO ESTADO DE PERNAMBUCO.
A2: ='RESUMO MODULO TOTAL'!B1 -> EXECUÇÃO DE CAPA ASFÁLTICA COM CBUQ, EM VIAS DE MUNICÍPIOS DA REGIÃO DA MATA PERNAMBUCANA, ÁREA DE ATUAÇÃO DA CODEVASF NO ESTADO DE PERNAMBUCO.
B3: CONSUMO DO MATERIAL BETUMINOSO TOTAL
B5: TRECHO | D5: QUANTIDADES | M5: MAT. BETUMINOSO
B6: Inicio (km) | C6: Fim (km) | D6: Extensão (m) | E6: Largura (m) | F6: Espess. (m) | G6: Área (m2) | H6: Volume (m3) | I6: Densidade (t/m3) | J6: Massa (t) | K6: Unid | L6: Quant. | M6: Tipo | N6: Consumo Taxa de Aplicação | O6: Unid. | P6: Quant.
B7: PINTURA DE LIGAÇÃO
F8: 1 | G8: ='MC MODULOS'!N21 -> 196000 | H8: =G8*F8 -> 196000 | M8: RR-1C | N8: 0,4 l/m2 | O8: t | P8: =ROUND((G8*0.4)/1000,2) -> 78.4
B9: CBUQ FAIXA "C"
F10: 0.05 | G10: ='MC MODULOS'!N21 -> 196000 | H10: =G10*F10 -> 9800 | J10: ='MC MODULOS'!N18 -> 23520 | M10: CAP-50/70 | N10: 0,06323 t/m3 | O10: t | P10: =ROUND((J10*0.06323),2) -> 1487.17
E27: Caderno Técnico - Usinagem (Out/2022)

Sheet Mob e Desmob
B1: EXECUÇÃO DE CAPA ASFÁLTICA COM CBUQ, EM VIAS DE MUNICÍPIOS DA REGIÃO DA MATA PERNAMBUCANA, ÁREA DE ATUAÇÃO DA CODEVASF NO ESTADO DE PERNAMBUCO.
A2: ='RESUMO MODULO TOTAL'!B1
A5: ='RESUMO MODULO TOTAL'!B1 -> EXECUÇÃO DE CAPA ASFÁLTICA COM CBUQ, EM VIAS DE MUNICÍPIOS DA REGIÃO DA MATA PERNAMBUCANA, ÁREA DE ATUAÇÃO DA CODEVASF NO ESTADO DE PERNAMBUCO.
A7: MEMÓRIA DE CÁLCULO DOS MOMENTOS DE TRANSPORTE PARA MOBILIZAÇÃO E DESMOBILIZAÇÃO
C9: 1
A10: Deslocamento Patrulha de Serviço:
C11: Distancia méd. (Km) | D11: Qtde. | E11: Subtotal (Km)
A12: Mobilização da Usina: | C12: 80 | D12: 1 | E12: =C12*D12 -> 80
A13: Desmobilização da Usina: | C13: 80 | D13: 1 | E13: 80
A14: Mobilização (entre os trechos de serviço): | C14: 3 | D14: =ROUND(D16*2,) -> 14 | E14: 42 | G14: - Considerado quantidade média de 2 mobin p/ cada 2 Módulos mínimos
A15: Desmobilização (entre os trechos de serviço): | C15: 1 | D15: 1 | E15: 1
A16: Mobilização inter-municipal (entre as localidades): | C16: 60 | D16: =ROUND('MC MODULOS'!$N$8/2,) -> 7 | E16: 420 | G16: - Considerado quantidade média de 1 mob/desmob a cada 2 módulos mínimos
A17: Desmobilização inter-municipal (entre as localidades): | C17: 60 | D17: 1 | E17: 60
A18: Mobilização da Patrulha de Serviço (km) | E18: =E14+E16 -> 462
A19: Desmobilização da Patrulha de Serviço (km) | E19: =E15+E17 -> 61
A22: Peso das máquinas:
E23: USINA FIXA
E24: Pá carregadeira | H24: 10.1 | I24: ton
E25: Usina misturadora | H25: 20 | I25: ton
E26: Tanque de Armazenamento 30 ton | H26: 5 | I26: ton
E27: Total | H27: =ROUND(SUM(H24:H26),2) -> 35.1 | I27: ton
E28: PATRULHA DE SERVIÇO
E29: Acabadora | H29: 12.6 | I29: ton
E30: Rolo Vibratório de Pneus | H30: 27 | I30: ton
E31: Rolo Liso Tandem grande | H31: 10.4 | I31: ton
E32: Rolo Liso Tandem pequeno | H32: 1.6 | I32: ton
E33: Fresadora | H33: 20 | I33: ton
E34: Caldeira de Asfalto rebocável | I34: ton
E35: Caminhão Basculannte | I35: ton
E36: Caminhão Espagidor | I36: ton
E37: Caminhão de Apoio | I37: ton
E38: Total | H38: =ROUND(SUM(H29:H37),2) -> 71.6 | I38: ton
A40: Portanto: | B40: Portanto
A41: Mobilização - Total (km) | E41: =E18*H38+H27*E12 -> 35887.2 | F41: t x km
A42: Desmobilização - Total (km) | E42: =E19*H38+H27*E13 -> 7175.6 | F42: t x km
A49: E9010 | B49: Balança plataforma digital com mesa de 75 x 75 cm com capacidade de 500 kg | I49: Caminhão carroceria
A50: E9064 | B50: Transportador manual gerica com capacidade de 180 l | I50: Caminhão carroceria
A51: E9066 | B51: Grupo gerador - 13/14 kVA | I51: Caminhão carroceria
A52: E9071 | B52: Transportador manual carrinho de mão com capacidade de 80 l | I52: Caminhão carroceria
A53: E9076 | B53: Equipamento de pintura com cabine de 7,00 kW e estufa de 80.000 kCal para pintura eletrostática | I53: Caminhão carroceria
A54: E9519 | B54: Betoneira com motor a gasolina com capacidade de 600 l - 10 kW | I54: Caminhão carroceria
A55: E9521 | B55: Grupo gerador - 2,5/3 kVA | I55: Caminhão carroceria
A56: E9568 | B56: Furadeira de impacto de 12,5 mm - 0,8 kW | I56: Caminhão carroceria
A57: E9622 | B57: Máquina de bancada universal para corte de chapa - 1,5 kW | I57: Caminhão carroceria
A58: E9623 | B58: Máquina de bancada guilhotina - 4 kW | I58: Caminhão carroceria
A59: E9675 | B59: Martelete perfurador/rompedor elétrico - 1,5 kW | I59: Caminhão carroceria
A60: E9779 | B60: Grupo gerador - 100/110 kVA | I60: Caminhão carroceria
A63: E9506 | B63: Caminhão basculante com capacidade de 6 m³ - 136 kW | I63: Rodoviario
A64: E9571 | B64: Caminhão tanque com capacidade de 10.000 l - 188 kW | I64: Rodoviario
A65: E9579 | B65: Caminhão basculante com capacidade de 10 m³ - 188 kW | I65: Rodoviario
A66: E9592 | B66: Caminhão carroceria com capacidade de 15 t - 188 kW | I66: Rodoviario
A67: E9644 | B67: Caminhão demarcador de faixas com sistema de pintura a frio - 28 kW/115 kW | I67: Rodoviario
A68: E9686 | B68: Caminhão carroceria com guindauto com capacidade de 20 t.m - 136 kW | I68: Rodoviario
A69: E9687 | B69: Caminhão carroceria com capacidade de 5 t - 115 kW | I69: Rodoviario
A70: E9514 | B70: Distribuidor de agregados autopropelido - 130 kW | I70: Rodoviario
A72: E9511 | B72: Carregadeira de pneus com capacidade de 3,40 m³ - 195 kW | I72: TRANSPORTE COM CAVALO MECÂNICO COM SEMIRREBOQUE COM CAPACIDADE DE 30 T - RODOVIA PAVIMENTADA
A73: E9524 | B73: Motoniveladora - 93 kW | I73: TRANSPORTE COM CAVALO MECÂNICO COM SEMIRREBOQUE COM CAPACIDADE DE 30 T - RODOVIA PAVIMENTADA
A74: E9530 | B74: Rolo compactador liso autopropelido vibratório de 11 t - 97 kW | I74: TRANSPORTE COM CAVALO MECÂNICO COM SEMIRREBOQUE COM CAPACIDADE DE 30 T - RODOVIA PAVIMENTADA
A75: E9577 | B75: Trator agrícola - 77 kW | I75: TRANSPORTE COM CAVALO MECÂNICO COM SEMIRREBOQUE COM CAPACIDADE DE 30 T - RODOVIA PAVIMENTADA
A76: E9685 | B76: Rolo compactador pé de carneiro vibratório autopropelido de 11,6 t - 82 kW | I76: TRANSPORTE COM CAVALO MECÂNICO COM SEMIRREBOQUE COM CAPACIDADE DE 30 T - RODOVIA PAVIMENTADA
A77: E9762 | B77: Rolo compactador de pneus autopropelido de 27 t - 85 kW | I77: TRANSPORTE COM CAVALO MECÂNICO COM SEMIRREBOQUE COM CAPACIDADE DE 30 T - RODOVIA PAVIMENTADA
A78: E9518 | B78: Grade de 24 discos rebocável de 24" | I78: TRANSPORTE COM CAVALO MECÂNICO COM SEMIRREBOQUE COM CAPACIDADE DE 30 T - RODOVIA PAVIMENTADA
A79: E9615 | B79: Usina misturadora de solos com capacidade de 300 t/h | I79: TRANSPORTE COM CAVALO MECÂNICO COM SEMIRREBOQUE COM CAPACIDADE DE 30 T - RODOVIA PAVIMENTADA

Sheet BDI
B1: EXECUÇÃO DE CAPA ASFÁLTICA COM CBUQ, EM VIAS DE MUNICÍPIOS DA REGIÃO DA MATA PERNAMBUCANA, ÁREA DE ATUAÇÃO DA CODEVASF NO ESTADO DE PERNAMBUCO.
A2: ='RESUMO MODULO TOTAL'!B1 | B2: Capa Asfáltica com CBUQ
A3: LOCAL: | B3: Regão Metropolitana de Recife
A4: DATA BASE: | B4: Out/23
A5: DETALHAMENTO DO BDI - SEM DESONERAÇÃO
A6: ='RESUMO MODULO TOTAL'!B1 -> EXECUÇÃO DE CAPA ASFÁLTICA COM CBUQ, EM VIAS DE MUNICÍPIOS DA REGIÃO DA MATA PERNAMBUCANA, ÁREA DE ATUAÇÃO DA CODEVASF NO ESTADO DE PERNAMBUCO.
A7: Descrição dos serviços | B7: Preço de Venda (%) | C7: Custo Direto (%)
A8: ADMINISTRAÇÃO CENTRAL | C8: 0.06
A9: CUSTOS FINANCEIROS | B9: 0.0102 | C9: 1
A10: RISCOS | B10: 0.0025
A11: SEGUROS E GARANTIAS CONTRATUAIS | B11: 0.005
A12: LUCRO OPERACIONAL | C12: 0.07
A13: PIS | B13: 0.0065
A14: COFINS | B14: 0.03
A15: ISSQN | B15: 0.03
A16: Contribuição Previdenciaria | B16: 0
B17: BDI | C17: =ROUND(((1+(C8+C12))/(1-(B9+B10+B11+B13+B14+B15+B16))-1),4) -> 0.2339
A18: Observação: | B18: O percentual de ISSQN aqui utilizado consiste apenas em um referencial médio.
B19: O valor real do ISSQN a ser adotado deve ser aquele proveniente das alíquotas dos municípios situados na área de influência das obras.
A54: DETALHAMENTO DO BDI DIFERENCIADO - SEM DESONERAÇÃO
A55: EXECUÇÃO DE SERVIÇOS DE PAVIMENTAÇÃO COM CONCRETO BETUMINOSO USINADO A QUENTE (CBUQ), EM VIAS DE MUNICÍPIOS DIVERSOS INSERIDOS NA ÁREA DE ATUAÇÃO DA CIDEVASF, NO ESTADO DO RIO GRANDE DO NORTE - LOTE 1
A56: DESCRIÇÃO DOS SERVIÇOS | B56: PREÇO DE VENDA (%) | C56: CUSTO DIRETO (%)
A57: ADMINISTRAÇÃO CENTRAL | C57: 0.0377
A58: DESPESA FINANCEIRAS | B58: 0.0102
A59: SEGUROS E GARANTIAS CONTRATUAIS | B59: 0.0025
A60: RISCOS | B60: 0.005
A61: LUCRO OPERACIONAL | C61: 0.05
A62: PIS | B62: 0.0065
A63: COFINS | B63: 0.03
A64: ISSQN | B64: 0
A65: Contribuição Previdenciaria | B65: 0
B66: BDI | C66: =ROUND((1+(C57+C61))/(1-(B58+B59+B60+B62+B63+B64+B65))-1,4) -> 0.15
A67: Fonte da composição, valores de referência e fórmula do BDI: Instrução Normativa N° 62/DNIT SEDE

Sheet ENC. SOCIAIS SICRO
A1: CGCIT | B1: SISTEMA DE CUSTOS REFERENCIAIS DE OBRAS - SICRO | AD1: DNIT
A4: Pernambuco - Abril/2023
A5: Sem desoneração
A7: Código | B7: Descrição | C7: Unid. | D7: Encargos Sociais (%) | M7: Encargos Trabalhistas (%) | W7: Verbas Rescisórias (%) | AB7: Reincidências (%) | AD7: Total (%)
D8: A1 | E8: A2 | F8: A3 | G8: A4 | H8: A5 | I8: A6 | J8: A7 | K8: A8 | L8: A9 | M8: B1 | N8: B2 | O8: B3 | P8: B4 | Q8: B5 | R8: B6 | S8: B7 | T8: B8 | U8: B9 | V8: B10 | W8: C1 | X8: C2 | Y8: C3 | Z8: C4 | AA8: C5 | AB8: D1 | AC8: D2
A9: P9801 | B9: Ajudante | C9: h | D9: 0.2 | E9: 0.08 | F9: 0.025 | G9: 0.015 | H9: 0.016 | I9: 0.002 | J9: 0.03 | K9: 0 | L9: 0 | M9: 0.1852 | N9: 0.0513 | O9: 0.0576 | P9: 0.0087 | Q9: 0.0005 | R9: 0.001 | S9: 0.0924 | T9: 0.0074 | U9: 0 | V9: 0 | W9: 0.0439 | X9: 0.0012 | Y9: 0.0656 | Z9: 0.0449 | AA9: 0.0093 | AB9: 0.1487 | AC9: 0.004 | AD9: 1.0895
A10: P9802 | B10: Ajudante especializado | C10: h | D10: 0.2 | E10: 0.08 | F10: 0.025 | G10: 0.015 | H10: 0.016 | I10: 0.002 | J10: 0.03 | K10: 0 | L10: 0 | M10: 0.1852 | N10: 0.0513 | O10: 0.0576 | P10: 0.0087 | Q10: 0.0005 | R10: 0.001 | S10: 0.0924 | T10: 0.0074 | U10: 0 | V10: 0 | W10: 0.0439 | X10: 0.0012 | Y10: 0.0656 | Z10: 0.0449 | AA10: 0.0093 | AB10: 0.1487 | AC10: 0.004 | AD10: 1.0895
A11: P9803 | B11: Almoxarife | C11: mês | D11: 0.2 | E11: 0.08 | F11: 0.025 | G11: 0.015 | H11: 0.016 | I11: 0.002 | J11: 0.03 | K11: 0.0011 | L11: 0 | M11: 0 | N11: 0 | O11: 0.0748 | P11: 0.0087 | Q11: 0.0005 | R11: 0.0009 | S11: 0.0924 | T11: 0.0074 | U11: 0.0002 | V11: 0 | W11: 0.0354 | X11: 0.0009 | Y11: 0.0484 | Z11: 0.0379 | AA11: 0.0093 | AB11: 0.0682 | AC11: 0.0032 | AD11: 0.7572
A12: P9804 | B12: Apontador | C12: mês | D12: 0.2 | E12: 0.08 | F12: 0.025 | G12: 0.015 | H12: 0.016 | I12: 0.002 | J12: 0.03 | K12: 0 | L12: 0 | M12: 0 | N12: 0 | O12: 0.0689 | P12: 0.0087 | Q12: 0.0005 | R12: 0.0009 | S12: 0.0924 | T12: 0.0074 | U12: 0.0001 | V12: 0 | W12: 0.0397 | X12: 0.001 | Y12: 0.0543 | Z12: 0.0377 | AA12: 0.0093 | AB12: 0.0658 | AC12: 0.0035 | AD12: 0.7581
A13: P9805 | B13: Armador | C13: h | D13: 0.2 | E13: 0.08 | F13: 0.025 | G13: 0.015 | H13: 0.016 | I13: 0.002 | J13: 0.03 | K13: 0.0011 | L13: 0 | M13: 0.1851 | N13: 0.0512 | O13: 0.0568 | P13: 0.0087 | Q13: 0.0005 | R13: 0.001 | S13: 0.0924 | T13: 0.0074 | U13: 0 | V13: 0 | W13: 0.0445 | X13: 0.0012 | Y13: 0.0664 | Z13: 0.0449 | AA13: 0.0093 | AB13: 0.1488 | AC13: 0.004 | AD13: 1.0911
A14: P9806 | B14: Auxiliar administrativo | C14: mês | D14: 0.2 | E14: 0.08 | F14: 0.025 | G14: 0.015 | H14: 0.016 | I14: 0.002 | J14: 0.03 | K14: 0 | L14: 0 | M14: 0 | N14: 0 | O14: 0.0704 | P14: 0.0087 | Q14: 0.0005 | R14: 0.0005 | S14: 0.0924 | T14: 0.0074 | U14: 0.0012 | V14: 0 | W14: 0.0386 | X14: 0.001 | Y14: 0.0528 | Z14: 0.0378 | AA14: 0.0093 | AB14: 0.0667 | AC14: 0.0034 | AD14: 0.7587
A15: P9807 | B15: Bombeiro hidráulico | C15: h | D15: 0.2 | E15: 0.08 | F15: 0.025 | G15: 0.015 | H15: 0.016 | I15: 0.002 | J15: 0.03 | K15: 0.0011 | L15: 0 | M15: 0.1871 | N15: 0.0518 | O15: 0.0721 | P15: 0.0087 | Q15: 0.0005 | R15: 0.001 | S15: 0.0924 | T15: 0.0074 | U15: 0 | V15: 0 | W15: 0.0373 | X15: 0.0009 | Y15: 0.0511 | Z15: 0.0455 | AA15: 0.0093 | AB15: 0.1554 | AC15: 0.0033 | AD15: 1.0928
A16: P9808 | B16: Carpinteiro | C16: h | D16: 0.2 | E16: 0.08 | F16: 0.025 | G16: 0.015 | H16: 0.016 | I16: 0.002 | J16: 0.03 | K16: 0 | L16: 0 | M16: 0.1855 | N16: 0.0513 | O16: 0.06 | P16: 0.0087 | Q16: 0.0005 | R16: 0.0008 | S16: 0.0923 | T16: 0.0074 | U16: 0 | V16: 0 | W16: 0.0423 | X16: 0.0012 | Y16: 0.0631 | Z16: 0.045 | AA16: 0.0093 | AB16: 0.1496 | AC16: 0.0038 | AD16: 1.0889
A17: P9809 | B17: Encarregado administrativo | C17: mês | D17: 0.2 | E17: 0.08 | F17: 0.025 | G17: 0.015 | H17: 0.016 | I17: 0.002 | J17: 0.03 | K17: 0.0011 | L17: 0 | M17: 0 | N17: 0 | O17: 0.0823 | P17: 0.0087 | Q17: 0.0005 | R17: 0.0007 | S17: 0.0924 | T17: 0.0074 | U17: 0.0004 | V17: 0 | W17: 0.0323 | X17: 0.0008 | Y17: 0.0408 | Z17: 0.0382 | AA17: 0.0093 | AB17: 0.0711 | AC17: 0.0029 | AD17: 0.7569
A18: P9810 | B18: Eletricista | C18: h | D18: 0.2 | E18: 0.08 | F18: 0.025 | G18: 0.015 | H18: 0.016 | I18: 0.002 | J18: 0.03 | K18: 0 | L18: 0 | M18: 0.1861 | N18: 0.0515 | O18: 0.0648 | P18: 0.0087 | Q18: 0.0005 | R18: 0.0008 | S18: 0.0924 | T18: 0.0074 | U18: 0 | V18: 0 | W18: 0.0426 | X18: 0.0011 | Y18: 0.0583 | Z18: 0.0452 | AA18: 0.0093 | AB18: 0.1517 | AC18: 0.0038 | AD18: 1.0923
A19: P9811 | B19: Encarregado especializado | C19: mês | D19: 0.2 | E19: 0.08 | F19: 0.025 | G19: 0.015 | H19: 0.016 | I19: 0.002 | J19: 0.03 | K19: 0 | L19: 0 | M19: 0 | N19: 0 | O19: 0.0776 | P19: 0.0087 | Q19: 0.0005 | R19: 0.0007 | S19: 0.0923 | T19: 0.0074 | U19: 0 | V19: 0 | W19: 0.0333 | X19: 0.0008 | Y19: 0.0455 | Z19: 0.038 | AA19: 0.0093 | AB19: 0.0689 | AC19: 0.003 | AD19: 0.7541
A20: P9812 | B20: Engenheiro | C20: mês | D20: 0.2 | E20: 0.08 | F20: 0.025 | G20: 0.015 | H20: 0.016 | I20: 0.002 | J20: 0.03 | K20: 0.0011 | L20: 0 | M20: 0 | N20: 0 | O20: 0.0842 | P20: 0.0087 | Q20: 0.0005 | R20: 0.0008 | S20: 0.0924 | T20: 0.0074 | U20: 0.0004 | V20: 0 | W20: 0.0308 | X20: 0.0007 | Y20: 0.0389 | Z20: 0.0382 | AA20: 0.0093 | AB20: 0.0718 | AC20: 0.0027 | AD20: 0.756
A21: P9814 | B21: Operacional | C21: mês | D21: 0.2 | E21: 0.08 | F21: 0.025 | G21: 0.015 | H21: 0.016 | I21: 0.002 | J21: 0.03 | K21: 0.0041 | L21: 0 | M21: 0 | N21: 0 | O21: 0.0566 | P21: 0.0078 | Q21: 0.0004 | R21: 0.001 | S21: 0.0923 | T21: 0.0074 | U21: 0 | V21: 0 | W21: 0.0446 | X21: 0.0012 | Y21: 0.0664 | Z21: 0.0373 | AA21: 0.0093 | AB21: 0.0616 | AC21: 0.004 | AD21: 0.7622
A22: P9815 | B22: Jardineiro | C22: h | D22: 0.2 | E22: 0.08 | F22: 0.025 | G22: 0.015 | H22: 0.016 | I22: 0.002 | J22: 0.03 | K22: 0.0041 | L22: 0 | M22: 0.1867 | N22: 0.0517 | O22: 0.0688 | P22: 0.0088 | Q22: 0.0005 | R22: 0.0009 | S22: 0.0924 | T22: 0.0074 | U22: 0.0001 | V22: 0 | W22: 0.0397 | X22: 0.001 | Y22: 0.0544 | Z22: 0.0453 | AA22: 0.0093 | AB22: 0.1552 | AC22: 0.0036 | AD22: 1.0978
A23: P9819 | B23: Engenheiro supervisor | C23: mês | D23: 0.2 | E23: 0.08 | F23: 0.025 | G23: 0.015 | H23: 0.016 | I23: 0.002 | J23: 0.03 | K23: 0.0011 | L23: 0 | M23: 0 | N23: 0 | O23: 0.0842 | P23: 0.0087 | Q23: 0.0005 | R23: 0.0008 | S23: 0.0924 | T23: 0.0074 | U23: 0.0004 | V23: 0 | W23: 0.0308 | X23: 0.0007 | Y23: 0.0389 | Z23: 0.0382 | AA23: 0.0093 | AB23: 0.0718 | AC23: 0.0027 | AD23: 0.756
A24: P9821 | B24: Pedreiro | C24: h | D24: 0.2 | E24: 0.08 | F24: 0.025 | G24: 0.015 | H24: 0.016 | I24: 0.002 | J24: 0.03 | K24: 0 | L24: 0 | M24: 0.186 | N24: 0.0515 | O24: 0.064 | P24: 0.0087 | Q24: 0.0005 | R24: 0.0008 | S24: 0.0923 | T24: 0.0074 | U24: 0 | V24: 0 | W24: 0.0432 | X24: 0.0011 | Y24: 0.0591 | Z24: 0.0452 | AA24: 0.0093 | AB24: 0.1513 | AC24: 0.0039 | AD24: 1.0923
A25: P9822 | B25: Pintor | C25: h | D25: 0.2 | E25: 0.08 | F25: 0.025 | G25: 0.015 | H25: 0.016 | I25: 0.002 | J25: 0.03 | K25: 0.0011 | L25: 0 | M25: 0.1848 | N25: 0.0511 | O25: 0.0547 | P25: 0.0087 | Q25: 0.0005 | R25: 0.0009 | S25: 0.0924 | T25: 0.0074 | U25: 0 | V25: 0 | W25: 0.0459 | X25: 0.0013 | Y25: 0.0685 | Z25: 0.0448 | AA25: 0.0093 | AB25: 0.1478 | AC25: 0.0041 | AD25: 1.0913
A26: P9823 | B26: Serralheiro | C26: h | D26: 0.2 | E26: 0.08 | F26: 0.025 | G26: 0.015 | H26: 0.016 | I26: 0.002 | J26: 0.03 | K26: 0.0011 | L26: 0 | M26: 0.1862 | N26: 0.0515 | O26: 0.0655 | P26: 0.0087 | Q26: 0.0005 | R26: 0.001 | S26: 0.0924 | T26: 0.0074 | U26: 0 | V26: 0 | W26: 0.0421 | X26: 0.0011 | Y26: 0.0576 | Z26: 0.0452 | AA26: 0.0093 | AB26: 0.1525 | AC26: 0.0038 | AD26: 1.094
A27: P9824 | B27: Servente | C27: h | D27: 0.2 | E27: 0.08 | F27: 0.025 | G27: 0.015 | H27: 0.016 | I27: 0.002 | J27: 0.03 | K27: 0 | L27: 0 | M27: 0.1852 | N27: 0.0513 | O27: 0.0576 | P27: 0.0087 | Q27: 0.0005 | R27: 0.001 | S27: 0.0924 | T27: 0.0074 | U27: 0 | V27: 0 | W27: 0.0439 | X27: 0.0012 | Y27: 0.0656 | Z27: 0.0449 | AA27: 0.0093 | AB27: 0.1487 | AC27: 0.004 | AD27: 1.0895
A28: P9825 | B28: Soldador | C28: h | D28: 0.2 | E28: 0.08 | F28: 0.025 | G28: 0.015 | H28: 0.016 | I28: 0.002 | J28: 0.03 | K28: 0.0011 | L28: 0 | M28: 0.186 | N28: 0.0515 | O28: 0.0639 | P28: 0.0087 | Q28: 0.0005 | R28: 0.001 | S28: 0.0924 | T28: 0.0074 | U28: 0 | V28: 0 | W28: 0.0433 | X28: 0.0011 | Y28: 0.0593 | Z28: 0.0452 | AA28: 0.0093 | AB28: 0.1518 | AC28: 0.0039 | AD28: 1.0943
A29: P9826 | B29: Chefe setor de finanças | C29: mês | D29: 0.2 | E29: 0.08 | F29: 0.025 | G29: 0.015 | H29: 0.016 | I29: 0.002 | J29: 0.03 | K29: 0.0041 | L29: 0 | M29: 0 | N29: 0 | O29: 0.0991 | P29: 0.0088 | Q29: 0.0005 | R29: 0.0004 | S29: 0.0924 | T29: 0.0074 | U29: 0.0015 | V29: 0 | W29: 0.0221 | X29: 0.0004 | Y29: 0.0242 | Z29: 0.0387 | AA29: 0.0093 | AB29: 0.0782 | AC29: 0.0019 | AD29: 0.7571
A30: P9827 | B30: Vigia | C30: mês | D30: 0.2 | E30: 0.08 | F30: 0.025 | G30: 0.015 | H30: 0.016 | I30: 0.002 | J30: 0.03 | K30: 0 | L30: 0 | M30: 0 | N30: 0 | O30: 0.0757 | P30: 0.0087 | Q30: 0.0005 | R30: 0.0008 | S30: 0.0923 | T30: 0.0074 | U30: 0 | V30: 0 | W30: 0.0346 | X30: 0.0009 | Y30: 0.0474 | Z30: 0.0379 | AA30: 0.0093 | AB30: 0.0683 | AC30: 0.0031 | AD30: 0.7549
A31: P9830 | B31: Montador | C31: h | D31: 0.2 | E31: 0.08 | F31: 0.025 | G31: 0.015 | H31: 0.016 | I31: 0.002 | J31: 0.03 | K31: 0.0011 | L31: 0 | M31: 0.1855 | N31: 0.0513 | O31: 0.0597 | P31: 0.0087 | Q31: 0.0005 | R31: 0.001 | S31: 0.0924 | T31: 0.0074 | U31: 0 | V31: 0 | W31: 0.0425 | X31: 0.0012 | Y31: 0.0635 | Z31: 0.045 | AA31: 0.0093 | AB31: 0.1501 | AC31: 0.0038 | AD31: 1.091
A32: P9833 | B32: Auxiliar de laboratório | C32: mês | D32: 0.2 | E32: 0.08 | F32: 0.025 | G32: 0.015 | H32: 0.016 | I32: 0.002 | J32: 0.03 | K32: 0.0011 | L32: 0 | M32: 0 | N32: 0 | O32: 0.0655 | P32: 0.0087 | Q32: 0.0005 | R32: 0.001 | S32: 0.0924 | T32: 0.0074 | U32: 0 | V32: 0 | W32: 0.0421 | X32: 0.0011 | Y32: 0.0577 | Z32: 0.0376 | AA32: 0.0093 | AB32: 0.0648 | AC32: 0.0038 | AD32: 0.7609
A33: P9836 | B33: Geólogo | C33: h | D33: 0.2 | E33: 0.08 | F33: 0.025 | G33: 0.015 | H33: 0.016 | I33: 0.002 | J33: 0.03 | K33: 0.0041 | L33: 0 | M33: 0.188 | N33: 0.052 | O33: 0.0782 | P33: 0.0088 | Q33: 0.0005 | R33: 0.0007 | S33: 0.0924 | T33: 0.0074 | U33: 0.001 | V33: 0 | W33: 0.0329 | X33: 0.0008 | Y33: 0.0451 | Z33: 0.0457 | AA33: 0.0093 | AB33: 0.1597 | AC33: 0.0029 | AD33: 1.0977
A34: P9837 | B34: Oceanógrafo | C34: mês | D34: 0.2 | E34: 0.08 | F34: 0.025 | G34: 0.015 | H34: 0.016 | I34: 0.002 | J34: 0.03 | K34: 0.0041 | L34: 0 | M34: 0 | N34: 0 | O34: 0.0809 | P34: 0.0078 | Q34: 0.0004 | R34: 0.0008 | S34: 0.0923 | T34: 0.0074 | U34: 0.0008 | V34: 0 | W34: 0.0309 | X34: 0.0008 | Y34: 0.0422 | Z34: 0.0381 | AA34: 0.0093 | AB34: 0.0709 | AC34: 0.0028 | AD34: 0.7575
A35: P9840 | B35: Encarregado geral | C35: mês | D35: 0.2 | E35: 0.08 | F35: 0.025 | G35: 0.015 | H35: 0.016 | I35: 0.002 | J35: 0.03 | K35: 0 | L35: 0 | M35: 0 | N35: 0 | O35: 0.0776 | P35: 0.0087 | Q35: 0.0005 | R35: 0.0007 | S35: 0.0923 | T35: 0.0074 | U35: 0 | V35: 0 | W35: 0.0333 | X35: 0.0008 | Y35: 0.0455 | Z35: 0.038 | AA35: 0.0093 | AB35: 0.0689 | AC35: 0.003 | AD35: 0.7541
A36: P9842 | B36: Faxineiro | C36: mês | D36: 0.2 | E36: 0.08 | F36: 0.025 | G36: 0.015 | H36: 0.016 | I36: 0.002 | J36: 0.03 | K36: 0.0011 | L36: 0 | M36: 0 | N36: 0 | O36: 0.0685 | P36: 0.0087 | Q36: 0.0005 | R36: 0.0004 | S36: 0.0924 | T36: 0.0074 | U36: 0.0014 | V36: 0 | W36: 0.04 | X36: 0.001 | Y36: 0.0548 | Z36: 0.0377 | AA36: 0.0093 | AB36: 0.0662 | AC36: 0.0036 | AD36: 0.7612
A37: P9843 | B37: Operador de equipamento leve | C37: h | D37: 0.2 | E37: 0.08 | F37: 0.025 | G37: 0.015 | H37: 0.016 | I37: 0.002 | J37: 0.03 | K37: 0 | L37: 0 | M37: 0.187 | N37: 0.0517 | O37: 0.0714 | P37: 0.0087 | Q37: 0.0005 | R37: 0.0009 | S37: 0.0924 | T37: 0.0074 | U37: 0 | V37: 0 | W37: 0.0378 | X37: 0.001 | Y37: 0.0517 | Z37: 0.0454 | AA37: 0.0093 | AB37: 0.1546 | AC37: 0.0034 | AD37: 1.0911
A38: P9844 | B38: Capitão fluvial | C38: mês | D38: 0.2 | E38: 0.08 | F38: 0.025 | G38: 0.015 | H38: 0.016 | I38: 0.002 | J38: 0.03 | K38: 0.0041 | L38: 0 | M38: 0 | N38: 0 | O38: 0.0862 | P38: 0.0078 | Q38: 0.0004 | R38: 0.0005 | S38: 0.0923 | T38: 0.0074 | U38: 0.0003 | V38: 0 | W38: 0.0292 | X38: 0.0007 | Y38: 0.0368 | Z38: 0.0382 | AA38: 0.0093 | AB38: 0.0725 | AC38: 0.0026 | AD38: 0.7563
A39: P9845 | B39: Operador de equipamento pesado | C39: h | D39: 0.2 | E39: 0.08 | F39: 0.025 | G39: 0.015 | H39: 0.016 | I39: 0.002 | J39: 0.03 | K39: 0 | L39: 0 | M39: 0.187 | N39: 0.0517 | O39: 0.0714 | P39: 0.0087 | Q39: 0.0005 | R39: 0.0009 | S39: 0.0924 | T39: 0.0074 | U39: 0 | V39: 0 | W39: 0.0378 | X39: 0.001 | Y39: 0.0517 | Z39: 0.0454 | AA39: 0.0093 | AB39: 0.1546 | AC39: 0.0034 | AD39: 1.0911
A40: P9846 | B40: Operador de equipamento especial | C40: h | D40: 0.2 | E40: 0.08 | F40: 0.025 | G40: 0.015 | H40: 0.016 | I40: 0.002 | J40: 0.03 | K40: 0 | L40: 0 | M40: 0.187 | N40: 0.0517 | O40: 0.0714 | P40: 0.0087 | Q40: 0.0005 | R40: 0.0009 | S40: 0.0924 | T40: 0.0074 | U40: 0 | V40: 0 | W40: 0.0378 | X40: 0.001 | Y40: 0.0517 | Z40: 0.0454 | AA40: 0.0093 | AB40: 0.1546 | AC40: 0.0034 | AD40: 1.0911
A41: P9847 | B41: Perfurador de tubulão | C41: h | D41: 0.2 | E41: 0.08 | F41: 0.025 | G41: 0.015 | H41: 0.016 | I41: 0.002 | J41: 0.03 | K41: 0 | L41: 0 | M41: 0.1852 | N41: 0.0513 | O41: 0.0576 | P41: 0.0087 | Q41: 0.0005 | R41: 0.001 | S41: 0.0924 | T41: 0.0074 | U41: 0 | V41: 0 | W41: 0.0439 | X41: 0.0012 | Y41: 0.0656 | Z41: 0.0449 | AA41: 0.0093 | AB41: 0.1487 | AC41: 0.004 | AD41: 1.0895
A42: P9848 | B42: Desenhista | C42: mês | D42: 0.2 | E42: 0.08 | F42: 0.025 | G42: 0.015 | H42: 0.016 | I42: 0.002 | J42: 0.03 | K42: 0.0011 | L42: 0 | M42: 0 | N42: 0 | O42: 0.0748 | P42: 0.0087 | Q42: 0.0005 | R42: 0.0008 | S42: 0.0924 | T42: 0.0074 | U42: 0.0008 | V42: 0 | W42: 0.0354 | X42: 0.0009 | Y42: 0.0485 | Z42: 0.0379 | AA42: 0.0093 | AB42: 0.0684 | AC42: 0.0032 | AD42: 0.7581
A43: P9849 | B43: Condutor maquinista fluvial | C43: mês | D43: 0.2 | E43: 0.08 | F43: 0.025 | G43: 0.015 | H43: 0.016 | I43: 0.002 | J43: 0.03 | K43: 0.0041 | L43: 0 | M43: 0 | N43: 0 | O43: 0.0795 | P43: 0.0078 | Q43: 0.0004 | R43: 0.0008 | S43: 0.0923 | T43: 0.0074 | U43: 0 | V43: 0 | W43: 0.0318 | X43: 0.0008 | Y43: 0.0435 | Z43: 0.038 | AA43: 0.0093 | AB43: 0.07 | AC43: 0.0028 | AD43: 0.7566
A44: P9850 | B44: Copeiro | C44: mês | D44: 0.2 | E44: 0.08 | F44: 0.025 | G44: 0.015 | H44: 0.016 | I44: 0.002 | J44: 0.03 | K44: 0.0011 | L44: 0 | M44: 0 | N44: 0 | O44: 0.0847 | P44: 0.0087 | Q44: 0.0005 | R44: 0.0002 | S44: 0.0924 | T44: 0.0074 | U44: 0.0016 | V44: 0 | W44: 0.0305 | X44: 0.0007 | Y44: 0.0385 | Z44: 0.0383 | AA44: 0.0093 | AB44: 0.0722 | AC44: 0.0027 | AD44: 0.7568
A45: P9851 | B45: Médico do trabalho | C45: mês | D45: 0.2 | E45: 0.08 | F45: 0.025 | G45: 0.015 | H45: 0.016 | I45: 0.002 | J45: 0.03 | K45: 0.0041 | L45: 0 | M45: 0 | N45: 0 | O45: 0.0751 | P45: 0.0088 | Q45: 0.0005 | R45: 0.0004 | S45: 0.0924 | T45: 0.0074 | U45: 0.0005 | V45: 0 | W45: 0.0351 | X45: 0.0009 | Y45: 0.048 | Z45: 0.0379 | AA45: 0.0093 | AB45: 0.0689 | AC45: 0.0031 | AD45: 0.7605
A46: P9852 | B46: Blaster | C46: h | D46: 0.2 | E46: 0.08 | F46: 0.025 | G46: 0.015 | H46: 0.016 | I46: 0.002 | J46: 0.03 | K46: 0.0041 | L46: 0 | M46: 0.1877 | N46: 0.052 | O46: 0.0769 | P46: 0.0088 | Q46: 0.0005 | R46: 0.0009 | S46: 0.0924 | T46: 0.0074 | U46: 0 | V46: 0 | W46: 0.0338 | X46: 0.0009 | Y46: 0.0462 | Z46: 0.0457 | AA46: 0.0093 | AB46: 0.1588 | AC46: 0.003 | AD46: 1.0963
A47: P9853 | B47: Pré-marcador | C47: h | D47: 0.2 | E47: 0.08 | F47: 0.025 | G47: 0.015 | H47: 0.016 | I47: 0.002 | J47: 0.03 | K47: 0 | L47: 0 | M47: 0.1852 | N47: 0.0513 | O47: 0.0576 | P47: 0.0087 | Q47: 0.0005 | R47: 0.001 | S47: 0.0924 | T47: 0.0074 | U47: 0 | V47: 0 | W47: 0.0439 | X47: 0.0012 | Y47: 0.0656 | Z47: 0.0449 | AA47: 0.0093 | AB47: 0.1487 | AC47: 0.004 | AD47: 1.0895
A48: P9854 | B48: Recepcionista | C48: mês | D48: 0.2 | E48: 0.08 | F48: 0.025 | G48: 0.015 | H48: 0.016 | I48: 0.002 | J48: 0.03 | K48: 0.0011 | L48: 0 | M48: 0 | N48: 0 | O48: 0.0707 | P48: 0.0088 | Q48: 0.0005 | R48: 0.0003 | S48: 0.0925 | T48: 0.0074 | U48: 0.002 | V48: 0 | W48: 0.0384 | X48: 0.001 | Y48: 0.0526 | Z48: 0.0378 | AA48: 0.0093 | AB48: 0.0672 | AC48: 0.0034 | AD48: 0.761
A49: P9855 | B49: Marinheiro de máquinas | C49: mês | D49: 0.2 | E49: 0.08 | F49: 0.025 | G49: 0.015 | H49: 0.016 | I49: 0.002 | J49: 0.03 | K49: 0.0041 | L49: 0 | M49: 0 | N49: 0 | O49: 0.083 | P49: 0.0078 | Q49: 0.0004 | R49: 0.0009 | S49: 0.0923 | T49: 0.0074 | U49: 0 | V49: 0 | W49: 0.0317 | X49: 0.0007 | Y49: 0.04 | Z49: 0.0381 | AA49: 0.0093 | AB49: 0.0714 | AC49: 0.0028 | AD49: 0.758
A50: P9856 | B50: Marinheiro de convés | C50: h | D50: 0.2 | E50: 0.08 | F50: 0.025 | G50: 0.015 | H50: 0.016 | I50: 0.002 | J50: 0.03 | K50: 0.0041 | L50: 0 | M50: 0.1887 | N50: 0.0523 | O50: 0.0865 | P50: 0.0078 | Q50: 0.0004 | R50: 0.0009 | S50: 0.0923 | T50: 0.0074 | U50: 0 | V50: 0 | W50: 0.029 | X50: 0.0007 | Y50: 0.0365 | Z50: 0.046 | AA50: 0.0093 | AB50: 0.1624 | AC50: 0.0026 | AD50: 1.0948
A51: P9857 | B51: Marinheiro de convés - mensalista | C51: mês | D51: 0.2 | E51: 0.08 | F51: 0.025 | G51: 0.015 | H51: 0.016 | I51: 0.002 | J51: 0.03 | K51: 0.0041 | L51: 0 | M51: 0 | N51: 0 | O51: 0.0865 | P51: 0.0078 | Q51: 0.0004 | R51: 0.0009 | S51: 0.0923 | T51: 0.0074 | U51: 0 | V51: 0 | W51: 0.029 | X51: 0.0007 | Y51: 0.0365 | Z51: 0.0383 | AA51: 0.0093 | AB51: 0.0727 | AC51: 0.0026 | AD51: 0.7564
A52: P9858 | B52: Laboratorista | C52: mês | D52: 0.2 | E52: 0.08 | F52: 0.025 | G52: 0.015 | H52: 0.016 | I52: 0.002 | J52: 0.03 | K52: 0.0011 | L52: 0 | M52: 0 | N52: 0 | O52: 0.0655 | P52: 0.0087 | Q52: 0.0005 | R52: 0.001 | S52: 0.0924 | T52: 0.0074 | U52: 0 | V52: 0 | W52: 0.0421 | X52: 0.0011 | Y52: 0.0577 | Z52: 0.0376 | AA52: 0.0093 | AB52: 0.0648 | AC52: 0.0038 | AD52: 0.7609
A53: P9859 | B53: Trabalhador de via | C53: h | D53: 0.2 | E53: 0.08 | F53: 0.025 | G53: 0.015 | H53: 0.016 | I53: 0.002 | J53: 0.03 | K53: 0 | L53: 0 | M53: 0.1852 | N53: 0.0513 | O53: 0.0576 | P53: 0.0087 | Q53: 0.0005 | R53: 0.001 | S53: 0.0924 | T53: 0.0074 | U53: 0 | V53: 0 | W53: 0.0439 | X53: 0.0012 | Y53: 0.0656 | Z53: 0.0449 | AA53: 0.0093 | AB53: 0.1487 | AC53: 0.004 | AD53: 1.0895
A54: P9861 | B54: Selecionador de material pétreo | C54: h | D54: 0.2 | E54: 0.08 | F54: 0.025 | G54: 0.015 | H54: 0.016 | I54: 0.002 | J54: 0.03 | K54: 0 | L54: 0 | M54: 0.1852 | N54: 0.0513 | O54: 0.0576 | P54: 0.0087 | Q54: 0.0005 | R54: 0.001 | S54: 0.0924 | T54: 0.0074 | U54: 0 | V54: 0 | W54: 0.0439 | X54: 0.0012 | Y54: 0.0656 | Z54: 0.0449 | AA54: 0.0093 | AB54: 0.1487 | AC54: 0.004 | AD54: 1.0895
A55: P9864 | B55: Engenheiro de segurança do trabalho | C55: mês | D55: 0.2 | E55: 0.08 | F55: 0.025 | G55: 0.015 | H55: 0.016 | I55: 0.002 | J55: 0.03 | K55: 0.0041 | L55: 0 | M55: 0 | N55: 0 | O55: 0.0772 | P55: 0.0088 | Q55: 0.0005 | R55: 0.0007 | S55: 0.0924 | T55: 0.0074 | U55: 0.0005 | V55: 0 | W55: 0.0336 | X55: 0.0008 | Y55: 0.046 | Z55: 0.038 | AA55: 0.0093 | AB55: 0.0698 | AC55: 0.003 | AD55: 0.7601
A56: P9865 | B56: Técnico em enfermagem | C56: mês | D56: 0.2 | E56: 0.08 | F56: 0.025 | G56: 0.015 | H56: 0.016 | I56: 0.002 | J56: 0.03 | K56: 0.0041 | L56: 0 | M56: 0 | N56: 0 | O56: 0.0655 | P56: 0.0088 | Q56: 0.0005 | R56: 0.0003 | S56: 0.0925 | T56: 0.0074 | U56: 0.002 | V56: 0 | W56: 0.0422 | X56: 0.0011 | Y56: 0.0579 | Z56: 0.0377 | AA56: 0.0093 | AB56: 0.0659 | AC56: 0.0038 | AD56: 0.7668
A57: P9866 | B57: Motorista de caminhão | C57: h | D57: 0.2 | E57: 0.08 | F57: 0.025 | G57: 0.015 | H57: 0.016 | I57: 0.002 | J57: 0.03 | K57: 0 | L57: 0 | M57: 0.1863 | N57: 0.0516 | O57: 0.0662 | P57: 0.0087 | Q57: 0.0005 | R57: 0.0008 | S57: 0.0923 | T57: 0.0074 | U57: 0 | V57: 0 | W57: 0.0416 | X57: 0.0011 | Y57: 0.0569 | Z57: 0.0452 | AA57: 0.0093 | AB57: 0.1523 | AC57: 0.0037 | AD57: 1.092
A58: P9867 | B58: Técnico especializado - mensalista | C58: mês | D58: 0.2 | E58: 0.08 | F58: 0.025 | G58: 0.015 | H58: 0.016 | I58: 0.002 | J58: 0.03 | K58: 0.0011 | L58: 0 | M58: 0 | N58: 0 | O58: 0.0703 | P58: 0.0087 | Q58: 0.0005 | R58: 0.0008 | S58: 0.0924 | T58: 0.0074 | U58: 0.0008 | V58: 0 | W58: 0.0387 | X58: 0.001 | Y58: 0.053 | Z58: 0.0378 | AA58: 0.0093 | AB58: 0.0668 | AC58: 0.0035 | AD58: 0.7599
A59: P9869 | B59: Encarregado de obras de artes especiais | C59: mês | D59: 0.2 | E59: 0.08 | F59: 0.025 | G59: 0.015 | H59: 0.016 | I59: 0.002 | J59: 0.03 | K59: 0 | L59: 0 | M59: 0 | N59: 0 | O59: 0.0776 | P59: 0.0087 | Q59: 0.0005 | R59: 0.0007 | S59: 0.0923 | T59: 0.0074 | U59: 0 | V59: 0 | W59: 0.0333 | X59: 0.0008 | Y59: 0.0455 | Z59: 0.038 | AA59: 0.0093 | AB59: 0.0689 | AC59: 0.003 | AD59: 0.7541
A60: P9870 | B60: Motorista de veículo leve | C60: h | D60: 0.2 | E60: 0.08 | F60: 0.025 | G60: 0.015 | H60: 0.016 | I60: 0.002 | J60: 0.03 | K60: 0.0011 | L60: 0 | M60: 0.1872 | N60: 0.0518 | O60: 0.0734 | P60: 0.0087 | Q60: 0.0005 | R60: 0.0009 | S60: 0.0924 | T60: 0.0074 | U60: 0 | V60: 0 | W60: 0.0364 | X60: 0.0009 | Y60: 0.0498 | Z60: 0.0455 | AA60: 0.0093 | AB60: 0.1559 | AC60: 0.0033 | AD60: 1.0924
A61: P9871 | B61: Motorista de veículo especial | C61: h | D61: 0.2 | E61: 0.08 | F61: 0.025 | G61: 0.015 | H61: 0.016 | I61: 0.002 | J61: 0.03 | K61: 0 | L61: 0 | M61: 0.1863 | N61: 0.0516 | O61: 0.0662 | P61: 0.0087 | Q61: 0.0005 | R61: 0.0008 | S61: 0.0923 | T61: 0.0074 | U61: 0 | V61: 0 | W61: 0.0416 | X61: 0.0011 | Y61: 0.0569 | Z61: 0.0452 | AA61: 0.0093 | AB61: 0.1523 | AC61: 0.0037 | AD61: 1.092
A62: P9875 | B62: Encarregado de turma | C62: mês | D62: 0.2 | E62: 0.08 | F62: 0.025 | G62: 0.015 | H62: 0.016 | I62: 0.002 | J62: 0.03 | K62: 0 | L62: 0 | M62: 0 | N62: 0 | O62: 0.0776 | P62: 0.0087 | Q62: 0.0005 | R62: 0.0007 | S62: 0.0923 | T62: 0.0074 | U62: 0 | V62: 0 | W62: 0.0333 | X62: 0.0008 | Y62: 0.0455 | Z62: 0.038 | AA62: 0.0093 | AB62: 0.0689 | AC62: 0.003 | AD62: 0.7541
A63: P9876 | B63: Técnico de segurança do trabalho | C63: mês | D63: 0.2 | E63: 0.08 | F63: 0.025 | G63: 0.015 | H63: 0.016 | I63: 0.002 | J63: 0.03 | K63: 0.0011 | L63: 0 | M63: 0 | N63: 0 | O63: 0.0644 | P63: 0.0087 | Q63: 0.0005 | R63: 0.0007 | S63: 0.0924 | T63: 0.0074 | U63: 0.001 | V63: 0 | W63: 0.043 | X63: 0.0011 | Y63: 0.0588 | Z63: 0.0376 | AA63: 0.0093 | AB63: 0.0646 | AC63: 0.0038 | AD63: 0.7624
A64: P9878 | B64: Secretária | C64: mês | D64: 0.2 | E64: 0.08 | F64: 0.025 | G64: 0.015 | H64: 0.016 | I64: 0.002 | J64: 0.03 | K64: 0.0041 | L64: 0 | M64: 0 | N64: 0 | O64: 0.084 | P64: 0.0088 | Q64: 0.0005 | R64: 0.0002 | S64: 0.0925 | T64: 0.0074 | U64: 0.0022 | V64: 0 | W64: 0.0311 | X64: 0.0007 | Y64: 0.0393 | Z64: 0.0383 | AA64: 0.0093 | AB64: 0.0728 | AC64: 0.0028 | AD64: 0.762
A65: P9880 | B65: Piloto fluvial | C65: mês | D65: 0.2 | E65: 0.08 | F65: 0.025 | G65: 0.015 | H65: 0.016 | I65: 0.002 | J65: 0.03 | K65: 0.0041 | L65: 0 | M65: 0 | N65: 0 | O65: 0.0862 | P65: 0.0078 | Q65: 0.0004 | R65: 0.0005 | S65: 0.0923 | T65: 0.0074 | U65: 0.0003 | V65: 0 | W65: 0.0292 | X65: 0.0007 | Y65: 0.0368 | Z65: 0.0382 | AA65: 0.0093 | AB65: 0.0725 | AC65: 0.0026 | AD65: 0.7563
A66: P9882 | B66: Técnico especializado | C66: h | D66: 0.2 | E66: 0.08 | F66: 0.025 | G66: 0.015 | H66: 0.016 | I66: 0.002 | J66: 0.03 | K66: 0.0011 | L66: 0 | M66: 0.1869 | N66: 0.0517 | O66: 0.0703 | P66: 0.0087 | Q66: 0.0005 | R66: 0.0008 | S66: 0.0924 | T66: 0.0074 | U66: 0.0008 | V66: 0 | W66: 0.0387 | X66: 0.001 | Y66: 0.053 | Z66: 0.0454 | AA66: 0.0093 | AB66: 0.1549 | AC66: 0.0035 | AD66: 1.0943
A67: P9883 | B67: Chefe do setor administrativo | C67: mês | D67: 0.2 | E67: 0.08 | F67: 0.025 | G67: 0.015 | H67: 0.016 | I67: 0.002 | J67: 0.03 | K67: 0.0011 | L67: 0 | M67: 0 | N67: 0 | O67: 0.0823 | P67: 0.0087 | Q67: 0.0005 | R67: 0.0007 | S67: 0.0924 | T67: 0.0074 | U67: 0.0004 | V67: 0 | W67: 0.0323 | X67: 0.0008 | Y67: 0.0408 | Z67: 0.0382 | AA67: 0.0093 | AB67: 0.0711 | AC67: 0.0029 | AD67: 0.7569
A68: P9884 | B68: Encarregado de terraplenagem | C68: mês | D68: 0.2 | E68: 0.08 | F68: 0.025 | G68: 0.015 | H68: 0.016 | I68: 0.002 | J68: 0.03 | K68: 0 | L68: 0 | M68: 0 | N68: 0 | O68: 0.0776 | P68: 0.0087 | Q68: 0.0005 | R68: 0.0007 | S68: 0.0923 | T68: 0.0074 | U68: 0 | V68: 0 | W68: 0.0333 | X68: 0.0008 | Y68: 0.0455 | Z68: 0.038 | AA68: 0.0093 | AB68: 0.0689 | AC68: 0.003 | AD68: 0.7541
A69: P9885 | B69: Frentista de túnel | C69: h | D69: 0.2 | E69: 0.08 | F69: 0.025 | G69: 0.015 | H69: 0.016 | I69: 0.002 | J69: 0.03 | K69: 0 | L69: 0 | M69: 0.1852 | N69: 0.0513 | O69: 0.0576 | P69: 0.0087 | Q69: 0.0005 | R69: 0.001 | S69: 0.0924 | T69: 0.0074 | U69: 0 | V69: 0 | W69: 0.0439 | X69: 0.0012 | Y69: 0.0656 | Z69: 0.0449 | AA69: 0.0093 | AB69: 0.1487 | AC69: 0.004 | AD69: 1.0895
A70: P9889 | B70: Técnico da qualidade | C70: mês | D70: 0.2 | E70: 0.08 | F70: 0.025 | G70: 0.015 | H70: 0.016 | I70: 0.002 | J70: 0.03 | K70: 0.0011 | L70: 0 | M70: 0 | N70: 0 | O70: 0.0704 | P70: 0.0087 | Q70: 0.0005 | R70: 0.0007 | S70: 0.0924 | T70: 0.0074 | U70: 0.0008 | V70: 0 | W70: 0.0385 | X70: 0.001 | Y70: 0.0528 | Z70: 0.0378 | AA70: 0.0093 | AB70: 0.0668 | AC70: 0.0034 | AD70: 0.7598
A71: P9891 | B71: Engenheiro mecânico | C71: mês | D71: 0.2 | E71: 0.08 | F71: 0.025 | G71: 0.015 | H71: 0.016 | I71: 0.002 | J71: 0.03 | K71: 0.0041 | L71: 0 | M71: 0 | N71: 0 | O71: 0.0838 | P71: 0.0088 | Q71: 0.0005 | R71: 0.0008 | S71: 0.0924 | T71: 0.0074 | U71: 0.0001 | V71: 0 | W71: 0.0311 | X71: 0.0007 | Y71: 0.0393 | Z71: 0.0382 | AA71: 0.0093 | AB71: 0.0721 | AC71: 0.0028 | AD71: 0.7595
A72: P9892 | B72: Auxiliar de blaster | C72: h | D72: 0.2 | E72: 0.08 | F72: 0.025 | G72: 0.015 | H72: 0.016 | I72: 0.002 | J72: 0.03 | K72: 0.0041 | L72: 0 | M72: 0.1877 | N72: 0.052 | O72: 0.0769 | P72: 0.0088 | Q72: 0.0005 | R72: 0.0009 | S72: 0.0924 | T72: 0.0074 | U72: 0 | V72: 0 | W72: 0.0338 | X72: 0.0009 | Y72: 0.0462 | Z72: 0.0457 | AA72: 0.0093 | AB72: 0.1588 | AC72: 0.003 | AD72: 1.0963
A73: P9893 | B73: Encarregado de pavimentação | C73: mês | D73: 0.2 | E73: 0.08 | F73: 0.025 | G73: 0.015 | H73: 0.016 | I73: 0.002 | J73: 0.03 | K73: 0 | L73: 0 | M73: 0 | N73: 0 | O73: 0.0776 | P73: 0.0087 | Q73: 0.0005 | R73: 0.0007 | S73: 0.0923 | T73: 0.0074 | U73: 0 | V73: 0 | W73: 0.0333 | X73: 0.0008 | Y73: 0.0455 | Z73: 0.038 | AA73: 0.0093 | AB73: 0.0689 | AC73: 0.003 | AD73: 0.7541
A74: P9896 | B74: Porteiro | C74: mês | D74: 0.2 | E74: 0.08 | F74: 0.025 | G74: 0.015 | H74: 0.016 | I74: 0.002 | J74: 0.03 | K74: 0.0011 | L74: 0 | M74: 0 | N74: 0 | O74: 0.0613 | P74: 0.0087 | Q74: 0.0005 | R74: 0.0007 | S74: 0.0924 | T74: 0.0074 | U74: 0.0004 | V74: 0 | W74: 0.0414 | X74: 0.0011 | Y74: 0.0618 | Z74: 0.0375 | AA74: 0.0093 | AB74: 0.0633 | AC74: 0.0037 | AD74: 0.7588
A75: P9897 | B75: Técnico de meio ambiente | C75: mês | D75: 0.2 | E75: 0.08 | F75: 0.025 | G75: 0.015 | H75: 0.016 | I75: 0.002 | J75: 0.03 | K75: 0.0041 | L75: 0 | M75: 0 | N75: 0 | O75: 0.0647 | P75: 0.0088 | Q75: 0.0005 | R75: 0.0006 | S75: 0.0924 | T75: 0.0074 | U75: 0.0013 | V75: 0 | W75: 0.0427 | X75: 0.0011 | Y75: 0.0585 | Z75: 0.0376 | AA75: 0.0093 | AB75: 0.0654 | AC75: 0.0038 | AD75: 0.7664
A76: P9900 | B76: Comprador | C76: mês | D76: 0.2 | E76: 0.08 | F76: 0.025 | G76: 0.015 | H76: 0.016 | I76: 0.002 | J76: 0.03 | K76: 0.0011 | L76: 0 | M76: 0 | N76: 0 | O76: 0.0838 | P76: 0.0087 | Q76: 0.0005 | R76: 0.0007 | S76: 0.0924 | T76: 0.0074 | U76: 0.0007 | V76: 0 | W76: 0.0312 | X76: 0.0007 | Y76: 0.0394 | Z76: 0.0382 | AA76: 0.0093 | AB76: 0.0717 | AC76: 0.0028 | AD76: 0.7567
A77: P9901 | B77: Encarregado de superestrutura ferroviária | C77: mês | D77: 0.2 | E77: 0.08 | F77: 0.025 | G77: 0.015 | H77: 0.016 | I77: 0.002 | J77: 0.03 | K77: 0 | L77: 0 | M77: 0 | N77: 0 | O77: 0.0776 | P77: 0.0087 | Q77: 0.0005 | R77: 0.0007 | S77: 0.0923 | T77: 0.0074 | U77: 0 | V77: 0 | W77: 0.0333 | X77: 0.0008 | Y77: 0.0455 | Z77: 0.038 | AA77: 0.0093 | AB77: 0.0689 | AC77: 0.003 | AD77: 0.7541
A78: P9903 | B78: Auxiliar técnico | C78: mês | D78: 0.2 | E78: 0.08 | F78: 0.025 | G78: 0.015 | H78: 0.016 | I78: 0.002 | J78: 0.03 | K78: 0.0011 | L78: 0 | M78: 0 | N78: 0 | O78: 0.0703 | P78: 0.0087 | Q78: 0.0005 | R78: 0.0008 | S78: 0.0924 | T78: 0.0074 | U78: 0.0008 | V78: 0 | W78: 0.0387 | X78: 0.001 | Y78: 0.053 | Z78: 0.0378 | AA78: 0.0093 | AB78: 0.0668 | AC78: 0.0035 | AD78: 0.7599
A79: P9907 | B79: Comandante de longo curso | C79: mês | D79: 0.2 | E79: 0.08 | F79: 0.025 | G79: 0.015 | H79: 0.016 | I79: 0.002 | J79: 0.03 | K79: 0.0041 | L79: 0 | M79: 0 | N79: 0 | O79: 0.0862 | P79: 0.0078 | Q79: 0.0004 | R79: 0.0005 | S79: 0.0923 | T79: 0.0074 | U79: 0.0003 | V79: 0 | W79: 0.0292 | X79: 0.0007 | Y79: 0.0368 | Z79: 0.0382 | AA79: 0.0093 | AB79: 0.0725 | AC79: 0.0026 | AD79: 0.7563
A80: P9908 | B80: Imediato | C80: mês | D80: 0.2 | E80: 0.08 | F80: 0.025 | G80: 0.015 | H80: 0.016 | I80: 0.002 | J80: 0.03 | K80: 0.0041 | L80: 0 | M80: 0 | N80: 0 | O80: 0.0862 | P80: 0.0078 | Q80: 0.0004 | R80: 0.0005 | S80: 0.0923 | T80: 0.0074 | U80: 0.0003 | V80: 0 | W80: 0.0292 | X80: 0.0007 | Y80: 0.0368 | Z80: 0.0382 | AA80: 0.0093 | AB80: 0.0725 | AC80: 0.0026 | AD80: 0.7563
A81: P9909 | B81: Oficial de náutica | C81: mês | D81: 0.2 | E81: 0.08 | F81: 0.025 | G81: 0.015 | H81: 0.016 | I81: 0.002 | J81: 0.03 | K81: 0.0041 | L81: 0 | M81: 0 | N81: 0 | O81: 0.0813 | P81: 0.0078 | Q81: 0.0004 | R81: 0.0008 | S81: 0.0923 | T81: 0.0074 | U81: 0.0005 | V81: 0 | W81: 0.0306 | X81: 0.0008 | Y81: 0.0418 | Z81: 0.0381 | AA81: 0.0093 | AB81: 0.0709 | AC81: 0.0027 | AD81: 0.7569
A82: P9910 | B82: Oficial de máquinas | C82: mês | D82: 0.2 | E82: 0.08 | F82: 0.025 | G82: 0.015 | H82: 0.016 | I82: 0.002 | J82: 0.03 | K82: 0.0041 | L82: 0 | M82: 0 | N82: 0 | O82: 0.0861 | P82: 0.0078 | Q82: 0.0004 | R82: 0.0008 | S82: 0.0923 | T82: 0.0074 | U82: 0.0002 | V82: 0 | W82: 0.0293 | X82: 0.0007 | Y82: 0.037 | Z82: 0.0382 | AA82: 0.0093 | AB82: 0.0725 | AC82: 0.0026 | AD82: 0.7567
A83: P9911 | B83: Condutor de máquinas | C83: mês | D83: 0.2 | E83: 0.08 | F83: 0.025 | G83: 0.015 | H83: 0.016 | I83: 0.002 | J83: 0.03 | K83: 0.0041 | L83: 0 | M83: 0 | N83: 0 | O83: 0.0795 | P83: 0.0078 | Q83: 0.0004 | R83: 0.0008 | S83: 0.0923 | T83: 0.0074 | U83: 0 | V83: 0 | W83: 0.0318 | X83: 0.0008 | Y83: 0.0435 | Z83: 0.038 | AA83: 0.0093 | AB83: 0.07 | AC83: 0.0028 | AD83: 0.7566
A84: P9912 | B84: Capitão fluvial com periculosidade | C84: h | D84: 0.2 | E84: 0.08 | F84: 0.025 | G84: 0.015 | H84: 0.016 | I84: 0.002 | J84: 0.03 | K84: 0.0041 | L84: 0 | M84: 0.1887 | N84: 0.0522 | O84: 0.0862 | P84: 0.0078 | Q84: 0.0004 | R84: 0.0005 | S84: 0.0923 | T84: 0.0074 | U84: 0.0003 | V84: 0 | W84: 0.0292 | X84: 0.0007 | Y84: 0.0368 | Z84: 0.0459 | AA84: 0.0093 | AB84: 0.1622 | AC84: 0.0026 | AD84: 1.0946
A85: P9913 | B85: Draguista | C85: mês | D85: 0.2 | E85: 0.08 | F85: 0.025 | G85: 0.015 | H85: 0.016 | I85: 0.002 | J85: 0.03 | K85: 0.0041 | L85: 0 | M85: 0 | N85: 0 | O85: 0.0862 | P85: 0.0078 | Q85: 0.0004 | R85: 0.0005 | S85: 0.0923 | T85: 0.0074 | U85: 0.0003 | V85: 0 | W85: 0.0292 | X85: 0.0007 | Y85: 0.0368 | Z85: 0.0382 | AA85: 0.0093 | AB85: 0.0725 | AC85: 0.0026 | AD85: 0.7563
A86: P9915 | B86: Maquinista | C86: h | D86: 0.2 | E86: 0.08 | F86: 0.025 | G86: 0.015 | H86: 0.016 | I86: 0.002 | J86: 0.03 | K86: 0.0041 | L86: 0 | M86: 0.1724 | N86: 0.0476 | O86: 0 | P86: 0.0088 | Q86: 0.0005 | R86: 0.0004 | S86: 0.0923 | T86: 0.0074 | U86: 0 | V86: 0 | W86: 0.1 | X86: 0.003 | Y86: 0.1231 | Z86: 0.0425 | AA86: 0.0093 | AB86: 0.1226 | AC86: 0.0091 | AD86: 1.1112
A87: P9916 | B87: Encarregado de conservação rodoviária | C87: mês | D87: 0.2 | E87: 0.08 | F87: 0.025 | G87: 0.015 | H87: 0.016 | I87: 0.002 | J87: 0.03 | K87: 0 | L87: 0 | M87: 0 | N87: 0 | O87: 0.0776 | P87: 0.0087 | Q87: 0.0005 | R87: 0.0007 | S87: 0.0923 | T87: 0.0074 | U87: 0 | V87: 0 | W87: 0.0333 | X87: 0.0008 | Y87: 0.0455 | Z87: 0.038 | AA87: 0.0093 | AB87: 0.0689 | AC87: 0.003 | AD87: 0.7541
A88: P9920 | B88: Mestre fluvial | C88: mês | D88: 0.2 | E88: 0.08 | F88: 0.025 | G88: 0.015 | H88: 0.016 | I88: 0.002 | J88: 0.03 | K88: 0.0041 | L88: 0 | M88: 0 | N88: 0 | O88: 0.0862 | P88: 0.0078 | Q88: 0.0004 | R88: 0.0005 | S88: 0.0923 | T88: 0.0074 | U88: 0.0003 | V88: 0 | W88: 0.0292 | X88: 0.0007 | Y88: 0.0368 | Z88: 0.0382 | AA88: 0.0093 | AB88: 0.0725 | AC88: 0.0026 | AD88: 0.7563
A89: P9921 | B89: Mergulhador raso autônomo de emergência | C89: h | D89: 0.2 | E89: 0.08 | F89: 0.025 | G89: 0.015 | H89: 0.016 | I89: 0.002 | J89: 0.03 | K89: 0.0041 | L89: 0.12 | M89: 0.1882 | N89: 0.0521 | O89: 0.0825 | P89: 0.0078 | Q89: 0.0004 | R89: 0.001 | S89: 0.0923 | T89: 0.0074 | U89: 0.0001 | V89: 0 | W89: 0.0321 | X89: 0.0007 | Y89: 0.0406 | Z89: 0.0458 | AA89: 0.0093 | AB89: 0.2125 | AC89: 0.0029 | AD89: 1.2679
A90: P9922 | B90: Mergulhador raso dependente de emergência | C90: h | D90: 0.2 | E90: 0.08 | F90: 0.025 | G90: 0.015 | H90: 0.016 | I90: 0.002 | J90: 0.03 | K90: 0.0041 | L90: 0 | M90: 0.1882 | N90: 0.0521 | O90: 0.0825 | P90: 0.0078 | Q90: 0.0004 | R90: 0.001 | S90: 0.0923 | T90: 0.0074 | U90: 0.0001 | V90: 0 | W90: 0.0321 | X90: 0.0007 | Y90: 0.0406 | Z90: 0.0458 | AA90: 0.0093 | AB90: 0.1607 | AC90: 0.0028 | AD90: 1.096
A91: P9924 | B91: Mergulhador raso dependente | C91: h | D91: 0.2 | E91: 0.08 | F91: 0.025 | G91: 0.015 | H91: 0.016 | I91: 0.002 | J91: 0.03 | K91: 0.0041 | L91: 0 | M91: 0.1882 | N91: 0.0521 | O91: 0.0825 | P91: 0.0078 | Q91: 0.0004 | R91: 0.001 | S91: 0.0923 | T91: 0.0074 | U91: 0.0001 | V91: 0 | W91: 0.0321 | X91: 0.0007 | Y91: 0.0406 | Z91: 0.0458 | AA91: 0.0093 | AB91: 0.1607 | AC91: 0.0028 | AD91: 1.096
A92: P9925 | B92: Mergulhador raso autônomo | C92: h | D92: 0.2 | E92: 0.08 | F92: 0.025 | G92: 0.015 | H92: 0.016 | I92: 0.002 | J92: 0.03 | K92: 0.0041 | L92: 0.12 | M92: 0.1882 | N92: 0.0521 | O92: 0.0825 | P92: 0.0078 | Q92: 0.0004 | R92: 0.001 | S92: 0.0923 | T92: 0.0074 | U92: 0.0001 | V92: 0 | W92: 0.0321 | X92: 0.0007 | Y92: 0.0406 | Z92: 0.0458 | AA92: 0.0093 | AB92: 0.2125 | AC92: 0.0029 | AD92: 1.2679
A93: P9926 | B93: Mergulhador raso auxiliar de superfície | C93: h | D93: 0.2 | E93: 0.08 | F93: 0.025 | G93: 0.015 | H93: 0.016 | I93: 0.002 | J93: 0.03 | K93: 0.0041 | L93: 0.12 | M93: 0.1882 | N93: 0.0521 | O93: 0.0825 | P93: 0.0078 | Q93: 0.0004 | R93: 0.001 | S93: 0.0923 | T93: 0.0074 | U93: 0.0001 | V93: 0 | W93: 0.0321 | X93: 0.0007 | Y93: 0.0406 | Z93: 0.0458 | AA93: 0.0093 | AB93: 0.2125 | AC93: 0.0029 | AD93: 1.2679
A94: P9927 | B94: Frentista de túnel com periculosidade | C94: h | D94: 0.2 | E94: 0.08 | F94: 0.025 | G94: 0.015 | H94: 0.016 | I94: 0.002 | J94: 0.03 | K94: 0 | L94: 0 | M94: 0.1852 | N94: 0.0513 | O94: 0.0576 | P94: 0.0087 | Q94: 0.0005 | R94: 0.001 | S94: 0.0924 | T94: 0.0074 | U94: 0 | V94: 0 | W94: 0.0439 | X94: 0.0012 | Y94: 0.0656 | Z94: 0.0449 | AA94: 0.0093 | AB94: 0.1487 | AC94: 0.004 | AD94: 1.0895
A95: P9928 | B95: Servente com periculosidade | C95: h | D95: 0.2 | E95: 0.08 | F95: 0.025 | G95: 0.015 | H95: 0.016 | I95: 0.002 | J95: 0.03 | K95: 0 | L95: 0 | M95: 0.1852 | N95: 0.0513 | O95: 0.0576 | P95: 0.0087 | Q95: 0.0005 | R95: 0.001 | S95: 0.0924 | T95: 0.0074 | U95: 0 | V95: 0 | W95: 0.0439 | X95: 0.0012 | Y95: 0.0656 | Z95: 0.0449 | AA95: 0.0093 | AB95: 0.1487 | AC95: 0.004 | AD95: 1.0895
A96: P9929 | B96: Bombeiro hidráulico com periculosidade | C96: h | D96: 0.2 | E96: 0.08 | F96: 0.025 | G96: 0.015 | H96: 0.016 | I96: 0.002 | J96: 0.03 | K96: 0.0011 | L96: 0 | M96: 0.1871 | N96: 0.0518 | O96: 0.0721 | P96: 0.0087 | Q96: 0.0005 | R96: 0.001 | S96: 0.0924 | T96: 0.0074 | U96: 0 | V96: 0 | W96: 0.0373 | X96: 0.0009 | Y96: 0.0511 | Z96: 0.0455 | AA96: 0.0093 | AB96: 0.1554 | AC96: 0.0033 | AD96: 1.0928
A97: P9930 | B97: Eletricista com periculosidade | C97: h | D97: 0.2 | E97: 0.08 | F97: 0.025 | G97: 0.015 | H97: 0.016 | I97: 0.002 | J97: 0.03 | K97: 0 | L97: 0 | M97: 0.1861 | N97: 0.0515 | O97: 0.0648 | P97: 0.0087 | Q97: 0.0005 | R97: 0.0008 | S97: 0.0924 | T97: 0.0074 | U97: 0 | V97: 0 | W97: 0.0426 | X97: 0.0011 | Y97: 0.0583 | Z97: 0.0452 | AA97: 0.0093 | AB97: 0.1517 | AC97: 0.0038 | AD97: 1.0923
A98: P9931 | B98: Operador de equipamento de mergulho | C98: h | D98: 0.2 | E98: 0.08 | F98: 0.025 | G98: 0.015 | H98: 0.016 | I98: 0.002 | J98: 0.03 | K98: 0.0041 | L98: 0.12 | M98: 0.1882 | N98: 0.0521 | O98: 0.0825 | P98: 0.0078 | Q98: 0.0004 | R98: 0.001 | S98: 0.0923 | T98: 0.0074 | U98: 0.0001 | V98: 0 | W98: 0.0321 | X98: 0.0007 | Y98: 0.0406 | Z98: 0.0458 | AA98: 0.0093 | AB98: 0.2125 | AC98: 0.0029 | AD98: 1.2679
A99: P9932 | B99: Operador de equipamento pesado com periculosidade | C99: h | D99: 0.2 | E99: 0.08 | F99: 0.025 | G99: 0.015 | H99: 0.016 | I99: 0.002 | J99: 0.03 | K99: 0 | L99: 0 | M99: 0.187 | N99: 0.0517 | O99: 0.0714 | P99: 0.0087 | Q99: 0.0005 | R99: 0.0009 | S99: 0.0924 | T99: 0.0074 | U99: 0 | V99: 0 | W99: 0.0378 | X99: 0.001 | Y99: 0.0517 | Z99: 0.0454 | AA99: 0.0093 | AB99: 0.1546 | AC99: 0.0034 | AD99: 1.0911
A100: P9933 | B100: Supervisor de mergulho raso | C100: mês | D100: 0.2 | E100: 0.08 | F100: 0.025 | G100: 0.015 | H100: 0.016 | I100: 0.002 | J100: 0.03 | K100: 0.0041 | L100: 0.12 | M100: 0 | N100: 0 | O100: 0.0825 | P100: 0.0078 | Q100: 0.0004 | R100: 0.001 | S100: 0.0923 | T100: 0.0074 | U100: 0.0001 | V100: 0 | W100: 0.0321 | X100: 0.0007 | Y100: 0.0406 | Z100: 0.0381 | AA100: 0.0093 | AB100: 0.0942 | AC100: 0.0029 | AD100: 0.9016
A101: P9934 | B101: Motorista de veículo especial com periculosidade | C101: h | D101: 0.2 | E101: 0.08 | F101: 0.025 | G101: 0.015 | H101: 0.016 | I101: 0.002 | J101: 0.03 | K101: 0 | L101: 0 | M101: 0.1863 | N101: 0.0516 | O101: 0.0662 | P101: 0.0087 | Q101: 0.0005 | R101: 0.0008 | S101: 0.0923 | T101: 0.0074 | U101: 0 | V101: 0 | W101: 0.0416 | X101: 0.0011 | Y101: 0.0569 | Z101: 0.0452 | AA101: 0.0093 | AB101: 0.1523 | AC101: 0.0037 | AD101: 1.092
A102: P9938 | B102: Operador de equipamento leve com periculosidade | C102: h | D102: 0.2 | E102: 0.08 | F102: 0.025 | G102: 0.015 | H102: 0.016 | I102: 0.002 | J102: 0.03 | K102: 0 | L102: 0 | M102: 0.187 | N102: 0.0517 | O102: 0.0714 | P102: 0.0087 | Q102: 0.0005 | R102: 0.0009 | S102: 0.0924 | T102: 0.0074 | U102: 0 | V102: 0 | W102: 0.0378 | X102: 0.001 | Y102: 0.0517 | Z102: 0.0454 | AA102: 0.0093 | AB102: 0.1546 | AC102: 0.0034 | AD102: 1.0911
A103: P9939 | B103: Operador de equipamento leve com insalubridade | C103: h | D103: 0.2 | E103: 0.08 | F103: 0.025 | G103: 0.015 | H103: 0.016 | I103: 0.002 | J103: 0.03 | K103: 0 | L103: 0.12 | M103: 0.187 | N103: 0.0517 | O103: 0.0714 | P103: 0.0087 | Q103: 0.0005 | R103: 0.0009 | S103: 0.0924 | T103: 0.0074 | U103: 0 | V103: 0 | W103: 0.0378 | X103: 0.001 | Y103: 0.0517 | Z103: 0.0454 | AA103: 0.0093 | AB103: 0.205 | AC103: 0.0035 | AD103: 1.2617
A104: P9940 | B104: Piloto fluvial com periculosidade | C104: h | D104: 0.2 | E104: 0.08 | F104: 0.025 | G104: 0.015 | H104: 0.016 | I104: 0.002 | J104: 0.03 | K104: 0.0041 | L104: 0 | M104: 0.1887 | N104: 0.0522 | O104: 0.0862 | P104: 0.0078 | Q104: 0.0004 | R104: 0.0005 | S104: 0.0923 | T104: 0.0074 | U104: 0.0003 | V104: 0 | W104: 0.0292 | X104: 0.0007 | Y104: 0.0368 | Z104: 0.0459 | AA104: 0.0093 | AB104: 0.1622 | AC104: 0.0026 | AD104: 1.0946
A105: P9941 | B105: Mestre fluvial com periculosidade | C105: h | D105: 0.2 | E105: 0.08 | F105: 0.025 | G105: 0.015 | H105: 0.016 | I105: 0.002 | J105: 0.03 | K105: 0.0041 | L105: 0 | M105: 0.1887 | N105: 0.0522 | O105: 0.0862 | P105: 0.0078 | Q105: 0.0004 | R105: 0.0005 | S105: 0.0923 | T105: 0.0074 | U105: 0.0003 | V105: 0 | W105: 0.0292 | X105: 0.0007 | Y105: 0.0368 | Z105: 0.0459 | AA105: 0.0093 | AB105: 0.1622 | AC105: 0.0026 | AD105: 1.0946
A106: P9942 | B106: Marinheiro de convés com periculosidade | C106: h | D106: 0.2 | E106: 0.08 | F106: 0.025 | G106: 0.015 | H106: 0.016 | I106: 0.002 | J106: 0.03 | K106: 0.0041 | L106: 0 | M106: 0.1887 | N106: 0.0523 | O106: 0.0865 | P106: 0.0078 | Q106: 0.0004 | R106: 0.0009 | S106: 0.0923 | T106: 0.0074 | U106: 0 | V106: 0 | W106: 0.029 | X106: 0.0007 | Y106: 0.0365 | Z106: 0.046 | AA106: 0.0093 | AB106: 0.1624 | AC106: 0.0026 | AD106: 1.0948
A107: P9943 | B107: Técnico de batimetria com periculosidade | C107: h | D107: 0.2 | E107: 0.08 | F107: 0.025 | G107: 0.015 | H107: 0.016 | I107: 0.002 | J107: 0.03 | K107: 0.0041 | L107: 0 | M107: 0.188 | N107: 0.052 | O107: 0.0806 | P107: 0.0078 | Q107: 0.0004 | R107: 0.0009 | S107: 0.0923 | T107: 0.0074 | U107: 0 | V107: 0 | W107: 0.031 | X107: 0.0008 | Y107: 0.0424 | Z107: 0.0457 | AA107: 0.0093 | AB107: 0.1599 | AC107: 0.0028 | AD107: 1.0935
A108: P9944 | B108: Operador de equipamento especial com periculosidade | C108: h | D108: 0.2 | E108: 0.08 | F108: 0.025 | G108: 0.015 | H108: 0.016 | I108: 0.002 | J108: 0.03 | K108: 0 | L108: 0 | M108: 0.187 | N108: 0.0517 | O108: 0.0714 | P108: 0.0087 | Q108: 0.0005 | R108: 0.0009 | S108: 0.0924 | T108: 0.0074 | U108: 0 | V108: 0 | W108: 0.0378 | X108: 0.001 | Y108: 0.0517 | Z108: 0.0454 | AA108: 0.0093 | AB108: 0.1546 | AC108: 0.0034 | AD108: 1.0911
A109: P9945 | B109: Draguista com periculosidade | C109: h | D109: 0.2 | E109: 0.08 | F109: 0.025 | G109: 0.015 | H109: 0.016 | I109: 0.002 | J109: 0.03 | K109: 0.0041 | L109: 0 | M109: 0.1887 | N109: 0.0522 | O109: 0.0862 | P109: 0.0078 | Q109: 0.0004 | R109: 0.0005 | S109: 0.0923 | T109: 0.0074 | U109: 0.0003 | V109: 0 | W109: 0.0292 | X109: 0.0007 | Y109: 0.0368 | Z109: 0.0459 | AA109: 0.0093 | AB109: 0.1622 | AC109: 0.0026 | AD109: 1.0946
A110: P9946 | B110: Engenheiro auxiliar | C110: mês | D110: 0.2 | E110: 0.08 | F110: 0.025 | G110: 0.015 | H110: 0.016 | I110: 0.002 | J110: 0.03 | K110: 0.0011 | L110: 0 | M110: 0 | N110: 0 | O110: 0.0842 | P110: 0.0087 | Q110: 0.0005 | R110: 0.0008 | S110: 0.0924 | T110: 0.0074 | U110: 0.0004 | V110: 0 | W110: 0.0308 | X110: 0.0007 | Y110: 0.0389 | Z110: 0.0382 | AA110: 0.0093 | AB110: 0.0718 | AC110: 0.0027 | AD110: 0.756
A111: P9947 | B111: Técnico florestal | C111: mês | D111: 0.2 | E111: 0.08 | F111: 0.025 | G111: 0.015 | H111: 0.016 | I111: 0.002 | J111: 0.03 | K111: 0.0041 | L111: 0 | M111: 0 | N111: 0 | O111: 0.0647 | P111: 0.0088 | Q111: 0.0005 | R111: 0.0006 | S111: 0.0924 | T111: 0.0074 | U111: 0.0013 | V111: 0 | W111: 0.0427 | X111: 0.0011 | Y111: 0.0585 | Z111: 0.0376 | AA111: 0.0093 | AB111: 0.0654 | AC111: 0.0038 | AD111: 0.7664
A112: P9948 | B112: Motorista de veículo leve - mensalista | C112: mês | D112: 0.2 | E112: 0.08 | F112: 0.025 | G112: 0.015 | H112: 0.016 | I112: 0.002 | J112: 0.03 | K112: 0.0011 | L112: 0 | M112: 0 | N112: 0 | O112: 0.0734 | P112: 0.0087 | Q112: 0.0005 | R112: 0.0009 | S112: 0.0924 | T112: 0.0074 | U112: 0 | V112: 0 | W112: 0.0364 | X112: 0.0009 | Y112: 0.0498 | Z112: 0.0379 | AA112: 0.0093 | AB112: 0.0676 | AC112: 0.0033 | AD112: 0.7575
A113: P9949 | B113: Topógrafo | C113: mês | D113: 0.2 | E113: 0.08 | F113: 0.025 | G113: 0.015 | H113: 0.016 | I113: 0.002 | J113: 0.03 | K113: 0.0011 | L113: 0 | M113: 0 | N113: 0 | O113: 0.0599 | P113: 0.0087 | Q113: 0.0005 | R113: 0.001 | S113: 0.0924 | T113: 0.0074 | U113: 0 | V113: 0 | W113: 0.0424 | X113: 0.0012 | Y113: 0.0633 | Z113: 0.0374 | AA113: 0.0093 | AB113: 0.0627 | AC113: 0.0038 | AD113: 0.759
A114: P9950 | B114: Auxiliar de topografia | C114: mês | D114: 0.2 | E114: 0.08 | F114: 0.025 | G114: 0.015 | H114: 0.016 | I114: 0.002 | J114: 0.03 | K114: 0.0011 | L114: 0 | M114: 0 | N114: 0 | O114: 0.0599 | P114: 0.0087 | Q114: 0.0005 | R114: 0.001 | S114: 0.0924 | T114: 0.0074 | U114: 0 | V114: 0 | W114: 0.0424 | X114: 0.0012 | Y114: 0.0633 | Z114: 0.0374 | AA114: 0.0093 | AB114: 0.0627 | AC114: 0.0038 | AD114: 0.759
A115: P9951 | B115: Médico de câmara hiperbárica | C115: mês | D115: 0.2 | E115: 0.08 | F115: 0.025 | G115: 0.015 | H115: 0.016 | I115: 0.002 | J115: 0.03 | K115: 0.0041 | L115: 0.12 | M115: 0 | N115: 0 | O115: 0.0751 | P115: 0.0088 | Q115: 0.0005 | R115: 0.0004 | S115: 0.0924 | T115: 0.0074 | U115: 0.0005 | V115: 0 | W115: 0.0351 | X115: 0.0009 | Y115: 0.048 | Z115: 0.0379 | AA115: 0.0093 | AB115: 0.0911 | AC115: 0.0032 | AD115: 0.9028
A116: P9952 | B116: Pedreiro - mensalista | C116: mês | D116: 0.2 | E116: 0.08 | F116: 0.025 | G116: 0.015 | H116: 0.016 | I116: 0.002 | J116: 0.03 | K116: 0 | L116: 0 | M116: 0 | N116: 0 | O116: 0.064 | P116: 0.0087 | Q116: 0.0005 | R116: 0.0008 | S116: 0.0923 | T116: 0.0074 | U116: 0 | V116: 0 | W116: 0.0432 | X116: 0.0011 | Y116: 0.0591 | Z116: 0.0376 | AA116: 0.0093 | AB116: 0.0639 | AC116: 0.0039 | AD116: 0.7598
A117: P9953 | B117: Eletricista - mensalista | C117: mês | D117: 0.2 | E117: 0.08 | F117: 0.025 | G117: 0.015 | H117: 0.016 | I117: 0.002 | J117: 0.03 | K117: 0 | L117: 0 | M117: 0 | N117: 0 | O117: 0.0648 | P117: 0.0087 | Q117: 0.0005 | R117: 0.0008 | S117: 0.0924 | T117: 0.0074 | U117: 0 | V117: 0 | W117: 0.0426 | X117: 0.0011 | Y117: 0.0583 | Z117: 0.0376 | AA117: 0.0093 | AB117: 0.0643 | AC117: 0.0038 | AD117: 0.7596
A118: P9954 | B118: Servente - mensalista | C118: mês | D118: 0.2 | E118: 0.08 | F118: 0.025 | G118: 0.015 | H118: 0.016 | I118: 0.002 | J118: 0.03 | K118: 0 | L118: 0 | M118: 0 | N118: 0 | O118: 0.0576 | P118: 0.0087 | Q118: 0.0005 | R118: 0.001 | S118: 0.0924 | T118: 0.0074 | U118: 0 | V118: 0 | W118: 0.0439 | X118: 0.0012 | Y118: 0.0656 | Z118: 0.0374 | AA118: 0.0093 | AB118: 0.0616 | AC118: 0.004 | AD118: 0.7585
A119: P9955 | B119: Engenheiro chefe | C119: mês | D119: 0.2 | E119: 0.08 | F119: 0.025 | G119: 0.015 | H119: 0.016 | I119: 0.002 | J119: 0.03 | K119: 0.0011 | L119: 0 | M119: 0 | N119: 0 | O119: 0.0842 | P119: 0.0087 | Q119: 0.0005 | R119: 0.0008 | S119: 0.0924 | T119: 0.0074 | U119: 0.0004 | V119: 0 | W119: 0.0308 | X119: 0.0007 | Y119: 0.0389 | Z119: 0.0382 | AA119: 0.0093 | AB119: 0.0718 | AC119: 0.0027 | AD119: 0.756
A120: P9956 | B120: Motorista de caminhão com periculosidade | C120: h | D120: 0.2 | E120: 0.08 | F120: 0.025 | G120: 0.015 | H120: 0.016 | I120: 0.002 | J120: 0.03 | K120: 0 | L120: 0 | M120: 0.1863 | N120: 0.0516 | O120: 0.0662 | P120: 0.0087 | Q120: 0.0005 | R120: 0.0008 | S120: 0.0923 | T120: 0.0074 | U120: 0 | V120: 0 | W120: 0.0416 | X120: 0.0011 | Y120: 0.0569 | Z120: 0.0452 | AA120: 0.0093 | AB120: 0.1523 | AC120: 0.0037 | AD120: 1.092
A121: P9972 | B121: Técnico de batimetria | C121: mês | D121: 0.2 | E121: 0.08 | F121: 0.025 | G121: 0.015 | H121: 0.016 | I121: 0.002 | J121: 0.03 | K121: 0.0041 | L121: 0 | M121: 0 | N121: 0 | O121: 0.0806 | P121: 0.0078 | Q121: 0.0004 | R121: 0.0009 | S121: 0.0923 | T121: 0.0074 | U121: 0 | V121: 0 | W121: 0.031 | X121: 0.0008 | Y121: 0.0424 | Z121: 0.0381 | AA121: 0.0093 | AB121: 0.0705 | AC121: 0.0028 | AD121: 0.7565
B123: Legenda: | N123: CONSIDERAÇÕES SOBRE O USO DOS DADOS DESTA PLANILHA:
B125: Classificação | C125: Parcela | D125: Descrição | N125: 1. Para fins de apresentação dos valores percentuais obtidos para cada parcela dos encargos sociais e trabalhistas adotou-se apenas quatro casas decimais em porcentagem, o que pode promover pequenas diferenças entre o valor divulgado na coluna Total (%) em relação a uma eventual soma dos valores visíveis das parcelas. 2. Sobre os encargos sociais e trabalhistas apresentados na presente tabela, não está aplicada a média móvel. A média móvel é parte da metodologia de cálculo dos salários e encargos sociais das categorias do SICRO, tendo por objetivo estabilizar os resultados e realizar o abrandamento das variações decorrentes de eventuais flutuações no número de amostras. Isso implica dizer que, após a obtenção dos valores totais dos encargos sociais (última coluna), deve ser aplicada a média aritmética simples sobre o resultado da referência atual juntamente com os resultados das duas referências anteriores, obtendo desta forma, os percentuais efetivamente utilizados no cálculo dos custos da Mão de Obra.
B126: Grupo A - Encargos Sociais (%) | C126: A1 | D126: Previdência Social
C127: A2 | D127: FGTS
C128: A3 | D128: Salário Educação
C129: A4 | D129: SESC ou SESI
C130: A5 | D130: SENAI / SEBRAE
C131: A6 | D131: INCRA
C132: A7 | D132: Seguro Contra Risco e Acidente de Trabalho
C133: A8 | D133: SECONCI
C134: A9 | D134: FAE - Financiamento de Aposentadoria Especial
B135: Grupo B - Encargos Trabalhistas (%) | C135: B1 | D135: Repouso Semanal Remunerado - Domingos
C136: B2 | D136: Feriados
C137: B3 | D137: Férias Gozadas + 1/3
C138: B4 | D138: Auxílio Enfermidade
C139: B5 | D139: Auxílio Acidente de Trabalho
C140: B6 | D140: Licença Paternidade
C141: B7 | D141: 13° Salário
C142: B8 | D142: Faltas Justificadas
C143: B9 | D143: Férias sobre Licença Maternidade
C144: B10 | D144: Reciclagem Tecnológica
B145: Grupo C - Verbas Rescisórias (%) | C145: C1 | D145: Aviso Prévio Indenizado
C146: C2 | D146: Aviso Prévio Trabalhado
C147: C3 | D147: Féria Indenizadas + 1/3
C148: C4 | D148: Depósito por Rescisão Sem Justa Causa
C149: C5 | D149: Indenização Adicional
B150: Grupo D - Reincidências (%) | C150: D1 | D150: Reincidência de A sobre B
C151: D2 | D151: Reincidência de A sobre Aviso Prévio Trabalhado + Reincidência de FGTS sobre Aviso Prévio Indenizado

Sheet ENC. SOCIAIS SINAPI
B1: EXECUÇÃO DE CAPA ASFÁLTICA COM CBUQ, EM VIAS DE MUNICÍPIOS DA REGIÃO DA MATA PERNAMBUCANA, ÁREA DE ATUAÇÃO DA CODEVASF NO ESTADO DE PERNAMBUCO.
A2: ='RESUMO MODULO TOTAL'!B1 -> EXECUÇÃO DE CAPA ASFÁLTICA COM CBUQ, EM VIAS DE MUNICÍPIOS DA REGIÃO DA MATA PERNAMBUCANA, ÁREA DE ATUAÇÃO DA CODEVASF NO ESTADO DE PERNAMBUCO.
C9: 1

Sheet Indices de Reaj Rodov
B1: EXECUÇÃO DE CAPA ASFÁLTICA COM CBUQ, EM VIAS DE MUNICÍPIOS DA REGIÃO DA MATA PERNAMBUCANA, ÁREA DE ATUAÇÃO DA CODEVASF NO ESTADO DE PERNAMBUCO.
A2: ='RESUMO MODULO TOTAL'!B1 -> EXECUÇÃO DE CAPA ASFÁLTICA COM CBUQ, EM VIAS DE MUNICÍPIOS DA REGIÃO DA MATA PERNAMBUCANA, ÁREA DE ATUAÇÃO DA CODEVASF NO ESTADO DE PERNAMBUCO.
C9: 1

Sheet AQUI e TRANSP Cap 50-70
C2: MEMÓRIA DE CÁLCULO
C7: REAJUSTE | F7: TIPOLOGIA DO MATERIAL | I7: CIMENTOS ASFÁLTICOS CAP-50-70 | N7: PIS | O7: 0.0065
G8: ÍNDICE DE PAVIMENTAÇÃO DNIT | H8: 2014-07-01 | I8: ÍNDICE INICIAL | J8: 270.237 | N8: COFINS | O8: 0.03 | T8: LEGENDA | AC8: As empresas tributadas pelo Lucro Presumido pagam 0,65% de PIS e 3% de COFINS
H9: 2023-08-01 | I9: ÍNDICE FINAL | J9: 549.538 | N9: ICMS | O9: 0.18 | P9: 0.18 | Q9: =1-(O9/1) -> 0.82 | R9: =1-(P9/1) -> 0.82 | S9: =1-(Q9/1) -> 0.18 | T9: ENTRADA DE DADOS | AC9: As empresas tributadas pelo Lucro Real pagam 1,65% de PIS e 7,60% de COFINS
F10: CAP50/70 | G10: Data ANP | H10: 2023-08-01
C11: DATA-BASE | D11: PRODUTOS | E11: LOCALIDADES | J11: CUSTO ANP (R$/Kg) | L11: CUSTO ANP | M11: IMPOSTOS | N11: CUSTO DO PRODUTO COM IMPOSTOS | O11: DMT's | P11: DMT's FLUVIAL | Q11: CUSTO DO TRANSPORTE RODOVIA PAVIMENTADA | R11: CUSTO DO TRANSPORTE FLUVIAL | S11: CUSTO DO TRANSPORTE TOTAL | T11: ICMS | U11: ATUALIZAÇÃO DO CUSTO DE TRANSPORTE | V11: CUSTO DO TRANSPORTE RODOVIA PAVIMENTADA COM IMPOSTOS E ATUALIZAÇÃO MONETÁRIA | W11: PEDÁGIO | Y11: TOTAL TRANSPORTE | Z11: AQUISIÇÃO DO PRODUTO | AA11: TOTAL GERAL ( TRANSP + AQUISIÇÃO) | AC11: 1 | AD11: 2 | AE11: 3
C12: =H9 -> 2023-08-01 | E12: REFINARIAS | F12: ENDEREÇO | G12: ESTADO | H12: CIDADE | I12: DESTINO | J12: ESTADO | K12: REGIÃO | L12: R$/t | M12: R$/t | N12: R$/t | O12: KM | P12: KM | Q12: R$/t | R12: R$/t | S12: R$/t | T12: R$/t | U12: R$/t | V12: R$/t | W12: CUSTO | X12: R$/t | Y12: R$/t | Z12: R$/t | AA12: R$/t | AC12: TOTAL GERAL ( TRANSP + AQUISIÇÃO) | AD12: TOTAL TRANSPORTE | AE12: AQUISIÇÃO DO PRODUTO
B13: =AA13 -> 4696.57 | C13: 1 | D13: =I7 -> CIMENTOS ASFÁLTICOS CAP-50-70 | E13: ASFALTOS NORDESTE LTDA. | F13: Avenida Parque Sul, 1998 - Maracanau - CE CEP:61939-000 | G13: Ceará | H13: Maracanau /CE | I13: Recife - PE | J13: =VLOOKUP('AQUI e TRANSP Cap 50-70'!G13,OFFSET('ANP ESTADO'!$A$1,MATCH('AQUI e TRANSP Cap 50-70'!$I$7,'ANP ESTADO'!B:B,0)+MATCH('AQUI e TRANSP Cap 50-70'!$H$10,OFFSET('ANP ESTADO'!$A$1,MATCH('AQUI e TRANSP Cap 50-70'!$I$7,'ANP ESTADO'!B:B,0),0,100000,1),0),2,100000,2),2,FALSE) -> 3.31956 | K13: =VLOOKUP($H$10,OFFSET('ANP REGIÃO'!$A$9,MATCH('AQUI e TRANSP Cap 50-70'!$I$7,'ANP REGIÃO'!A:A,0),1,10000,10000),MATCH('AQUI e TRANSP Cap 50-70'!AH13,'ANP REGIÃO'!$B$8:$G$8,0),FALSE) -> 3.36285 | L13: =IF(AND(J13="-",K13="-"),"",IF(AND(J13<>0,K13="-"),J13*1000,IF(AND(J13="-",K13<>0),K13*1000,IF(AND(J13<>0,K13<>0),J13*1000,"")))) -> 3319.56 | M13: =TRUNC(((L13/(1-$O$7-$O$8-$O$9))-L13),2) -> 917.27 | N13: =L13+M13 -> 4236.83 | O13: 778.5 | Q13: =ROUND((26.939+0.253*O13),2) -> 223.9 | S13: =Q13+R13 -> 223.9 | T13: =TRUNC(S13*($O$9/(1-$O$9)),2)*0 -> 0 | U13: =TRUNC(IF($J$8="","",(($J$9-$J$8)/$J$8)*(S13+T13)),2) -> 231.4 | V13: =S13+T13+U13 -> 455.3 | W13: 61.2 | X13: =EVEN((' CONSUMO DE MAT. B TOTAL'!$P$10)*2/28)*W13/(' CONSUMO DE MAT. B TOTAL'!$P$10) -> 4.44 | Y13: =IF(AND(S13="",T13=""),"",V13+X13) -> 459.74 | Z13: =IF(OR(L13="",M13=""),"",L13+M13) -> 4236.83 | AA13: =IF(OR(Y13="",Z13=""),"",Y13+Z13)*1 -> 4696.57 | AC13: =AA13 -> 4696.57 | AD13: =Y13 -> 459.74 | AE13: =Z13 -> 4236.83 | AH13: =IF(OR(G13=$D$42,G13=$D$43,G13=$D$45,G13=$D$51,G13=$D$35,G13=$D$31,G13=$D$27,G13=$D$40,G13=$D$30),"NORDESTE",IF(OR(G13=$D$26,G13=$D$28,G13=$D$29,G13=$D$39,G13=$D$47,G13=$D$48,G13=$D$52),"NORTE",IF(OR(G13=$D$32,G13=$D$34,G13=$D$36,G13=$D$37),"CENTRO-OESTE",IF(OR(G13=$D$50,G13=$D$44,G13=$D$38,G13=$D$33),"SUDESTE",IF(OR(G13=$D$49,G13=$D$41,G13=$D$46),"SUL",""))))) -> NORDESTE
B14: =AA14 -> 4798.54 | C14: 3 | E14: EMAM - EMULSÕES E TRANSPORTES LTDA. | F14: RODOVIA CE 060, KM 11,5 - Pacatuba - CE CEP:61800-000 | G14: Ceará | H14: Pacatuba/CE | I14: Recife - PE | J14: =VLOOKUP('AQUI e TRANSP Cap 50-70'!G14,OFFSET('ANP ESTADO'!$A$1,MATCH('AQUI e TRANSP Cap 50-70'!$I$7,'ANP ESTADO'!B:B,0)+MATCH('AQUI e TRANSP Cap 50-70'!$H$10,OFFSET('ANP ESTADO'!$A$1,MATCH('AQUI e TRANSP Cap 50-70'!$I$7,'ANP ESTADO'!B:B,0),0,100000,1),0),2,100000,2),2,FALSE) -> 3.31956 | K14: =VLOOKUP($H$10,OFFSET('ANP REGIÃO'!$A$9,MATCH('AQUI e TRANSP Cap 50-70'!$I$7,'ANP REGIÃO'!A:A,0),1,10000,10000),MATCH('AQUI e TRANSP Cap 50-70'!AH14,'ANP REGIÃO'!$B$8:$G$8,0),FALSE) -> 3.36285 | L14: =IF(AND(J14="-",K14=""),"",IF(AND(J14<>0,K14=""),J14*1000,IF(AND(J14="-",K14<>0),K14*1000,IF(AND(J14<>0,K14<>0),J14*1000,"")))) -> 3319.56 | M14: =TRUNC(((L14/(1-$O$7-$O$8-$O$9))-L14),2) -> 917.27 | N14: =L14+M14 -> 4236.83 | O14: 780 | Q14: =ROUND((26.939+0.253*O14),2) -> 224.28 | S14: =Q14+R14 -> 224.28 | T14: =TRUNC(S14*($O$9/(1-$O$9)),2) -> 49.23 | U14: =TRUNC(IF($J$8="","",(($J$9-$J$8)/$J$8)*(S14+T14)),2) -> 282.68 | V14: =S14+T14+U14 -> 556.19 | W14: 76 | X14: =EVEN((' CONSUMO DE MAT. B TOTAL'!$P$10)*2/28)*W14/(' CONSUMO DE MAT. B TOTAL'!$P$10) -> 5.52 | Y14: =IF(AND(S14="",T14=""),"",V14+X14) -> 561.71 | Z14: =IF(OR(L14="",M14=""),"",L14+M14) -> 4236.83 | AA14: =IF(OR(Y14="",Z14=""),"",Y14+Z14) -> 4798.54 | AC14: =AA14 -> 4798.54 | AD14: =Y14 -> 561.71 | AE14: =Z14 -> 4236.83 | AH14: =IF(OR(G14=$D$42,G14=$D$43,G14=$D$45,G14=$D$51,G14=$D$35,G14=$D$31,G14=$D$27,G14=$D$40,G14=$D$30),"NORDESTE",IF(OR(G14=$D$26,G14=$D$28,G14=$D$29,G14=$D$39,G14=$D$47,G14=$D$48,G14=$D$52),"NORTE",IF(OR(G14=$D$32,G14=$D$34,G14=$D$36,G14=$D$37),"CENTRO-OESTE",IF(OR(G14=$D$50,G14=$D$44,G14=$D$38,G14=$D$33),"SUDESTE",IF(OR(G14=$D$49,G14=$D$41,G14=$D$46),"SUL",""))))) -> NORDESTE
B15: 5047.79 | C15: 4 | E15: CBAA - ASFALTOS LTDA | F15: Avenida Banco do Nordeste, S/N – Feira de Santana - BA CEP:44063-640 | G15: Bahia | H15: Feira de Santana - BA | I15: Recife - PE | J15: =VLOOKUP('AQUI e TRANSP Cap 50-70'!G15,OFFSET('ANP ESTADO'!$A$1,MATCH('AQUI e TRANSP Cap 50-70'!$I$7,'ANP ESTADO'!B:B,0)+MATCH('AQUI e TRANSP Cap 50-70'!$H$10,OFFSET('ANP ESTADO'!$A$1,MATCH('AQUI e TRANSP Cap 50-70'!$I$7,'ANP ESTADO'!B:B,0),0,100000,1),0),2,100000,2),2,FALSE) -> 3.50275 | K15: =VLOOKUP($H$10,OFFSET('ANP REGIÃO'!$A$9,MATCH('AQUI e TRANSP Cap 50-70'!$I$7,'ANP REGIÃO'!A:A,0),1,10000,10000),MATCH('AQUI e TRANSP Cap 50-70'!AH15,'ANP REGIÃO'!$B$8:$G$8,0),FALSE) -> 3.36285 | L15: 3502.75 | M15: 967.89 | N15: 4470.64 | O15: 803.7 | Q15: =ROUND((26.939+0.253*O15),2) -> 230.28 | S15: 230.28 | T15: 50.54 | U15: 290.23 | V15: 571.05 | W15: 84 | X15: =EVEN((' CONSUMO DE MAT. B TOTAL'!$P$10)*2/28)*W15/(' CONSUMO DE MAT. B TOTAL'!$P$10) -> 6.1 | Y15: 577.15 | Z15: 4470.64 | AA15: 5047.79 | AC15: 5047.79 | AD15: 577.15 | AE15: 4470.64 | AH15: =IF(OR(G15=$D$42,G15=$D$43,G15=$D$45,G15=$D$51,G15=$D$35,G15=$D$31,G15=$D$27,G15=$D$40,G15=$D$30),"NORDESTE",IF(OR(G15=$D$26,G15=$D$28,G15=$D$29,G15=$D$39,G15=$D$47,G15=$D$48,G15=$D$52),"NORTE",IF(OR(G15=$D$32,G15=$D$34,G15=$D$36,G15=$D$37),"CENTRO-OESTE",IF(OR(G15=$D$50,G15=$D$44,G15=$D$38,G15=$D$33),"SUDESTE",IF(OR(G15=$D$49,G15=$D$41,G15=$D$46),"SUL",""))))) -> NORDESTE
B16: 5071.22 | C16: 5 | E16: Brasil Asfaltos Ltda | F16: Rodovia BA 522, s/nº, KM 01, Distrito Industrial - Candeias - BA CEP:43813-300 | G16: Bahia | H16: Candeias/BA | I16: Recife - PE | J16: =VLOOKUP('AQUI e TRANSP Cap 50-70'!G16,OFFSET('ANP ESTADO'!$A$1,MATCH('AQUI e TRANSP Cap 50-70'!$I$7,'ANP ESTADO'!B:B,0)+MATCH('AQUI e TRANSP Cap 50-70'!$H$10,OFFSET('ANP ESTADO'!$A$1,MATCH('AQUI e TRANSP Cap 50-70'!$I$7,'ANP ESTADO'!B:B,0),0,100000,1),0),2,100000,2),2,FALSE) -> 3.50275 | K16: =VLOOKUP($H$10,OFFSET('ANP REGIÃO'!$A$9,MATCH('AQUI e TRANSP Cap 50-70'!$I$7,'ANP REGIÃO'!A:A,0),1,10000,10000),MATCH('AQUI e TRANSP Cap 50-70'!AH16,'ANP REGIÃO'!$B$8:$G$8,0),FALSE) -> 3.36285 | L16: 3502.75 | M16: 967.89 | N16: 4470.64 | O16: 845.9 | Q16: 240.95 | S16: 240.95 | T16: 52.89 | U16: 303.69 | V16: 597.53 | W16: 42 | X16: =EVEN((' CONSUMO DE MAT. B TOTAL'!$P$10)*2/28)*W16/(' CONSUMO DE MAT. B TOTAL'!$P$10) -> 3.05 | Y16: 600.58 | Z16: 4470.64 | AA16: 5071.22 | AC16: 5071.22 | AD16: 600.58 | AE16: 4470.64 | AH16: =IF(OR(G16=$D$42,G16=$D$43,G16=$D$45,G16=$D$51,G16=$D$35,G16=$D$31,G16=$D$27,G16=$D$40,G16=$D$30),"NORDESTE",IF(OR(G16=$D$26,G16=$D$28,G16=$D$29,G16=$D$39,G16=$D$47,G16=$D$48,G16=$D$52),"NORTE",IF(OR(G16=$D$32,G16=$D$34,G16=$D$36,G16=$D$37),"CENTRO-OESTE",IF(OR(G16=$D$50,G16=$D$44,G16=$D$38,G16=$D$33),"SUDESTE",IF(OR(G16=$D$49,G16=$D$41,G16=$D$46),"SUL",""))))) -> NORDESTE
D26: Acre
D27: Alagoas
D28: Amapá
D29: Amazonas
D30: Bahia
D31: Ceará
D32: Distrito Federal
D33: Espírito Santo
D34: Goiás
D35: Maranhão
D36: Mato Grosso
D37: Mato Grosso do Sul
D38: Minas Gerais
D39: Pará
D40: Paraíba
D41: Paraná
D42: Pernambuco
D43: Piauí
D44: Rio de Janeiro
D45: Rio Grande do Norte
D46: Rio Grande do Sul
D47: Rondônia
D48: Roraima
D49: Santa Catarina
D50: São Paulo
D51: Sergipe
D52: Tocantins
D56: ASFALTOS DILUÍDOS CM-30
D57: ASFALTOS DILUÍDOS CM-70
D58: ASFALTOS DILUÍDOS CR-250
D59: ASFALTOS DILUÍDOS CR-70
D60: CAP MODIFICADO POR BORRACHA DE PNEU AB22
D61: CAP MODIFICADO POR BORRACHA DE PNEU AB8
D62: CAP MODIFICADO POR POLÍMERO 55-75-E
D63: CAP MODIFICADO POR POLÍMERO 60-85-E
D64: CAP MODIFICADO POR POLÍMERO 65-90-E
D65: CIMENTOS ASFÁLTICOS CAP-150-200
D66: CIMENTOS ASFÁLTICOS CAP-30-45
D67: CIMENTOS ASFÁLTICOS CAP-50-70
D68: CIMENTOS ASFÁLTICOS CAP-85-100
D69: EMULSÃO ASFÁLTICA CATIÔNICA DE RUPTURA CONTROLADA PARA SERVIÇO DE LAMA ASFÁLTICA
D70: EMULSÃO ASFÁLTICA DE RUPTURA LENTA CATIÔNICA PARA SERVIÇO DE LAMA ASFÁLTICA
D71: EMULSÃO ASFÁLTICA DE RUPTURA LENTA DE CARGA NEUTRA PARA SERVIÇO DE LAMA ASFÁLTICA
D72: EMULSÃO ASFÁLTICA PARA SERVIÇO DE IMPRIMAÇÃO
D73: EMULSÕES ASF. MOD. POR POLÍMEROS RC1C-E
D74: EMULSÕES ASF. MOD. POR POLÍMEROS RL1C-E
D75: EMULSÕES ASF. MOD. POR POLÍMEROS RM1C-E
D76: EMULSÕES ASF. MOD. POR POLÍMEROS RR1C-E
D77: EMULSÕES ASF. MOD. POR POLÍMEROS RR2C-E
D78: EMULSÕES ASFÁLTICAS RL-1C
D79: EMULSÕES ASFÁLTICAS RM-1C
D80: EMULSÕES ASFÁLTICAS RM-2C
D81: EMULSÕES ASFÁLTICAS RR-1C
D82: EMULSÕES ASFÁLTICAS RR-2C

Sheet AQUI e TRANSP RR-1C
C2: MEMÓRIA DE CÁLCULO
C7: REAJUSTE | F7: TIPOLOGIA DO MATERIAL | I7: EMULSÕES ASFÁLTICAS RR-1C | N7: PIS | O7: 0.0065 | P7: 0.0065
G8: ÍNDICE DE PAVIMENTAÇÃO DNIT | H8: 2014-07-01 | I8: ÍNDICE INICIAL | J8: 270.237 | N8: COFINS | O8: 0.03 | P8: 0.03 | T8: LEGENDA | AC8: As empresas tributadas pelo Lucro Presumido pagam 0,65% de PIS e 3% de COFINS
H9: 2023-08-01 | I9: ÍNDICE FINAL | J9: 549.538 | N9: ICMS | O9: 0.18 | P9: 0.18 | Q9: =1-(O9/1) -> 0.82 | R9: =1-(P9/1) -> 0.82 | S9: =1-(Q9/1) -> 0.18 | T9: ENTRADA DE DADOS | AC9: As empresas tributadas pelo Lucro Real pagam 1,65% de PIS e 7,60% de COFINS
G10: Data ANP | H10: 2023-08-01
C11: DATA-BASE | D11: PRODUTOS | E11: LOCALIDADES | J11: CUSTO ANP (R$/Kg) | L11: CUSTO ANP | M11: IMPOSTOS | N11: CUSTO DO PRODUTO COM IMPOSTOS | O11: DMT's | P11: DMT'S FLUVIAL | Q11: CUSTO DO TRANSPORTE RODOVIA PAVIMENTADA | R11: CUSTO DO TRANSPORTE FLUVIAL | S11: CUSTO DO TRANSPORTE TOTAL | T11: ICMS | U11: ATUALIZAÇÃO DO CUSTO DE TRANSPORTE | V11: CUSTO DO TRANSPORTE RODOVIA PAVIMENTADA COM IMPOSTOS E ATUALIZAÇÃO MONETÁRIA | W11: PEDÁGIO | Y11: TOTAL TRANSPORTE | Z11: AQUISIÇÃO DO PRODUTO | AA11: TOTAL GERAL ( TRANSP + AQUISIÇÃO) | AC11: 1 | AD11: 2 | AE11: 3
C12: =H9 -> 2023-08-01 | E12: REFINARIAS | F12: ENDEREÇO | G12: ESTADO | H12: CIDADE | I12: DESTINO | J12: ESTADO | K12: REGIÃO | L12: R$/t | M12: R$/t | N12: R$/t | O12: KM | P12: KM | Q12: R$/t | R12: R$/t | S12: R$/t | T12: R$/t | U12: R$/t | V12: R$/t | W12: CUSTO | X12: R$/t | Y12: R$/t | Z12: R$/t | AA12: R$/t | AC12: TOTAL GERAL ( TRANSP + AQUISIÇÃO) | AD12: TOTAL TRANSPORTE | AE12: AQUISIÇÃO DO PRODUTO
B13: =AA13 -> 3645.78 | C13: 1 | D13: =I7 -> EMULSÕES ASFÁLTICAS RR-1C | E13: ASFALTOS NORDESTE LTDA. | F13: Avenida Parque Sul, 1998 - Maracanau - CE CEP:61939-000 | G13: Ceará | H13: Maracanau /CE | I13: Recife - PE | J13: =VLOOKUP(G13,OFFSET('ANP ESTADO'!$A$1,MATCH($I$7,'ANP ESTADO'!B:B,0)+MATCH($H$10,OFFSET('ANP ESTADO'!$A$1,MATCH($I$7,'ANP ESTADO'!B:B,0),0,100000,1),0),2,100000,2),2,FALSE) -> 2.39749 | K13: =VLOOKUP($H$10,OFFSET('ANP REGIÃO'!$A$9,MATCH('AQUI e TRANSP RR-1C'!$I$7,'ANP REGIÃO'!A:A,0),1,10000,10000),MATCH('AQUI e TRANSP RR-1C'!AH13,'ANP REGIÃO'!$B$8:$G$8,0),FALSE) -> 3.18957 | L13: =IF(AND(J13="-",K13="-"),"",IF(AND(J13<>0,K13="-"),J13*1000,IF(AND(J13="-",K13<>0),K13*1000,IF(AND(J13<>0,K13<>0),J13*1000,"")))) -> 2397.49 | M13: =TRUNC(((L13/(1-$O$7-$O$8-$O$9))-L13),2) -> 662.48 | N13: =L13+M13 -> 3059.97 | O13: 778.5 | Q13: =ROUND((26.939+0.253*O13),2) -> 223.9 | S13: =R13+Q13 -> 223.9 | T13: =TRUNC(S13*($O$9/(1-$O$9)),2) -> 49.14 | U13: =TRUNC(IF($J$8="","",(($J$9-$J$8)/$J$8)*(Q13+T13)),2) -> 282.19 | V13: =S13+T13+U13 -> 555.23 | W13: 399.6 | X13: =EVEN(' CONSUMO DE MAT. B TOTAL'!$P$8*2/28)*W13/' CONSUMO DE MAT. B TOTAL'!$P$8 -> 30.58 | Y13: =IF(AND(Q13="",T13=""),"",V13+X13) -> 585.81 | Z13: =IF(OR(L13="",M13=""),"",L13+M13) -> 3059.97 | AA13: =IF(OR(Y13="",Z13=""),"",Y13+Z13) -> 3645.78 | AC13: =AA13 -> 3645.78 | AD13: =Y13 -> 585.81 | AE13: =Z13 -> 3059.97 | AH13: =IF(OR(G13=$D$42,G13=$D$43,G13=$D$45,G13=$D$51,G13=$D$35,G13=$D$31,G13=$D$27,G13=$D$40,G13=$D$30),"NORDESTE",IF(OR(G13=$D$26,G13=$D$28,G13=$D$29,G13=$D$39,G13=$D$47,G13=$D$48,G13=$D$52),"NORTE",IF(OR(G13=$D$32,G13=$D$34,G13=$D$36,G13=$D$37),"CENTRO-OESTE",IF(OR(G13=$D$50,G13=$D$44,G13=$D$38,G13=$D$33),"SUDESTE",IF(OR(G13=$D$49,G13=$D$41,G13=$D$46),"SUL",""))))) -> NORDESTE
B14: =AA14 -> 3616.16 | C14: 2 | E14: EMAM - EMULSÕES E TRANSPORTES LTDA. | F14: RODOVIA CE 060, KM 11,5 - Pacatuba - CE CEP:61800-000 | G14: Ceará | H14: Pacatuba/CE | I14: Recife - PE | J14: =VLOOKUP(G14,OFFSET('ANP ESTADO'!$A$1,MATCH($I$7,'ANP ESTADO'!B:B,0)+MATCH($H$10,OFFSET('ANP ESTADO'!$A$1,MATCH($I$7,'ANP ESTADO'!B:B,0),0,100000,1),0),2,100000,2),2,FALSE) -> 2.39749 | K14: =VLOOKUP($H$10,OFFSET('ANP REGIÃO'!$A$9,MATCH('AQUI e TRANSP RR-1C'!$I$7,'ANP REGIÃO'!A:A,0),1,10000,10000),MATCH('AQUI e TRANSP RR-1C'!AH14,'ANP REGIÃO'!$B$8:$G$8,0),FALSE) -> 3.18957 | L14: =IF(AND(J14="-",K14="-"),"",IF(AND(J14<>0,K14="-"),J14*1000,IF(AND(J14="-",K14<>0),K14*1000,IF(AND(J14<>0,K14<>0),J14*1000,"")))) -> 2397.49 | M14: =TRUNC(((L14/(1-$O$7-$O$8-$O$9))-L14),2) -> 662.48 | N14: =L14+M14 -> 3059.97 | O14: 780 | Q14: =ROUND((26.939+0.253*O14),2) -> 224.28 | S14: =R14+Q14 -> 224.28 | T14: =TRUNC(S14*($O$9/(1-$O$9)),2) -> 49.23 | U14: =TRUNC(IF($J$8="","",(($J$9-$J$8)/$J$8)*(Q14+T14)),2) -> 282.68 | V14: =S14+T14+U14 -> 556.19 | X14: =EVEN(' CONSUMO DE MAT. B TOTAL'!$P$8*2/28)*W14/' CONSUMO DE MAT. B TOTAL'!$P$8 -> 0 | Y14: 556.19 | Z14: =IF(OR(L14="",M14=""),"",L14+M14) -> 3059.97 | AA14: =IF(OR(Y14="",Z14=""),"",Y14+Z14) -> 3616.16 | AC14: =AA14 -> 3616.16 | AD14: =Y14 -> 556.19 | AE14: =Z14 -> 3059.97 | AH14: =IF(OR(G14=$D$42,G14=$D$43,G14=$D$45,G14=$D$51,G14=$D$35,G14=$D$31,G14=$D$27,G14=$D$40,G14=$D$30),"NORDESTE",IF(OR(G14=$D$26,G14=$D$28,G14=$D$29,G14=$D$39,G14=$D$47,G14=$D$48,G14=$D$52),"NORTE",IF(OR(G14=$D$32,G14=$D$34,G14=$D$36,G14=$D$37),"CENTRO-OESTE",IF(OR(G14=$D$50,G14=$D$44,G14=$D$38,G14=$D$33),"SUDESTE",IF(OR(G14=$D$49,G14=$D$41,G14=$D$46),"SUL",""))))) -> NORDESTE
B15: =AA15 -> 4650.56 | C15: 3 | E15: CBAA - ASFALTOS LTDA | F15: Avenida Banco do Nordeste, S/N – Feira de Santana - BA CEP:44063-640 | G15: Bahia | H15: Feira de Santana - BA | I15: Recife - PE | J15: =VLOOKUP(G15,OFFSET('ANP ESTADO'!$A$1,MATCH($I$7,'ANP ESTADO'!B:B,0)+MATCH($H$10,OFFSET('ANP ESTADO'!$A$1,MATCH($I$7,'ANP ESTADO'!B:B,0),0,100000,1),0),2,100000,2),2,FALSE) -> - | K15: =VLOOKUP($H$10,OFFSET('ANP REGIÃO'!$A$9,MATCH('AQUI e TRANSP RR-1C'!$I$7,'ANP REGIÃO'!A:A,0),1,10000,10000),MATCH('AQUI e TRANSP RR-1C'!AH15,'ANP REGIÃO'!$B$8:$G$8,0),FALSE) -> 3.18957 | L15: =IF(AND(J15="-",K15="-"),"",IF(AND(J15<>0,K15="-"),J15*1000,IF(AND(J15="-",K15<>0),K15*1000,IF(AND(J15<>0,K15<>0),J15*1000,"")))) -> 3189.57 | M15: 881.35 | N15: =L15+M15 -> 4070.92 | O15: 803.7 | Q15: =ROUND((26.939+0.253*O15),2) -> 230.28 | S15: 230.28 | T15: 50.54 | U15: =TRUNC(IF($J$8="","",(($J$9-$J$8)/$J$8)*(Q15+T15)),2) -> 290.23 | V15: 571.05 | W15: 112.2 | X15: =EVEN(' CONSUMO DE MAT. B TOTAL'!$P$8*2/28)*W15/' CONSUMO DE MAT. B TOTAL'!$P$8 -> 8.59 | Y15: 579.64 | Z15: 4070.92 | AA15: =IF(OR(Y15="",Z15=""),"",Y15+Z15) -> 4650.56 | AC15: =AA15 -> 4650.56 | AD15: =Y15 -> 579.64 | AE15: 4070.92 | AH15: =IF(OR(G15=$D$42,G15=$D$43,G15=$D$45,G15=$D$51,G15=$D$35,G15=$D$31,G15=$D$27,G15=$D$40,G15=$D$30),"NORDESTE",IF(OR(G15=$D$26,G15=$D$28,G15=$D$29,G15=$D$39,G15=$D$47,G15=$D$48,G15=$D$52),"NORTE",IF(OR(G15=$D$32,G15=$D$34,G15=$D$36,G15=$D$37),"CENTRO-OESTE",IF(OR(G15=$D$50,G15=$D$44,G15=$D$38,G15=$D$33),"SUDESTE",IF(OR(G15=$D$49,G15=$D$41,G15=$D$46),"SUL",""))))) -> NORDESTE
B16: 4679.38 | C16: 4 | E16: Brasil Asfaltos Ltda | F16: Rodovia BA 522, s/nº, KM 01, Distrito Industrial - Candeias - BA CEP:43813-300 | G16: Bahia | H16: Candeias/BA | I16: Recife - PE | J16: =VLOOKUP(G16,OFFSET('ANP ESTADO'!$A$1,MATCH($I$7,'ANP ESTADO'!B:B,0)+MATCH($H$10,OFFSET('ANP ESTADO'!$A$1,MATCH($I$7,'ANP ESTADO'!B:B,0),0,100000,1),0),2,100000,2),2,FALSE) -> - | K16: =VLOOKUP($H$10,OFFSET('ANP REGIÃO'!$A$9,MATCH('AQUI e TRANSP RR-1C'!$I$7,'ANP REGIÃO'!A:A,0),1,10000,10000),MATCH('AQUI e TRANSP RR-1C'!AH16,'ANP REGIÃO'!$B$8:$G$8,0),FALSE) -> 3.18957 | L16: 3189.57 | M16: 881.35 | N16: 4070.92 | O16: 845.9 | Q16: 240.95 | S16: 240.95 | T16: 52.89 | U16: 303.69 | V16: 597.53 | W16: 142.8 | X16: =EVEN(' CONSUMO DE MAT. B TOTAL'!$P$8*2/28)*W16/' CONSUMO DE MAT. B TOTAL'!$P$8 -> 10.93 | Y16: 608.46 | Z16: 4070.92 | AA16: 4679.38 | AC16: 4679.38 | AD16: 608.46 | AE16: 4070.92 | AH16: =IF(OR(G16=$D$42,G16=$D$43,G16=$D$45,G16=$D$51,G16=$D$35,G16=$D$31,G16=$D$27,G16=$D$40,G16=$D$30),"NORDESTE",IF(OR(G16=$D$26,G16=$D$28,G16=$D$29,G16=$D$39,G16=$D$47,G16=$D$48,G16=$D$52),"NORTE",IF(OR(G16=$D$32,G16=$D$34,G16=$D$36,G16=$D$37),"CENTRO-OESTE",IF(OR(G16=$D$50,G16=$D$44,G16=$D$38,G16=$D$33),"SUDESTE",IF(OR(G16=$D$49,G16=$D$41,G16=$D$46),"SUL",""))))) -> NORDESTE
D26: Acre
D27: Alagoas
D28: Amapá
D29: Amazonas
D30: Bahia
D31: Ceará
D32: Distrito Federal
D33: Espírito Santo
D34: Goiás
D35: Maranhão
D36: Mato Grosso
D37: Mato Grosso do Sul
D38: Minas Gerais
D39: Pará
D40: Paraíba
D41: Paraná
D42: Pernambuco
D43: Piauí
D44: Rio de Janeiro
D45: Rio Grande do Norte
D46: Rio Grande do Sul
D47: Rondônia
D48: Roraima
D49: Santa Catarina
D50: São Paulo
D51: Sergipe
D52: Tocantins
D56: ASFALTOS DILUÍDOS CM-30
D57: ASFALTOS DILUÍDOS CM-70
D58: ASFALTOS DILUÍDOS CR-250
D59: ASFALTOS DILUÍDOS CR-70
D60: CAP MODIFICADO POR BORRACHA DE PNEU AB22
D61: CAP MODIFICADO POR BORRACHA DE PNEU AB8
D62: CAP MODIFICADO POR POLÍMERO 55-75-E
D63: CAP MODIFICADO POR POLÍMERO 60-85-E
D64: CAP MODIFICADO POR POLÍMERO 65-90-E
D65: CIMENTOS ASFÁLTICOS CAP-150-200
D66: CIMENTOS ASFÁLTICOS CAP-30-45
D67: CIMENTOS ASFÁLTICOS CAP-50-70
D68: CIMENTOS ASFÁLTICOS CAP-85-100
D69: EMULSÃO ASFÁLTICA CATIÔNICA DE RUPTURA CONTROLADA PARA SERVIÇO DE LAMA ASFÁLTICA
D70: EMULSÃO ASFÁLTICA DE RUPTURA LENTA CATIÔNICA PARA SERVIÇO DE LAMA ASFÁLTICA
D71: EMULSÃO ASFÁLTICA DE RUPTURA LENTA DE CARGA NEUTRA PARA SERVIÇO DE LAMA ASFÁLTICA
D72: EMULSÃO ASFÁLTICA PARA SERVIÇO DE IMPRIMAÇÃO
D73: EMULSÕES ASF. MOD. POR POLÍMEROS RC1C-E
D74: EMULSÕES ASF. MOD. POR POLÍMEROS RL1C-E
D75: EMULSÕES ASF. MOD. POR POLÍMEROS RM1C-E
D76: EMULSÕES ASF. MOD. POR POLÍMEROS RR1C-E
D77: EMULSÕES ASF. MOD. POR POLÍMEROS RR2C-E
D78: EMULSÕES ASFÁLTICAS RL-1C
D79: EMULSÕES ASFÁLTICAS RM-1C
D80: EMULSÕES ASFÁLTICAS RM-2C
D81: EMULSÕES ASFÁLTICAS RR-1C
D82: EMULSÕES ASFÁLTICAS RR-2C

Sheet RESUMO_Aqui_Transp
B1: EXECUÇÃO DE CAPA ASFÁLTICA COM CBUQ, EM VIAS DE MUNICÍPIOS DA REGIÃO DA MATA PERNAMBUCANA, ÁREA DE ATUAÇÃO DA CODEVASF NO ESTADO DE PERNAMBUCO.
A2: ='RESUMO MODULO TOTAL'!B1 -> EXECUÇÃO DE CAPA ASFÁLTICA COM CBUQ, EM VIAS DE MUNICÍPIOS DA REGIÃO DA MATA PERNAMBUCANA, ÁREA DE ATUAÇÃO DA CODEVASF NO ESTADO DE PERNAMBUCO.
C9: 1
B11: REAJUSTE | E11: TIPOLOGIA DO MATERIAL | G11: LIGANTE BETUMINOSO | L11: PIS | M11: 0.0065
C12: DATA INICIAL | F12: 2014-07-01 | G12: ÍNDICE INICIAL | H12: ='AQUI e TRANSP Cap 50-70'!J8 -> 270.237 | L12: COFINS | M12: 0.03 | P12: LEGENDA
C13: DATA FINAL | F13: 2021-08-01 | G13: ÍNDICE FINAL | H13: ='AQUI e TRANSP Cap 50-70'!J9 -> 549.538 | L13: ICMS | M13: 0.18 | P13: ENTRADA DE DADOS
B15: DATA-BASE | C15: PRODUTOS | D15: LOCALIDADES | H15: CUSTO ANP (R$/Kg) | J15: CUSTO ANP | K15: IMPOSTOS | L15: CUSTO DO PRODUTO COM IMPOSTOS | M15: DMT's | N15: DMT's FLUVIAL | O15: CUSTO DO TRANSPORTE TOTAL | P15: ICMS | Q15: ATUALIZAÇÃO DO CUSTO DE TRANSPORTE | R15: CUSTO DO TRANSPORTE RODOVIA PAVIMENTADA COM IMPOSTOS E ATUALIZAÇÃO MONETÁRIA | S15: PEDÁGIO | U15: TOTAL TRANSPORTE | V15: TOTAL PRODUTO | W15: TOTAL GERAL
B16: =F13 -> 2021-08-01 | D16: REFINARIAS | E16: ENDEREÇO | F16: ORIGEM REFINARIAS / DISTRIBUIDORAS | G16: DESTINO | H16: ESTADO | I16: REGIÃO | J16: R$/t | K16: R$/t | L16: R$/t | M16: KM | N16: KM | O16: R$/t | P16: R$/t | Q16: R$/t | R16: R$/t | S16: CUSTO POR EIXO | T16: R$/t | U16: R$/t | V16: R$/t | W16: R$/t
B17: 1 | C17: CAP 50/70 | D17: Refinaria Abreu e Lima | E17: Rodovia PE 60, Km 10 - Ipojuca - PE CEP:55590-000 | F17: =VLOOKUP($W17,'AQUI e TRANSP Cap 50-70'!$B:$AA,7,FALSE) -> Maracanau /CE | G17: =VLOOKUP($W17,'AQUI e TRANSP Cap 50-70'!$B:$AA,8,FALSE) -> Recife - PE | H17: =VLOOKUP($W17,'AQUI e TRANSP Cap 50-70'!$B:$AA,9,FALSE) -> 3.31956 | I17: =VLOOKUP($W17,'AQUI e TRANSP Cap 50-70'!$B:$AA,10,FALSE) -> 3.36285 | J17: =VLOOKUP($W17,'AQUI e TRANSP Cap 50-70'!$B:$AA,11,FALSE) -> 3319.56 | K17: =VLOOKUP($W17,'AQUI e TRANSP Cap 50-70'!$B:$AA,12,FALSE) -> 917.27 | L17: =VLOOKUP($W17,'AQUI e TRANSP Cap 50-70'!$B:$AA,13,FALSE) -> 4236.83 | M17: =VLOOKUP($W17,'AQUI e TRANSP Cap 50-70'!$B:$AA,14,FALSE) -> 778.5 | N17: =VLOOKUP($W17,'AQUI e TRANSP Cap 50-70'!$B:$AA,15,FALSE) -> 0 | O17: =VLOOKUP(W17,'AQUI e TRANSP Cap 50-70'!$B$13:$AA$16,18,0) -> 223.9 | P17: =VLOOKUP(W17,'AQUI e TRANSP Cap 50-70'!$B$13:$AA$16,19,0) -> 0 | Q17: =VLOOKUP(W17,'AQUI e TRANSP Cap 50-70'!$B$13:$AA$16,20,0) -> 231.4 | R17: =VLOOKUP(W17,'AQUI e TRANSP Cap 50-70'!$B$13:$AA$16,21,0) -> 455.3 | S17: =VLOOKUP(W17,'AQUI e TRANSP Cap 50-70'!$B$13:$AA$16,22,0) -> 61.2 | T17: =VLOOKUP(W17,'AQUI e TRANSP Cap 50-70'!$B$13:$AA$16,23,0) -> 4.44 | U17: =VLOOKUP(W17,'AQUI e TRANSP Cap 50-70'!$B$13:$AA$16,24,0) -> 459.74 | V17: =VLOOKUP(W17,'AQUI e TRANSP Cap 50-70'!$B$13:$AA$16,25,0) -> 4236.83 | W17: ='AQUI e TRANSP Cap 50-70'!AA13 -> 4696.57
B18: 2 | D18: Refinaria Potiguar Clara Camarão | E18: Rodovia RN 221, KM 25 - Guamaré - RN CEP:59598-000 | F18: =VLOOKUP($W18,'AQUI e TRANSP Cap 50-70'!$B:$AA,7,FALSE) -> Pacatuba/CE | G18: =VLOOKUP($W18,'AQUI e TRANSP Cap 50-70'!$B:$AA,8,FALSE) -> Recife - PE | H18: =VLOOKUP($W18,'AQUI e TRANSP Cap 50-70'!$B:$AA,9,FALSE) -> 3.31956 | I18: =VLOOKUP($W18,'AQUI e TRANSP Cap 50-70'!$B:$AA,10,FALSE) -> 3.36285 | J18: =VLOOKUP($W18,'AQUI e TRANSP Cap 50-70'!$B:$AA,11,FALSE) -> 3319.56 | K18: =VLOOKUP($W18,'AQUI e TRANSP Cap 50-70'!$B:$AA,12,FALSE) -> 917.27 | L18: =VLOOKUP($W18,'AQUI e TRANSP Cap 50-70'!$B:$AA,13,FALSE) -> 4236.83 | M18: =VLOOKUP($W18,'AQUI e TRANSP Cap 50-70'!$B:$AA,14,FALSE) -> 780 | N18: =VLOOKUP($W18,'AQUI e TRANSP Cap 50-70'!$B:$AA,15,FALSE) -> 0 | O18: =VLOOKUP(W18,'AQUI e TRANSP Cap 50-70'!$B$13:$AA$16,18,0) -> 224.28 | P18: =VLOOKUP(W18,'AQUI e TRANSP Cap 50-70'!$B$13:$AA$16,19,0) -> 49.23 | Q18: =VLOOKUP(W18,'AQUI e TRANSP Cap 50-70'!$B$13:$AA$16,20,0) -> 282.68 | R18: =VLOOKUP(W18,'AQUI e TRANSP Cap 50-70'!$B$13:$AA$16,21,0) -> 556.19 | S18: =VLOOKUP(W18,'AQUI e TRANSP Cap 50-70'!$B$13:$AA$16,22,0) -> 76 | T18: =VLOOKUP(W18,'AQUI e TRANSP Cap 50-70'!$B$13:$AA$16,23,0) -> 5.52 | U18: =VLOOKUP(W18,'AQUI e TRANSP Cap 50-70'!$B$13:$AA$16,24,0) -> 561.71 | V18: =VLOOKUP(W18,'AQUI e TRANSP Cap 50-70'!$B$13:$AA$16,25,0) -> 4236.83 | W18: ='AQUI e TRANSP Cap 50-70'!AA14 -> 4798.54
B19: 3 | D19: Complexo Petroquímico do Rio de Janeiro (Comperj) | E19: Rodovia Estadual RJ-116 - Km 5,2 - Acesso A-1, s/n, Complemento Sambaetiba - Zona Urbana do 4º Distrito de Itaboraí - RJ CEP:24841-203 | F19: =VLOOKUP($W19,'AQUI e TRANSP Cap 50-70'!$B:$AA,7,FALSE) -> Candeias/BA | G19: =VLOOKUP($W19,'AQUI e TRANSP Cap 50-70'!$B:$AA,8,FALSE) -> Recife - PE | H19: =VLOOKUP($W19,'AQUI e TRANSP Cap 50-70'!$B:$AA,9,FALSE) -> 3.50275 | I19: =VLOOKUP($W19,'AQUI e TRANSP Cap 50-70'!$B:$AA,10,FALSE) -> 3.36285 | J19: =VLOOKUP($W19,'AQUI e TRANSP Cap 50-70'!$B:$AA,11,FALSE) -> 3502.75 | K19: =VLOOKUP($W19,'AQUI e TRANSP Cap 50-70'!$B:$AA,12,FALSE) -> 967.89 | L19: =VLOOKUP($W19,'AQUI e TRANSP Cap 50-70'!$B:$AA,13,FALSE) -> 4470.64 | M19: =VLOOKUP($W19,'AQUI e TRANSP Cap 50-70'!$B:$AA,14,FALSE) -> 845.9 | N19: =VLOOKUP($W19,'AQUI e TRANSP Cap 50-70'!$B:$AA,15,FALSE) -> 0 | O19: =VLOOKUP(W19,'AQUI e TRANSP Cap 50-70'!$B$13:$AA$16,18,0) -> 240.95 | P19: =VLOOKUP(W19,'AQUI e TRANSP Cap 50-70'!$B$13:$AA$16,19,0) -> 52.89 | Q19: =VLOOKUP(W19,'AQUI e TRANSP Cap 50-70'!$B$13:$AA$16,20,0) -> 303.69 | R19: =VLOOKUP(W19,'AQUI e TRANSP Cap 50-70'!$B$13:$AA$16,21,0) -> 597.53 | S19: =VLOOKUP(W19,'AQUI e TRANSP Cap 50-70'!$B$13:$AA$16,22,0) -> 42 | T19: =VLOOKUP(W19,'AQUI e TRANSP Cap 50-70'!$B$13:$AA$16,23,0) -> 3.05 | U19: =VLOOKUP(W19,'AQUI e TRANSP Cap 50-70'!$B$13:$AA$16,24,0) -> 600.58 | V19: =VLOOKUP(W19,'AQUI e TRANSP Cap 50-70'!$B$13:$AA$16,25,0) -> 4470.64 | W19: ='AQUI e TRANSP Cap 50-70'!AA16 -> 5071.22
B20: 5 | F20: =VLOOKUP($W20,'AQUI e TRANSP Cap 50-70'!$B:$AA,7,FALSE) -> Feira de Santana - BA | G20: =VLOOKUP($W20,'AQUI e TRANSP Cap 50-70'!$B:$AA,8,FALSE) -> Recife - PE | H20: =VLOOKUP($W20,'AQUI e TRANSP Cap 50-70'!$B:$AA,9,FALSE) -> 3.50275 | I20: =VLOOKUP($W20,'AQUI e TRANSP Cap 50-70'!$B:$AA,10,FALSE) -> 3.36285 | J20: =VLOOKUP($W20,'AQUI e TRANSP Cap 50-70'!$B:$AA,11,FALSE) -> 3502.75 | K20: =VLOOKUP($W20,'AQUI e TRANSP Cap 50-70'!$B:$AA,12,FALSE) -> 967.89 | L20: =VLOOKUP($W20,'AQUI e TRANSP Cap 50-70'!$B:$AA,13,FALSE) -> 4470.64 | M20: =VLOOKUP($W20,'AQUI e TRANSP Cap 50-70'!$B:$AA,14,FALSE) -> 803.7 | N20: =VLOOKUP($W20,'AQUI e TRANSP Cap 50-70'!$B:$AA,15,FALSE) -> 0 | O20: =VLOOKUP(W20,'AQUI e TRANSP Cap 50-70'!$B$13:$AA$16,18,0) -> 230.28 | P20: =VLOOKUP(W20,'AQUI e TRANSP Cap 50-70'!$B$13:$AA$16,19,0) -> 50.54 | Q20: =VLOOKUP(W20,'AQUI e TRANSP Cap 50-70'!$B$13:$AA$16,20,0) -> 290.23 | R20: =VLOOKUP(W20,'AQUI e TRANSP Cap 50-70'!$B$13:$AA$16,21,0) -> 571.05 | S20: =VLOOKUP(W20,'AQUI e TRANSP Cap 50-70'!$B$13:$AA$16,22,0) -> 84 | T20: =VLOOKUP(W20,'AQUI e TRANSP Cap 50-70'!$B$13:$AA$16,23,0) -> 6.1 | U20: =VLOOKUP(W20,'AQUI e TRANSP Cap 50-70'!$B$13:$AA$16,24,0) -> 577.15 | V20: =VLOOKUP(W20,'AQUI e TRANSP Cap 50-70'!$B$13:$AA$16,25,0) -> 4470.64 | W20: ='AQUI e TRANSP Cap 50-70'!AA15 -> 5047.79
B22: 1 | C22: RR1-C | D22: Refinaria Abreu e Lima | E22: Rodovia PE 60, Km 10 - Ipojuca - PE CEP:55590-000 | F22: =VLOOKUP($W22,'AQUI e TRANSP RR-1C'!$B:$AA,7,FALSE) -> Pacatuba/CE | G22: =VLOOKUP($W22,'AQUI e TRANSP RR-1C'!$B:$AA,8,FALSE) -> Recife - PE | H22: =VLOOKUP($W22,'AQUI e TRANSP RR-1C'!$B:$AA,9,FALSE) -> 2.39749 | I22: =VLOOKUP($W22,'AQUI e TRANSP RR-1C'!$B:$AA,10,FALSE) -> 3.18957 | J22: =VLOOKUP($W22,'AQUI e TRANSP RR-1C'!$B:$AA,11,FALSE) -> 2397.49 | K22: =VLOOKUP($W22,'AQUI e TRANSP RR-1C'!$B:$AA,12,FALSE) -> 662.48 | L22: =VLOOKUP($W22,'AQUI e TRANSP RR-1C'!$B:$AA,13,FALSE) -> 3059.97 | M22: =VLOOKUP($W22,'AQUI e TRANSP RR-1C'!$B:$AA,14,FALSE) -> 780 | N22: =VLOOKUP($W22,'AQUI e TRANSP RR-1C'!$B:$AA,15,FALSE) -> 0 | O22: =VLOOKUP($W22,'AQUI e TRANSP RR-1C'!$B:$AA,18,FALSE) -> 224.28 | P22: =VLOOKUP($W22,'AQUI e TRANSP RR-1C'!$B:$AA,19,FALSE) -> 49.23 | Q22: =VLOOKUP($W22,'AQUI e TRANSP RR-1C'!$B:$AA,20,FALSE) -> 282.68 | R22: =VLOOKUP($W22,'AQUI e TRANSP RR-1C'!$B:$AA,21,FALSE) -> 556.19 | S22: =VLOOKUP($W22,'AQUI e TRANSP RR-1C'!$B:$AA,22,FALSE) -> 0 | T22: =VLOOKUP($W22,'AQUI e TRANSP RR-1C'!$B:$AA,23,FALSE) -> 0 | U22: =VLOOKUP($W$22,'AQUI e TRANSP RR-1C'!$B$13:$AA$16,24,0) -> 556.19 | V22: =VLOOKUP(W22,'AQUI e TRANSP RR-1C'!$B$13:$AA$16,25,0) -> 3059.97 | W22: =SMALL('AQUI e TRANSP RR-1C'!$AA:$AA,1) -> 3616.16
B23: 2 | D23: Refinaria Potiguar Clara Camarão | E23: Rodovia RN 221, KM 25 - Guamaré - RN CEP:59598-000 | F23: =VLOOKUP($W23,'AQUI e TRANSP RR-1C'!$B:$AA,7,FALSE) -> Maracanau /CE | G23: =VLOOKUP($W23,'AQUI e TRANSP RR-1C'!$B:$AA,8,FALSE) -> Recife - PE | H23: =VLOOKUP($W23,'AQUI e TRANSP RR-1C'!$B:$AA,9,FALSE) -> 2.39749 | I23: =VLOOKUP($W23,'AQUI e TRANSP RR-1C'!$B:$AA,10,FALSE) -> 3.18957 | J23: =VLOOKUP($W23,'AQUI e TRANSP RR-1C'!$B:$AA,11,FALSE) -> 2397.49 | K23: =VLOOKUP($W23,'AQUI e TRANSP RR-1C'!$B:$AA,12,FALSE) -> 662.48 | L23: =VLOOKUP($W23,'AQUI e TRANSP RR-1C'!$B:$AA,13,FALSE) -> 3059.97 | M23: =VLOOKUP($W23,'AQUI e TRANSP RR-1C'!$B:$AA,14,FALSE) -> 778.5 | N23: =VLOOKUP($W23,'AQUI e TRANSP RR-1C'!$B:$AA,15,FALSE) -> 0 | O23: =VLOOKUP($W23,'AQUI e TRANSP RR-1C'!$B:$AA,18,FALSE) -> 223.9 | P23: =VLOOKUP($W23,'AQUI e TRANSP RR-1C'!$B:$AA,19,FALSE) -> 49.14 | Q23: =VLOOKUP($W23,'AQUI e TRANSP RR-1C'!$B:$AA,20,FALSE) -> 282.19 | R23: =VLOOKUP($W23,'AQUI e TRANSP RR-1C'!$B:$AA,21,FALSE) -> 555.23 | S23: =VLOOKUP($W23,'AQUI e TRANSP RR-1C'!$B:$AA,22,FALSE) -> 399.6 | T23: =VLOOKUP($W23,'AQUI e TRANSP RR-1C'!$B:$AA,23,FALSE) -> 30.58 | U23: =VLOOKUP($W$22,'AQUI e TRANSP RR-1C'!$B$13:$AA$16,24,0) -> 556.19 | V23: =VLOOKUP(W23,'AQUI e TRANSP RR-1C'!$B$13:$AA$16,25,0) -> 3059.97 | W23: =SMALL('AQUI e TRANSP RR-1C'!$AA:$AA,2) -> 3645.78
B24: 3 | D24: Complexo Petroquímico do Rio de Janeiro (Comperj) | E24: Rodovia Estadual RJ-116 - Km 5,2 - Acesso A-1, s/n, Complemento Sambaetiba - Zona Urbana do 4º Distrito de Itaboraí - RJ CEP:24841-203 | F24: =VLOOKUP($W24,'AQUI e TRANSP RR-1C'!$B:$AA,7,FALSE) -> Feira de Santana - BA | G24: =VLOOKUP($W24,'AQUI e TRANSP RR-1C'!$B:$AA,8,FALSE) -> Recife - PE | H24: =VLOOKUP($W24,'AQUI e TRANSP RR-1C'!$B:$AA,9,FALSE) -> - | I24: =VLOOKUP($W24,'AQUI e TRANSP RR-1C'!$B:$AA,10,FALSE) -> 3.18957 | J24: =VLOOKUP($W24,'AQUI e TRANSP RR-1C'!$B:$AA,11,FALSE) -> 3189.57 | K24: =VLOOKUP($W24,'AQUI e TRANSP RR-1C'!$B:$AA,12,FALSE) -> 881.35 | L24: =VLOOKUP($W24,'AQUI e TRANSP RR-1C'!$B:$AA,13,FALSE) -> 4070.92 | M24: =VLOOKUP($W24,'AQUI e TRANSP RR-1C'!$B:$AA,14,FALSE) -> 803.7 | N24: =VLOOKUP($W24,'AQUI e TRANSP RR-1C'!$B:$AA,15,FALSE) -> 0 | O24: =VLOOKUP($W24,'AQUI e TRANSP RR-1C'!$B:$AA,18,FALSE) -> 230.28 | P24: =VLOOKUP($W24,'AQUI e TRANSP RR-1C'!$B:$AA,19,FALSE) -> 50.54 | Q24: =VLOOKUP($W24,'AQUI e TRANSP RR-1C'!$B:$AA,20,FALSE) -> 290.23 | R24: =VLOOKUP($W24,'AQUI e TRANSP RR-1C'!$B:$AA,21,FALSE) -> 571.05 | S24: =VLOOKUP($W24,'AQUI e TRANSP RR-1C'!$B:$AA,22,FALSE) -> 112.2 | T24: =VLOOKUP($W24,'AQUI e TRANSP RR-1C'!$B:$AA,23,FALSE) -> 8.59 | U24: =VLOOKUP($W$22,'AQUI e TRANSP RR-1C'!$B$13:$AA$16,24,0) -> 556.19 | V24: =VLOOKUP(W24,'AQUI e TRANSP RR-1C'!$B$13:$AA$16,25,0) -> 4070.92 | W24: =SMALL('AQUI e TRANSP RR-1C'!$AA:$AA,3) -> 4650.56
B25: 4 | D25: Refinaria Abreu e Lima | E25: Rodovia PE 60, Km 10 - Ipojuca - PE CEP:55590-000 | F25: =VLOOKUP($W25,'AQUI e TRANSP RR-1C'!$B:$AA,7,FALSE) -> Candeias/BA | G25: =VLOOKUP($W25,'AQUI e TRANSP RR-1C'!$B:$AA,8,FALSE) -> Recife - PE | H25: =VLOOKUP($W25,'AQUI e TRANSP RR-1C'!$B:$AA,9,FALSE) -> - | I25: =VLOOKUP($W25,'AQUI e TRANSP RR-1C'!$B:$AA,10,FALSE) -> 3.18957 | J25: =VLOOKUP($W25,'AQUI e TRANSP RR-1C'!$B:$AA,11,FALSE) -> 3189.57 | K25: =VLOOKUP($W25,'AQUI e TRANSP RR-1C'!$B:$AA,12,FALSE) -> 881.35 | L25: =VLOOKUP($W25,'AQUI e TRANSP RR-1C'!$B:$AA,13,FALSE) -> 4070.92 | M25: =VLOOKUP($W25,'AQUI e TRANSP RR-1C'!$B:$AA,14,FALSE) -> 845.9 | N25: =VLOOKUP($W25,'AQUI e TRANSP RR-1C'!$B:$AA,15,FALSE) -> 0 | O25: =VLOOKUP($W25,'AQUI e TRANSP RR-1C'!$B:$AA,18,FALSE) -> 240.95 | P25: =VLOOKUP($W25,'AQUI e TRANSP RR-1C'!$B:$AA,19,FALSE) -> 52.89 | Q25: =VLOOKUP($W25,'AQUI e TRANSP RR-1C'!$B:$AA,20,FALSE) -> 303.69 | R25: =VLOOKUP($W25,'AQUI e TRANSP RR-1C'!$B:$AA,21,FALSE) -> 597.53 | S25: =VLOOKUP($W25,'AQUI e TRANSP RR-1C'!$B:$AA,22,FALSE) -> 142.8 | T25: =VLOOKUP($W25,'AQUI e TRANSP RR-1C'!$B:$AA,23,FALSE) -> 10.93 | U25: =VLOOKUP($W$22,'AQUI e TRANSP RR-1C'!$B$13:$AA$16,24,0) -> 556.19 | V25: =VLOOKUP(W25,'AQUI e TRANSP RR-1C'!$B$13:$AA$16,25,0) -> 4070.92 | W25: =SMALL('AQUI e TRANSP RR-1C'!$AA:$AA,4) -> 4679.38

Sheet MOMENTO DE TRANSPORTE - PRINC
B1: EXECUÇÃO DE CAPA ASFÁLTICA COM CBUQ, EM VIAS DE MUNICÍPIOS DA REGIÃO DA MATA PERNAMBUCANA, ÁREA DE ATUAÇÃO DA CODEVASF NO ESTADO DE PERNAMBUCO. | C1: PERNAMBUCO | D1: DATA BASE: | E1: 2023-04-01
A2: ='RESUMO MODULO TOTAL'!B1 -> EXECUÇÃO DE CAPA ASFÁLTICA COM CBUQ, EM VIAS DE MUNICÍPIOS DA REGIÃO DA MATA PERNAMBUCANA, ÁREA DE ATUAÇÃO DA CODEVASF NO ESTADO DE PERNAMBUCO.
C7: RESUMO DO TRANSPORTE PRINCIPAL
B8: CODIGO | C8: DESCRIÇÃO | D8: TKM
B9: 5914359 | C9: 1 | D9: =ROUND(SUMIF('MOMENTO DE TRANSPORTE - PRINC'!A:A,B9,'MOMENTO DE TRANSPORTE - PRINC'!K:K),2) -> 0
B10: 5914374 | C10: Transporte com caminhão basculante de 10 m³ - rodovia em revestimento primário | D10: =ROUND(SUMIF('MOMENTO DE TRANSPORTE - PRINC'!A:A,B10,'MOMENTO DE TRANSPORTE - PRINC'!K:K),2) -> 0
B11: 5914389 | C11: Transporte com caminhão basculante de 10 m³ - rodovia pavimentada | D11: =ROUND(SUMIF('MOMENTO DE TRANSPORTE - PRINC'!A:A,B11,'MOMENTO DE TRANSPORTE - PRINC'!K:K),2) -> 1919232
B12: 5914449 | C12: Transporte com caminhão carroceria de 15 t - rodovia em leito natural | D12: =ROUND(SUMIF('MOMENTO DE TRANSPORTE - PRINC'!A:A,B12,'MOMENTO DE TRANSPORTE - PRINC'!K:K),2) -> 0
B13: 5914464 | C13: Transporte com caminhão carroceria de 15 t - rodovia em revestimento primário | D13: =ROUND(SUMIF('MOMENTO DE TRANSPORTE - PRINC'!A:A,B13,'MOMENTO DE TRANSPORTE - PRINC'!K:K),2) -> 0
B14: 5914479 | C14: Transporte com caminhão carroceria de 15 t - rodovia pavimentada | D14: =ROUND(SUMIF('MOMENTO DE TRANSPORTE - PRINC'!A:A,B14,'MOMENTO DE TRANSPORTE - PRINC'!K:K),2) -> 0
B15: 5914364 | C15: Transporte de cimento ou cal hidratada a granel com caminhão silo de 30 m³ - rodovia em leito natural | D15: =ROUND(SUMIF('MOMENTO DE TRANSPORTE - PRINC'!A:A,B15,'MOMENTO DE TRANSPORTE - PRINC'!K:K),2) -> 0
B16: 5914365 | C16: Transporte de cimento ou cal hidratada a granel com caminhão silo de 30 m³ - rodovia em revestimento primário | D16: =ROUND(SUMIF('MOMENTO DE TRANSPORTE - PRINC'!A:A,B16,'MOMENTO DE TRANSPORTE - PRINC'!K:K),2) -> 0
B17: 5914366 | C17: Transporte de cimento ou cal hidratada a granel com caminhão silo de 30 m³ - rodovia pavimentada | D17: =ROUND(SUMIF('MOMENTO DE TRANSPORTE - PRINC'!A:A,B17,'MOMENTO DE TRANSPORTE - PRINC'!K:K),2) -> 0
B19: TIPO (P, RP ou LN) | C19: DMT ESTIMADA
B20: P | C20: 80
B22: COMPOSIÇÕES PRINCIPAIS
B24: SISTEMA DE CUSTOS REFERENCIAIS DE OBRAS - SICRO | E24: =C1 -> PERNAMBUCO
B25: Custo Unitário de Referência | E25: 2023-04-01 | I25: Quantitativo | K25: t
B26: 4011463 | C26: Concreto asfáltico - faixa C - areia e brita comerciais | I26: =SUMIF('RESUMO MODULO TOTAL'!D:D,B26,'RESUMO MODULO TOTAL'!J:J) -> 23520
B27: D - ATIVIDADES AUXILIARES | D27: Quantidade | E27: Unidade
B28: 6416078 | C28: Usinagem de concreto asfáltico - faixa C - areia e brita comerciais | D28: 1.02 | E28: t
B30: F - MOMENTO DE TRANSPORTE | D30: Quantidade | E30: Unidade | F30: CÓDIGO TRANSPORTE
F31: LN | G31: RP | H31: P | I31: TIPO (P, RP ou LN) | J31: DMT ESTIMADA (km) | K31: QUANTITATIVO TOTAL DE TRANSPORTE (tkm)
A32: =IF(I32="P",H32,IF(I32="RP",G32,IF(I32="LN",F32,""))) -> 5914389 | B32: 6416078 | C32: Usinagem de concreto asfáltico - faixa C - areia e brita comerciais - Caminhão basculante 10 m³ | D32: 1.02 | E32: tkm | F32: 5914359 | G32: 5914374 | H32: 5914389 | I32: P | J32: =$C$20 -> 80 | K32: =IF(ISBLANK(J32),"",J32*D32)*I26 -> 1919232
A33: =IF(I33="P",H33,IF(I33="RP",G33,IF(I33="LN",F33,""))) -> 
B34: Obs.
A51: =IF(I51="P",H51,IF(I51="RP",G51,IF(I51="LN",F51,""))) ->  | B51: Obs.
L70: =(#REF!)/(1+J39) ->  | M70: =(#REF!) -> 

Sheet MOMENTO DE TRANSPORTE - AUX
B1: EXECUÇÃO DE CAPA ASFÁLTICA COM CBUQ, EM VIAS DE MUNICÍPIOS DA REGIÃO DA MATA PERNAMBUCANA, ÁREA DE ATUAÇÃO DA CODEVASF NO ESTADO DE PERNAMBUCO.
A2: ='RESUMO MODULO TOTAL'!B1 -> EXECUÇÃO DE CAPA ASFÁLTICA COM CBUQ, EM VIAS DE MUNICÍPIOS DA REGIÃO DA MATA PERNAMBUCANA, ÁREA DE ATUAÇÃO DA CODEVASF NO ESTADO DE PERNAMBUCO. | B2: AUXILIAR
B6: RESUMO DO TRANSPORTE AUXILIAR
B7: CODIGO | C7: DESCRIÇÃO | D7: TKM
B8: 5914359 | C8: Transporte com caminhão basculante de 10 m³ - rodovia em leito natural | D8: =ROUND(SUMIF(A:A,B8,K:K),2) -> 0
B9: 5914374 | C9: 1 | D9: 0
B10: 5914389 | C10: Transporte com caminhão basculante de 10 m³ - rodovia pavimentada | D10: =ROUND(SUMIF(A:A,B10,K:K),2) -> 1029305.72
B11: 5914449 | C11: Transporte com caminhão carroceria de 15 t - rodovia em leito natural | D11: 0
B12: 5914464 | C12: Transporte com caminhão carroceria de 15 t - rodovia em revestimento primário | D12: 0
B13: 5914479 | C13: Transporte com caminhão carroceria de 15 t - rodovia pavimentada | D13: 0
B14: 5914364 | C14: Transporte de cimento ou cal hidratada a granel com caminhão silo de 30 m³ - rodovia em leito natural | D14: 0
B15: 5914365 | C15: Transporte de cimento ou cal hidratada a granel com caminhão silo de 30 m³ - rodovia em revestimento primário | D15: 0
B16: 5914366 | C16: Transporte de cimento ou cal hidratada a granel com caminhão silo de 30 m³ - rodovia pavimentada | D16: =ROUND(SUMIF(A:A,B16,K:K),2) -> 107860.84
B18: AUXILIAR
B20: SISTEMA DE CUSTOS REFERENCIAIS DE OBRAS - SICRO | E20: ='MOMENTO DE TRANSPORTE - PRINC'!C1 -> PERNAMBUCO | I20: Quantitivo
B21: Custo Unitário de Referência | E21: 2023-04-01 | I21: (Coeficiente maj.) x (qtd) | K21: t
B22: 6416078 | C22: Usinagem de concreto asfáltico - faixa C - areia e brita comerciais | I22: =('MOMENTO DE TRANSPORTE - PRINC'!D28)*'MOMENTO DE TRANSPORTE - PRINC'!I26 -> 23990.4
B23: F - MOMENTO DE TRANSPORTE | D23: Quantidade | E23: Unidade | F23: DMT
F24: LN | G24: RP | H24: P | I24: TIPO (P, RP ou LN) | J24: DMT ESTIMADA (km) | K24: QUANTITATIVO TOTAL DE TRANSPORTE DE MATERIAL (tkm)
A25: =IF(I25="P",H25,IF(I25="RP",G25,IF(I25="LN",F25,""))) -> 5914389 | B25: M0028 | C25: Areia média - Caminhão basculante 10 m³ | D25: 0.48713 | E25: tkm | F25: 5914359 | G25: 5914374 | H25: 5914389 | I25: P | J25: ='MOMENTO DE TRANSPORTE - PRINC'!$C$20 -> 80 | K25: =IF(ISBLANK(J25),"",J25*(D25*$I$22)) -> 934915.48
A26: =IF(I26="P",H26,IF(I26="RP",G26,IF(I26="LN",F26,""))) -> 5914389 | B26: M0005 | C26: Brita 0 - Caminhão basculante 10 m³ | D26: 0.09368 | E26: tkm | F26: 5914359 | G26: 5914374 | H26: 5914389 | I26: P | J26: 10 | K26: =IF(ISBLANK(J26),"",J26*(D26*$I$22)) -> 22474.21
A27: =IF(I27="P",H27,IF(I27="RP",G27,IF(I27="LN",F27,""))) -> 5914389 | B27: M0191 | C27: Brita 1 - Caminhão basculante 10 m³ | D27: 0.09368 | E27: tkm | F27: 5914359 | G27: 5914374 | H27: 5914389 | I27: P | J27: 10 | K27: =IF(ISBLANK(J27),"",J27*(D27*$I$22)) -> 22474.21
A28: 5914366 | B28: M0344 | C28: Cal hidratada - a granel - Caminhão silo 30 m³ | D28: 0.0562 | E28: tkm | F28: 5914359 | G28: 5914374 | H28: 5914389 | I28: P | J28: =J25 -> 80 | K28: =IF(ISBLANK(J28),"",J28*(D28*$I$22)) -> 107860.84
A29: 5914389 | B29: M1103 | C29: Pedrisco - Caminhão basculante 10 m³ | D29: 0.20609 | E29: tkm | F29: 5914364 | G29: 5914365 | H29: 5914366 | I29: P | J29: 10 | K29: =IF(ISBLANK(J29),"",J29*(D29*$I$22)) -> 49441.82
A30: =IF(I30="P",H30,IF(I30="RP",G30,IF(I30="LN",F30,""))) ->  | B30: PRINCIPAL: | C30: 4011463
K62: =(#REF!)/(1+I31) ->  | L62: =(#REF!) -> 

Sheet ANP ESTADO
A1: Agência Nacional do Petróleo, Gás Natural e Biocombustíveis
A2: Superintendência de Defesa da Concorrência
A5: PREÇO MÉDIO MENSAL PONDERADO PRATICADO PELOS DISTRIBUIDORES DE PRODUTOS ASFÁLTICOS (R$/KG)
A7: Importante: | B7: Quando não houver declaração de venda do produto selecionado, ou quando a declaração de venda do produto ocorrer por menos de 03 (três) distribuidoras, a tabela indicará campo vazio.
A8: Mês | B8: Produto | C8: Estado | D8: Preço
A9: 2013-01-01 | B9: ASFALTOS DILUÍDOS CM-30 | C9: Acre | D9: -
A10: 2013-01-01 | B10: ASFALTOS DILUÍDOS CM-30 | C10: Alagoas | D10: -
A11: 2013-01-01 | B11: ASFALTOS DILUÍDOS CM-30 | C11: Amapá | D11: -
A12: 2013-01-01 | B12: ASFALTOS DILUÍDOS CM-30 | C12: Amazonas | D12: 1.45353
A13: 2013-01-01 | B13: ASFALTOS DILUÍDOS CM-30 | C13: Bahia | D13: 1.46404
A14: 2013-01-01 | B14: ASFALTOS DILUÍDOS CM-30 | C14: Ceará | D14: 1.448
A15: 2013-01-01 | B15: ASFALTOS DILUÍDOS CM-30 | C15: Distrito Federal | D15: -
A16: 2013-01-01 | B16: ASFALTOS DILUÍDOS CM-30 | C16: Espírito Santo | D16: -
A17: 2013-01-01 | B17: ASFALTOS DILUÍDOS CM-30 | C17: Goiás | D17: 1.68638
A18: 2013-01-01 | B18: ASFALTOS DILUÍDOS CM-30 | C18: Maranhão | D18: -
A19: 2013-01-01 | B19: ASFALTOS DILUÍDOS CM-30 | C19: Mato Grosso | D19: -
A20: 2013-01-01 | B20: ASFALTOS DILUÍDOS CM-30 | C20: Mato Grosso do Sul | D20: -
A21: 2013-01-01 | B21: ASFALTOS DILUÍDOS CM-30 | C21: Minas Gerais | D21: 1.45111
A22: 2013-01-01 | B22: ASFALTOS DILUÍDOS CM-30 | C22: Pará | D22: -
A23: 2013-01-01 | B23: ASFALTOS DILUÍDOS CM-30 | C23: Paraíba | D23: -
A24: 2013-01-01 | B24: ASFALTOS DILUÍDOS CM-30 | C24: Paraná | D24: 1.52013
A25: 2013-01-01 | B25: ASFALTOS DILUÍDOS CM-30 | C25: Pernambuco | D25: -
A26: 2013-01-01 | B26: ASFALTOS DILUÍDOS CM-30 | C26: Piauí | D26: -
A27: 2013-01-01 | B27: ASFALTOS DILUÍDOS CM-30 | C27: Rio de Janeiro | D27: 1.33048
A28: 2013-01-01 | B28: ASFALTOS DILUÍDOS CM-30 | C28: Rio Grande do Norte | D28: -
A29: 2013-01-01 | B29: ASFALTOS DILUÍDOS CM-30 | C29: Rio Grande do Sul | D29: 1.59861
A30: 2013-01-01 | B30: ASFALTOS DILUÍDOS CM-30 | C30: Rondônia | D30: -
A31: 2013-01-01 | B31: ASFALTOS DILUÍDOS CM-30 | C31: Roraima | D31: -
A32: 2013-01-01 | B32: ASFALTOS DILUÍDOS CM-30 | C32: Santa Catarina | D32: -
A33: 2013-01-01 | B33: ASFALTOS DILUÍDOS CM-30 | C33: São Paulo | D33: 1.47101
A34: 2013-01-01 | B34: ASFALTOS DILUÍDOS CM-30 | C34: Sergipe | D34: -
A35: 2013-01-01 | B35: ASFALTOS DILUÍDOS CM-30 | C35: Tocantins | D35: -
A36: 2013-02-01 | B36: ASFALTOS DILUÍDOS CM-30 | C36: Acre | D36: -
A37: 2013-02-01 | B37: ASFALTOS DILUÍDOS CM-30 | C37: Alagoas | D37: -
A38: 2013-02-01 | B38: ASFALTOS DILUÍDOS CM-30 | C38: Amapá | D38: -
A39: 2013-02-01 | B39: ASFALTOS DILUÍDOS CM-30 | C39: Amazonas | D39: 1.48558
A40: 2013-02-01 | B40: ASFALTOS DILUÍDOS CM-30 | C40: Bahia | D40: 1.45701
A41: 2013-02-01 | B41: ASFALTOS DILUÍDOS CM-30 | C41: Ceará | D41: 1.41319
A42: 2013-02-01 | B42: ASFALTOS DILUÍDOS CM-30 | C42: Distrito Federal | D42: -
A43: 2013-02-01 | B43: ASFALTOS DILUÍDOS CM-30 | C43: Espírito Santo | D43: -
A44: 2013-02-01 | B44: ASFALTOS DILUÍDOS CM-30 | C44: Goiás | D44: 1.66746
A45: 2013-02-01 | B45: ASFALTOS DILUÍDOS CM-30 | C45: Maranhão | D45: -
A46: 2013-02-01 | B46: ASFALTOS DILUÍDOS CM-30 | C46: Mato Grosso | D46: -
A47: 2013-02-01 | B47: ASFALTOS DILUÍDOS CM-30 | C47: Mato Grosso do Sul | D47: -
A48: 2013-02-01 | B48: ASFALTOS DILUÍDOS CM-30 | C48: Minas Gerais | D48: 1.45212
A49: 2013-02-01 | B49: ASFALTOS DILUÍDOS CM-30 | C49: Pará | D49: -
A50: 2013-02-01 | B50: ASFALTOS DILUÍDOS CM-30 | C50: Paraíba | D50: -
A51: 2013-02-01 | B51: ASFALTOS DILUÍDOS CM-30 | C51: Paraná | D51: 1.49378
A52: 2013-02-01 | B52: ASFALTOS DILUÍDOS CM-30 | C52: Pernambuco | D52: -
A53: 2013-02-01 | B53: ASFALTOS DILUÍDOS CM-30 | C53: Piauí | D53: -
A54: 2013-02-01 | B54: ASFALTOS DILUÍDOS CM-30 | C54: Rio de Janeiro | D54: 1.41823
A55: 2013-02-01 | B55: ASFALTOS DILUÍDOS CM-30 | C55: Rio Grande do Norte | D55: -
A56: 2013-02-01 | B56: ASFALTOS DILUÍDOS CM-30 | C56: Rio Grande do Sul | D56: 1.43586
A57: 2013-02-01 | B57: ASFALTOS DILUÍDOS CM-30 | C57: Rondônia | D57: -
A58: 2013-02-01 | B58: ASFALTOS DILUÍDOS CM-30 | C58: Roraima | D58: -
A59: 2013-02-01 | B59: ASFALTOS DILUÍDOS CM-30 | C59: Santa Catarina | D59: -
A60: 2013-02-01 | B60: ASFALTOS DILUÍDOS CM-30 | C60: São Paulo | D60: 1.43419
A61: 2013-02-01 | B61: ASFALTOS DILUÍDOS CM-30 | C61: Sergipe | D61: -
A62: 2013-02-01 | B62: ASFALTOS DILUÍDOS CM-30 | C62: Tocantins | D62: -
A63: 2013-03-01 | B63: ASFALTOS DILUÍDOS CM-30 | C63: Acre | D63: -
A64: 2013-03-01 | B64: ASFALTOS DILUÍDOS CM-30 | C64: Alagoas | D64: -
A65: 2013-03-01 | B65: ASFALTOS DILUÍDOS CM-30 | C65: Amapá | D65: -
A66: 2013-03-01 | B66: ASFALTOS DILUÍDOS CM-30 | C66: Amazonas | D66: 1.50792
A67: 2013-03-01 | B67: ASFALTOS DILUÍDOS CM-30 | C67: Bahia | D67: 1.44944
A68: 2013-03-01 | B68: ASFALTOS DILUÍDOS CM-30 | C68: Ceará | D68: 1.40161
A69: 2013-03-01 | B69: ASFALTOS DILUÍDOS CM-30 | C69: Distrito Federal | D69: -
A70: 2013-03-01 | B70: ASFALTOS DILUÍDOS CM-30 | C70: Espírito Santo | D70: -
A71: 2013-03-01 | B71: ASFALTOS DILUÍDOS CM-30 | C71: Goiás | D71: 1.66176
A72: 2013-03-01 | B72: ASFALTOS DILUÍDOS CM-30 | C72: Maranhão | D72: -
A73: 2013-03-01 | B73: ASFALTOS DILUÍDOS CM-30 | C73: Mato Grosso | D73: -
A74: 2013-03-01 | B74: ASFALTOS DILUÍDOS CM-30 | C74: Mato Grosso do Sul | D74: -
A75: 2013-03-01 | B75: ASFALTOS DILUÍDOS CM-30 | C75: Minas Gerais | D75: 1.44324
A76: 2013-03-01 | B76: ASFALTOS DILUÍDOS CM-30 | C76: Pará | D76: -
A77: 2013-03-01 | B77: ASFALTOS DILUÍDOS CM-30 | C77: Paraíba | D77: -
A78: 2013-03-01 | B78: ASFALTOS DILUÍDOS CM-30 | C78: Paraná | D78: 1.469
A79: 2013-03-01 | B79: ASFALTOS DILUÍDOS CM-30 | C79: Pernambuco | D79: -
A80: 2013-03-01 | B80: ASFALTOS DILUÍDOS CM-30 | C80: Piauí | D80: -
A81: 2013-03-01 | B81: ASFALTOS DILUÍDOS CM-30 | C81: Rio de Janeiro | D81: 1.43806
A82: 2013-03-01 | B82: ASFALTOS DILUÍDOS CM-30 | C82: Rio Grande do Norte | D82: -
A83: 2013-03-01 | B83: ASFALTOS DILUÍDOS CM-30 | C83: Rio Grande do Sul | D83: 1.58143
A84: 2013-03-01 | B84: ASFALTOS DILUÍDOS CM-30 | C84: Rondônia | D84: -
A85: 2013-03-01 | B85: ASFALTOS DILUÍDOS CM-30 | C85: Roraima | D85: -
A86: 2013-03-01 | B86: ASFALTOS DILUÍDOS CM-30 | C86: Santa Catarina | D86: -
A87: 2013-03-01 | B87: ASFALTOS DILUÍDOS CM-30 | C87: São Paulo | D87: 1.46606
A88: 2013-03-01 | B88: ASFALTOS DILUÍDOS CM-30 | C88: Sergipe | D88: -
A89: 2013-03-01 | B89: ASFALTOS DILUÍDOS CM-30 | C89: Tocantins | D89: -
A90: 2013-04-01 | B90: ASFALTOS DILUÍDOS CM-30 | C90: Acre | D90: -
A91: 2013-04-01 | B91: ASFALTOS DILUÍDOS CM-30 | C91: Alagoas | D91: -
A92: 2013-04-01 | B92: ASFALTOS DILUÍDOS CM-30 | C92: Amapá | D92: -
A93: 2013-04-01 | B93: ASFALTOS DILUÍDOS CM-30 | C93: Amazonas | D93: 1.4848
A94: 2013-04-01 | B94: ASFALTOS DILUÍDOS CM-30 | C94: Bahia | D94: 1.45484
A95: 2013-04-01 | B95: ASFALTOS DILUÍDOS CM-30 | C95: Ceará | D95: 1.38707
A96: 2013-04-01 | B96: ASFALTOS DILUÍDOS CM-30 | C96: Distrito Federal | D96: -
A97: 2013-04-01 | B97: ASFALTOS DILUÍDOS CM-30 | C97: Espírito Santo | D97: -
A98: 2013-04-01 | B98: ASFALTOS DILUÍDOS CM-30 | C98: Goiás | D98: 1.67348
A99: 2013-04-01 | B99: ASFALTOS DILUÍDOS CM-30 | C99: Maranhão | D99: -
A100: 2013-04-01 | B100: ASFALTOS DILUÍDOS CM-30 | C100: Mato Grosso | D100: 1.92194
A101: 2013-04-01 | B101: ASFALTOS DILUÍDOS CM-30 | C101: Mato Grosso do Sul | D101: -
A102: 2013-04-01 | B102: ASFALTOS DILUÍDOS CM-30 | C102: Minas Gerais | D102: 1.45656
A103: 2013-04-01 | B103: ASFALTOS DILUÍDOS CM-30 | C103: Pará | D103: -
A104: 2013-04-01 | B104: ASFALTOS DILUÍDOS CM-30 | C104: Paraíba | D104: -
A105: 2013-04-01 | B105: ASFALTOS DILUÍDOS CM-30 | C105: Paraná | D105: 1.53442
A106: 2013-04-01 | B106: ASFALTOS DILUÍDOS CM-30 | C106: Pernambuco | D106: -
A107: 2013-04-01 | B107: ASFALTOS DILUÍDOS CM-30 | C107: Piauí | D107: -
A108: 2013-04-01 | B108: ASFALTOS DILUÍDOS CM-30 | C108: Rio de Janeiro | D108: 1.41842
A109: 2013-04-01 | B109: ASFALTOS DILUÍDOS CM-30 | C109: Rio Grande do Norte | D109: -
A110: 2013-04-01 | B110: ASFALTOS DILUÍDOS CM-30 | C110: Rio Grande do Sul | D110: 1.57258
A111: 2013-04-01 | B111: ASFALTOS DILUÍDOS CM-30 | C111: Rondônia | D111: -
A112: 2013-04-01 | B112: ASFALTOS DILUÍDOS CM-30 | C112: Roraima | D112: -
A113: 2013-04-01 | B113: ASFALTOS DILUÍDOS CM-30 | C113: Santa Catarina | D113: -
A114: 2013-04-01 | B114: ASFALTOS DILUÍDOS CM-30 | C114: São Paulo | D114: 1.47576
A115: 2013-04-01 | B115: ASFALTOS DILUÍDOS CM-30 | C115: Sergipe | D115: -
A116: 2013-04-01 | B116: ASFALTOS DILUÍDOS CM-30 | C116: Tocantins | D116: -
A117: 2013-05-01 | B117: ASFALTOS DILUÍDOS CM-30 | C117: Acre | D117: -
A118: 2013-05-01 | B118: ASFALTOS DILUÍDOS CM-30 | C118: Alagoas | D118: -
A119: 2013-05-01 | B119: ASFALTOS DILUÍDOS CM-30 | C119: Amapá | D119: -
A120: 2013-05-01 | B120: ASFALTOS DILUÍDOS CM-30 | C120: Amazonas | D120: -
A121: 2013-05-01 | B121: ASFALTOS DILUÍDOS CM-30 | C121: Bahia | D121: 1.49259
A122: 2013-05-01 | B122: ASFALTOS DILUÍDOS CM-30 | C122: Ceará | D122: 1.37626
A123: 2013-05-01 | B123: ASFALTOS DILUÍDOS CM-30 | C123: Distrito Federal | D123: -
A124: 2013-05-01 | B124: ASFALTOS DILUÍDOS CM-30 | C124: Espírito Santo | D124: -
A125: 2013-05-01 | B125: ASFALTOS DILUÍDOS CM-30 | C125: Goiás | D125: 1.66821
A126: 2013-05-01 | B126: ASFALTOS DILUÍDOS CM-30 | C126: Maranhão | D126: -
A127: 2013-05-01 | B127: ASFALTOS DILUÍDOS CM-30 | C127: Mato Grosso | D127: 1.9031
A128: 2013-05-01 | B128: ASFALTOS DILUÍDOS CM-30 | C128: Mato Grosso do Sul | D128: -
A129: 2013-05-01 | B129: ASFALTOS DILUÍDOS CM-30 | C129: Minas Gerais | D129: 1.46471
A130: 2013-05-01 | B130: ASFALTOS DILUÍDOS CM-30 | C130: Pará | D130: -
A131: 2013-05-01 | B131: ASFALTOS DILUÍDOS CM-30 | C131: Paraíba | D131: -
A132: 2013-05-01 | B132: ASFALTOS DILUÍDOS CM-30 | C132: Paraná | D132: 1.48903
A133: 2013-05-01 | B133: ASFALTOS DILUÍDOS CM-30 | C133: Pernambuco | D133: -
A134: 2013-05-01 | B134: ASFALTOS DILUÍDOS CM-30 | C134: Piauí | D134: -
A135: 2013-05-01 | B135: ASFALTOS DILUÍDOS CM-30 | C135: Rio de Janeiro | D135: 1.39926
A136: 2013-05-01 | B136: ASFALTOS DILUÍDOS CM-30 | C136: Rio Grande do Norte | D136: -
A137: 2013-05-01 | B137: ASFALTOS DILUÍDOS CM-30 | C137: Rio Grande do Sul | D137: 1.53964
A138: 2013-05-01 | B138: ASFALTOS DILUÍDOS CM-30 | C138: Rondônia | D138: -
A139: 2013-05-01 | B139: ASFALTOS DILUÍDOS CM-30 | C139: Roraima | D139: -
A140: 2013-05-01 | B140: ASFALTOS DILUÍDOS CM-30 | C140: Santa Catarina | D140: -
A141: 2013-05-01 | B141: ASFALTOS DILUÍDOS CM-30 | C141: São Paulo | D141: 1.45122
A142: 2013-05-01 | B142: ASFALTOS DILUÍDOS CM-30 | C142: Sergipe | D142: -
A143: 2013-05-01 | B143: ASFALTOS DILUÍDOS CM-30 | C143: Tocantins | D143: -
A144: 2013-06-01 | B144: ASFALTOS DILUÍDOS CM-30 | C144: Acre | D144: -
A145: 2013-06-01 | B145: ASFALTOS DILUÍDOS CM-30 | C145: Alagoas | D145: -
A146: 2013-06-01 | B146: ASFALTOS DILUÍDOS CM-30 | C146: Amapá | D146: -
A147: 2013-06-01 | B147: ASFALTOS DILUÍDOS CM-30 | C147: Amazonas | D147: 1.58633
A148: 2013-06-01 | B148: ASFALTOS DILUÍDOS CM-30 | C148: Bahia | D148: 1.44813
A149: 2013-06-01 | B149: ASFALTOS DILUÍDOS CM-30 | C149: Ceará | D149: 1.3827
A150: 2013-06-01 | B150: ASFALTOS DILUÍDOS CM-30 | C150: Distrito Federal | D150: -
A151: 2013-06-01 | B151: ASFALTOS DILUÍDOS CM-30 | C151: Espírito Santo | D151: -
A152: 2013-06-01 | B152: ASFALTOS DILUÍDOS CM-30 | C152: Goiás | D152: 1.69961
A153: 2013-06-01 | B153: ASFALTOS DILUÍDOS CM-30 | C153: Maranhão | D153: -
A154: 2013-06-01 | B154: ASFALTOS DILUÍDOS CM-30 | C154: Mato Grosso | D154: 1.91598
A155: 2013-06-01 | B155: ASFALTOS DILUÍDOS CM-30 | C155: Mato Grosso do Sul | D155: -
A156: 2013-06-01 | B156: ASFALTOS DILUÍDOS CM-30 | C156: Minas Gerais | D156: 1.47537
A157: 2013-06-01 | B157: ASFALTOS DILUÍDOS CM-30 | C157: Pará | D157: -
A158: 2013-06-01 | B158: ASFALTOS DILUÍDOS CM-30 | C158: Paraíba | D158: -
A159: 2013-06-01 | B159: ASFALTOS DILUÍDOS CM-30 | C159: Paraná | D159: 1.43217
A160: 2013-06-01 | B160: ASFALTOS DILUÍDOS CM-30 | C160: Pernambuco | D160: -
A161: 2013-06-01 | B161: ASFALTOS DILUÍDOS CM-30 | C161: Piauí | D161: -
A162: 2013-06-01 | B162: ASFALTOS DILUÍDOS CM-30 | C162: Rio de Janeiro | D162: 1.52742
A163: 2013-06-01 | B163: ASFALTOS DILUÍDOS CM-30 | C163: Rio Grande do Norte | D163: -
A164: 2013-06-01 | B164: ASFALTOS DILUÍDOS CM-30 | C164: Rio Grande do Sul | D164: 1.59868
A165: 2013-06-01 | B165: ASFALTOS DILUÍDOS CM-30 | C165: Rondônia | D165: -
A166: 2013-06-01 | B166: ASFALTOS DILUÍDOS CM-30 | C166: Roraima | D166: -
A167: 2013-06-01 | B167: ASFALTOS DILUÍDOS CM-30 | C167: Santa Catarina | D167: -
A168: 2013-06-01 | B168: ASFALTOS DILUÍDOS CM-30 | C168: São Paulo | D168: 1.43275
A169: 2013-06-01 | B169: ASFALTOS DILUÍDOS CM-30 | C169: Sergipe | D169: -
A170: 2013-06-01 | B170: ASFALTOS DILUÍDOS CM-30 | C170: Tocantins | D170: -
A171: 2013-07-01 | B171: ASFALTOS DILUÍDOS CM-30 | C171: Acre | D171: -
A172: 2013-07-01 | B172: ASFALTOS DILUÍDOS CM-30 | C172: Alagoas | D172: -
A173: 2013-07-01 | B173: ASFALTOS DILUÍDOS CM-30 | C173: Amapá | D173: -
A174: 2013-07-01 | B174: ASFALTOS DILUÍDOS CM-30 | C174: Amazonas | D174: 1.50989
A175: 2013-07-01 | B175: ASFALTOS DILUÍDOS CM-30 | C175: Bahia | D175: 1.43615
A176: 2013-07-01 | B176: ASFALTOS DILUÍDOS CM-30 | C176: Ceará | D176: 1.42484
A177: 2013-07-01 | B177: ASFALTOS DILUÍDOS CM-30 | C177: Distrito Federal | D177: -
A178: 2013-07-01 | B178: ASFALTOS DILUÍDOS CM-30 | C178: Espírito Santo | D178: -
A179: 2013-07-01 | B179: ASFALTOS DILUÍDOS CM-30 | C179: Goiás | D179: 1.66378
A180: 2013-07-01 | B180: ASFALTOS DILUÍDOS CM-30 | C180: Maranhão | D180: -
A181: 2013-07-01 | B181: ASFALTOS DILUÍDOS CM-30 | C181: Mato Grosso | D181: 1.93059
A182: 2013-07-01 | B182: ASFALTOS DILUÍDOS CM-30 | C182: Mato Grosso do Sul | D182: -
A183: 2013-07-01 | B183: ASFALTOS DILUÍDOS CM-30 | C183: Minas Gerais | D183: 1.47657
A184: 2013-07-01 | B184: ASFALTOS DILUÍDOS CM-30 | C184: Pará | D184: -
A185: 2013-07-01 | B185: ASFALTOS DILUÍDOS CM-30 | C185: Paraíba | D185: -
A186: 2013-07-01 | B186: ASFALTOS DILUÍDOS CM-30 | C186: Paraná | D186: 1.47717
A187: 2013-07-01 | B187: ASFALTOS DILUÍDOS CM-30 | C187: Pernambuco | D187: -
A188: 2013-07-01 | B188: ASFALTOS DILUÍDOS CM-30 | C188: Piauí | D188: -
A189: 2013-07-01 | B189: ASFALTOS DILUÍDOS CM-30 | C189: Rio de Janeiro | D189: 1.58446
A190: 2013-07-01 | B190: ASFALTOS DILUÍDOS CM-30 | C190: Rio Grande do Norte | D190: -
A191: 2013-07-01 | B191: ASFALTOS DILUÍDOS CM-30 | C191: Rio Grande do Sul | D191: 1.61249
A192: 2013-07-01 | B192: ASFALTOS DILUÍDOS CM-30 | C192: Rondônia | D192: -
A193: 2013-07-01 | B193: ASFALTOS DILUÍDOS CM-30 | C193: Roraima | D193: -
A194: 2013-07-01 | B194: ASFALTOS DILUÍDOS CM-30 | C194: Santa Catarina | D194: -
A195: 2013-07-01 | B195: ASFALTOS DILUÍDOS CM-30 | C195: São Paulo | D195: 1.50784
A196: 2013-07-01 | B196: ASFALTOS DILUÍDOS CM-30 | C196: Sergipe | D196: -
A197: 2013-07-01 | B197: ASFALTOS DILUÍDOS CM-30 | C197: Tocantins | D197: -
A198: 2013-08-01 | B198: ASFALTOS DILUÍDOS CM-30 | C198: Acre | D198: -
A199: 2013-08-01 | B199: ASFALTOS DILUÍDOS CM-30 | C199: Alagoas | D199: -
A200: 2013-08-01 | B200: ASFALTOS DILUÍDOS CM-30 | C200: Amapá | D200: -
A201: 2013-08-01 | B201: ASFALTOS DILUÍDOS CM-30 | C201: Amazonas | D201: 1.50928
A202: 2013-08-01 | B202: ASFALTOS DILUÍDOS CM-30 | C202: Bahia | D202: 1.4167
A203: 2013-08-01 | B203: ASFALTOS DILUÍDOS CM-30 | C203: Ceará | D203: 1.4474
... 4297 more rows

Sheet ANP REGIÃO
A1: Agência Nacional do Petróleo, Gás Natural e Biocombustíveis
A2: Superintendência de Defesa da Concorrência
A6: PREÇO MÉDIO MENSAL PONDERADO PRATICADO PELOS DISTRIBUIDORES DE PRODUTOS ASFÁLTICOS (R$/KG)
A8: Produto | B8: Mês | C8: Norte | D8: Nordeste | E8: Centro-Oeste | F8: Sudeste | G8: Sul | H8: Brasil
A9: ASFALTOS DILUÍDOS CM-30 | B9: 2008-11-01 | C9: 1.77547 | D9: 1.55088 | E9: 2.02214 | F9: 1.55449 | G9: 1.58453 | H9: 1.64287
A10: ASFALTOS DILUÍDOS CM-30 | B10: 2008-12-01 | C10: 1.80684 | D10: 1.50912 | E10: 2.01302 | F10: 1.6109 | G10: 1.60719 | H10: 1.63758
A11: ASFALTOS DILUÍDOS CM-30 | B11: 2009-01-01 | C11: 1.49705 | D11: 1.5043 | E11: 1.9631 | F11: 1.52467 | G11: 1.58514 | H11: 1.56495
A12: ASFALTOS DILUÍDOS CM-30 | B12: 2009-02-01 | C12: 1.42787 | D12: 1.49769 | E12: 1.98107 | F12: 1.58349 | G12: 1.59592 | H12: 1.56545
A13: ASFALTOS DILUÍDOS CM-30 | B13: 2009-03-01 | C13: 1.40494 | D13: 1.49765 | E13: 1.89343 | F13: 1.52755 | G13: 1.58872 | H13: 1.53271
A14: ASFALTOS DILUÍDOS CM-30 | B14: 2009-04-01 | C14: 1.41051 | D14: 1.48483 | E14: 1.90923 | F14: 1.46415 | G14: 1.55383 | H14: 1.51672
A15: ASFALTOS DILUÍDOS CM-30 | B15: 2009-05-01 | C15: 1.48036 | D15: 1.4669 | E15: 1.89159 | F15: 1.43544 | G15: 1.54161 | H15: 1.53757
A16: ASFALTOS DILUÍDOS CM-30 | B16: 2009-06-01 | C16: 1.58075 | D16: 1.44489 | E16: 1.84207 | F16: 1.42426 | G16: 1.50153 | H16: 1.54132
A17: ASFALTOS DILUÍDOS CM-30 | B17: 2009-07-01 | C17: 1.90543 | D17: 1.48262 | E17: 1.94905 | F17: 1.58444 | G17: 1.61031 | H17: 1.65103
A18: ASFALTOS DILUÍDOS CM-30 | B18: 2009-08-01 | C18: 1.717 | D18: 1.42385 | E18: 1.71239 | F18: 1.418 | G18: 1.52064 | H18: 1.50491
A19: ASFALTOS DILUÍDOS CM-30 | B19: 2009-09-01 | C19: 1.64329 | D19: 1.44532 | E19: 1.73152 | F19: 1.41937 | G19: 1.50074 | H19: 1.50552
A20: ASFALTOS DILUÍDOS CM-30 | B20: 2009-10-01 | C20: 1.58803 | D20: 1.45893 | E20: 1.76202 | F20: 1.42902 | G20: 1.51375 | H20: 1.51168
A21: ASFALTOS DILUÍDOS CM-30 | B21: 2009-11-01 | C21: 1.63935 | D21: 1.44906 | E21: 1.77265 | F21: 1.43412 | G21: 1.52604 | H21: 1.49966
A22: ASFALTOS DILUÍDOS CM-30 | B22: 2009-12-01 | C22: 1.66427 | D22: 1.44197 | E22: 1.89057 | F22: 1.42908 | G22: 1.52054 | H22: 1.50886
A23: ASFALTOS DILUÍDOS CM-30 | B23: 2010-01-01 | C23: 1.84251 | D23: 1.45498 | E23: 1.86502 | F23: 1.41482 | G23: 1.47445 | H23: 1.49774
A24: ASFALTOS DILUÍDOS CM-30 | B24: 2010-02-01 | C24: 1.70989 | D24: 1.44296 | E24: 1.91984 | F24: 1.43315 | G24: 1.50088 | H24: 1.49654
A25: ASFALTOS DILUÍDOS CM-30 | B25: 2010-03-01 | C25: 1.53574 | D25: 1.44888 | E25: 1.93506 | F25: 1.43503 | G25: 1.48062 | H25: 1.48679
A26: ASFALTOS DILUÍDOS CM-30 | B26: 2010-04-01 | C26: 1.71005 | D26: 1.4403 | E26: 1.91194 | F26: 1.4211 | G26: 1.48127 | H26: 1.51109
A27: ASFALTOS DILUÍDOS CM-30 | B27: 2010-05-01 | C27: 1.75561 | D27: 1.43528 | E27: 1.87329 | F27: 1.40694 | G27: 1.48178 | H27: 1.53717
A28: ASFALTOS DILUÍDOS CM-30 | B28: 2010-06-01 | C28: 1.60222 | D28: 1.396 | E28: 1.73173 | F28: 1.4 | G28: 1.49194 | H28: 1.49807
A29: ASFALTOS DILUÍDOS CM-30 | B29: 2010-07-01 | C29: 1.5599 | D29: 1.38102 | E29: 1.73269 | F29: 1.4029 | G29: 1.47385 | H29: 1.49008
A30: ASFALTOS DILUÍDOS CM-30 | B30: 2010-08-01 | C30: 1.52664 | D30: 1.38818 | E30: 1.73895 | F30: 1.39875 | G30: 1.45575 | H30: 1.49583
A31: ASFALTOS DILUÍDOS CM-30 | B31: 2010-09-01 | C31: 1.56538 | D31: 1.4082 | E31: 1.75703 | F31: 1.41164 | G31: 1.48726 | H31: 1.51226
A32: ASFALTOS DILUÍDOS CM-30 | B32: 2010-10-01 | C32: 1.48171 | D32: 1.40436 | E32: 1.75116 | F32: 1.40349 | G32: 1.46934 | H32: 1.49989
A33: ASFALTOS DILUÍDOS CM-30 | B33: 2010-11-01 | C33: 1.51927 | D33: 1.41013 | E33: 1.77941 | F33: 1.42128 | G33: 1.45856 | H33: 1.48166
A34: ASFALTOS DILUÍDOS CM-30 | B34: 2010-12-01 | C34: 1.55929 | D34: 1.40982 | E34: 1.82519 | F34: 1.41767 | G34: 1.47324 | H34: 1.46911
A35: ASFALTOS DILUÍDOS CM-30 | B35: 2011-01-01 | C35: 1.52592 | D35: 1.44579 | E35: 1.7746 | F35: 1.40327 | G35: 1.466 | H35: 1.45726
A36: ASFALTOS DILUÍDOS CM-30 | B36: 2011-02-01 | C36: 1.55283 | D36: 1.39209 | E36: 1.76384 | F36: 1.38519 | G36: 1.44956 | H36: 1.42625
A37: ASFALTOS DILUÍDOS CM-30 | B37: 2011-03-01 | C37: 1.46922 | D37: 1.36944 | E37: 1.69602 | F37: 1.35381 | G37: 1.43517 | H37: 1.40013
A38: ASFALTOS DILUÍDOS CM-30 | B38: 2011-04-01 | C38: 1.47057 | D38: 1.37322 | E38: 1.65083 | F38: 1.34593 | G38: 1.422 | H38: 1.40049
A39: ASFALTOS DILUÍDOS CM-30 | B39: 2011-05-01 | C39: 1.42853 | D39: 1.32265 | E39: 1.70038 | F39: 1.34507 | G39: 1.43936 | H39: 1.42806
A40: ASFALTOS DILUÍDOS CM-30 | B40: 2011-06-01 | C40: 1.40762 | D40: 1.30571 | E40: 1.74184 | F40: 1.35462 | G40: 1.3995 | H40: 1.4403
A41: ASFALTOS DILUÍDOS CM-30 | B41: 2011-07-01 | C41: 1.25923 | D41: 1.31203 | E41: 1.73749 | F41: 1.33656 | G41: 1.42247 | H41: 1.42084
A42: ASFALTOS DILUÍDOS CM-30 | B42: 2011-08-01 | C42: 1.47068 | D42: 1.29978 | E42: 1.72744 | F42: 1.34148 | G42: 1.35302 | H42: 1.42568
A43: ASFALTOS DILUÍDOS CM-30 | B43: 2011-09-01 | C43: 1.56133 | D43: 1.3212 | E43: 1.72982 | F43: 1.35745 | G43: 1.39568 | H43: 1.4552
A44: ASFALTOS DILUÍDOS CM-30 | B44: 2011-10-01 | C44: 1.52057 | D44: 1.32622 | E44: 1.71738 | F44: 1.33269 | G44: 1.35778 | H44: 1.4423
A45: ASFALTOS DILUÍDOS CM-30 | B45: 2011-11-01 | C45: 1.46589 | D45: 1.33704 | E45: 1.741 | F45: 1.34549 | G45: 1.44758 | H45: 1.44535
A46: ASFALTOS DILUÍDOS CM-30 | B46: 2011-12-01 | C46: 1.47088 | D46: 1.33559 | E46: 1.77872 | F46: 1.40829 | G46: 1.42811 | H46: 1.42242
A47: ASFALTOS DILUÍDOS CM-30 | B47: 2012-01-01 | C47: 1.38496 | D47: 1.35013 | E47: 1.78078 | F47: 1.42135 | G47: 1.43035 | H47: 1.39466
A48: ASFALTOS DILUÍDOS CM-30 | B48: 2012-02-01 | C48: 1.33218 | D48: 1.36814 | E48: 1.74102 | F48: 1.4002 | G48: 1.4254 | H48: 1.41061
A49: ASFALTOS DILUÍDOS CM-30 | B49: 2012-03-01 | C49: 1.41162 | D49: 1.34912 | E49: 1.6201 | F49: 1.3933 | G49: 1.40613 | H49: 1.40977
A50: ASFALTOS DILUÍDOS CM-30 | B50: 2012-04-01 | C50: 1.54901 | D50: 1.38398 | E50: 1.64071 | F50: 1.40472 | G50: 1.44062 | H50: 1.45608
A51: ASFALTOS DILUÍDOS CM-30 | B51: 2012-05-01 | C51: 1.59618 | D51: 1.38636 | E51: 1.71206 | F51: 1.39924 | G51: 1.44835 | H51: 1.49846
A52: ASFALTOS DILUÍDOS CM-30 | B52: 2012-06-01 | C52: 1.70143 | D52: 1.38805 | E52: 1.74035 | F52: 1.42212 | G52: 1.4492 | H52: 1.52772
A53: ASFALTOS DILUÍDOS CM-30 | B53: 2012-07-01 | C53: 1.65203 | D53: 1.39437 | E53: 1.71864 | F53: 1.43967 | G53: 1.46188 | H53: 1.52307
A54: ASFALTOS DILUÍDOS CM-30 | B54: 2012-08-01 | C54: 1.69 | D54: 1.40334 | E54: 1.7419 | F54: 1.42172 | G54: 1.44569 | H54: 1.53653
A55: ASFALTOS DILUÍDOS CM-30 | B55: 2012-09-01 | C55: 1.69018 | D55: 1.4215 | E55: 1.78092 | F55: 1.44518 | G55: 1.48365 | H55: 1.54941
A56: ASFALTOS DILUÍDOS CM-30 | B56: 2012-10-01 | C56: 1.57484 | D56: 1.41707 | E56: 1.79483 | F56: 1.4513 | G56: 1.48204 | H56: 1.55063
A57: ASFALTOS DILUÍDOS CM-30 | B57: 2012-11-01 | C57: 1.65516 | D57: 1.45588 | E57: 1.84013 | F57: 1.4612 | G57: 1.4835 | H57: 1.5525
A58: ASFALTOS DILUÍDOS CM-30 | B58: 2012-12-01 | C58: 1.71488 | D58: 1.43585 | E58: 1.80407 | F58: 1.45223 | G58: 1.50942 | H58: 1.52341
A59: ASFALTOS DILUÍDOS CM-30 | B59: 2013-01-01 | C59: 1.49578 | D59: 1.44949 | E59: 1.85405 | F59: 1.44639 | G59: 1.56375 | H59: 1.50214
A60: ASFALTOS DILUÍDOS CM-30 | B60: 2013-02-01 | C60: 1.63507 | D60: 1.42061 | E60: 1.73107 | F60: 1.44275 | G60: 1.46183 | H60: 1.47396
A61: ASFALTOS DILUÍDOS CM-30 | B61: 2013-03-01 | C61: 1.64623 | D61: 1.4133 | E61: 1.83828 | F61: 1.45002 | G61: 1.52576 | H61: 1.50654
A62: ASFALTOS DILUÍDOS CM-30 | B62: 2013-04-01 | C62: 1.58186 | D62: 1.39919 | E62: 1.79383 | F62: 1.4587 | G62: 1.55191 | H62: 1.52362
A63: ASFALTOS DILUÍDOS CM-30 | B63: 2013-05-01 | C63: 1.81565 | D63: 1.39014 | E63: 1.81278 | F63: 1.44951 | G63: 1.50423 | H63: 1.54992
A64: ASFALTOS DILUÍDOS CM-30 | B64: 2013-06-01 | C64: 1.6311 | D64: 1.38319 | E64: 1.81664 | F64: 1.47423 | G64: 1.50304 | H64: 1.58105
A65: ASFALTOS DILUÍDOS CM-30 | B65: 2013-07-01 | C65: 1.86597 | D65: 1.42205 | E65: 1.79307 | F65: 1.49802 | G65: 1.53339 | H65: 1.59881
A66: ASFALTOS DILUÍDOS CM-30 | B66: 2013-08-01 | C66: 1.70033 | D66: 1.43509 | E66: 1.82145 | F66: 1.51172 | G66: 1.53079 | H66: 1.60618
A67: ASFALTOS DILUÍDOS CM-30 | B67: 2013-09-01 | C67: 1.56287 | D67: 1.4722 | E67: 1.87984 | F67: 1.54265 | G67: 1.49067 | H67: 1.62795
A68: ASFALTOS DILUÍDOS CM-30 | B68: 2013-10-01 | C68: 1.6485 | D68: 1.47215 | E68: 1.82549 | F68: 1.50118 | G68: 1.48379 | H68: 1.59754
A69: ASFALTOS DILUÍDOS CM-30 | B69: 2013-11-01 | C69: 1.61918 | D69: 1.48641 | E69: 1.84401 | F69: 1.49633 | G69: 1.5061 | H69: 1.58167
A70: ASFALTOS DILUÍDOS CM-30 | B70: 2013-12-01 | C70: 1.63336 | D70: 1.49482 | E70: 1.8972 | F70: 1.50286 | G70: 1.51707 | H70: 1.57248
A71: ASFALTOS DILUÍDOS CM-30 | B71: 2014-01-01 | C71: 1.68831 | D71: 1.49418 | E71: 1.79836 | F71: 1.4842 | G71: 1.53335 | H71: 1.54291
A72: ASFALTOS DILUÍDOS CM-30 | B72: 2014-02-01 | C72: 1.5983 | D72: 1.47971 | E72: 1.81439 | F72: 1.51483 | G72: 1.5228 | H72: 1.52897
A73: ASFALTOS DILUÍDOS CM-30 | B73: 2014-03-01 | C73: 1.64829 | D73: 1.47285 | E73: 1.76657 | F73: 1.51302 | G73: 1.50619 | H73: 1.53018
A74: ASFALTOS DILUÍDOS CM-30 | B74: 2014-04-01 | C74: 1.53446 | D74: 1.4939 | E74: 1.75727 | F74: 1.53302 | G74: 1.52428 | H74: 1.55057
A75: ASFALTOS DILUÍDOS CM-30 | B75: 2014-05-01 | C75: 1.58658 | D75: 1.49083 | E75: 1.80434 | F75: 1.50114 | G75: 1.56704 | H75: 1.58645
A76: ASFALTOS DILUÍDOS CM-30 | B76: 2014-06-01 | C76: 1.65828 | D76: 1.5058 | E76: 1.83959 | F76: 1.50686 | G76: 1.52378 | H76: 1.63607
A77: ASFALTOS DILUÍDOS CM-30 | B77: 2014-07-01 | C77: 1.8903 | D77: 1.50073 | E77: 1.70828 | F77: 1.48729 | G77: 1.50596 | H77: 1.58707
A78: ASFALTOS DILUÍDOS CM-30 | B78: 2014-08-01 | C78: 1.63274 | D78: 1.50195 | E78: 1.6712 | F78: 1.48236 | G78: 1.50633 | H78: 1.55791
A79: ASFALTOS DILUÍDOS CM-30 | B79: 2014-09-01 | C79: 1.66957 | D79: 1.54683 | E79: 1.8648 | F79: 1.49676 | G79: 1.57053 | H79: 1.63928
A80: ASFALTOS DILUÍDOS CM-30 | B80: 2014-10-01 | C80: 1.74288 | D80: 1.50898 | E80: 1.74665 | F80: 1.47077 | G80: 1.45427 | H80: 1.57912
A81: ASFALTOS DILUÍDOS CM-30 | B81: 2014-11-01 | C81: 1.86472 | D81: 1.57943 | E81: 1.74916 | F81: 1.46508 | G81: 1.52915 | H81: 1.60136
A82: ASFALTOS DILUÍDOS CM-30 | B82: 2014-12-01 | C82: 1.81267 | D82: 1.70484 | E82: 1.96331 | F82: 1.62368 | G82: 1.64964 | H82: 1.71883
A83: ASFALTOS DILUÍDOS CM-30 | B83: 2015-01-01 | C83: 2.15481 | D83: 2.02376 | E83: 2.31886 | F83: 1.86659 | G83: 1.89838 | H83: 2.00779
A84: ASFALTOS DILUÍDOS CM-30 | B84: 2015-02-01 | C84: 2.26024 | D84: 2.00567 | E84: 2.39388 | F84: 1.85452 | G84: 1.9274 | H84: 2.00765
A85: ASFALTOS DILUÍDOS CM-30 | B85: 2015-03-01 | C85: 2.12418 | D85: 1.96882 | E85: 2.27964 | F85: 1.88776 | G85: 1.93022 | H85: 1.98482
A86: ASFALTOS DILUÍDOS CM-30 | B86: 2015-04-01 | C86: 2.03005 | D86: 2.00151 | E86: 2.37912 | F86: 1.85245 | G86: 1.94903 | H86: 1.98064
A87: ASFALTOS DILUÍDOS CM-30 | B87: 2015-05-01 | C87: 2.50727 | D87: 1.94687 | E87: 2.25476 | F87: 1.80747 | G87: 2.01693 | H87: 2.00547
A88: ASFALTOS DILUÍDOS CM-30 | B88: 2015-06-01 | C88: 2.24832 | D88: 1.94426 | E88: 2.31433 | F88: 1.847 | G88: 1.96857 | H88: 2.04258
A89: ASFALTOS DILUÍDOS CM-30 | B89: 2015-07-01 | C89: 1.99222 | D89: 1.99279 | E89: 2.04677 | F89: 1.78265 | G89: 1.93167 | H89: 1.94263
A90: ASFALTOS DILUÍDOS CM-30 | B90: 2015-08-01 | C90: 2.30761 | D90: 2.03809 | E90: 2.25275 | F90: 1.8281 | G90: 1.93982 | H90: 2.08194
A91: ASFALTOS DILUÍDOS CM-30 | B91: 2015-09-01 | C91: 2.31429 | D91: 2.09531 | E91: 2.34456 | F91: 1.94255 | G91: 2.00535 | H91: 2.16818
A92: ASFALTOS DILUÍDOS CM-30 | B92: 2015-10-01 | C92: 2.32946 | D92: 2.17057 | E92: 2.43273 | F92: 2.03562 | G92: 2.11026 | H92: 2.23753
A93: ASFALTOS DILUÍDOS CM-30 | B93: 2015-11-01 | C93: 2.60606 | D93: 2.4371 | E93: 2.71161 | F93: 2.28011 | G93: 2.32645 | H93: 2.475
A94: ASFALTOS DILUÍDOS CM-30 | B94: 2015-12-01 | C94: 2.63537 | D94: 2.39592 | E94: 2.69353 | F94: 2.27253 | G94: 2.33074 | H94: 2.45285
A95: ASFALTOS DILUÍDOS CM-30 | B95: 2016-01-01 | C95: 2.71586 | D95: 2.37386 | E95: 2.84467 | F95: 2.26365 | G95: 2.23263 | H95: 2.40056
A96: ASFALTOS DILUÍDOS CM-30 | B96: 2016-02-01 | C96: 2.80468 | D96: 2.46685 | E96: 2.79179 | F96: 2.29564 | G96: 2.34656 | H96: 2.46435
A97: ASFALTOS DILUÍDOS CM-30 | B97: 2016-03-01 | C97: 2.5805 | D97: 2.47068 | E97: 2.70769 | F97: 2.2353 | G97: 2.38312 | H97: 2.42356
A98: ASFALTOS DILUÍDOS CM-30 | B98: 2016-04-01 | C98: 2.94201 | D98: 2.74074 | E98: 2.75907 | F98: 2.54444 | G98: 2.71075 | H98: 2.68027
A99: ASFALTOS DILUÍDOS CM-30 | B99: 2016-05-01 | C99: 3.01058 | D99: 2.65028 | E99: 2.85712 | F99: 2.57558 | G99: 2.77041 | H99: 2.70973
A100: ASFALTOS DILUÍDOS CM-30 | B100: 2016-06-01 | C100: 2.90918 | D100: 2.62139 | E100: 2.94349 | F100: 2.65911 | G100: 2.68476 | H100: 2.74362
A101: ASFALTOS DILUÍDOS CM-30 | B101: 2016-07-01 | C101: 2.98574 | D101: 2.59164 | E101: 2.98928 | F101: 2.6044 | G101: 2.66088 | H101: 2.74514
A102: ASFALTOS DILUÍDOS CM-30 | B102: 2016-08-01 | C102: 2.93524 | D102: 2.62392 | E102: 2.97049 | F102: 2.67949 | G102: 2.72703 | H102: 2.78139
A103: ASFALTOS DILUÍDOS CM-30 | B103: 2016-09-01 | C103: 2.64914 | D103: 2.52105 | E103: 2.78158 | F103: 2.51393 | G103: 2.37127 | H103: 2.59562
A104: ASFALTOS DILUÍDOS CM-30 | B104: 2016-10-01 | C104: 2.62611 | D104: 2.44447 | E104: 2.78162 | F104: 2.50738 | G104: 2.38325 | H104: 2.567
A105: ASFALTOS DILUÍDOS CM-30 | B105: 2016-11-01 | C105: 2.53509 | D105: 2.37415 | E105: 2.95277 | F105: 2.48126 | G105: 2.38221 | H105: 2.54284
A106: ASFALTOS DILUÍDOS CM-30 | B106: 2016-12-01 | C106: 2.50039 | D106: 2.25341 | E106: 3.03852 | F106: 2.58944 | G106: 2.39559 | H106: 2.47644
A107: ASFALTOS DILUÍDOS CM-30 | B107: 2017-01-01 | C107: 2.39288 | D107: 2.2327 | E107: 3.08908 | F107: 2.53574 | G107: 2.37869 | H107: 2.37422
A108: ASFALTOS DILUÍDOS CM-30 | B108: 2017-02-01 | C108: 2.68039 | D108: 2.2719 | E108: 2.76441 | F108: 2.57393 | G108: 2.38464 | H108: 2.47072
A109: ASFALTOS DILUÍDOS CM-30 | B109: 2017-03-01 | C109: 2.23884 | D109: 2.38696 | E109: 2.66722 | F109: 2.37217 | G109: 2.30122 | H109: 2.3788
A110: ASFALTOS DILUÍDOS CM-30 | B110: 2017-04-01 | C110: 2.42019 | D110: 2.30797 | E110: 2.79409 | F110: 2.25841 | G110: 2.25643 | H110: 2.38027
A111: ASFALTOS DILUÍDOS CM-30 | B111: 2017-05-01 | C111: 2.43211 | D111: 2.16792 | E111: 2.69984 | F111: 2.25539 | G111: 2.20403 | H111: 2.36152
A112: ASFALTOS DILUÍDOS CM-30 | B112: 2017-06-01 | C112: 2.4283 | D112: 2.18194 | E112: 2.75667 | F112: 2.23455 | G112: 2.30578 | H112: 2.44553
A113: ASFALTOS DILUÍDOS CM-30 | B113: 2017-07-01 | C113: 2.45375 | D113: 2.21808 | E113: 2.69463 | F113: 2.41433 | G113: 2.2696 | H113: 2.47344
A114: ASFALTOS DILUÍDOS CM-30 | B114: 2017-08-01 | C114: 2.44793 | D114: 2.15311 | E114: 2.59535 | F114: 2.30292 | G114: 2.17015 | H114: 2.38088
A115: ASFALTOS DILUÍDOS CM-30 | B115: 2017-09-01 | C115: 2.49455 | D115: 2.14244 | E115: 2.62317 | F115: 2.37131 | G115: 2.3037 | H115: 2.39354
A116: ASFALTOS DILUÍDOS CM-30 | B116: 2017-10-01 | C116: 2.34995 | D116: 2.18056 | E116: 2.61416 | F116: 2.41525 | G116: 2.2008 | H116: 2.36795
A117: ASFALTOS DILUÍDOS CM-30 | B117: 2017-11-01 | C117: 2.67013 | D117: 2.43317 | E117: 2.90863 | F117: 2.58469 | G117: 2.41519 | H117: 2.6021
A118: ASFALTOS DILUÍDOS CM-30 | B118: 2017-12-01 | C118: 2.58735 | D118: 2.42536 | E118: 2.90663 | F118: 2.60289 | G118: 2.42289 | H118: 2.53176
A119: ASFALTOS DILUÍDOS CM-30 | B119: 2018-01-01 | C119: 2.95036 | D119: 2.66286 | E119: 2.87595 | F119: 2.62074 | G119: 2.64696 | H119: 2.73596
A120: ASFALTOS DILUÍDOS CM-30 | B120: 2018-02-01 | C120: 2.6779 | D120: 2.6725 | E120: 2.9426 | F120: 2.62043 | G120: 2.56789 | H120: 2.66837
A121: ASFALTOS DILUÍDOS CM-30 | B121: 2018-03-01 | C121: 2.73336 | D121: 2.58905 | E121: 2.80917 | F121: 2.56193 | G121: 2.57595 | H121: 2.63488
A122: ASFALTOS DILUÍDOS CM-30 | B122: 2018-04-01 | C122: 2.7578 | D122: 2.66955 | E122: 2.77391 | F122: 2.59547 | G122: 2.55604 | H122: 2.66433
A123: ASFALTOS DILUÍDOS CM-30 | B123: 2018-05-01 | C123: 2.84121 | D123: 2.67203 | E123: 2.8845 | F123: 2.68672 | G123: 2.73649 | H123: 2.77738
A124: ASFALTOS DILUÍDOS CM-30 | B124: 2018-06-01 | C124: 3.00844 | D124: 2.91961 | E124: 3.15845 | F124: 2.84673 | G124: 2.95352 | H124: 2.98229
A125: ASFALTOS DILUÍDOS CM-30 | B125: 2018-07-01 | C125: 3.26824 | D125: 3.03652 | E125: 3.39936 | F125: 3.02647 | G125: 3.1978 | H125: 3.16413
A126: ASFALTOS DILUÍDOS CM-30 | B126: 2018-08-01 | C126: 3.56441 | D126: 3.41519 | E126: 3.70771 | F126: 3.42508 | G126: 3.35672 | H126: 3.51556
A127: ASFALTOS DILUÍDOS CM-30 | B127: 2018-09-01 | C127: 3.17391 | D127: 3.44506 | E127: 3.73526 | F127: 3.38582 | G127: 3.60731 | H127: 3.48324
A128: ASFALTOS DILUÍDOS CM-30 | B128: 2018-10-01 | C128: 3.48778 | D128: 3.46051 | E128: 3.72144 | F128: 3.43253 | G128: 3.60602 | H128: 3.54539
A129: ASFALTOS DILUÍDOS CM-30 | B129: 2018-11-01 | C129: 4.04727 | D129: 3.81489 | E129: 4.28013 | F129: 4.17813 | G129: 3.96768 | H129: 3.99015
A130: ASFALTOS DILUÍDOS CM-30 | B130: 2018-12-01 | C130: 3.95149 | D130: 3.96711 | E130: 4.34114 | F130: 3.91677 | G130: 3.91199 | H130: 3.99974
A131: ASFALTOS DILUÍDOS CM-30 | B131: 2019-01-01 | C131: 3.79686 | D131: 3.87002 | E131: 4.2019 | F131: 3.9542 | G131: 3.97679 | H131: 3.93395
A132: ASFALTOS DILUÍDOS CM-30 | B132: 2019-02-01 | C132: 3.51658 | D132: 4.09036 | E132: 4.49842 | F132: 4.46994 | G132: 4.25459 | H132: 4.18854
A133: ASFALTOS DILUÍDOS CM-30 | B133: 2019-03-01 | C133: 4.21676 | D133: 4.36191 | E133: 4.90719 | F133: 4.39872 | G133: 4.29082 | H133: 4.3603
A134: ASFALTOS DILUÍDOS CM-30 | B134: 2019-04-01 | C134: 4.28165 | D134: 4.23466 | E134: 4.53163 | F134: 4.43723 | G134: 4.46688 | H134: 4.38082
A135: ASFALTOS DILUÍDOS CM-30 | B135: 2019-05-01 | C135: 4.28764 | D135: 4.1907 | E135: 4.85791 | F135: 4.26746 | G135: 4.63381 | H135: 4.3664
A136: ASFALTOS DILUÍDOS CM-30 | B136: 2019-06-01 | C136: 4.47561 | D136: 3.96505 | E136: 4.66273 | F136: 4.3506 | G136: 4.21123 | H136: 4.31932
A137: ASFALTOS DILUÍDOS CM-30 | B137: 2019-07-01 | C137: 4.3945 | D137: 4.05804 | E137: 4.83422 | F137: 4.09466 | G137: 4.233 | H137: 4.34698
A138: ASFALTOS DILUÍDOS CM-30 | B138: 2019-08-01 | C138: 4.48174 | D138: 3.91066 | E138: 4.57633 | F138: 4.11162 | G138: 4.25542 | H138: 4.25835
A139: ASFALTOS DILUÍDOS CM-30 | B139: 2019-09-01 | C139: 4.43958 | D139: 3.8599 | E139: 4.49526 | F139: 4.11132 | G139: 4.11736 | H139: 4.25161
A140: ASFALTOS DILUÍDOS CM-30 | B140: 2019-10-01 | C140: 4.33589 | D140: 3.77232 | E140: 4.45924 | F140: 4.05608 | G140: 3.94246 | H140: 4.07741
A141: ASFALTOS DILUÍDOS CM-30 | B141: 2019-11-01 | C141: 4.31624 | D141: 3.91025 | E141: 4.58184 | F141: 4.07902 | G141: 4.10662 | H141: 4.09456
A142: ASFALTOS DILUÍDOS CM-30 | B142: 2019-12-01 | C142: 4.19944 | D142: 3.98012 | E142: 4.67377 | F142: 4.43427 | G142: 3.98641 | H142: 4.16469
A143: ASFALTOS DILUÍDOS CM-30 | B143: 2020-01-01 | C143: 3.59298 | D143: 3.89532 | E143: 4.68542 | F143: 4.38707 | G143: 4.12447 | H143: 4.05334
A144: ASFALTOS DILUÍDOS CM-30 | B144: 2020-02-01 | C144: 3.64267 | D144: 3.8774 | E144: 4.43819 | F144: 3.69994 | G144: 3.77816 | H144: 3.83901
A145: ASFALTOS DILUÍDOS CM-30 | B145: 2020-03-01 | C145: 4.67667 | D145: 3.79114 | E145: 4.28922 | F145: 3.7184 | G145: 3.60909 | H145: 3.93117
A146: ASFALTOS DILUÍDOS CM-30 | B146: 2020-04-01 | C146: 4.31336 | D146: 3.69577 | E146: 4.2554 | F146: 3.8659 | G146: 3.73225 | H146: 3.96413
A147: ASFALTOS DILUÍDOS CM-30 | B147: 2020-05-01 | C147: 3.24913 | D147: 3.63777 | E147: 4.11354 | F147: 3.76055 | G147: 3.71062 | H147: 3.65618
A148: ASFALTOS DILUÍDOS CM-30 | B148: 2020-06-01 | C148: 4.0179 | D148: 3.56703 | E148: 4.27737 | F148: 3.93789 | G148: 3.62583 | H148: 3.92452
A149: ASFALTOS DILUÍDOS CM-30 | B149: 2020-07-01 | C149: 3.8405 | D149: 3.51327 | E149: 4.21549 | F149: 3.95422 | G149: 3.68884 | H149: 3.84377
A150: ASFALTOS DILUÍDOS CM-30 | B150: 2020-08-01 | C150: 4.17447 | D150: 3.46539 | E150: 4.27771 | F150: 4.06746 | G150: 3.62859 | H150: 3.94717
A151: ASFALTOS DILUÍDOS CM-30 | B151: 2020-09-01 | C151: 4.16737 | D151: 3.74636 | E151: 4.16742 | F151: 3.79562 | G151: 3.62773 | H151: 3.97313
A152: ASFALTOS DILUÍDOS CM-30 | B152: 2020-10-01 | C152: 4.4081 | D152: 3.71899 | E152: 4.27898 | F152: 4.00875 | G152: 3.59105 | H152: 4.03964
A153: ASFALTOS DILUÍDOS CM-30 | B153: 2020-11-01 | C153: 4.05631 | D153: 3.96921 | E153: 4.5479 | F153: 4.27946 | G153: 3.97335 | H153: 4.17583
A154: ASFALTOS DILUÍDOS CM-30 | B154: 2020-12-01 | C154: 4.13206 | D154: 3.85163 | E154: 4.4267 | F154: 3.90624 | G154: 3.87094 | H154: 4.03535
A155: ASFALTOS DILUÍDOS CM-30 | B155: 2021-01-01 | C155: 3.48984 | D155: 3.95153 | E155: 4.62827 | F155: 4.01158 | G155: 3.93514 | H155: 3.91709
A156: ASFALTOS DILUÍDOS CM-30 | B156: 2021-02-01 | C156: 4.09932 | D156: 4.26711 | E156: 4.83206 | F156: 4.4142 | G156: 4.14905 | H156: 4.2682
A157: ASFALTOS DILUÍDOS CM-30 | B157: 2021-03-01 | C157: 4.52836 | D157: 4.23983 | E157: 4.92631 | F157: 4.2697 | G157: 4.13066 | H157: 4.37783
A158: ASFALTOS DILUÍDOS CM-30 | B158: 2021-04-01 | C158: 4.34927 | D158: 4.087 | E158: 4.4776 | F158: 4.15611 | G158: 4.04419 | H158: 4.25336
A159: ASFALTOS DILUÍDOS CM-30 | B159: 2021-05-01 | C159: 4.48889 | D159: 4.70795 | E159: 5.10149 | F159: 4.78403 | G159: 4.52399 | H159: 4.79055
A160: ASFALTOS DILUÍDOS CM-30 | B160: 2021-06-01 | C160: 4.01047 | D160: 4.47959 | E160: 5.11304 | F160: 4.77974 | G160: 4.72121 | H160: 4.76489
A161: ASFALTOS DILUÍDOS CM-30 | B161: 2021-07-01 | C161: 4.75223 | D161: 4.55935 | E161: 5.00476 | F161: 4.80273 | G161: 4.74855 | H161: 4.81759
A162: ASFALTOS DILUÍDOS CM-30 | B162: 2021-08-01 | C162: 5.08528 | D162: 4.7725 | E162: 5.19854 | F162: 5.24474 | G162: 4.76131 | H162: 5.09817
A163: ASFALTOS DILUÍDOS CM-30 | B163: 2021-09-01 | C163: 5.1103 | D163: 4.53807 | E163: 5.24172 | F163: 5.01714 | G163: 4.86286 | H163: 5.01696
A164: ASFALTOS DILUÍDOS CM-30 | B164: 2021-10-01 | C164: 5.0807 | D164: 4.66827 | E164: 5.11954 | F164: 5.38478 | G164: 4.65852 | H164: 5.02129
A165: ASFALTOS DILUÍDOS CM-30 | B165: 2021-11-01 | C165: 5.43652 | D165: 5.08777 | E165: 5.15006 | F165: 5.63426 | G165: 5.17453 | H165: 5.22814
A166: ASFALTOS DILUÍDOS CM-30 | B166: 2021-12-01 | C166: 5.18429 | D166: 4.97549 | E166: 5.57212 | F166: 6.13566 | G166: 5.01181 | H166: 5.33957
A167: ASFALTOS DILUÍDOS CM-30 | B167: 2022-01-01 | C167: 4.92819 | D167: 5.02356 | E167: 6.01841 | F167: 5.21477 | G167: 5.48198 | H167: 5.25079
A168: ASFALTOS DILUÍDOS CM-30 | B168: 2022-02-01 | C168: 5.54568 | D168: 5.70863 | E168: 6.01107 | F168: 4.8651 | G168: 5.76337 | H168: 5.73606
A169: ASFALTOS DILUÍDOS CM-30 | B169: 2022-03-01 | C169: 6.32684 | D169: 5.64469 | E169: 5.93081 | F169: 6.18114 | G169: 5.49804 | H169: 5.92278
A170: ASFALTOS DILUÍDOS CM-30 | B170: 2022-04-01 | C170: 5.97422 | D170: 5.83275 | E170: 6.20669 | F170: 5.72033 | G170: 6.178 | H170: 6.01235
A171: ASFALTOS DILUÍDOS CM-30 | B171: 2022-05-01 | C171: 5.35402 | D171: 5.46434 | E171: 6.00761 | F171: 5.9951 | G171: 5.49095 | H171: 5.67072
A172: ASFALTOS DILUÍDOS CM-30 | B172: 2022-06-01 | C172: 5.80244 | D172: 5.31696 | E172: 5.25268 | F172: 5.81393 | G172: 5.645 | H172: 5.4695
A173: ASFALTOS DILUÍDOS CM-30 | B173: 2022-07-01 | C173: 5.96561 | D173: 5.82931 | E173: 5.9191 | F173: 5.74248 | G173: 5.67443 | H173: 5.86202
A174: ASFALTOS DILUÍDOS CM-30 | B174: 2022-08-01 | C174: 6.42423 | D174: 5.75826 | E174: 5.75235 | F174: 5.79191 | G174: 5.31272 | H174: 5.82319
A175: ASFALTOS DILUÍDOS CM-30 | B175: 2022-09-01 | C175: 5.5401 | D175: 5.60992 | E175: 5.96359 | F175: 5.30218 | G175: 4.97793 | H175: 5.69943
A176: ASFALTOS DILUÍDOS CM-30 | B176: 2022-10-01 | C176: 4.78567 | D176: 4.72752 | E176: 5.33911 | F176: 4.85116 | G176: 4.53258 | H176: 5.04166
A177: ASFALTOS DILUÍDOS CM-30 | B177: 2022-11-01 | C177: 7.76586 | D177: 4.77565 | E177: 5.23763 | F177: 4.63638 | G177: 4.46059 | H177: 5.07499
A178: ASFALTOS DILUÍDOS CM-30 | B178: 2022-12-01 | C178: 4.65725 | D178: 4.96691 | E178: 5.65516 | F178: 4.84094 | G178: 4.66101 | H178: 5.11325
A179: ASFALTOS DILUÍDOS CM-30 | B179: 2023-01-01 | C179: 4.94895 | D179: 5.05626 | E179: 5.3596 | F179: 4.4265 | G179: 4.10327 | H179: 4.71561
A180: ASFALTOS DILUÍDOS CM-30 | B180: 2023-02-01 | C180: 5.40749 | D180: 4.33577 | E180: 4.74665 | F180: 4.67488 | G180: 4.01455 | H180: 4.4178
A181: ASFALTOS DILUÍDOS CM-30 | B181: 2023-03-01 | C181: 4.99131 | D181: 4.01355 | E181: 4.74625 | F181: 4.08072 | G181: 4.08248 | H181: 4.27035
A182: ASFALTOS DILUÍDOS CM-30 | B182: 2023-04-01 | C182: 4.43848 | D182: 4.0942 | E182: 5.13582 | F182: 4.36827 | G182: 3.85931 | H182: 4.15382
A183: ASFALTOS DILUÍDOS CM-30 | B183: 2023-05-01 | C183: 5.01859 | D183: 4.50628 | E183: 5.61664 | F183: 4.03476 | G183: 4.0637 | H183: 4.68649
A184: ASFALTOS DILUÍDOS CM-30 | B184: 2023-06-01 | C184: 4.43964 | D184: 4.49581 | E184: 5.22817 | F184: 3.77203 | G184: 4.00904 | H184: 4.58805
A185: ASFALTOS DILUÍDOS CM-30 | B185: 2023-07-01 | C185: 4.3604 | D185: 4.25019 | E185: 6.18805 | F185: 3.69922 | G185: 4.31577 | H185: 4.79072
A186: ASFALTOS DILUÍDOS CM-30 | B186: 2023-08-01 | C186: 4.04322 | D186: 4.1009 | E186: 5.4142 | F186: 3.9643 | G186: 4.05599 | H186: 4.60781
A187: ASFALTOS DILUÍDOS CM-70 | B187: 2008-11-01 | C187: *** | D187: *** | E187: *** | F187: *** | G187: *** | H187: ***
A188: ASFALTOS DILUÍDOS CM-70 | B188: 2008-12-01 | C188: *** | D188: *** | E188: *** | F188: *** | G188: *** | H188: ***
A189: ASFALTOS DILUÍDOS CM-70 | B189: 2009-01-01 | C189: *** | D189: *** | E189: *** | F189: *** | G189: *** | H189: ***
A190: ASFALTOS DILUÍDOS CM-70 | B190: 2009-02-01 | C190: *** | D190: *** | E190: *** | F190: *** | G190: *** | H190: ***
A191: ASFALTOS DILUÍDOS CM-70 | B191: 2009-03-01 | C191: *** | D191: *** | E191: *** | F191: *** | G191: *** | H191: ***
A192: ASFALTOS DILUÍDOS CM-70 | B192: 2009-04-01 | C192: *** | D192: *** | E192: *** | F192: *** | G192: *** | H192: ***
A193: ASFALTOS DILUÍDOS CM-70 | B193: 2009-05-01 | C193: *** | D193: *** | E193: *** | F193: *** | G193: *** | H193: ***
A194: ASFALTOS DILUÍDOS CM-70 | B194: 2009-06-01 | C194: *** | D194: *** | E194: *** | F194: *** | G194: *** | H194: ***
A195: ASFALTOS DILUÍDOS CM-70 | B195: 2009-07-01 | C195: *** | D195: *** | E195: *** | F195: *** | G195: *** | H195: ***
A196: ASFALTOS DILUÍDOS CM-70 | B196: 2009-08-01 | C196: *** | D196: *** | E196: *** | F196: *** | G196: *** | H196: ***
A197: ASFALTOS DILUÍDOS CM-70 | B197: 2009-09-01 | C197: *** | D197: *** | E197: *** | F197: *** | G197: *** | H197: ***
A198: ASFALTOS DILUÍDOS CM-70 | B198: 2009-10-01 | C198: *** | D198: *** | E198: *** | F198: *** | G198: *** | H198: ***
A199: ASFALTOS DILUÍDOS CM-70 | B199: 2009-11-01 | C199: *** | D199: *** | E199: *** | F199: *** | G199: *** | H199: ***
A200: ASFALTOS DILUÍDOS CM-70 | B200: 2009-12-01 | C200: *** | D200: *** | E200: *** | F200: *** | G200: *** | H200: ***
A201: ASFALTOS DILUÍDOS CM-70 | B201: 2010-01-01 | C201: *** | D201: *** | E201: *** | F201: *** | G201: *** | H201: ***
A202: ASFALTOS DILUÍDOS CM-70 | B202: 2010-02-01 | C202: *** | D202: *** | E202: *** | F202: *** | G202: *** | H202: ***
A203: ASFALTOS DILUÍDOS CM-70 | B203: 2010-03-01 | C203: *** | D203: *** | E203: *** | F203: *** | G203: *** | H203: ***
A204: ASFALTOS DILUÍDOS CM-70 | B204: 2010-04-01 | C204: *** | D204: *** | E204: *** | F204: *** | G204: *** | H204: ***
... 4303 more rows

Sheet SINTÉTICO SICRO
A1: CGCIT | B1: SISTEMA DE CUSTOS REFERENCIAIS DE OBRAS - SICRO | D1: DNIT
B2: Pernambuco - Julho/2023
A3: Código | B3: Descrição do Serviço | C3: Unidade | D3: Custo Unitário (R$)
A4: 307731 | B4: Aparelho de apoio de neoprene fretado para estruturas moldadas no local - fornecimento e instalação | C4: dm³ | D4: 114.37 | E4: =A4*1 -> 307731
A5: 307732 | B5: Aparelho de apoio de neoprene fretado para estruturas pré-moldadas - fornecimento e instalação | C5: dm³ | D5: 91.31 | E5: =A5*1 -> 307732
A6: 308308 | B6: Aparelho de apoio metálico elastomérico fixo com capacidade de 1.500 kN - fornecimento e instalação | C6: un | D6: 14232.94 | E6: =A6*1 -> 308308
A7: 308313 | B7: Aparelho de apoio metálico elastomérico fixo com capacidade de 10.000 kN - fornecimento e instalação | C7: un | D7: 93251.58 | E7: =A7*1 -> 308313
A8: 308309 | B8: Aparelho de apoio metálico elastomérico fixo com capacidade de 2.500 kN - fornecimento e instalação | C8: un | D8: 23245.13 | E8: 308309
A9: 308310 | B9: Aparelho de apoio metálico elastomérico fixo com capacidade de 4.000 kN - fornecimento e instalação | C9: un | D9: 37431.68 | E9: 308310
A10: 308311 | B10: Aparelho de apoio metálico elastomérico fixo com capacidade de 5.500 kN - fornecimento e instalação | C10: un | D10: 50233.48 | E10: 308311
A11: 308312 | B11: Aparelho de apoio metálico elastomérico fixo com capacidade de 7.500 kN - fornecimento e instalação | C11: un | D11: 68907.37 | E11: 308312
A12: 308307 | B12: Aparelho de apoio metálico elastomérico fixo com capacidade de 700 kN - fornecimento e instalação | C12: un | D12: 10157.54 | E12: 308307
A13: 308322 | B13: Aparelho de apoio metálico elastomérico multidirecional com capacidade de 1.500 kN - fornecimento e instalação | C13: un | D13: 9166.9 | E13: 308322
A14: 308327 | B14: Aparelho de apoio metálico elastomérico multidirecional com capacidade de 10.000 kN - fornecimento e instalação | C14: un | D14: 59662.39 | E14: 308327
A15: 308323 | B15: Aparelho de apoio metálico elastomérico multidirecional com capacidade de 2.500 kN - fornecimento e instalação | C15: un | D15: 12741.93 | E15: 308323
A16: 308324 | B16: Aparelho de apoio metálico elastomérico multidirecional com capacidade de 4.000 kN - fornecimento e instalação | C16: un | D16: 21220.45 | E16: 308324
A17: 308325 | B17: Aparelho de apoio metálico elastomérico multidirecional com capacidade de 5.500 kN - fornecimento e instalação | C17: un | D17: 30477.33 | E17: 308325
A18: 308326 | B18: Aparelho de apoio metálico elastomérico multidirecional com capacidade de 7.500 kN - fornecimento e instalação | C18: un | D18: 43107.87 | E18: 308326
A19: 308321 | B19: Aparelho de apoio metálico elastomérico multidirecional com capacidade de 700 kN - fornecimento e instalação | C19: un | D19: 5299.19 | E19: 308321
A20: 308315 | B20: Aparelho de apoio metálico elastomérico unidirecional com capacidade de 1.500 kN - fornecimento e instalação | C20: un | D20: 10847.95 | E20: 308315
A21: 308320 | B21: Aparelho de apoio metálico elastomérico unidirecional com capacidade de 10.000 kN - fornecimento e instalação | C21: un | D21: 63435.82 | E21: 308320
A22: 308316 | B22: Aparelho de apoio metálico elastomérico unidirecional com capacidade de 2.500 kN - fornecimento e instalação | C22: un | D22: 14876.26 | E22: 308316
A23: 308317 | B23: Aparelho de apoio metálico elastomérico unidirecional com capacidade de 4.000 kN - fornecimento e instalação | C23: un | D23: 26596.22 | E23: 308317
A24: 308318 | B24: Aparelho de apoio metálico elastomérico unidirecional com capacidade de 5.500 kN - fornecimento e instalação | C24: un | D24: 34556.56 | E24: 308318
A25: 308319 | B25: Aparelho de apoio metálico elastomérico unidirecional com capacidade de 7.500 kN - fornecimento e instalação | C25: un | D25: 47951.7 | E25: 308319
A26: 308314 | B26: Aparelho de apoio metálico elastomérico unidirecional com capacidade de 700 kN - fornecimento e instalação | C26: un | D26: 6711.42 | E26: 308314
A27: 308250 | B27: Aparelho de apoio metálico esférico fixo com capacidade de 1.000 kN - fornecimento e instalação | C27: un | D27: 5816.51 | E27: 308250
A28: 308251 | B28: Aparelho de apoio metálico esférico fixo com capacidade de 1.500 kN - fornecimento e instalação | C28: un | D28: 8643.05 | E28: 308251
A29: 308268 | B29: Aparelho de apoio metálico esférico fixo com capacidade de 10.000 kN - fornecimento e instalação | C29: un | D29: 129106.67 | E29: 308268
A30: 308252 | B30: Aparelho de apoio metálico esférico fixo com capacidade de 2.000 kN - fornecimento e instalação | C30: un | D30: 10932.37 | E30: 308252
A31: 308253 | B31: Aparelho de apoio metálico esférico fixo com capacidade de 2.500 kN - fornecimento e instalação | C31: un | D31: 13789.89 | E31: 308253
A32: 308254 | B32: Aparelho de apoio metálico esférico fixo com capacidade de 3.000 kN - fornecimento e instalação | C32: un | D32: 15837.67 | E32: 308254
A33: 308255 | B33: Aparelho de apoio metálico esférico fixo com capacidade de 3.500 kN - fornecimento e instalação | C33: un | D33: 19125.76 | E33: 308255
A34: 308256 | B34: Aparelho de apoio metálico esférico fixo com capacidade de 4.000 kN - fornecimento e instalação | C34: un | D34: 22544.02 | E34: 308256
A35: 308257 | B35: Aparelho de apoio metálico esférico fixo com capacidade de 4.500 kN - fornecimento e instalação | C35: un | D35: 57130.3 | E35: 308257
A36: 308258 | B36: Aparelho de apoio metálico esférico fixo com capacidade de 5.000 kN - fornecimento e instalação | C36: un | D36: 63516.55 | E36: 308258
A37: 308259 | B37: Aparelho de apoio metálico esférico fixo com capacidade de 5.500 kN - fornecimento e instalação | C37: un | D37: 68874.8 | E37: 308259
A38: 308260 | B38: Aparelho de apoio metálico esférico fixo com capacidade de 6.000 kN - fornecimento e instalação | C38: un | D38: 74285.23 | E38: 308260
A39: 308261 | B39: Aparelho de apoio metálico esférico fixo com capacidade de 6.500 kN - fornecimento e instalação | C39: un | D39: 84408.89 | E39: 308261
A40: 308262 | B40: Aparelho de apoio metálico esférico fixo com capacidade de 7.000 kN - fornecimento e instalação | C40: un | D40: 87108.39 | E40: 308262
A41: 308263 | B41: Aparelho de apoio metálico esférico fixo com capacidade de 7.500 kN - fornecimento e instalação | C41: un | D41: 97318.81 | E41: 308263
A42: 308264 | B42: Aparelho de apoio metálico esférico fixo com capacidade de 8.000 kN - fornecimento e instalação | C42: un | D42: 104059.99 | E42: 308264
A43: 308265 | B43: Aparelho de apoio metálico esférico fixo com capacidade de 8.500 kN - fornecimento e instalação | C43: un | D43: 106592.9 | E43: 308265
A44: 308266 | B44: Aparelho de apoio metálico esférico fixo com capacidade de 9.000 kN - fornecimento e instalação | C44: un | D44: 115190.03 | E44: 308266
A45: 308267 | B45: Aparelho de apoio metálico esférico fixo com capacidade de 9.500 kN - fornecimento e instalação | C45: un | D45: 121462.9 | E45: 308267
A46: 308288 | B46: Aparelho de apoio metálico esférico multidirecional com capacidade de 1.000 kN - fornecimento e instalação | C46: un | D46: 12952.87 | E46: 308288
A47: 308289 | B47: Aparelho de apoio metálico esférico multidirecional com capacidade de 1.500 kN - fornecimento e instalação | C47: un | D47: 18318.64 | E47: 308289
A48: 308306 | B48: Aparelho de apoio metálico esférico multidirecional com capacidade de 10.000 kN - fornecimento e instalação | C48: un | D48: 121768.48 | E48: 308306
A49: 308290 | B49: Aparelho de apoio metálico esférico multidirecional com capacidade de 2.000 kN - fornecimento e instalação | C49: un | D49: 24368.14 | E49: 308290
A50: 308291 | B50: Aparelho de apoio metálico esférico multidirecional com capacidade de 2.500 kN - fornecimento e instalação | C50: un | D50: 29042.54 | E50: 308291
A51: 308292 | B51: Aparelho de apoio metálico esférico multidirecional com capacidade de 3.000 kN - fornecimento e instalação | C51: un | D51: 34028.38 | E51: 308292
A52: 308293 | B52: Aparelho de apoio metálico esférico multidirecional com capacidade de 3.500 kN - fornecimento e instalação | C52: un | D52: 38675.57 | E52: 308293
A53: 308294 | B53: Aparelho de apoio metálico esférico multidirecional com capacidade de 4.000 kN - fornecimento e instalação | C53: un | D53: 44121.76 | E53: 308294
A54: 308295 | B54: Aparelho de apoio metálico esférico multidirecional com capacidade de 4.500 kN - fornecimento e instalação | C54: un | D54: 51127.32 | E54: 308295
A55: 308296 | B55: Aparelho de apoio metálico esférico multidirecional com capacidade de 5.000 kN - fornecimento e instalação | C55: un | D55: 56926.66 | E55: 308296
A56: 308297 | B56: Aparelho de apoio metálico esférico multidirecional com capacidade de 5.500 kN - fornecimento e instalação | C56: un | D56: 61690.98 | E56: 308297
A57: 308298 | B57: Aparelho de apoio metálico esférico multidirecional com capacidade de 6.000 kN - fornecimento e instalação | C57: un | D57: 70358.52 | E57: 308298
A58: 308299 | B58: Aparelho de apoio metálico esférico multidirecional com capacidade de 6.500 kN - fornecimento e instalação | C58: un | D58: 76022.66 | E58: 308299
A59: 308300 | B59: Aparelho de apoio metálico esférico multidirecional com capacidade de 7.000 kN - fornecimento e instalação | C59: un | D59: 81848.46 | E59: 308300
A60: 308301 | B60: Aparelho de apoio metálico esférico multidirecional com capacidade de 7.500 kN - fornecimento e instalação | C60: un | D60: 88337.2 | E60: 308301
A61: 308302 | B61: Aparelho de apoio metálico esférico multidirecional com capacidade de 8.000 kN - fornecimento e instalação | C61: un | D61: 94124.93 | E61: 308302
A62: 308303 | B62: Aparelho de apoio metálico esférico multidirecional com capacidade de 8.500 kN - fornecimento e instalação | C62: un | D62: 103573.17 | E62: 308303
A63: 308304 | B63: Aparelho de apoio metálico esférico multidirecional com capacidade de 9.000 kN - fornecimento e instalação | C63: un | D63: 109143.59 | E63: 308304
A64: 308305 | B64: Aparelho de apoio metálico esférico multidirecional com capacidade de 9.500 kN - fornecimento e instalação | C64: un | D64: 115946.95 | E64: 308305
A65: 308269 | B65: Aparelho de apoio metálico esférico unidirecional com capacidade de 1.000 kN - fornecimento e instalação | C65: un | D65: 10154.57 | E65: 308269
A66: 308270 | B66: Aparelho de apoio metálico esférico unidirecional com capacidade de 1.500 kN - fornecimento e instalação | C66: un | D66: 14764.88 | E66: 308270
A67: 308287 | B67: Aparelho de apoio metálico esférico unidirecional com capacidade de 10.000 kN - fornecimento e instalação | C67: un | D67: 135669.5 | E67: 308287
A68: 308271 | B68: Aparelho de apoio metálico esférico unidirecional com capacidade de 2.000 kN - fornecimento e instalação | C68: un | D68: 18025.59 | E68: 308271
A69: 308272 | B69: Aparelho de apoio metálico esférico unidirecional com capacidade de 2.500 kN - fornecimento e instalação | C69: un | D69: 21255.61 | E69: 308272
A70: 308273 | B70: Aparelho de apoio metálico esférico unidirecional com capacidade de 3.000 kN - fornecimento e instalação | C70: un | D70: 26092.71 | E70: 308273
A71: 308274 | B71: Aparelho de apoio metálico esférico unidirecional com capacidade de 3.500 kN - fornecimento e instalação | C71: un | D71: 30026.4 | E71: =A71*1 -> 308274
A72: 308275 | B72: Aparelho de apoio metálico esférico unidirecional com capacidade de 4.000 kN - fornecimento e instalação | C72: un | D72: 39119.61 | E72: 308275
A73: 308276 | B73: Aparelho de apoio metálico esférico unidirecional com capacidade de 4.500 kN - fornecimento e instalação | C73: un | D73: 59874.23 | E73: 308276
A74: 308277 | B74: Aparelho de apoio metálico esférico unidirecional com capacidade de 5.000 kN - fornecimento e instalação | C74: un | D74: 66288.58 | E74: 308277
A75: 308278 | B75: Aparelho de apoio metálico esférico unidirecional com capacidade de 5.500 kN - fornecimento e instalação | C75: un | D75: 72036.23 | E75: 308278
A76: 308279 | B76: Aparelho de apoio metálico esférico unidirecional com capacidade de 6.000 kN - fornecimento e instalação | C76: un | D76: 75765.14 | E76: 308279
A77: 308280 | B77: Aparelho de apoio metálico esférico unidirecional com capacidade de 6.500 kN - fornecimento e instalação | C77: un | D77: 86554.84 | E77: 308280
A78: 308281 | B78: Aparelho de apoio metálico esférico unidirecional com capacidade de 7.000 kN - fornecimento e instalação | C78: un | D78: 92983.68 | E78: 308281
A79: 308282 | B79: Aparelho de apoio metálico esférico unidirecional com capacidade de 7.500 kN - fornecimento e instalação | C79: un | D79: 99995.75 | E79: 308282
A80: 308283 | B80: Aparelho de apoio metálico esférico unidirecional com capacidade de 8.000 kN - fornecimento e instalação | C80: un | D80: 106241.96 | E80: 308283
A81: 308284 | B81: Aparelho de apoio metálico esférico unidirecional com capacidade de 8.500 kN - fornecimento e instalação | C81: un | D81: 114902.95 | E81: 308284
A82: 308285 | B82: Aparelho de apoio metálico esférico unidirecional com capacidade de 9.000 kN - fornecimento e instalação | C82: un | D82: 122009.82 | E82: 308285
A83: 308286 | B83: Aparelho de apoio metálico esférico unidirecional com capacidade de 9.500 kN - fornecimento e instalação | C83: un | D83: 129158.48 | E83: 308286
A84: 307733 | B84: Junta de dilatação em elastômero e perfil VV - L = 20 mm e H = 40 mm - fornecimento e instalação | C84: m | D84: 459.42 | E84: 307733
A85: 307734 | B85: Junta de dilatação em elastômero e perfil VV - L = 25 mm e H = 50 mm - fornecimento e instalação | C85: m | D85: 594.31 | E85: 307734
A86: 307735 | B86: Junta de dilatação em elastômero e perfil VV - L = 35 mm e H = 60 mm - fornecimento e instalação | C86: m | D86: 1001.73 | E86: 307735
A87: 307736 | B87: Junta de dilatação em elastômero e perfil VV - L = 40 mm e H = 70 mm - fornecimento e instalação | C87: m | D87: 1362.96 | E87: 307736
A88: 307737 | B88: Junta de dilatação em elastômero e perfil VV - L = 50 mm e H = 80 mm - fornecimento e instalação | C88: m | D88: 1662.89 | E88: 307737
A89: 307730 | B89: Junta de dilatação em perfil extrudado de borracha vulcanizada | C89: m | D89: 0 | E89: 307730
A90: 307084 | B90: Lábios poliméricos em junta de pavimento de concreto - L = 20 mm e H = 30 mm - confecção e assentamento | C90: m | D90: 30.25 | E90: 307084
A91: 407818 | B91: Armação em aço CA-25 - fornecimento, preparo e colocação | C91: kg | D91: 12.07 | E91: 407818
A92: 407819 | B92: Armação em aço CA-50 - fornecimento, preparo e colocação | C92: kg | D92: 11.94 | E92: 407819
A93: 407820 | B93: Armação em aço CA-60 - fornecimento, preparo e colocação | C93: kg | D93: 12.99 | E93: 407820
A94: 407740 | B94: Chumbador tipo espera em aço CA-25 para fixação de estrutura metálica em concreto - fornecimento e instalação | C94: kg | D94: 14.78 | E94: 407740
A95: 408037 | B95: Luva de emenda com rosca cônica para aço CA-50 - D = 12,5 mm - fornecimento e instalação | C95: un | D95: 22.69 | E95: 408037
A96: 408038 | B96: Luva de emenda com rosca cônica para aço CA-50 - D = 16 mm - fornecimento e instalação | C96: un | D96: 33.03 | E96: 408038
A97: 408039 | B97: Luva de emenda com rosca cônica para aço CA-50 - D = 20 mm - fornecimento e instalação | C97: un | D97: 43.51 | E97: 408039
A98: 408041 | B98: Luva de emenda com rosca cônica para aço CA-50 - D = 25 mm - fornecimento e instalação | C98: un | D98: 61 | E98: 408041
A99: 408042 | B99: Luva de emenda com rosca cônica para aço CA-50 - D = 32 mm - fornecimento e instalação | C99: un | D99: 91.53 | E99: 408042
A100: 408031 | B100: Luva de emenda prensada para aço CA-50 - D = 12,5 mm - fornecimento e instalação | C100: un | D100: 21.46 | E100: 408031
A101: 408032 | B101: Luva de emenda prensada para aço CA-50 - D = 16 mm - fornecimento e instalação | C101: un | D101: 29.14 | E101: 408032
A102: 408033 | B102: Luva de emenda prensada para aço CA-50 - D = 20 mm - fornecimento e instalação | C102: un | D102: 40.96 | E102: 408033
A103: 408035 | B103: Luva de emenda prensada para aço CA-50 - D = 25 mm - fornecimento e instalação | C103: un | D103: 75.19 | E103: 408035
A104: 408036 | B104: Luva de emenda prensada para aço CA-50 - D = 32 mm - fornecimento e instalação | C104: un | D104: 145.53 | E104: 408036
A105: 408067 | B105: Tela de aço eletrossoldada - fornecimento, preparo e colocação | C105: kg | D105: 12.06 | E105: 408067
A106: 407743 | B106: Treliça nervurada três barras longitudinais interligadas por duas diagonais sinusoidal - fornecimento e instalação | C106: kg | D106: 13.19 | E106: 407743
A107: 607137 | B107: Arco metálico galvanizado tipo MP 152S - arco alto - vão = 10,08 m e altura = 6,12 m - aterro rodoviário mínimo = 0,90 m e máximo = 5,00 m - areia e brita comerciais | C107: m | D107: 60265.54 | E107: 607137
A108: 606785 | B108: Arco metálico galvanizado tipo MP 152S - arco alto - vão = 10,08 m e altura = 6,12 m - aterro rodoviário mínimo = 0,90 m e máximo = 5,00 m - areia extraída e brita produzida | C108: m | D108: 59695.72 | E108: 606785
A109: 607139 | B109: Arco metálico galvanizado tipo MP 152S - arco alto - vão = 10,31 m e altura = 6,17 m - aterro rodoviário mínimo = 0,90 m e máximo = 4,90 m - areia e brita comerciais | C109: m | D109: 61068.51 | E109: 607139
A110: 606787 | B110: Arco metálico galvanizado tipo MP 152S - arco alto - vão = 10,31 m e altura = 6,17 m - aterro rodoviário mínimo = 0,90 m e máximo = 4,90 m - areia extraída e brita produzida | C110: m | D110: 60184.33 | E110: 606787
A111: 607140 | B111: Arco metálico galvanizado tipo MP 152S - arco alto - vão = 10,36 m e altura = 5,38 m - aterro rodoviário mínimo = 1,20 m e máximo = 3,60 m - areia e brita comerciais | C111: m | D111: 55824.3 | E111: 607140
A112: 606788 | B112: Arco metálico galvanizado tipo MP 152S - arco alto - vão = 10,36 m e altura = 5,38 m - aterro rodoviário mínimo = 1,20 m e máximo = 3,60 m - areia extraída e brita produzida | C112: m | D112: 55627.22 | E112: 606788
A113: 607141 | B113: Arco metálico galvanizado tipo MP 152S - arco alto - vão = 10,54 m e altura = 6,05 m - aterro rodoviário mínimo = 1,20 m e máximo = 4,20 m - areia e brita comerciais | C113: m | D113: 62117.38 | E113: 607141
A114: 606789 | B114: Arco metálico galvanizado tipo MP 152S - arco alto - vão = 10,54 m e altura = 6,05 m - aterro rodoviário mínimo = 1,20 m e máximo = 4,20 m - areia extraída e brita produzida | C114: m | D114: 61525.19 | E114: 606789
A115: 607144 | B115: Arco metálico galvanizado tipo MP 152S - arco alto - vão = 10,57 m e altura = 5,41 m - aterro rodoviário mínimo = 1,20 m e máximo = 4,10 m - areia e brita comerciais | C115: m | D115: 72982.52 | E115: 607144
A116: 606792 | B116: Arco metálico galvanizado tipo MP 152S - arco alto - vão = 10,57 m e altura = 5,41 m - aterro rodoviário mínimo = 1,20 m e máximo = 4,10 m - areia extraída e brita produzida | C116: m | D116: 72441.62 | E116: 606792
A117: 607142 | B117: Arco metálico galvanizado tipo MP 152S - arco alto - vão = 10,74 m e altura = 6,48 m - aterro rodoviário mínimo = 1,20 m e máximo = 4,70 m - areia e brita comerciais | C117: m | D117: 65139.89 | E117: 607142
A118: 606790 | B118: Arco metálico galvanizado tipo MP 152S - arco alto - vão = 10,74 m e altura = 6,48 m - aterro rodoviário mínimo = 1,20 m e máximo = 4,70 m - areia extraída e brita produzida | C118: m | D118: 64502.92 | E118: 606790
A119: 607145 | B119: Arco metálico galvanizado tipo MP 152S - arco alto - vão = 10,77 m e altura = 6,10 m - aterro rodoviário mínimo = 1,20 m e máximo = 4,70 m - areia e brita comerciais | C119: m | D119: 80493.02 | E119: 607145
A120: 606793 | B120: Arco metálico galvanizado tipo MP 152S - arco alto - vão = 10,77 m e altura = 6,10 m - aterro rodoviário mínimo = 1,20 m e máximo = 4,70 m - areia extraída e brita produzida | C120: m | D120: 79888.07 | E120: 606793
A121: 607146 | B121: Arco metálico galvanizado tipo MP 152S - arco alto - vão = 10,97 m e altura = 6,53 m - aterro rodoviário mínimo = 1,20 m e máximo = 4,70 m - areia e brita comerciais | C121: m | D121: 83968.19 | E121: 607146
A122: 606794 | B122: Arco metálico galvanizado tipo MP 152S - arco alto - vão = 10,97 m e altura = 6,53 m - aterro rodoviário mínimo = 1,20 m e máximo = 4,70 m - areia extraída e brita produzida | C122: m | D122: 83311.6 | E122: 606794
A123: 607143 | B123: Arco metálico galvanizado tipo MP 152S - arco alto - vão = 11,35 m e altura = 7,12 m - aterro rodoviário mínimo = 1,20 m e máximo = 4,70 m - areia e brita comerciais | C123: m | D123: 70343.67 | E123: 607143
A124: 606791 | B124: Arco metálico galvanizado tipo MP 152S - arco alto - vão = 11,35 m e altura = 7,12 m - aterro rodoviário mínimo = 1,20 m e máximo = 4,70 m - areia extraída e brita produzida | C124: m | D124: 69610.34 | E124: 606791
A125: 607147 | B125: Arco metálico galvanizado tipo MP 152S - arco alto - vão = 11,58 m e altura = 7,16 m - aterro rodoviário mínimo = 1,20 m e máximo = 6,40 m - areia e brita comerciais | C125: m | D125: 90567.18 | E125: 607147
A126: 606795 | B126: Arco metálico galvanizado tipo MP 152S - arco alto - vão = 11,58 m e altura = 7,16 m - aterro rodoviário mínimo = 1,20 m e máximo = 6,40 m - areia extraída e brita produzida | C126: m | D126: 89810.58 | E126: 606795
A127: 607112 | B127: Arco metálico galvanizado tipo MP 152S - arco alto - vão = 6,12 m e altura = 2,77 m - aterro rodoviário mínimo = 0,75 m e máximo = 5,40 m - areia e brita comerciais | C127: m | D127: 29246.26 | E127: 607112
A128: 606760 | B128: Arco metálico galvanizado tipo MP 152S - arco alto - vão = 6,12 m e altura = 2,77 m - aterro rodoviário mínimo = 0,75 m e máximo = 5,40 m - areia extraída e brita produzida | C128: m | D128: 29047.93 | E128: 606760
A129: 607113 | B129: Arco metálico galvanizado tipo MP 152S - arco alto - vão = 6,30 m e altura = 3,68 m - aterro rodoviário mínimo = 0,75 m e máximo = 7,50 m - areia e brita comerciais | C129: m | D129: 34476.98 | E129: 607113
A130: 606761 | B130: Arco metálico galvanizado tipo MP 152S - arco alto - vão = 6,30 m e altura = 3,68 m - aterro rodoviário mínimo = 0,75 m e máximo = 7,50 m - areia extraída e brita produzida | C130: m | D130: 34249 | E130: 606761
A131: 606762 | B131: Arco metálico galvanizado tipo MP 152S - arco alto - vão = 6,55 m e altura = 3,56 m - aterro rodoviário mínimo = 0,75 m e máximo = 4,9 m - areia extraída e brita produzida | C131: m | D131: 34625.27 | E131: 606762
A132: 607114 | B132: Arco metálico galvanizado tipo MP 152S - arco alto - vão = 6,55 m e altura = 3,56 m - aterro rodoviário mínimo = 0,75 m e máximo = 4,90 m - areia e brita comerciais | C132: m | D132: 34857.55 | E132: 607114
A133: 607116 | B133: Arco metálico galvanizado tipo MP 152S - arco alto - vão = 6,78 m e altura = 3,61 m - aterro rodoviário mínimo = 0,75 m e máximo = 4,80 m - areia e brita comerciais | C133: m | D133: 36373.45 | E133: 607116
A134: 606764 | B134: Arco metálico galvanizado tipo MP 152S - arco alto - vão = 6,78 m e altura = 3,61 m - aterro rodoviário mínimo = 0,75 m e máximo = 4,80 m - areia extraída e brita produzida | C134: m | D134: 36131.39 | E134: 606764
A135: 607115 | B135: Arco metálico galvanizado tipo MP 152S - arco alto - vão = 6,96 m e altura = 4,42 m - aterro rodoviário mínimo = 0,75 m e máximo = 8,10 m - areia e brita comerciais | C135: m | D135: 41288.83 | E135: =A135*1 -> 607115
A136: 606763 | B136: Arco metálico galvanizado tipo MP 152S - arco alto - vão = 6,96 m e altura = 4,42 m - aterro rodoviário mínimo = 0,75 m e máximo = 8,10 m - areia extraída e brita produzida | C136: m | D136: 40997.61 | E136: 606763
A137: 607117 | B137: Arco metálico galvanizado tipo MP 152S - arco alto - vão = 6,99 m e altura = 4,27 m - aterro rodoviário mínimo = 0,75 m e máximo = 5,70 m - areia e brita comerciais | C137: m | D137: 41270.55 | E137: 607117
A138: 606765 | B138: Arco metálico galvanizado tipo MP 152S - arco alto - vão = 6,99 m e altura = 4,27 m - aterro rodoviário mínimo = 0,75 m e máximo = 5,70 m - areia extraída e brita produzida | C138: m | D138: 40987.33 | E138: 606765
A139: 607118 | B139: Arco metálico galvanizado tipo MP 152S - arco alto - vão = 7,01 m e altura = 3,63 m - aterro rodoviário mínimo = 0,75 m e máximo = 4,60 m - areia e brita comerciais | C139: m | D139: 37011.17 | E139: 607118
A140: 606766 | B140: Arco metálico galvanizado tipo MP 152S - arco alto - vão = 7,01 m e altura = 3,63 m - aterro rodoviário mínimo = 0,75 m e máximo = 4,60 m - areia extraída e brita produzida | C140: m | D140: 36761.28 | E140: 606766
A141: 607120 | B141: Arco metálico galvanizado tipo MP 152S - arco alto - vão = 7,24 m e altura = 3,68 m - aterro rodoviário mínimo = 0,90 m e máximo = 4,4 m - areia e brita comerciais | C141: m | D141: 37685.64 | E141: 607120
A142: 606768 | B142: Arco metálico galvanizado tipo MP 152S - arco alto - vão = 7,24 m e altura = 3,68 m - aterro rodoviário mínimo = 0,90 m e máximo = 4,40 m - areia extraída e brita produzida | C142: m | D142: 37422.49 | E142: 606768
A143: 607119 | B143: Arco metálico galvanizado tipo MP 152S - arco alto - vão = 7,42 m e altura = 4,52 m - aterro rodoviário mínimo = 0,90 m e máximo = 6,40 m - areia e brita comerciais | C143: m | D143: 43289.85 | E143: 607119
A144: 606767 | B144: Arco metálico galvanizado tipo MP 152S - arco alto - vão = 7,42 m e altura = 4,52 m - aterro rodoviário mínimo = 0,90 m e máximo = 6,40 m - areia extraída e brita produzida | C144: m | D144: 42968.93 | E144: 606767
A145: 607121 | B145: Arco metálico galvanizado tipo MP 152S - arco alto - vão = 7,47 m e altura = 4,19 m - aterro rodoviário mínimo = 0,90 m e máximo = 4,30 m - areia e brita comerciais | C145: m | D145: 40803.59 | E145: 607121
A146: 606769 | B146: Arco metálico galvanizado tipo MP 152S - arco alto - vão = 7,47 m e altura = 4,19 m - aterro rodoviário mínimo = 0,90 m e máximo = 4,30 m - areia extraída e brita produzida | C146: m | D146: 40503.57 | E146: 606769
A147: 607123 | B147: Arco metálico galvanizado tipo MP 152S - arco alto - vão = 7,67 m e altura = 3,99 m - aterro rodoviário mínimo = 0,90 m e máximo = 4,10 m - areia e brita comerciais | C147: m | D147: 40256.71 | E147: 607123
A148: 606771 | B148: Arco metálico galvanizado tipo MP 152S - arco alto - vão = 7,67 m e altura = 3,99 m - aterro rodoviário mínimo = 0,90 m e máximo = 4,10 m - areia extraída e brita produzida | C148: m | D148: 39957.81 | E148: 606771
A149: 607122 | B149: Arco metálico galvanizado tipo MP 152S - arco alto - vão = 7,85 m e altura = 4,60 m - aterro rodoviário mínimo = 0,90 m e máximo = 6,00 m - areia e brita comerciais | C149: m | D149: 44631.12 | E149: 607122
A150: 606770 | B150: Arco metálico galvanizado tipo MP 152S - arco alto - vão = 7,85 m e altura = 4,60 m - aterro rodoviário mínimo = 0,90 m e máximo = 6,00 m - areia extraída e brita produzida | C150: m | D150: 44286.39 | E150: 606770
A151: 607125 | B151: Arco metálico galvanizado tipo MP 152S - arco alto - vão = 7,90 m e altura = 4,04 m - aterro rodoviário mínimo = 0,90 m e máximo = 4,00 m - areia e brita comerciais | C151: m | D151: 41599.68 | E151: 607125
A152: 606773 | B152: Arco metálico galvanizado tipo MP 152S - arco alto - vão = 7,90 m e altura = 4,04 m - aterro rodoviário mínimo = 0,90 m e máximo = 4,00 m - areia extraída e brita produzida | C152: m | D152: 41285.18 | E152: 606773
A153: 607124 | B153: Arco metálico galvanizado tipo MP 152S - arco alto - vão = 8,08 m e altura = 4,65 m - aterro rodoviário mínimo = 0,90 m e máximo = 5,80 m - areia e brita comerciais | C153: m | D153: 45298.39 | E153: 607124
A154: 606772 | B154: Arco metálico galvanizado tipo MP 152S - arco alto - vão = 8,08 m e altura = 4,65 m - aterro rodoviário mínimo = 0,90 m e máximo = 5,80 m - areia extraída e brita produzida | C154: m | D154: 44942.63 | E154: 606772
A155: 607126 | B155: Arco metálico galvanizado tipo MP 152S - arco alto - vão = 8,31 m e altura = 4,70 m - aterro rodoviário mínimo = 0,90 m e máximo = 5,60 m - areia e brita comerciais | C155: m | D155: 46548.73 | E155: 607126
A156: 606774 | B156: Arco metálico galvanizado tipo MP 152S - arco alto - vão = 8,31 m e altura = 4,70 m - aterro rodoviário mínimo = 0,90 m e máximo = 5,60 m - areia extraída e brita produzida | C156: m | D156: 46175.83 | E156: 606774
A157: 607127 | B157: Arco metálico galvanizado tipo MP 152S - arco alto - vão = 8,36 m e altura = 4,11 m - aterro rodoviário mínimo = 0,90 m e máximo = 3,70 m - areia e brita comerciais | C157: m | D157: 42881.99 | E157: 607127
A158: 606775 | B158: Arco metálico galvanizado tipo MP 152S - arco alto - vão = 8,36 m e altura = 4,11 m - aterro rodoviário mínimo = 0,90 m e máximo = 3,70 m - areia extraída e brita produzida | C158: m | D158: 42548.6 | E158: 606775
A159: 607129 | B159: Arco metálico galvanizado tipo MP 152S - arco alto - vão = 8,59 m e altura = 4,39 m - aterro rodoviário mínimo = 0,90 m e máximo = 3,60 m - areia e brita comerciais | C159: m | D159: 44867.46 | E159: 607129
A160: 606777 | B160: Arco metálico galvanizado tipo MP 152S - arco alto - vão = 8,59 m e altura = 4,39 m - aterro rodoviário mínimo = 0,90 m e máximo = 3,60 m - areia extraída e brita produzida | C160: m | D160: 44502.34 | E160: 606777
A161: 607128 | B161: Arco metálico galvanizado tipo MP 152S - arco alto - vão = 8,97 m e altura = 5,00 m - aterro rodoviário mínimo = 0,90 m e máximo = 5,80 m - areia e brita comerciais | C161: m | D161: 49311.79 | E161: 607128
A162: 606776 | B162: Arco metálico galvanizado tipo MP 152S - arco alto - vão = 8,97 m e altura = 5,00 m - aterro rodoviário mínimo = 0,90 m e máximo = 5,80 m - areia extraída e brita produzida | C162: m | D162: 48885.17 | E162: 606776
A163: 607130 | B163: Arco metálico galvanizado tipo MP 152S - arco alto - vão = 9,17 m e altura = 5,49 m - aterro rodoviário mínimo = 0,90 m e máximo = 5,60 m - areia e brita comerciais | C163: m | D163: 52549.89 | E163: 607130
A164: 606778 | B164: Arco metálico galvanizado tipo MP 152S - arco alto - vão = 9,17 m e altura = 5,49 m - aterro rodoviário mínimo = 0,90 m e máximo = 5,60 m - areia extraída e brita produzida | C164: m | D164: 52080.97 | E164: 606778
A165: 607131 | B165: Arco metálico galvanizado tipo MP 152S - arco alto - vão = 9,22 m e altura = 4,70 m - aterro rodoviário mínimo = 0,90 m e máximo = 4,10 m - areia e brita comerciais | C165: m | D165: 49311.39 | E165: 607131
A166: 606779 | B166: Arco metálico galvanizado tipo MP 152S - arco alto - vão = 9,22 m e altura = 4,70 m - aterro rodoviário mínimo = 0,90 m e máximo = 4,10 m - areia extraída e brita produzida | C166: m | D166: 48896.54 | E166: 606779
A167: 607133 | B167: Arco metálico galvanizado tipo MP 152S - arco alto - vão = 9,45 m e altura = 4,75 m - aterro rodoviário mínimo = 0,90 m e máximo = 4,00 m - areia e brita comerciais | C167: m | D167: 50048.13 | E167: 607133
A168: 606781 | B168: Arco metálico galvanizado tipo MP 152S - arco alto - vão = 9,45 m e altura = 4,75 m - aterro rodoviário mínimo = 0,90 m e máximo = 4,00 m - areia extraída e brita produzida | C168: m | D168: 49620.81 | E168: 606781
A169: 607132 | B169: Arco metálico galvanizado tipo MP 152S - arco alto - vão = 9,63 m e altura = 5,59 m - aterro rodoviário mínimo = 0,90 m e máximo = 5,30 m - areia e brita comerciais | C169: m | D169: 54564.65 | E169: 607132
A170: 606780 | B170: Arco metálico galvanizado tipo MP 152S - arco alto - vão = 9,63 m e altura = 5,59 m - aterro rodoviário mínimo = 0,90 m e máximo = 5,30 m - areia extraída e brita produzida | C170: m | D170: 54062.85 | E170: 606780
A171: 607134 | B171: Arco metálico galvanizado tipo MP 152S - arco alto - vão = 9,65 m e altura = 5,41 m - aterro rodoviário mínimo = 0,90 m e máximo = 4,70 m - areia e brita comerciais | C171: m | D171: 54023.41 | E171: 607134
A172: 606782 | B172: Arco metálico galvanizado tipo MP 152S - arco alto - vão = 9,65 m e altura = 5,41 m - aterro rodoviário mínimo = 0,90 m e máximo = 4,70 m - areia extraída e brita produzida | C172: m | D172: 53533.08 | E172: 606782
A173: 607136 | B173: Arco metálico galvanizado tipo MP 152S - arco alto - vão = 9,68 m e altura = 5,23 m - aterro rodoviário mínimo = 0,90 m e máximo = 3,90 m - areia e brita comerciais | C173: m | D173: 53303.89 | E173: 607136
A174: 606784 | B174: Arco metálico galvanizado tipo MP 152S - arco alto - vão = 9,68 m e altura = 5,23 m - aterro rodoviário mínimo = 0,90 m e máximo = 3,90 m - areia extraída e brita produzida | C174: m | D174: 52829.23 | E174: 606784
A175: 607135 | B175: Arco metálico galvanizado tipo MP 152S - arco alto - vão = 9,86 m e altura = 6,07 m - aterro rodoviário mínimo = 0,90 m e máximo = 5,20 m - areia e brita comerciais | C175: m | D175: 59417.74 | E175: 607135
A176: 606783 | B176: Arco metálico galvanizado tipo MP 152S - arco alto - vão = 9,86 m e altura = 6,07 m - aterro rodoviário mínimo = 0,90 m e máximo = 5,20 m - areia extraída e brita produzida | C176: m | D176: 58867.49 | E176: 606783
A177: 607138 | B177: Arco metálico galvanizado tipo MP 152S - arco alto - vão = 9,91 m e altura = 5,28 m - aterro rodoviário mínimo = 0,90 m e máximo = 3,80 m - areia e brita comerciais | C177: m | D177: 54208.62 | E177: 607138
A178: 606786 | B178: Arco metálico galvanizado tipo MP 152S - arco alto - vão = 9,91 m e altura = 5,28 m - aterro rodoviário mínimo = 0,90 m e máximo = 3,80 m - areia extraída e brita produzida | C178: m | D178: 53702.97 | E178: 606786
A179: 606842 | B179: Arco metálico galvanizado tipo MP 152S - ovoide - vão = 7,21 m e altura = 7,82 m - aterro rodoviário mínimo = 0,75 m e máximo = 6,70 m - areia e brita comerciais | C179: m | D179: 67560.94 | E179: 606842
A180: 606832 | B180: Arco metálico galvanizado tipo MP 152S - ovoide - vão = 7,21 m e altura = 7,82 m - aterro rodoviário mínimo = 0,75 m e máximo = 6,70 m - areia extraída e brita produzida | C180: m | D180: 67278.03 | E180: 606832
A181: 606843 | B181: Arco metálico galvanizado tipo MP 152S - ovoide - vão = 7,31 m e altura = 7,87 m - aterro rodoviário mínimo = 0,90 m e máximo = 6,80 m - areia e brita comerciais | C181: m | D181: 70192.29 | E181: 606843
A182: 606833 | B182: Arco metálico galvanizado tipo MP 152S - ovoide - vão = 7,31 m e altura = 7,87 m - aterro rodoviário mínimo = 0,90 m e máximo = 6,80 m - areia extraída e brita produzida | C182: m | D182: 69894.89 | E182: 606833
A183: 606845 | B183: Arco metálico galvanizado tipo MP 152S - ovoide - vão = 7,57 m e altura = 8,44 m - aterro rodoviário mínimo = 0,90 m e máximo = 5,60 m - areia e brita comerciais | C183: m | D183: 72777.49 | E183: 606845
A184: 606835 | B184: Arco metálico galvanizado tipo MP 152S - ovoide - vão = 7,57 m e altura = 8,44 m - aterro rodoviário mínimo = 0,90 m e máximo = 5,60 m - areia extraída e brita produzida | C184: m | D184: 72481.19 | E184: 606835
A185: 606844 | B185: Arco metálico galvanizado tipo MP 152S - ovoide - vão = 7,77 m e altura = 7,90 m - aterro rodoviário mínimo = 0,90 m e máximo = 6,80 m - areia e brita comerciais | C185: m | D185: 71004.81 | E185: 606844
A186: 606834 | B186: Arco metálico galvanizado tipo MP 152S - ovoide - vão = 7,77 m e altura = 7,90 m - aterro rodoviário mínimo = 0,90 m e máximo = 6,80 m - areia extraída e brita produzida | C186: m | D186: 70699.79 | E186: 606834
A187: 606847 | B187: Arco metálico galvanizado tipo MP 152S - ovoide - vão = 8,13 m e altura = 8,01 m - aterro rodoviário mínimo = 0,90 m e máximo = 3,50 m - areia e brita comerciais | C187: m | D187: 76112.34 | E187: 606847
A188: 606837 | B188: Arco metálico galvanizado tipo MP 152S - ovoide - vão = 8,13 m e altura = 8,01 m - aterro rodoviário mínimo = 0,90 m e máximo = 3,50 m - areia extraída e brita produzida | C188: m | D188: 75778.74 | E188: 606837
A189: 606846 | B189: Arco metálico galvanizado tipo MP 152S - ovoide - vão = 8,36 m e altura = 8,23 m - aterro rodoviário mínimo = 0,90 m e máximo = 4,30 m - areia e brita comerciais | C189: m | D189: 76576.05 | E189: 606846
A190: 606836 | B190: Arco metálico galvanizado tipo MP 152S - ovoide - vão = 8,36 m e altura = 8,23 m - aterro rodoviário mínimo = 0,90 m e máximo = 4,30 m - areia extraída e brita produzida | C190: m | D190: 76238.84 | E190: 606836
A191: 606848 | B191: Arco metálico galvanizado tipo MP 152S - ovoide - vão = 8,56 m e altura = 8,48 m - aterro rodoviário mínimo = 0,90 m e máximo = 5,30 m - areia e brita comerciais | C191: m | D191: 76414.18 | E191: 606848
A192: 606838 | B192: Arco metálico galvanizado tipo MP 152S - ovoide - vão = 8,56 m e altura = 8,48 m - aterro rodoviário mínimo = 0,90 m e máximo = 5,30 m - areia extraída e brita produzida | C192: m | D192: 76063.37 | E192: 606838
A193: 606849 | B193: Arco metálico galvanizado tipo MP 152S - ovoide - vão = 8,71 m e altura = 9,32 m - aterro rodoviário mínimo = 0,90 m e máximo = 6,00 m - areia e brita comerciais | C193: m | D193: 82224.7 | E193: 606849
A194: 606839 | B194: Arco metálico galvanizado tipo MP 152S - ovoide - vão = 8,71 m e altura = 9,32 m - aterro rodoviário mínimo = 0,90 m e máximo = 6,00 m - areia extraída e brita produzida | C194: m | D194: 81882.67 | E194: 606839
A195: 606850 | B195: Arco metálico galvanizado tipo MP 152S - ovoide - vão = 9,15 m e altura = 9,04 m - aterro rodoviário mínimo = 0,90 m e máximo = 4,70 m - areia e brita comerciais | C195: m | D195: 83714.95 | E195: 606850
A196: 606840 | B196: Arco metálico galvanizado tipo MP 152S - ovoide - vão = 9,15 m e altura = 9,04 m - aterro rodoviário mínimo = 0,90 m e máximo = 4,70 m - areia extraída e brita produzida | C196: m | D196: 83340.74 | E196: 606840
A197: 606851 | B197: Arco metálico galvanizado tipo MP 152S - ovoide - vão = 9,15 m e altura = 9,50 m - aterro rodoviário mínimo = 0,90 m e máximo = 5,70 m - areia e brita comerciais | C197: m | D197: 84443.71 | E197: 606851
A198: 606841 | B198: Arco metálico galvanizado tipo MP 152S - ovoide - vão = 9,15 m e altura = 9,50 m - aterro rodoviário mínimo = 0,90 m e máximo = 5,70 m - areia extraída e brita produzida | C198: m | D198: 84085.64 | E198: 606841
A199: 605604 | B199: Argamassa de solo-cimento com 10% de cimento e material de jazida - preparo e injeção em tunnel liner | C199: m³ | D199: 289.49 | E199: =A199*1 -> 605604
A200: 605695 | B200: Bueiro metálico com chapas múltiplas MP 100 com revestimento em epóxi - D = 0,60 m - brita comercial | C200: m | D200: 1608.69 | E200: 605695
... 6173 more rows

Sheet MO SICRO
A1: CGCIT | B1: SISTEMA DE CUSTOS REFERENCIAIS DE OBRAS - SICRO | G1: DNIT
A3: Pernambuco - Julho/2023
A4: Sem desoneração
A5: Código | B5: Descrição | C5: Unidade | D5: Salário (R$) | E5: Encargos Totais | F5: Custo (R$) | G5: Periculosidade/ Insalubridade
A6: P9801 | B6: Ajudante | C6: h | D6: 7.0256 | E6: 2.049525 | F6: 21.4247 | G6: 0
A7: P9802 | B7: Ajudante especializado | C7: h | D7: 8.3916 | E7: 1.993685 | F7: 25.1218 | G7: 0
A8: P9803 | B8: Almoxarife | C8: mês | D8: 2637.8 | E8: 1.211854 | F8: 5834.4284 | G8: 0
A9: P9804 | B9: Apontador | C9: mês | D9: 1953.6 | E9: 1.3733 | F9: 4636.4788 | G9: 0
A10: P9805 | B10: Armador | C10: h | D10: 10.8106 | E10: 1.719987 | F10: 29.4046 | G10: 0
A11: P9806 | B11: Auxiliar administrativo | C11: mês | D11: 1953.6 | E11: 1.369024 | F11: 4628.1252 | G11: 0
A12: P9807 | B12: Bombeiro hidráulico | C12: h | D12: 10.8106 | E12: 1.799569 | F12: 30.265 | G12: 0
A13: P9808 | B13: Carpinteiro | C13: h | D13: 8.9034 | E13: 1.853355 | F13: 25.4045 | G13: 0
A14: P9809 | B14: Encarregado administrativo | C14: mês | D14: 3868.0365 | E14: 0.971681 | F14: 7626.534 | G14: 0
A15: P9810 | B15: Eletricista | C15: h | D15: 10.4335 | E15: 1.796212 | F15: 29.1742 | G15: 0
A16: P9811 | B16: Encarregado especializado | C16: mês | D16: 3589.4784 | E16: 1.014098 | F16: 7229.5612 | G16: 0
A17: P9812 | B17: Engenheiro | C17: mês | D17: 12819.9474 | E17: 0.82593 | F17: 23408.3265 | G17: 0
A18: P9814 | B18: Operacional | C18: mês | D18: 1460.9463 | E18: 1.504089 | F18: 3658.3395 | G18: 0
A19: P9815 | B19: Jardineiro | C19: h | D19: 9.63 | E19: 1.796404 | F19: 26.9293 | G19: 0
A20: P9819 | B20: Engenheiro supervisor | C20: mês | D20: 12819.9474 | E20: 0.82593 | F20: 23408.3265 | G20: 0
A21: P9821 | B21: Pedreiro | C21: h | D21: 8.912 | E21: 1.847871 | F21: 25.3802 | G21: 0
A22: P9822 | B22: Pintor | C22: h | D22: 10.8106 | E22: 1.728949 | F22: 29.5015 | G22: 0
A23: P9823 | B23: Serralheiro | C23: h | D23: 9.3101 | E23: 1.822228 | F23: 26.2752 | G23: 0
A24: P9824 | B24: Servente | C24: h | D24: 6.7 | E24: 2.093643 | F24: 20.7274 | G24: 0
A25: P9825 | B25: Soldador | C25: h | D25: 12.4336 | E25: 1.6457 | F25: 32.8955 | G25: 0
A26: P9826 | B26: Chefe setor de finanças | C26: mês | D26: 9651.0845 | E26: 0.852906 | F26: 17882.5523 | G26: 0
A27: P9827 | B27: Vigia | C27: mês | D27: 1414.3496 | E27: 1.829766 | F27: 4426.5832 | G27: 0.3
A28: P9830 | B28: Montador | C28: h | D28: 10.8106 | E28: 1.800378 | F28: 30.2737 | G28: 0
A29: P9833 | B29: Auxiliar de laboratório | C29: mês | D29: 2378.3386 | E29: 1.260437 | F29: 5376.0845 | G29: 0
A30: P9836 | B30: Geólogo | C30: h | D30: 49.7447 | E30: 1.196306 | F30: 109.2545 | G30: 0
A31: P9837 | B31: Oceanógrafo | C31: mês | D31: 4376.363 | E31: 1.005441 | F31: 8776.5377 | G31: 0
A32: P9840 | B32: Encarregado geral | C32: mês | D32: 5294.449 | E32: 0.930693 | F32: 10221.9556 | G32: 0
A33: P9842 | B33: Faxineiro | C33: mês | D33: 1454.2 | E33: 1.588055 | F33: 3763.5495 | G33: 0
A34: P9843 | B34: Operador de equipamento leve | C34: h | D34: 8.88 | E34: 1.831977 | F34: 25.1479 | G34: 0
A35: P9844 | B35: Capitão fluvial | C35: mês | D35: 5212.4597 | E35: 0.959662 | F35: 10214.6592 | G35: 0
A36: P9845 | B36: Operador de equipamento pesado | C36: h | D36: 11.74 | E36: 1.651178 | F36: 31.1248 | G36: 0
A37: P9846 | B37: Operador de equipamento especial | C37: h | D37: 14.44 | E37: 1.532913 | F37: 36.5752 | G37: 0
A38: P9847 | B38: Perfurador de tubulão | C38: h | D38: 6.9936 | E38: 2.047452 | F38: 21.3126 | G38: 0
A39: P9848 | B39: Desenhista | C39: mês | D39: 3000.8408 | E39: 1.128553 | F39: 6387.4486 | G39: 0
A40: P9849 | B40: Condutor maquinista fluvial | C40: mês | D40: 2162.4018 | E40: 1.25253 | F40: 4870.8749 | G40: 0
A41: P9850 | B41: Copeiro | C41: mês | D41: 1504.8 | E41: 1.529658 | F41: 3806.6293 | G41: 0
A42: P9851 | B42: Médico do trabalho | C42: mês | D42: 9709.5193 | E42: 0.847276 | F42: 17936.1619 | G42: 0
A43: P9852 | B43: Blaster | C43: h | D43: 10.1587 | E43: 2.108382 | F43: 34.6247 | G43: 0.3
A44: P9853 | B44: Pré-marcador | C44: h | D44: 6.993 | E44: 2.022174 | F44: 21.134 | G44: 0
A45: P9854 | B45: Recepcionista | C45: mês | D45: 1686.3401 | E45: 1.416485 | F45: 4075.0155 | G45: 0
A46: P9855 | B46: Marinheiro de máquinas | C46: mês | D46: 2052.3159 | E46: 1.277787 | F46: 4674.7384 | G46: 0
A47: P9856 | B47: Marinheiro de convés | C47: h | D47: 9.1112 | E47: 1.736501 | F47: 24.9328 | G47: 0
A48: P9857 | B48: Marinheiro de convés - mensalista | C48: mês | D48: 2004.4739 | E48: 1.288588 | F48: 4587.4149 | G48: 0
A49: P9858 | B49: Laboratorista | C49: mês | D49: 3262.6 | E49: 1.126851 | F49: 6939.064 | G49: 0
A50: P9859 | B50: Trabalhador de via | C50: h | D50: 6.3405 | E50: 2.163947 | F50: 20.061 | G50: 0
A51: P9861 | B51: Selecionador de material pétreo | C51: h | D51: 6.993 | E51: 2.033898 | F51: 21.216 | G51: 0
A52: P9864 | B52: Engenheiro de segurança do trabalho | C52: mês | D52: 11464.4099 | E52: 0.838737 | F52: 21080.0346 | G52: 0
A53: P9865 | B53: Técnico em enfermagem | C53: mês | D53: 2993.1905 | E53: 1.172613 | F53: 6503.0445 | G53: 0
A54: P9866 | B54: Motorista de caminhão | C54: h | D54: 11.74 | E54: 1.63468 | F54: 30.9311 | G54: 0
A55: P9867 | B55: Técnico especializado - mensalista | C55: mês | D55: 3203.9229 | E55: 1.135288 | F55: 6841.2981 | G55: 0
A56: P9869 | B56: Encarregado de obras de artes especiais | C56: mês | D56: 3589.4784 | E56: 1.014098 | F56: 7229.5612 | G56: 0
A57: P9870 | B57: Motorista de veículo leve | C57: h | D57: 10.8106 | E57: 1.68283 | F57: 29.003 | G57: 0
A58: P9871 | B58: Motorista de veículo especial | C58: h | D58: 11.9736 | E58: 1.624083 | F58: 31.4197 | G58: 0
A59: P9875 | B59: Encarregado de turma | C59: mês | D59: 2295.6486 | E59: 1.277683 | F59: 5228.7597 | G59: 0
A60: P9876 | B60: Técnico de segurança do trabalho | C60: mês | D60: 3262.6 | E60: 1.125343 | F60: 6934.144 | G60: 0
A61: P9878 | B61: Secretária | C61: mês | D61: 2811.595 | E61: 1.155662 | F61: 6060.8485 | G61: 0
A62: P9880 | B62: Piloto fluvial | C62: mês | D62: 3276.33 | E62: 1.080547 | F62: 6816.5585 | G62: 0
A63: P9882 | B63: Técnico especializado | C63: h | D63: 14.5633 | E63: 1.545124 | F63: 37.0654 | G63: 0
A64: P9883 | B64: Chefe do setor administrativo | C64: mês | D64: 3868.0319 | E64: 0.971681 | F64: 7626.525 | G64: 0
A65: P9884 | B65: Encarregado de terraplenagem | C65: mês | D65: 3589.4784 | E65: 1.014098 | F65: 7229.5612 | G65: 0
A66: P9885 | B66: Frentista de túnel | C66: h | D66: 8.88 | E66: 1.891225 | F66: 25.674 | G66: 0
A67: P9889 | B67: Técnico da qualidade | C67: mês | D67: 3523.8065 | E67: 1.024666 | F67: 7134.5312 | G67: 0
A68: P9891 | B68: Engenheiro mecânico | C68: mês | D68: 12659.3302 | E68: 0.828328 | F68: 23145.4078 | G68: 0
A69: P9892 | B69: Auxiliar de blaster | C69: h | D69: 9.63 | E69: 2.145877 | F69: 33.1837 | G69: 0.3
A70: P9893 | B70: Encarregado de pavimentação | C70: mês | D70: 3589.4784 | E70: 1.014098 | F70: 7229.5612 | G70: 0
A71: P9896 | B71: Porteiro | C71: mês | D71: 1454.2 | E71: 1.58758 | F71: 3762.8588 | G71: 0
A72: P9897 | B72: Técnico de meio ambiente | C72: mês | D72: 3466.6378 | E72: 1.030252 | F72: 7038.1483 | G72: 0
A73: P9900 | B73: Comprador | C73: mês | D73: 3233.849 | E73: 1.128609 | F73: 6883.6 | G73: 0
A74: P9901 | B74: Encarregado de superestrutura ferroviária | C74: mês | D74: 3589.4784 | E74: 1.014098 | F74: 7229.5612 | G74: 0
A75: P9903 | B75: Auxiliar técnico | C75: mês | D75: 1741.8271 | E75: 1.43558 | F75: 4242.3592 | G75: 0
A76: P9907 | B76: Comandante de longo curso | C76: mês | D76: 12841.1521 | E76: 0.838136 | F76: 23603.7839 | G76: 0
A77: P9908 | B77: Imediato | C77: mês | D77: 9352.1689 | E77: 0.869113 | F77: 17480.2604 | G77: 0
A78: P9909 | B78: Oficial de náutica | C78: mês | D78: 2597.5548 | E78: 1.16847 | F78: 5632.7196 | G78: 0
A79: P9910 | B79: Oficial de máquinas | C79: mês | D79: 2931.3574 | E79: 1.120374 | F79: 6215.574 | G79: 0
A80: P9911 | B80: Condutor de máquinas | C80: mês | D80: 2162.4018 | E80: 1.25253 | F80: 4870.8749 | G80: 0
A81: P9912 | B81: Capitão fluvial com periculosidade | C81: h | D81: 23.693 | E81: 1.668679 | F81: 70.3369 | G81: 0.3
A82: P9913 | B82: Draguista | C82: mês | D82: 3595.3388 | E82: 1.051671 | F82: 7376.4523 | G82: 0
A83: P9915 | B83: Maquinista | C83: h | D83: 12.3889 | E83: 1.626903 | F83: 32.5444 | G83: 0
A84: P9916 | B84: Encarregado de conservação rodoviária | C84: mês | D84: 3589.4784 | E84: 1.014098 | F84: 7229.5612 | G84: 0
A85: P9920 | B85: Mestre fluvial | C85: mês | D85: 5212.4597 | E85: 0.959662 | F85: 10214.6592 | G85: 0
A86: P9921 | B86: Mergulhador raso autônomo de emergência | C86: h | D86: 9.2239 | E86: 2.507861 | F86: 34.7562 | G86: 0.2602
A87: P9922 | B87: Mergulhador raso dependente de emergência | C87: h | D87: 9.2756 | E87: 2.580886 | F87: 35.9975 | G87: 0.3
A88: P9924 | B88: Mergulhador raso dependente | C88: h | D88: 9.2756 | E88: 3.983554 | F88: 49.0081 | G88: 0.3
A89: P9925 | B89: Mergulhador raso autônomo | C89: h | D89: 9.2239 | E89: 3.608643 | F89: 44.9097 | G89: 0.2602
A90: P9926 | B90: Mergulhador raso auxiliar de superfície | C90: h | D90: 9.2239 | E90: 2.26502 | F90: 32.5162 | G90: 0.2602
A91: P9927 | B91: Frentista de túnel com periculosidade | C91: h | D91: 8.88 | E91: 2.218825 | F91: 31.2471 | G91: 0.3
A92: P9928 | B92: Servente com periculosidade | C92: h | D92: 6.7 | E92: 2.421243 | F92: 24.9323 | G92: 0.3
A93: P9929 | B93: Bombeiro hidráulico com periculosidade | C93: h | D93: 10.8106 | E93: 2.127621 | F93: 37.0546 | G93: 0.3
A94: P9930 | B94: Eletricista com periculosidade | C94: h | D94: 10.4335 | E94: 2.123607 | F94: 35.7202 | G94: 0.3
A95: P9931 | B95: Operador de equipamento de mergulho | C95: h | D95: 17.4782 | E95: 1.793834 | F95: 51.2309 | G95: 0.1373
A96: P9932 | B96: Operador de equipamento pesado com periculosidade | C96: h | D96: 11.74 | E96: 1.978538 | F96: 38.49 | G96: 0.3
A97: P9933 | B97: Supervisor de mergulho raso | C97: mês | D97: 3845.1956 | E97: 1.318493 | F97: 9443.0044 | G97: 0.1373
A98: P9934 | B98: Motorista de veículo especial com periculosidade | C98: h | D98: 11.9736 | E98: 1.951535 | F98: 38.9325 | G98: 0.3
A99: P9938 | B99: Operador de equipamento leve com periculosidade | C99: h | D99: 8.88 | E99: 2.159337 | F99: 30.7189 | G99: 0.3
A100: P9939 | B100: Operador de equipamento leve com insalubridade | C100: h | D100: 8.88 | E100: 2.341699 | F100: 32.0745 | G100: 0.2703
A101: P9940 | B101: Piloto fluvial com periculosidade | C101: h | D101: 14.8924 | E101: 1.814411 | F101: 46.381 | G101: 0.3
A102: P9941 | B102: Mestre fluvial com periculosidade | C102: h | D102: 23.693 | E102: 1.668679 | F102: 70.3369 | G102: 0.3
A103: P9942 | B103: Marinheiro de convés com periculosidade | C103: h | D103: 9.1112 | E103: 2.064946 | F103: 30.6586 | G103: 0.3
A104: P9943 | B104: Técnico de batimetria com periculosidade | C104: h | D104: 11.8674 | E104: 1.915685 | F104: 38.1618 | G104: 0.3
A105: P9944 | B105: Operador de equipamento especial com periculosidade | C105: h | D105: 14.44 | E105: 1.860273 | F105: 45.6343 | G105: 0.3
A106: P9945 | B106: Draguista com periculosidade | C106: h | D106: 16.3424 | E106: 1.7796 | F106: 50.328 | G106: 0.3
A107: P9946 | B107: Engenheiro auxiliar | C107: mês | D107: 11220 | E107: 0.835617 | F107: 20595.6227 | G107: 0
A108: P9947 | B108: Técnico florestal | C108: mês | D108: 3466.6378 | E108: 1.030252 | F108: 7038.1483 | G108: 0
A109: P9948 | B109: Motorista de veículo leve - mensalista | C109: mês | D109: 2378.3386 | E109: 1.24979 | F109: 5350.7623 | G109: 0
A110: P9949 | B110: Topógrafo | C110: mês | D110: 4037 | E110: 0.996775 | F110: 8060.9806 | G110: 0
A111: P9950 | B111: Auxiliar de topografia | C111: mês | D111: 2378.3386 | E111: 1.271731 | F111: 5402.9455 | G111: 0
A112: P9951 | B112: Médico de câmara hiperbárica | C112: mês | D112: 9709.5193 | E112: 1.037892 | F112: 20315.1495 | G112: 0.0544
A113: P9952 | B113: Pedreiro - mensalista | C113: mês | D113: 1960.6314 | E113: 1.388259 | F113: 4682.4955 | G113: 0
A114: P9953 | B114: Eletricista - mensalista | C114: mês | D114: 2295.3553 | E114: 1.344024 | F114: 5380.3679 | G114: 0
A115: P9954 | B115: Servente - mensalista | C115: mês | D115: 1474 | E115: 1.594056 | F115: 3823.6385 | G115: 0
A116: P9955 | B116: Engenheiro chefe | C116: mês | D116: 16940.0825 | E116: 0.809408 | F116: 30651.5207 | G116: 0
A117: P9956 | B117: Motorista de caminhão com periculosidade | C117: h | D117: 11.74 | E117: 1.96213 | F117: 38.2974 | G117: 0.3
A118: P9972 | B118: Técnico de batimetria | C118: mês | D118: 2610.8367 | E118: 1.167737 | F118: 5659.6073 | G118: 0

Sheet Consult SICRO
B1: 2023-04-01
B2: Tabela 1 - Custos de veículos
B3: Tabela de Preços de Consultoria - mês de referência: Jul/2023
B4: Item | C4: Código | D4: Tipo | E4: Unidade | F4: Custo unitário (R$ / un) | H4: S
F5: Produtivo | G5: Improdutivo
B6: Veículos | C6: E8889 | D6: Veículo leve - 53 kW (sem motorista) | E6: hora | F6: 32.84 | G6: 6.47
C7: E8891 | D7: Veículo leve picape 4x4 - 147 kW (sem motorista) | E7: hora | F7: 80.19 | G7: 28.61
C8: E8887 | D8: Van furgão - 93 kW (com motorista) | E8: hora | F8: 74.09 | G8: 43.18
B9: Fonte: FGV IBRE
B11: Tabela 2 - Custos de imóveis, mobiliário, cestas de instalações e custos diversos
B12: Tabela de Preços de Consultoria - mês de referência: Jul/2023
B13: Item | C13: Código | D13: Tipo | F13: Unidade | G13: Custo unitário (R$ / un)
B14: Imóveis | C14: B8951 | D14: Comercial (2,60% do CMCC - SINAPI) | F14: m² x mês | G14: 46.78
C15: B8952 | D15: Residencial (1,70% do CMCC - SINAPI) | F15: m² x mês | G15: 30.59
B16: Mobiliário | C16: B8953 | D16: Escritório | F16: ocupante x mês | G16: 510.96
C17: B8954 | D17: Residência | F17: ocupante x mês | G17: 44.3
B18: Cesta das Instalações | C18: B8955 | D18: Laboratório de asfalto | F18: mês | G18: 5400.53
C19: B8956 | D19: Laboratório de concreto | F19: mês | G19: 4270.25
C20: B8957 | D20: Laboratório de solos | F20: mês | G20: 4311.34
C21: B8958 | D21: Topografia | F21: mês | G21: 3134.16
B22: Custos Diversos | C22: B8959 | D22: Escritório | F22: ocupante x mês | G22: 131.32
C23: B8960 | D23: Residência | F23: ocupante x mês | G23: 208.36
B24: Fonte: FGV IBRE

Sheet INSUMOS SINAPI
A1: PRECOS DE INSUMOS
A3: MES DE COLETA: 09/2023
A4: LOCALIDADE: 1250 - RECIFE
A5: ENCARGOS SOCIAIS (%) HORISTA 114,55 MENSALISTA 70,11
A7: CODIGO | B7: DESCRICAO DO INSUMO | C7: UNIDADE | D7: ORIGEM DO PRECO | E7: PRECO MEDIANO R$
A8: 38605 | B8: ABERTURA PARA ENCAIXE DE CUBA OU LAVATORIO EM BANCADA DE MARMORE/ GRANITO OU OUTRO TIPO DE PEDRA NATURAL | C8: UN | D8: CR | E8: 159,92
A9: 11270 | B9: ABRACADEIRA DE LATAO PARA FIXACAO DE CABO PARA-RAIO, DIMENSOES 32 X 24 X 24 MM | C9: UN | D9: CR | E9: 3,40
A10: 412 | B10: ABRACADEIRA DE NYLON PARA AMARRACAO DE CABOS, COMPRIMENTO DE *230* X *7,6* MM | C10: UN | D10: CR | E10: 1,13
A11: 414 | B11: ABRACADEIRA DE NYLON PARA AMARRACAO DE CABOS, COMPRIMENTO DE 100 X 2,5 MM | C11: UN | D11: CR | E11: 0,07
A12: 410 | B12: ABRACADEIRA DE NYLON PARA AMARRACAO DE CABOS, COMPRIMENTO DE 150 X *3,6* MM | C12: UN | D12: CR | E12: 0,17
A13: 411 | B13: ABRACADEIRA DE NYLON PARA AMARRACAO DE CABOS, COMPRIMENTO DE 200 X *4,6* MM | C13: UN | D13: C | E13: 0,22
A14: 408 | B14: ABRACADEIRA DE NYLON PARA AMARRACAO DE CABOS, COMPRIMENTO DE 390 X *4,6* MM | C14: UN | D14: CR | E14: 1,09
A15: 39131 | B15: ABRACADEIRA EM ACO PARA AMARRACAO DE ELETRODUTOS, TIPO D, COM 1 1/2" E CUNHA DE FIXACAO | C15: UN | D15: CR | E15: 5,10
A16: 394 | B16: ABRACADEIRA EM ACO PARA AMARRACAO DE ELETRODUTOS, TIPO D, COM 1 1/2" E PARAFUSO DE FIXACAO | C16: UN | D16: CR | E16: 5,17
A17: 39130 | B17: ABRACADEIRA EM ACO PARA AMARRACAO DE ELETRODUTOS, TIPO D, COM 1 1/4" E CUNHA DE FIXACAO | C17: UN | D17: CR | E17: 4,65
A18: 395 | B18: ABRACADEIRA EM ACO PARA AMARRACAO DE ELETRODUTOS, TIPO D, COM 1 1/4" E PARAFUSO DE FIXACAO | C18: UN | D18: CR | E18: 4,97
A19: 39127 | B19: ABRACADEIRA EM ACO PARA AMARRACAO DE ELETRODUTOS, TIPO D, COM 1/2" E CUNHA DE FIXACAO | C19: UN | D19: CR | E19: 2,45
A20: 392 | B20: ABRACADEIRA EM ACO PARA AMARRACAO DE ELETRODUTOS, TIPO D, COM 1/2" E PARAFUSO DE FIXACAO | C20: UN | D20: CR | E20: 2,52
A21: 39129 | B21: ABRACADEIRA EM ACO PARA AMARRACAO DE ELETRODUTOS, TIPO D, COM 1" E CUNHA DE FIXACAO | C21: UN | D21: CR | E21: 2,87
A22: 393 | B22: ABRACADEIRA EM ACO PARA AMARRACAO DE ELETRODUTOS, TIPO D, COM 1" E PARAFUSO DE FIXACAO | C22: UN | D22: C | E22: 3,00
A23: 39133 | B23: ABRACADEIRA EM ACO PARA AMARRACAO DE ELETRODUTOS, TIPO D, COM 2 1/2" E CUNHA DE FIXACAO | C23: UN | D23: CR | E23: 6,70
A24: 397 | B24: ABRACADEIRA EM ACO PARA AMARRACAO DE ELETRODUTOS, TIPO D, COM 2 1/2" E PARAFUSO DE FIXACAO | C24: UN | D24: CR | E24: 7,40
A25: 39132 | B25: ABRACADEIRA EM ACO PARA AMARRACAO DE ELETRODUTOS, TIPO D, COM 2" E CUNHA DE FIXACAO | C25: UN | D25: CR | E25: 5,36
A26: 396 | B26: ABRACADEIRA EM ACO PARA AMARRACAO DE ELETRODUTOS, TIPO D, COM 2" E PARAFUSO DE FIXACAO | C26: UN | D26: CR | E26: 5,74
A27: 39135 | B27: ABRACADEIRA EM ACO PARA AMARRACAO DE ELETRODUTOS, TIPO D, COM 3 1/2" E CUNHA DE FIXACAO | C27: UN | D27: CR | E27: 10,72
A28: 39128 | B28: ABRACADEIRA EM ACO PARA AMARRACAO DE ELETRODUTOS, TIPO D, COM 3/4" E CUNHA DE FIXACAO | C28: UN | D28: CR | E28: 2,68
A29: 400 | B29: ABRACADEIRA EM ACO PARA AMARRACAO DE ELETRODUTOS, TIPO D, COM 3/4" E PARAFUSO DE FIXACAO | C29: UN | D29: CR | E29: 2,61
A30: 39125 | B30: ABRACADEIRA EM ACO PARA AMARRACAO DE ELETRODUTOS, TIPO D, COM 3/8" E PARAFUSO DE FIXACAO | C30: UN | D30: CR | E30: 2,68
A31: 39134 | B31: ABRACADEIRA EM ACO PARA AMARRACAO DE ELETRODUTOS, TIPO D, COM 3" E CUNHA DE FIXACAO | C31: UN | D31: CR | E31: 8,93
A32: 398 | B32: ABRACADEIRA EM ACO PARA AMARRACAO DE ELETRODUTOS, TIPO D, COM 3" E PARAFUSO DE FIXACAO | C32: UN | D32: CR | E32: 8,23
A33: 39126 | B33: ABRACADEIRA EM ACO PARA AMARRACAO DE ELETRODUTOS, TIPO D, COM 4" E CUNHA DE FIXACAO | C33: UN | D33: CR | E33: 12,06
A34: 399 | B34: ABRACADEIRA EM ACO PARA AMARRACAO DE ELETRODUTOS, TIPO D, COM 4" E PARAFUSO DE FIXACAO | C34: UN | D34: CR | E34: 10,62
A35: 39158 | B35: ABRACADEIRA EM ACO PARA AMARRACAO DE ELETRODUTOS, TIPO ECONOMICA (GOTA), COM 8" | C35: UN | D35: CR | E35: 28,53
A36: 39141 | B36: ABRACADEIRA EM ACO PARA AMARRACAO DE ELETRODUTOS, TIPO U SIMPLES, COM 1 1/2" | C36: UN | D36: CR | E36: 2,07
A37: 39140 | B37: ABRACADEIRA EM ACO PARA AMARRACAO DE ELETRODUTOS, TIPO U SIMPLES, COM 1 1/4" | C37: UN | D37: CR | E37: 1,88
A38: 39137 | B38: ABRACADEIRA EM ACO PARA AMARRACAO DE ELETRODUTOS, TIPO U SIMPLES, COM 1/2" | C38: UN | D38: CR | E38: 1,08
A39: 39139 | B39: ABRACADEIRA EM ACO PARA AMARRACAO DE ELETRODUTOS, TIPO U SIMPLES, COM 1" | C39: UN | D39: CR | E39: 1,56
A40: 39143 | B40: ABRACADEIRA EM ACO PARA AMARRACAO DE ELETRODUTOS, TIPO U SIMPLES, COM 2 1/2" | C40: UN | D40: CR | E40: 4,27
A41: 39142 | B41: ABRACADEIRA EM ACO PARA AMARRACAO DE ELETRODUTOS, TIPO U SIMPLES, COM 2" | C41: UN | D41: CR | E41: 3,06
A42: 39138 | B42: ABRACADEIRA EM ACO PARA AMARRACAO DE ELETRODUTOS, TIPO U SIMPLES, COM 3/4" | C42: UN | D42: CR | E42: 1,14
A43: 39136 | B43: ABRACADEIRA EM ACO PARA AMARRACAO DE ELETRODUTOS, TIPO U SIMPLES, COM 3/8" | C43: UN | D43: CR | E43: 0,76
A44: 39144 | B44: ABRACADEIRA EM ACO PARA AMARRACAO DE ELETRODUTOS, TIPO U SIMPLES, COM 3" | C44: UN | D44: CR | E44: 4,97
A45: 39145 | B45: ABRACADEIRA EM ACO PARA AMARRACAO DE ELETRODUTOS, TIPO U SIMPLES, COM 4" | C45: UN | D45: CR | E45: 8,20
A46: 12615 | B46: ABRACADEIRA PVC, PARA CALHA PLUVIAL, DIAMETRO ENTRE *80 E 100* MM, PARA DRENAGEM PLUVIAL PREDIAL | C46: UN | D46: CR | E46: 13,85
A47: 11927 | B47: ABRACADEIRA, GALVANIZADA/ZINCADA, ROSCA SEM FIM, PARAFUSO INOX, LARGURA FITA *12,6 A *14 MM, D = 2" A 2 1/2" | C47: UN | D47: CR | E47: 10,17
A48: 11928 | B48: ABRACADEIRA, GALVANIZADA/ZINCADA, ROSCA SEM FIM, PARAFUSO INOX, LARGURA FITA *12,6 A *14 MM, D = 3" A 3 3/4" | C48: UN | D48: CR | E48: 11,65
A49: 11929 | B49: ABRACADEIRA, GALVANIZADA/ZINCADA, ROSCA SEM FIM, PARAFUSO INOX, LARGURA FITA *12,6 A *14 MM, D = 4" A 4 3/4" | C49: UN | D49: CR | E49: 18,02
A50: 36801 | B50: ACABAMENTO DE METAL CROMADO PARA REGISTRO PEQUENO, DE PAREDE, 1/2 " OU 3/4 " | C50: UN | D50: CR | E50: 31,63
A51: 36246 | B51: ACABAMENTO SIMPLES/CONVENCIONAL PARA FORRO PVC, TIPO "U" OU "C", COR BRANCA, COMPRIMENTO 6 M | C51: M | D51: CR | E51: 4,26
A52: 37600 | B52: ACESSORIO DE LIGACAO NAO ELETRICO PARA CARGAS EXPLOSIVAS, TUBO DE 6 M | C52: UN | D52: AS | E52: 104,86
A53: 37599 | B53: ACESSORIO INICIADOR NAO ELETRICO, TUBO DE 6 M, TEMPO DE RETARDO DE *160* MS | C53: UN | D53: AS | E53: 97,60
A54: 1 | B54: ACETILENO (RECARGA DE GAS ACETILENO PARA CILINDRO DE CONJUNTO OXICORTE GRANDE) NAO INCLUI TROCA/MANUTENCAO DO CILINDRO | C54: KG | D54: AS | E54: 72,65
A55: 3 | B55: ACIDO CLORIDRICO / ACIDO MURIATICO, DILUICAO 10% A 12% PARA USO EM LIMPEZA | C55: L | D55: CR | E55: 23,45
A56: 43054 | B56: ACO CA-25, 10,0 MM, OU 12,5 MM, OU 16,0 MM, OU 20,0 MM, OU 25,0 MM, VERGALHAO | C56: KG | D56: CR | E56: 10,57
A57: 42402 | B57: ACO CA-25, 16,0 MM, BARRA DE TRANSFERENCIA | C57: KG | D57: CR | E57: 10,10
A58: 42403 | B58: ACO CA-25, 20,0 MM, BARRA DE TRANSFERENCIA | C58: KG | D58: CR | E58: 12,96
A59: 42404 | B59: ACO CA-25, 25,0 MM, BARRA DE TRANSFERENCIA | C59: KG | D59: CR | E59: 12,88
A60: 42405 | B60: ACO CA-25, 32,0 MM, BARRA DE TRANSFERENCIA | C60: KG | D60: CR | E60: 13,72
A61: 34341 | B61: ACO CA-25, 32,0 MM, VERGALHAO | C61: KG | D61: CR | E61: 11,91
A62: 43053 | B62: ACO CA-25, 6,3 MM OU 8,0 MM, VERGALHAO | C62: KG | D62: CR | E62: 9,44
A63: 43058 | B63: ACO CA-50, 10,0 MM, OU 12,5 MM, OU 16,0 MM, OU 20,0 MM, DOBRADO E CORTADO | C63: KG | D63: CR | E63: 9,79
A64: 34 | B64: ACO CA-50, 10,0 MM, VERGALHAO | C64: KG | D64: CR | E64: 9,84
A65: 43055 | B65: ACO CA-50, 12,5 MM OU 16,0 MM, VERGALHAO | C65: KG | D65: C | E65: 8,52
A66: 43056 | B66: ACO CA-50, 20,0 MM OU 25,0 MM, VERGALHAO | C66: KG | D66: CR | E66: 9,82
A67: 43057 | B67: ACO CA-50, 32,0 MM, VERGALHAO | C67: KG | D67: CR | E67: 10,79
A68: 34449 | B68: ACO CA-50, 6,3 MM, DOBRADO E CORTADO | C68: KG | D68: CR | E68: 11,54
A69: 32 | B69: ACO CA-50, 6,3 MM, VERGALHAO | C69: KG | D69: CR | E69: 10,38
A70: 33 | B70: ACO CA-50, 8,0 MM, VERGALHAO | C70: KG | D70: CR | E70: 10,43
A71: 43061 | B71: ACO CA-60, 4,2 MM OU 5,0 MM, DOBRADO E CORTADO | C71: KG | D71: CR | E71: 9,75
A72: 43059 | B72: ACO CA-60, 4,2 MM, OU 5,0 MM, OU 6,0 MM, OU 7,0 MM, VERGALHAO | C72: KG | D72: CR | E72: 9,31
A73: 43062 | B73: ACO CA-60, 6,0 MM OU 7,0 MM, DOBRADO E CORTADO | C73: KG | D73: CR | E73: 10,31
A74: 43060 | B74: ACO CA-60, 8,0 MM OU 9,5 MM, VERGALHAO | C74: KG | D74: CR | E74: 8,11
A75: 40410 | B75: ACOPLAMENTO RIGIDO EM FERRO FUNDIDO PARA SISTEMA DE TUBULACAO RANHURADA, DN 50 MM (2") | C75: UN | D75: AS | E75: 23,71
A76: 40411 | B76: ACOPLAMENTO RIGIDO EM FERRO FUNDIDO PARA SISTEMA DE TUBULACAO RANHURADA, DN 65 MM (2 1/2") | C76: UN | D76: AS | E76: 25,73
A77: 40412 | B77: ACOPLAMENTO RIGIDO EM FERRO FUNDIDO PARA SISTEMA DE TUBULACAO RANHURADA, DN 80 MM (3") | C77: UN | D77: AS | E77: 28,88
A78: 44254 | B78: ADAPTADOR CPVC, ROSCAVEL, COM FLANGES E ANEL DE VEDACAO, 15 MM, CAIXA D'AGUA PARA AGUA QUENTE | C78: UN | D78: CR | E78: 26,51
A79: 44255 | B79: ADAPTADOR CPVC, ROSCAVEL, COM FLANGES E ANEL DE VEDACAO, 22 MM, CAIXA D'AGUA PARA AGUA QUENTE | C79: UN | D79: CR | E79: 29,38
A80: 44256 | B80: ADAPTADOR CPVC, ROSCAVEL, COM FLANGES E ANEL DE VEDACAO, 28 MM, CAIXA D'AGUA PARA AGUA QUENTE | C80: UN | D80: CR | E80: 33,19
A81: 44257 | B81: ADAPTADOR CPVC, ROSCAVEL, COM FLANGES E ANEL DE VEDACAO, 35 MM, CAIXA D'AGUA PARA AGUA QUENTE | C81: UN | D81: CR | E81: 52,50
A82: 44258 | B82: ADAPTADOR CPVC, ROSCAVEL, COM FLANGES E ANEL DE VEDACAO, 42 MM, CAIXA D'AGUA PARA AGUA QUENTE | C82: UN | D82: CR | E82: 60,00
A83: 44259 | B83: ADAPTADOR CPVC, ROSCAVEL, COM FLANGES E ANEL DE VEDACAO, 54 MM, CAIXA D'AGUA PARA AGUA QUENTE | C83: UN | D83: CR | E83: 82,36
A84: 37997 | B84: ADAPTADOR CPVC, SOLDAVEL, 15 MM, PARA AGUA QUENTE | C84: UN | D84: CR | E84: 15,80
A85: 37998 | B85: ADAPTADOR CPVC, SOLDAVEL, 22 MM, PARA AGUA QUENTE | C85: UN | D85: CR | E85: 21,14
A86: 55 | B86: ADAPTADOR DE COMPRESSAO EM POLIPROPILENO (PP), PARA TUBO EM PEAD, 20 MM X 1/2", PARA LIGACAO PREDIAL DE AGUA (NTS 179) | C86: UN | D86: AS | E86: 3,87
A87: 61 | B87: ADAPTADOR DE COMPRESSAO EM POLIPROPILENO (PP), PARA TUBO EM PEAD, 20 MM X 3/4", PARA LIGACAO PREDIAL DE AGUA (NTS 179) | C87: UN | D87: AS | E87: 3,66
A88: 62 | B88: ADAPTADOR DE COMPRESSAO EM POLIPROPILENO (PP), PARA TUBO EM PEAD, 32 MM X 1", PARA LIGACAO PREDIAL DE AGUA (NTS 179) | C88: UN | D88: AS | E88: 7,58
A89: 10899 | B89: ADAPTADOR EM LATAO, ENGATE RAPIDO 2 1/2" X ROSCA INTERNA 5 FIOS 2 1/2", PARA INSTALACAO PREDIAL DE COMBATE A INCENDIO | C89: UN | D89: CR | E89: 109,52
A90: 10900 | B90: ADAPTADOR EM LATAO, ENGATE RAPIDO1 1/2" X ROSCA INTERNA 5 FIOS 2 1/2", PARA INSTALACAO PREDIAL DE COMBATE A INCENDIO | C90: UN | D90: CR | E90: 85,71
A91: 103 | B91: ADAPTADOR PVC SOLDAVEL CURTO COM BOLSA E ROSCA, 110 MM X 4", PARA AGUA FRIA | C91: UN | D91: CR | E91: 47,70
A92: 107 | B92: ADAPTADOR PVC SOLDAVEL CURTO COM BOLSA E ROSCA, 20 MM X 1/2", PARA AGUA FRIA | C92: UN | D92: CR | E92: 0,90
A93: 65 | B93: ADAPTADOR PVC SOLDAVEL CURTO COM BOLSA E ROSCA, 25 MM X 3/4", PARA AGUA FRIA | C93: UN | D93: CR | E93: 0,98
A94: 108 | B94: ADAPTADOR PVC SOLDAVEL CURTO COM BOLSA E ROSCA, 32 MM X 1", PARA AGUA FRIA | C94: UN | D94: CR | E94: 1,98
A95: 110 | B95: ADAPTADOR PVC SOLDAVEL CURTO COM BOLSA E ROSCA, 40 MM X 1 1/2", PARA AGUA FRIA | C95: UN | D95: CR | E95: 6,86
A96: 109 | B96: ADAPTADOR PVC SOLDAVEL CURTO COM BOLSA E ROSCA, 40 MM X 1 1/4", PARA AGUA FRIA | C96: UN | D96: CR | E96: 4,09
A97: 111 | B97: ADAPTADOR PVC SOLDAVEL CURTO COM BOLSA E ROSCA, 50 MM X 1 1/4", PARA AGUA FRIA | C97: UN | D97: CR | E97: 9,28
A98: 112 | B98: ADAPTADOR PVC SOLDAVEL CURTO COM BOLSA E ROSCA, 50 MM X1 1/2", PARA AGUA FRIA | C98: UN | D98: CR | E98: 4,92
A99: 113 | B99: ADAPTADOR PVC SOLDAVEL CURTO COM BOLSA E ROSCA, 60 MM X 2", PARA AGUA FRIA | C99: UN | D99: CR | E99: 12,32
A100: 104 | B100: ADAPTADOR PVC SOLDAVEL CURTO COM BOLSA E ROSCA, 75 MM X 2 1/2", PARA AGUA FRIA | C100: UN | D100: CR | E100: 21,44
A101: 102 | B101: ADAPTADOR PVC SOLDAVEL CURTO COM BOLSA E ROSCA, 85 MM X 3", PARA AGUA FRIA | C101: UN | D101: CR | E101: 29,56
A102: 95 | B102: ADAPTADOR PVC SOLDAVEL, COM FLANGE E ANEL DE VEDACAO, 20 MM X 1/2", PARA CAIXA D'AGUA | C102: UN | D102: CR | E102: 12,49
A103: 96 | B103: ADAPTADOR PVC SOLDAVEL, COM FLANGE E ANEL DE VEDACAO, 25 MM X 3/4", PARA CAIXA D'AGUA | C103: UN | D103: CR | E103: 13,59
A104: 97 | B104: ADAPTADOR PVC SOLDAVEL, COM FLANGE E ANEL DE VEDACAO, 32 MM X 1", PARA CAIXA D'AGUA | C104: UN | D104: CR | E104: 20,44
A105: 98 | B105: ADAPTADOR PVC SOLDAVEL, COM FLANGE E ANEL DE VEDACAO, 40 MM X 1 1/4", PARA CAIXA D'AGUA | C105: UN | D105: CR | E105: 30,60
A106: 99 | B106: ADAPTADOR PVC SOLDAVEL, COM FLANGE E ANEL DE VEDACAO, 50 MM X 1 1/2", PARA CAIXA D'AGUA | C106: UN | D106: CR | E106: 28,92
A107: 100 | B107: ADAPTADOR PVC SOLDAVEL, COM FLANGES E ANEL DE VEDACAO, 60 MM X 2", PARA CAIXA D' AGUA | C107: UN | D107: CR | E107: 50,53
A108: 75 | B108: ADAPTADOR PVC SOLDAVEL, COM FLANGES LIVRES, 110 MM X 4", PARA CAIXA D' AGUA | C108: UN | D108: CR | E108: 294,59
A109: 83 | B109: ADAPTADOR PVC SOLDAVEL, COM FLANGES LIVRES, 75 MM X 2 1/2", PARA CAIXA D' AGUA | C109: UN | D109: CR | E109: 235,51
A110: 74 | B110: ADAPTADOR PVC SOLDAVEL, COM FLANGES LIVRES, 85 MM X 3", PARA CAIXA D' AGUA | C110: UN | D110: CR | E110: 336,72
A111: 106 | B111: ADAPTADOR PVC SOLDAVEL, LONGO, COM FLANGE LIVRE, 110 MM X 4", PARA CAIXA D' AGUA | C111: UN | D111: CR | E111: 425,79
A112: 88 | B112: ADAPTADOR PVC SOLDAVEL, LONGO, COM FLANGE LIVRE, 32 MM X 1", PARA CAIXA D' AGUA | C112: UN | D112: CR | E112: 11,97
A113: 82 | B113: ADAPTADOR PVC SOLDAVEL, LONGO, COM FLANGE LIVRE, 75 MM X 2 1/2", PARA CAIXA D' AGUA | C113: UN | D113: CR | E113: 224,07
A114: 105 | B114: ADAPTADOR PVC SOLDAVEL, LONGO, COM FLANGE LIVRE, 85 MM X 3", PARA CAIXA D' AGUA | C114: UN | D114: CR | E114: 317,51
A115: 60 | B115: ADAPTADOR PVC, COM REGISTRO, PARA PEAD, 20 MM X 3/4", PARA LIGACAO PREDIAL DE AGUA | C115: UN | D115: AS | E115: 5,02
A116: 72 | B116: ADAPTADOR PVC, ROSCAVEL, COM FLANGES E ANEL DE VEDACAO, 1 1/2", PARA CAIXA D'AGUA | C116: UN | D116: CR | E116: 55,46
A117: 67 | B117: ADAPTADOR PVC, ROSCAVEL, COM FLANGES E ANEL DE VEDACAO, 1/2", PARA CAIXA D' AGUA | C117: UN | D117: CR | E117: 17,93
A118: 71 | B118: ADAPTADOR PVC, ROSCAVEL, COM FLANGES E ANEL DE VEDACAO, 1", PARA CAIXA D' AGUA | C118: UN | D118: CR | E118: 34,25
A119: 73 | B119: ADAPTADOR PVC, ROSCAVEL, COM FLANGES E ANEL DE VEDACAO, 3/4", PARA CAIXA D' AGUA | C119: UN | D119: CR | E119: 17,16
A120: 46 | B120: ADAPTADOR, PVC PBA, BOLSA/ROSCA, JE, DN 75 / DE 85 MM | C120: UN | D120: AS | E120: 38,06
A121: 47 | B121: ADAPTADOR, PVC PBA, BOLSA/ROSCA, JE, DN 100 / DE 110 MM | C121: UN | D121: AS | E121: 65,07
A122: 48 | B122: ADAPTADOR, PVC PBA, BOLSA/ROSCA, JE, DN 50 / DE 60 MM | C122: UN | D122: AS | E122: 16,97
A123: 52 | B123: ADAPTADOR, PVC PBA, PONTA/ROSCA, JE, DN 50 / DE 60 MM | C123: UN | D123: AS | E123: 12,89
A124: 43 | B124: ADAPTADOR, PVC PBA, PONTA/ROSCA, JE, DN 75 / DE 85 MM | C124: UN | D124: AS | E124: 43,52
A125: 39719 | B125: ADESIVO / COLA DE CONTATO LIQUIDO, A BASE DE RESINAS, PARA COLAGEM DE ESPUMA PARA ISOLAMENTO TERMICO FLEXIVEL | C125: L | D125: CR | E125: 150,11
A126: 3410 | B126: ADESIVO / COLA PARA EPS (ISOPOR) E OUTROS MATERIAIS | C126: KG | D126: CR | E126: 33,76
A127: 4791 | B127: ADESIVO ACRILICO DE BASE AQUOSA / COLA DE CONTATO | C127: KG | D127: CR | E127: 42,99
A128: 157 | B128: ADESIVO ESTRUTURAL A BASE DE RESINA EPOXI PARA INJECAO EM TRINCAS, BICOMPONENTE, BAIXA VISCOSIDADE | C128: KG | D128: CR | E128: 157,36
A129: 156 | B129: ADESIVO ESTRUTURAL A BASE DE RESINA EPOXI, BICOMPONENTE, FLUIDO | C129: KG | D129: CR | E129: 56,03
A130: 131 | B130: ADESIVO ESTRUTURAL A BASE DE RESINA EPOXI, BICOMPONENTE, PASTOSO (TIXOTROPICO) | C130: KG | D130: CR | E130: 47,92
A131: 21114 | B131: ADESIVO PARA TUBOS CPVC, *75* G | C131: UN | D131: CR | E131: 29,59
A132: 119 | B132: ADESIVO PLASTICO PARA PVC, BISNAGA COM 75 GR | C132: UN | D132: C | E132: 7,50
A133: 122 | B133: ADESIVO PLASTICO PARA PVC, FRASCO COM *850* GR | C133: UN | D133: CR | E133: 57,70
A134: 20080 | B134: ADESIVO PLASTICO PARA PVC, FRASCO COM 175 GR | C134: UN | D134: CR | E134: 18,83
A135: 124 | B135: ADITIVO ACELERADOR DE PEGA E ENDURECIMENTO PARA ARGAMASSAS E CONCRETOS, LIQUIDO E ISENTO DE CLORETOS | C135: L | D135: CR | E135: 18,48
A136: 7334 | B136: ADITIVO ADESIVO LIQUIDO PARA ARGAMASSAS DE REVESTIMENTOS CIMENTICIOS | C136: L | D136: CR | E136: 16,08
A137: 123 | B137: ADITIVO IMPERMEABILIZANTE DE PEGA NORMAL PARA ARGAMASSAS E CONCRETOS SEM ARMACAO, LIQUIDO E ISENTO DE CLORETOS | C137: L | D137: C | E137: 7,56
A138: 127 | B138: ADITIVO IMPERMEABILIZANTE DE PEGA ULTRARRAPIDA, LIQUIDO E ISENTO DE CLORETOS | C138: L | D138: CR | E138: 18,05
A139: 41373 | B139: ADITIVO LIQUIDO IMPERMEABILIZANTE CRISTALIZANTE | C139: L | D139: CR | E139: 25,15
A140: 133 | B140: ADITIVO LIQUIDO INCORPORADOR DE AR PARA CONCRETO E ARGAMASSA, LIQUIDO E ISENTO DE CLORETOS | C140: L | D140: CR | E140: 7,49
A141: 43617 | B141: ADITIVO PLASTIFICANTE E ESTABILIZADOR PARA ARGAMASSAS DE ASSENTAMENTO E REBOCO, LIQUIDO E ISENTO DE CLORETOS | C141: L | D141: CR | E141: 8,37
A142: 132 | B142: ADITIVO PLASTIFICANTE RETARDADOR DE PEGA E REDUTOR DE AGUA PARA CONCRETO, LIQUIDO E ISENTO DE CLORETOS | C142: L | D142: CR | E142: 7,77
A143: 43618 | B143: ADITIVO SUPERPLASTIFICANTE DE PEGA NORMAL PARA CONCRETO, LIQUIDO E ISENTO DE CLORETOS | C143: KG | D143: CR | E143: 19,56
A144: 37476 | B144: ADUELA/ GALERIA PRE-MOLDADA DE CONCRETO ARMADO, SECAO QUADRADA INTERNA DE 1,50 X 1,50 M (L X A), MISULA DE 20 X 20 CM, C = 1,00 M, ESPESSURA MIN = 15 CM, TB-45 E FCK DO CONCRETO = 30 MPA | C144: UN | D144: CR | E144: 2.911,76
A145: 37478 | B145: ADUELA/ GALERIA PRE-MOLDADA DE CONCRETO ARMADO, SECAO RETANGULAR INTERNA DE 2,00 X 2,00 M (L X A), MISULA DE 20 X 20 CM, C = 1,00 M, ESPESSURA MIN = 15 CM, TB-45 E FCK DO CONCRETO = 30 MPA | C145: UN | D145: CR | E145: 3.647,05
A146: 37477 | B146: ADUELA/ GALERIA PRE-MOLDADA DE CONCRETO ARMADO, SECAO RETANGULAR INTERNA DE 2,50 X 2,50 M (L X A), MISULA DE 20 X 20 CM, C = 1,00 M, ESPESSURA MIN = 15 CM, TB-45 E FCK DO CONCRETO = 30 MPA | C146: UN | D146: CR | E146: 4.941,17
A147: 37479 | B147: ADUELA/ GALERIA PRE-MOLDADA DE CONCRETO ARMADO, SECAO RETANGULAR INTERNA DE 3,00 X 3,00 M (L X A), MISULA DE 20 X 20 CM, C = 1.00 M, ESPESSURA MIN = 20 CM, TB-45 E FCK DO CONCRETO = 30 MPA | C147: UN | D147: CR | E147: 5.860,29
A148: 4319 | B148: AFASTADOR PARA TELHA DE FIBROCIMENTO CANALETE 90 OU KALHETAO | C148: UN | D148: CR | E148: 1,44
A149: 42409 | B149: AGENTE DE CURA, PROTETOR DA EVAPORACAO DA AGUA DE HIDRATACAO DO CONCRETO | C149: KG | D149: CR | E149: 12,32
A150: 40553 | B150: AGREGADO RECICLADO, TIPO RACHAO RECICLADO CINZA, CLASSE A | C150: M3 | D150: AS | E150: 52,50
A151: 6114 | B151: AJUDANTE DE ARMADOR (HORISTA) | C151: H | D151: CR | E151: 15,06
A152: 40912 | B152: AJUDANTE DE ARMADOR (MENSALISTA) | C152: MES | D152: CR | E152: 2.627,68
A153: 247 | B153: AJUDANTE DE ELETRICISTA (HORISTA) | C153: H | D153: CR | E153: 14,24
A154: 40919 | B154: AJUDANTE DE ELETRICISTA (MENSALISTA) | C154: MES | D154: CR | E154: 2.487,85
A155: 40984 | B155: AJUDANTE DE ESTRUTURAS METALICAS (MENSALISTA) | C155: MES | D155: CR | E155: 3.125,55
A156: 44499 | B156: AJUDANTE DE ESTRUTURAS METALICAS HORISTA | C156: H | D156: CR | E156: 17,91
A157: 248 | B157: AJUDANTE DE OPERACAO EM GERAL (HORISTA) | C157: H | D157: CR | E157: 17,59
A158: 41086 | B158: AJUDANTE DE OPERACAO EM GERAL (MENSALISTA) | C158: MES | D158: CR | E158: 3.072,39
A159: 34466 | B159: AJUDANTE DE PINTOR (HORISTA) | C159: H | D159: CR | E159: 15,03
A160: 41083 | B160: AJUDANTE DE PINTOR (MENSALISTA) | C160: MES | D160: CR | E160: 2.627,12
A161: 252 | B161: AJUDANTE DE SERRALHEIRO (HORISTA) | C161: H | D161: CR | E161: 17,59
A162: 40909 | B162: AJUDANTE DE SERRALHEIRO (MENSALISTA) | C162: MES | D162: CR | E162: 3.072,39
A163: 242 | B163: AJUDANTE ESPECIALIZADO (HORISTA) | C163: H | D163: CR | E163: 17,57
A164: 41085 | B164: AJUDANTE ESPECIALIZADO (MENSALISTA) | C164: MES | D164: CR | E164: 3.065,68
A165: 427 | B165: ALCA PREFORMADA DE CONTRA POSTE, EM ACO GALVANIZADO, PARA CABO 3/16", COMPRIMENTO *860* MM | C165: UN | D165: AS | E165: 6,31
A166: 417 | B166: ALCA PREFORMADA DE DISTRIBUICAO, EM ACO GALVANIZADO, PARA CABO DE ALUMINIO DIAMETRO 16 A 25 MM | C166: UN | D166: AS | E166: 2,97
A167: 11273 | B167: ALCA PREFORMADA DE DISTRIBUICAO, EM ACO GALVANIZADO, PARA CONDUTORES DE ALUMINIO AWG 1/0 (CAA 6/1 OU CA 7 FIOS) | C167: UN | D167: AS | E167: 9,22
A168: 11272 | B168: ALCA PREFORMADA DE DISTRIBUICAO, EM ACO GALVANIZADO, PARA CONDUTORES DE ALUMINIO AWG 2 (CAA 6/1 OU CA 7 FIOS) | C168: UN | D168: AS | E168: 5,57
A169: 11275 | B169: ALCA PREFORMADA DE SERVICO, EM ACO GALVANIZADO, PARA CONDUTORES DE ALUMINIO AWG 4 (CAA 6/1) | C169: UN | D169: AS | E169: 2,23
A170: 11274 | B170: ALCA PREFORMADA DE SERVICO, EM ACO GALVANIZADO, PARA CONDUTORES DE ALUMINIO AWG 6 (CAA 6/1) | C170: UN | D170: AS | E170: 1,70
A171: 38470 | B171: ALICATE DE CORTE DIAGONAL 6 " COM ISOLAMENTO | C171: UN | D171: C | E171: 42,00
A172: 38547 | B172: ALICATE DE CRIMPAR RJ11, RJ12 E RJ45 | C172: UN | D172: CR | E172: 114,61
A173: 38469 | B173: ALICATE DE PRESSAO PARA SOLDA DE CHAPA 18 " | C173: UN | D173: CR | E173: 123,24
A174: 38467 | B174: ALICATE DE PRESSAO 11 " PARA SOLDA, TIPO C | C174: UN | D174: CR | E174: 69,34
A175: 38468 | B175: ALICATE DE PRESSAO 11 " PARA SOLDA, TIPO U | C175: UN | D175: CR | E175: 76,30
A176: 38471 | B176: ALICATE PARA ANEIS DE PISTAO, CAPACIDADE 50 A 100 MM | C176: UN | D176: CR | E176: 99,09
A177: 37370 | B177: ALIMENTACAO - HORISTA (COLETADO CAIXA - ENCARGOS COMPLEMENTARES) | C177: H | D177: C | E177: 2,28
A178: 40862 | B178: ALIMENTACAO - MENSALISTA (COLETADO CAIXA - ENCARGOS COMPLEMENTARES) | C178: MES | D178: C | E178: 429,36
A179: 10658 | B179: ALISADORA DE CONCRETO COM MOTOR A GASOLINA DE 5,5 HP, PESO COM MOTOR DE 78 KG, 4 PAS | C179: UN | D179: AS | E179: 7.359,00
A180: 253 | B180: ALMOXARIFE (HORISTA) | C180: H | D180: C | E180: 20,03
A181: 40809 | B181: ALMOXARIFE (MENSALISTA) | C181: MES | D181: CR | E181: 3.495,42
A182: 42428 | B182: ALONGADOR COM TRES ALTURAS, EM TUBO DE ACO CARBONO, PINTURA NO PROCESSO ELETROSTATICO - EQUIPAMENTO DE GINASTICA PARA ACADEMIA AO AR LIVRE / ACADEMIA DA TERCEIRA IDADE - ATI | C182: UN | D182: AS | E182: 2.271,00
A183: 301 | B183: ANEL BORRACHA PARA TUBO ESGOTO PREDIAL, DN 100 MM (NBR 5688) | C183: UN | D183: C | E183: 4,00
A184: 296 | B184: ANEL BORRACHA PARA TUBO ESGOTO PREDIAL, DN 50 MM (NBR 5688) | C184: UN | D184: CR | E184: 2,26
A185: 297 | B185: ANEL BORRACHA PARA TUBO ESGOTO PREDIAL, DN 75 MM (NBR 5688) | C185: UN | D185: CR | E185: 3,32
A186: 299 | B186: ANEL BORRACHA, DN 100 MM, PARA TUBO SERIE REFORCADA ESGOTO PREDIAL | C186: UN | D186: CR | E186: 4,69
A187: 300 | B187: ANEL BORRACHA, DN 150 MM, PARA TUBO SERIE REFORCADA ESGOTO PREDIAL | C187: UN | D187: CR | E187: 16,24
A188: 20085 | B188: ANEL BORRACHA, DN 50 MM, PARA TUBO SERIE REFORCADA ESGOTO PREDIAL | C188: UN | D188: CR | E188: 2,97
A189: 298 | B189: ANEL BORRACHA, DN 75 MM, PARA TUBO SERIE REFORCADA ESGOTO PREDIAL | C189: UN | D189: CR | E189: 3,61
A190: 311 | B190: ANEL BORRACHA, PARA TUBO PVC DEFOFO, DN 100 MM (NBR 7665) | C190: UN | D190: CR | E190: 13,39
A191: 318 | B191: ANEL BORRACHA, PARA TUBO PVC DEFOFO, DN 150 MM (NBR 7665) | C191: UN | D191: CR | E191: 26,97
A192: 319 | B192: ANEL BORRACHA, PARA TUBO PVC DEFOFO, DN 200 MM (NBR 7665) | C192: UN | D192: CR | E192: 42,28
A193: 303 | B193: ANEL BORRACHA, PARA TUBO PVC, REDE COLETOR ESGOTO, DN 100 MM (NBR 7362) | C193: UN | D193: CR | E193: 4,43
A194: 305 | B194: ANEL BORRACHA, PARA TUBO PVC, REDE COLETOR ESGOTO, DN 150 MM (NBR 7362) | C194: UN | D194: CR | E194: 13,94
A195: 306 | B195: ANEL BORRACHA, PARA TUBO PVC, REDE COLETOR ESGOTO, DN 200 MM (NBR 7362) | C195: UN | D195: CR | E195: 21,14
A196: 307 | B196: ANEL BORRACHA, PARA TUBO PVC, REDE COLETOR ESGOTO, DN 250 MM (NBR 7362) | C196: UN | D196: CR | E196: 53,41
A197: 309 | B197: ANEL BORRACHA, PARA TUBO PVC, REDE COLETOR ESGOTO, DN 350 MM (NBR 7362) | C197: UN | D197: CR | E197: 87,49
A198: 310 | B198: ANEL BORRACHA, PARA TUBO PVC, REDE COLETOR ESGOTO, DN 400 MM (NBR 7362) | C198: UN | D198: CR | E198: 121,26
A199: 328 | B199: ANEL BORRACHA, PARA TUBO/CONEXAO PVC PBA, DN 100 MM, PARA REDE AGUA | C199: UN | D199: CR | E199: 10,60
A200: 325 | B200: ANEL BORRACHA, PARA TUBO/CONEXAO PVC PBA, DN 50 MM, PARA REDE AGUA | C200: UN | D200: CR | E200: 3,13
A201: 20326 | B201: ANEL BORRACHA, PARA TUBO/CONEXAO PVC PBA, DN 60 MM, PARA REDE AGUA | C201: UN | D201: CR | E201: 5,72
A202: 329 | B202: ANEL BORRACHA, PARA TUBO/CONEXAO PVC PBA, DN 75 MM, PARA REDE AGUA | C202: UN | D202: CR | E202: 8,86
... 4740 more rows

Sheet COMP Sint. Sinapi
A1: PCI.817.01 - CUSTO DE COMPOSIÇÕES - SINTÉTICO DATA DE EMISSÃO: 16/10/2023 23:45:25 DATA DE RT: 16/10/2023
A2: ENCARGOS SOCIAIS SOBRE PREÇOS DA MÃO-DE-OBRA: 114,55%(HORA) 70,11%(MÊS)
A3: ABRANGÊNCIA : NACIONAL LOCALIDADE : RECIFE DATA DE PREÇO : 09/2023 REFERÊNCIA COLETA : MEDIANO
A5: DESCRICAO DA CLASSE | B5: SIGLA DA CLASSE | C5: DESCRICAO DO TIPO 1 | D5: SIGLA DO TIPO 1 | E5: CODIGO DO AGRUPADOR | F5: DESCRICAO DO AGRUPADOR | G5: CODIGO DA COMPOSICAO | H5: DESCRICAO DA COMPOSICAO | I5: UNIDADE | J5: ORIGEM DE PREÇO | K5: CUSTO TOTAL | L5: VINCULO
A7: ASSENTAMENTO DE TUBOS E PECAS | B7: ASTU | C7: FORNEC E/OU ASSENT DE TUBO DE FERRO FUNDIDO JUNTA ELASTICA | D7: 0045 | G7: 97141 | H7: ASSENTAMENTO DE TUBO DE FERRO FUNDIDO PARA REDE DE ÁGUA, DN 80 MM, JUNTA ELÁSTICA, INSTALADO EM LOCAL COM NÍVEL ALTO DE INTERFERÊNCIAS (NÃO INCLUI FORNECIMENTO). AF_11/2017 | I7: M | J7: COEFICIENTE DE REPRESENTATIVIDADE | K7: 9,81 | L7: CAIXA REFERENCIAL
A8: ASSENTAMENTO DE TUBOS E PECAS | B8: ASTU | C8: FORNEC E/OU ASSENT DE TUBO DE FERRO FUNDIDO JUNTA ELASTICA | D8: 0045 | G8: 97142 | H8: ASSENTAMENTO DE TUBO DE FERRO FUNDIDO PARA REDE DE ÁGUA, DN 100 MM, JUNTA ELÁSTICA, INSTALADO EM LOCAL COM NÍVEL ALTO DE INTERFERÊNCIAS (NÃO INCLUI FORNECIMENTO). AF_11/2017 | I8: M | J8: COEFICIENTE DE REPRESENTATIVIDADE | K8: 10,90 | L8: CAIXA REFERENCIAL
A9: ASSENTAMENTO DE TUBOS E PECAS | B9: ASTU | C9: FORNEC E/OU ASSENT DE TUBO DE FERRO FUNDIDO JUNTA ELASTICA | D9: 0045 | G9: 97143 | H9: ASSENTAMENTO DE TUBO DE FERRO FUNDIDO PARA REDE DE ÁGUA, DN 150 MM, JUNTA ELÁSTICA, INSTALADO EM LOCAL COM NÍVEL ALTO DE INTERFERÊNCIAS (NÃO INCLUI FORNECIMENTO). AF_11/2017 | I9: M | J9: COEFICIENTE DE REPRESENTATIVIDADE | K9: 13,64 | L9: CAIXA REFERENCIAL
A10: ASSENTAMENTO DE TUBOS E PECAS | B10: ASTU | C10: FORNEC E/OU ASSENT DE TUBO DE FERRO FUNDIDO JUNTA ELASTICA | D10: 0045 | G10: 97144 | H10: ASSENTAMENTO DE TUBO DE FERRO FUNDIDO PARA REDE DE ÁGUA, DN 200 MM, JUNTA ELÁSTICA, INSTALADO EM LOCAL COM NÍVEL ALTO DE INTERFERÊNCIAS (NÃO INCLUI FORNECIMENTO). AF_11/2017 | I10: M | J10: COEFICIENTE DE REPRESENTATIVIDADE | K10: 16,36 | L10: CAIXA REFERENCIAL
A11: ASSENTAMENTO DE TUBOS E PECAS | B11: ASTU | C11: FORNEC E/OU ASSENT DE TUBO DE FERRO FUNDIDO JUNTA ELASTICA | D11: 0045 | G11: 97145 | H11: ASSENTAMENTO DE TUBO DE FERRO FUNDIDO PARA REDE DE ÁGUA, DN 250 MM, JUNTA ELÁSTICA, INSTALADO EM LOCAL COM NÍVEL ALTO DE INTERFERÊNCIAS (NÃO INCLUI FORNECIMENTO). AF_11/2017 | I11: M | J11: COEFICIENTE DE REPRESENTATIVIDADE | K11: 19,11 | L11: CAIXA REFERENCIAL
A12: ASSENTAMENTO DE TUBOS E PECAS | B12: ASTU | C12: FORNEC E/OU ASSENT DE TUBO DE FERRO FUNDIDO JUNTA ELASTICA | D12: 0045 | G12: 97146 | H12: ASSENTAMENTO DE TUBO DE FERRO FUNDIDO PARA REDE DE ÁGUA, DN 300 MM, JUNTA ELÁSTICA, INSTALADO EM LOCAL COM NÍVEL ALTO DE INTERFERÊNCIAS (NÃO INCLUI FORNECIMENTO). AF_11/2017 | I12: M | J12: COEFICIENTE DE REPRESENTATIVIDADE | K12: 21,85 | L12: CAIXA REFERENCIAL
A13: ASSENTAMENTO DE TUBOS E PECAS | B13: ASTU | C13: FORNEC E/OU ASSENT DE TUBO DE FERRO FUNDIDO JUNTA ELASTICA | D13: 0045 | G13: 97147 | H13: ASSENTAMENTO DE TUBO DE FERRO FUNDIDO PARA REDE DE ÁGUA, DN 350 MM, JUNTA ELÁSTICA, INSTALADO EM LOCAL COM NÍVEL ALTO DE INTERFERÊNCIAS (NÃO INCLUI FORNECIMENTO). AF_11/2017 | I13: M | J13: COEFICIENTE DE REPRESENTATIVIDADE | K13: 24,61 | L13: CAIXA REFERENCIAL
A14: ASSENTAMENTO DE TUBOS E PECAS | B14: ASTU | C14: FORNEC E/OU ASSENT DE TUBO DE FERRO FUNDIDO JUNTA ELASTICA | D14: 0045 | G14: 97148 | H14: ASSENTAMENTO DE TUBO DE FERRO FUNDIDO PARA REDE DE ÁGUA, DN 400 MM, JUNTA ELÁSTICA, INSTALADO EM LOCAL COM NÍVEL ALTO DE INTERFERÊNCIAS (NÃO INCLUI FORNECIMENTO). AF_11/2017 | I14: M | J14: COEFICIENTE DE REPRESENTATIVIDADE | K14: 27,35 | L14: CAIXA REFERENCIAL
A15: ASSENTAMENTO DE TUBOS E PECAS | B15: ASTU | C15: FORNEC E/OU ASSENT DE TUBO DE FERRO FUNDIDO JUNTA ELASTICA | D15: 0045 | G15: 97149 | H15: ASSENTAMENTO DE TUBO DE FERRO FUNDIDO PARA REDE DE ÁGUA, DN 450 MM, JUNTA ELÁSTICA, INSTALADO EM LOCAL COM NÍVEL ALTO DE INTERFERÊNCIAS (NÃO INCLUI FORNECIMENTO). AF_11/2017 | I15: M | J15: COEFICIENTE DE REPRESENTATIVIDADE | K15: 30,14 | L15: CAIXA REFERENCIAL
A16: ASSENTAMENTO DE TUBOS E PECAS | B16: ASTU | C16: FORNEC E/OU ASSENT DE TUBO DE FERRO FUNDIDO JUNTA ELASTICA | D16: 0045 | G16: 97150 | H16: ASSENTAMENTO DE TUBO DE FERRO FUNDIDO PARA REDE DE ÁGUA, DN 500 MM, JUNTA ELÁSTICA, INSTALADO EM LOCAL COM NÍVEL ALTO DE INTERFERÊNCIAS (NÃO INCLUI FORNECIMENTO). AF_11/2017 | I16: M | J16: COEFICIENTE DE REPRESENTATIVIDADE | K16: 37,12 | L16: CAIXA REFERENCIAL
A17: ASSENTAMENTO DE TUBOS E PECAS | B17: ASTU | C17: FORNEC E/OU ASSENT DE TUBO DE FERRO FUNDIDO JUNTA ELASTICA | D17: 0045 | G17: 97151 | H17: ASSENTAMENTO DE TUBO DE FERRO FUNDIDO PARA REDE DE ÁGUA, DN 600 MM, JUNTA ELÁSTICA, INSTALADO EM LOCAL COM NÍVEL ALTO DE INTERFERÊNCIAS (NÃO INCLUI FORNECIMENTO). AF_11/2017 | I17: M | J17: COEFICIENTE DE REPRESENTATIVIDADE | K17: 43,26 | L17: CAIXA REFERENCIAL
A18: ASSENTAMENTO DE TUBOS E PECAS | B18: ASTU | C18: FORNEC E/OU ASSENT DE TUBO DE FERRO FUNDIDO JUNTA ELASTICA | D18: 0045 | G18: 97152 | H18: ASSENTAMENTO DE TUBO DE FERRO FUNDIDO PARA REDE DE ÁGUA, DN 700 MM, JUNTA ELÁSTICA, INSTALADO EM LOCAL COM NÍVEL ALTO DE INTERFERÊNCIAS (NÃO INCLUI FORNECIMENTO). AF_11/2017 | I18: M | J18: COEFICIENTE DE REPRESENTATIVIDADE | K18: 49,18 | L18: CAIXA REFERENCIAL
A19: ASSENTAMENTO DE TUBOS E PECAS | B19: ASTU | C19: FORNEC E/OU ASSENT DE TUBO DE FERRO FUNDIDO JUNTA ELASTICA | D19: 0045 | G19: 97153 | H19: ASSENTAMENTO DE TUBO DE FERRO FUNDIDO PARA REDE DE ÁGUA, DN 800 MM, JUNTA ELÁSTICA, INSTALADO EM LOCAL COM NÍVEL ALTO DE INTERFERÊNCIAS (NÃO INCLUI FORNECIMENTO). AF_11/2017 | I19: M | J19: COEFICIENTE DE REPRESENTATIVIDADE | K19: 55,23 | L19: CAIXA REFERENCIAL
A20: ASSENTAMENTO DE TUBOS E PECAS | B20: ASTU | C20: FORNEC E/OU ASSENT DE TUBO DE FERRO FUNDIDO JUNTA ELASTICA | D20: 0045 | G20: 97154 | H20: ASSENTAMENTO DE TUBO DE FERRO FUNDIDO PARA REDE DE ÁGUA, DN 900 MM, JUNTA ELÁSTICA, INSTALADO EM LOCAL COM NÍVEL ALTO DE INTERFERÊNCIAS (NÃO INCLUI FORNECIMENTO). AF_11/2017 | I20: M | J20: COEFICIENTE DE REPRESENTATIVIDADE | K20: 61,31 | L20: CAIXA REFERENCIAL
A21: ASSENTAMENTO DE TUBOS E PECAS | B21: ASTU | C21: FORNEC E/OU ASSENT DE TUBO DE FERRO FUNDIDO JUNTA ELASTICA | D21: 0045 | G21: 97155 | H21: ASSENTAMENTO DE TUBO DE FERRO FUNDIDO PARA REDE DE ÁGUA, DN 1000 MM, JUNTA ELÁSTICA, INSTALADO EM LOCAL COM NÍVEL ALTO DE INTERFERÊNCIAS (NÃO INCLUI FORNECIMENTO). AF_11/2017 | I21: M | J21: COEFICIENTE DE REPRESENTATIVIDADE | K21: 67,39 | L21: CAIXA REFERENCIAL
A22: ASSENTAMENTO DE TUBOS E PECAS | B22: ASTU | C22: FORNEC E/OU ASSENT DE TUBO DE FERRO FUNDIDO JUNTA ELASTICA | D22: 0045 | G22: 97156 | H22: ASSENTAMENTO DE TUBO DE FERRO FUNDIDO PARA REDE DE ÁGUA, DN 1200 MM, JUNTA ELÁSTICA, INSTALADO EM LOCAL COM NÍVEL ALTO DE INTERFERÊNCIAS (NÃO INCLUI FORNECIMENTO). AF_11/2017 | I22: M | J22: COEFICIENTE DE REPRESENTATIVIDADE | K22: 79,93 | L22: CAIXA REFERENCIAL
A23: ASSENTAMENTO DE TUBOS E PECAS | B23: ASTU | C23: FORNEC E/OU ASSENT DE TUBO DE FERRO FUNDIDO JUNTA ELASTICA | D23: 0045 | G23: 97157 | H23: ASSENTAMENTO DE TUBO DE FERRO FUNDIDO PARA REDE DE ÁGUA, DN 80 MM, JUNTA ELÁSTICA, INSTALADO EM LOCAL COM NÍVEL BAIXO DE INTERFERÊNCIAS (NÃO INCLUI FORNECIMENTO). AF_11/2017 | I23: M | J23: COEFICIENTE DE REPRESENTATIVIDADE | K23: 5,88 | L23: CAIXA REFERENCIAL
A24: ASSENTAMENTO DE TUBOS E PECAS | B24: ASTU | C24: FORNEC E/OU ASSENT DE TUBO DE FERRO FUNDIDO JUNTA ELASTICA | D24: 0045 | G24: 97158 | H24: ASSENTAMENTO DE TUBO DE FERRO FUNDIDO PARA REDE DE ÁGUA, DN 100 MM, JUNTA ELÁSTICA, INSTALADO EM LOCAL COM NÍVEL BAIXO DE INTERFERÊNCIAS (NÃO INCLUI FORNECIMENTO). AF_11/2017 | I24: M | J24: COEFICIENTE DE REPRESENTATIVIDADE | K24: 6,54 | L24: CAIXA REFERENCIAL
A25: ASSENTAMENTO DE TUBOS E PECAS | B25: ASTU | C25: FORNEC E/OU ASSENT DE TUBO DE FERRO FUNDIDO JUNTA ELASTICA | D25: 0045 | G25: 97159 | H25: ASSENTAMENTO DE TUBO DE FERRO FUNDIDO PARA REDE DE ÁGUA, DN 150 MM, JUNTA ELÁSTICA, INSTALADO EM LOCAL COM NÍVEL BAIXO DE INTERFERÊNCIAS (NÃO INCLUI FORNECIMENTO). AF_11/2017 | I25: M | J25: COEFICIENTE DE REPRESENTATIVIDADE | K25: 8,20 | L25: CAIXA REFERENCIAL
A26: ASSENTAMENTO DE TUBOS E PECAS | B26: ASTU | C26: FORNEC E/OU ASSENT DE TUBO DE FERRO FUNDIDO JUNTA ELASTICA | D26: 0045 | G26: 97160 | H26: ASSENTAMENTO DE TUBO DE FERRO FUNDIDO PARA REDE DE ÁGUA, DN 200 MM, JUNTA ELÁSTICA, INSTALADO EM LOCAL COM NÍVEL BAIXO DE INTERFERÊNCIAS (NÃO INCLUI FORNECIMENTO). AF_11/2017 | I26: M | J26: COEFICIENTE DE REPRESENTATIVIDADE | K26: 9,84 | L26: CAIXA REFERENCIAL
A27: ASSENTAMENTO DE TUBOS E PECAS | B27: ASTU | C27: FORNEC E/OU ASSENT DE TUBO DE FERRO FUNDIDO JUNTA ELASTICA | D27: 0045 | G27: 97161 | H27: ASSENTAMENTO DE TUBO DE FERRO FUNDIDO PARA REDE DE ÁGUA, DN 250 MM, JUNTA ELÁSTICA, INSTALADO EM LOCAL COM NÍVEL BAIXO DE INTERFERÊNCIAS (NÃO INCLUI FORNECIMENTO). AF_11/2017 | I27: M | J27: COEFICIENTE DE REPRESENTATIVIDADE | K27: 11,53 | L27: CAIXA REFERENCIAL
A28: ASSENTAMENTO DE TUBOS E PECAS | B28: ASTU | C28: FORNEC E/OU ASSENT DE TUBO DE FERRO FUNDIDO JUNTA ELASTICA | D28: 0045 | G28: 97162 | H28: ASSENTAMENTO DE TUBO DE FERRO FUNDIDO PARA REDE DE ÁGUA, DN 300 MM, JUNTA ELÁSTICA, INSTALADO EM LOCAL COM NÍVEL BAIXO DE INTERFERÊNCIAS (NÃO INCLUI FORNECIMENTO). AF_11/2017 | I28: M | J28: COEFICIENTE DE REPRESENTATIVIDADE | K28: 13,19 | L28: CAIXA REFERENCIAL
A29: ASSENTAMENTO DE TUBOS E PECAS | B29: ASTU | C29: FORNEC E/OU ASSENT DE TUBO DE FERRO FUNDIDO JUNTA ELASTICA | D29: 0045 | G29: 97163 | H29: ASSENTAMENTO DE TUBO DE FERRO FUNDIDO PARA REDE DE ÁGUA, DN 350 MM, JUNTA ELÁSTICA, INSTALADO EM LOCAL COM NÍVEL BAIXO DE INTERFERÊNCIAS (NÃO INCLUI FORNECIMENTO). AF_11/2017 | I29: M | J29: COEFICIENTE DE REPRESENTATIVIDADE | K29: 14,87 | L29: CAIXA REFERENCIAL
A30: ASSENTAMENTO DE TUBOS E PECAS | B30: ASTU | C30: FORNEC E/OU ASSENT DE TUBO DE FERRO FUNDIDO JUNTA ELASTICA | D30: 0045 | G30: 97164 | H30: ASSENTAMENTO DE TUBO DE FERRO FUNDIDO PARA REDE DE ÁGUA, DN 400 MM, JUNTA ELÁSTICA, INSTALADO EM LOCAL COM NÍVEL BAIXO DE INTERFERÊNCIAS (NÃO INCLUI FORNECIMENTO). AF_11/2017 | I30: M | J30: COEFICIENTE DE REPRESENTATIVIDADE | K30: 16,53 | L30: CAIXA REFERENCIAL
A31: ASSENTAMENTO DE TUBOS E PECAS | B31: ASTU | C31: FORNEC E/OU ASSENT DE TUBO DE FERRO FUNDIDO JUNTA ELASTICA | D31: 0045 | G31: 97165 | H31: ASSENTAMENTO DE TUBO DE FERRO FUNDIDO PARA REDE DE ÁGUA, DN 450 MM, JUNTA ELÁSTICA, INSTALADO EM LOCAL COM NÍVEL BAIXO DE INTERFERÊNCIAS (NÃO INCLUI FORNECIMENTO). AF_11/2017 | I31: M | J31: COEFICIENTE DE REPRESENTATIVIDADE | K31: 18,23 | L31: CAIXA REFERENCIAL
A32: ASSENTAMENTO DE TUBOS E PECAS | B32: ASTU | C32: FORNEC E/OU ASSENT DE TUBO DE FERRO FUNDIDO JUNTA ELASTICA | D32: 0045 | G32: 97166 | H32: ASSENTAMENTO DE TUBO DE FERRO FUNDIDO PARA REDE DE ÁGUA, DN 500 MM, JUNTA ELÁSTICA, INSTALADO EM LOCAL COM NÍVEL BAIXO DE INTERFERÊNCIAS (NÃO INCLUI FORNECIMENTO). AF_11/2017 | I32: M | J32: COEFICIENTE DE REPRESENTATIVIDADE | K32: 22,49 | L32: CAIXA REFERENCIAL
A33: ASSENTAMENTO DE TUBOS E PECAS | B33: ASTU | C33: FORNEC E/OU ASSENT DE TUBO DE FERRO FUNDIDO JUNTA ELASTICA | D33: 0045 | G33: 97167 | H33: ASSENTAMENTO DE TUBO DE FERRO FUNDIDO PARA REDE DE ÁGUA, DN 600 MM, JUNTA ELÁSTICA, INSTALADO EM LOCAL COM NÍVEL BAIXO DE INTERFERÊNCIAS (NÃO INCLUI FORNECIMENTO). AF_11/2017 | I33: M | J33: COEFICIENTE DE REPRESENTATIVIDADE | K33: 26,24 | L33: CAIXA REFERENCIAL
A34: ASSENTAMENTO DE TUBOS E PECAS | B34: ASTU | C34: FORNEC E/OU ASSENT DE TUBO DE FERRO FUNDIDO JUNTA ELASTICA | D34: 0045 | G34: 97168 | H34: ASSENTAMENTO DE TUBO DE FERRO FUNDIDO PARA REDE DE ÁGUA, DN 700 MM, JUNTA ELÁSTICA, INSTALADO EM LOCAL COM NÍVEL BAIXO DE INTERFERÊNCIAS (NÃO INCLUI FORNECIMENTO). AF_11/2017 | I34: M | J34: COEFICIENTE DE REPRESENTATIVIDADE | K34: 29,77 | L34: CAIXA REFERENCIAL
A35: ASSENTAMENTO DE TUBOS E PECAS | B35: ASTU | C35: FORNEC E/OU ASSENT DE TUBO DE FERRO FUNDIDO JUNTA ELASTICA | D35: 0045 | G35: 97169 | H35: ASSENTAMENTO DE TUBO DE FERRO FUNDIDO PARA REDE DE ÁGUA, DN 800 MM, JUNTA ELÁSTICA, INSTALADO EM LOCAL COM NÍVEL BAIXO DE INTERFERÊNCIAS (NÃO INCLUI FORNECIMENTO). AF_11/2017 | I35: M | J35: COEFICIENTE DE REPRESENTATIVIDADE | K35: 33,43 | L35: CAIXA REFERENCIAL
A36: ASSENTAMENTO DE TUBOS E PECAS | B36: ASTU | C36: FORNEC E/OU ASSENT DE TUBO DE FERRO FUNDIDO JUNTA ELASTICA | D36: 0045 | G36: 97170 | H36: ASSENTAMENTO DE TUBO DE FERRO FUNDIDO PARA REDE DE ÁGUA, DN 900 MM, JUNTA ELÁSTICA, INSTALADO EM LOCAL COM NÍVEL BAIXO DE INTERFERÊNCIAS (NÃO INCLUI FORNECIMENTO). AF_11/2017 | I36: M | J36: COEFICIENTE DE REPRESENTATIVIDADE | K36: 37,13 | L36: CAIXA REFERENCIAL
A37: ASSENTAMENTO DE TUBOS E PECAS | B37: ASTU | C37: FORNEC E/OU ASSENT DE TUBO DE FERRO FUNDIDO JUNTA ELASTICA | D37: 0045 | G37: 97171 | H37: ASSENTAMENTO DE TUBO DE FERRO FUNDIDO PARA REDE DE ÁGUA, DN 1000 MM, JUNTA ELÁSTICA, INSTALADO EM LOCAL COM NÍVEL BAIXO DE INTERFERÊNCIAS (NÃO INCLUI FORNECIMENTO). AF_11/2017 | I37: M | J37: COEFICIENTE DE REPRESENTATIVIDADE | K37: 40,84 | L37: CAIXA REFERENCIAL
A38: ASSENTAMENTO DE TUBOS E PECAS | B38: ASTU | C38: FORNEC E/OU ASSENT DE TUBO DE FERRO FUNDIDO JUNTA ELASTICA | D38: 0045 | G38: 97172 | H38: ASSENTAMENTO DE TUBO DE FERRO FUNDIDO PARA REDE DE ÁGUA, DN 1200 MM, JUNTA ELÁSTICA, INSTALADO EM LOCAL COM NÍVEL BAIXO DE INTERFERÊNCIAS (NÃO INCLUI FORNECIMENTO). AF_11/2017 | I38: M | J38: COEFICIENTE DE REPRESENTATIVIDADE | K38: 48,59 | L38: CAIXA REFERENCIAL
A39: ASSENTAMENTO DE TUBOS E PECAS | B39: ASTU | C39: FORNEC E/OU ASSENT DE TUBO DE ACO COM JUNTA SOLDADA | D39: 0046 | G39: 97173 | H39: ASSENTAMENTO DE TUBO DE AÇO CARBONO PARA REDE DE ÁGUA, DN 600 MM (24), JUNTA SOLDADA, INSTALADO EM LOCAL COM NÍVEL ALTO DE INTERFERÊNCIAS (NÃO INCLUI FORNECIMENTO). AF_11/2017 | I39: M | J39: COEFICIENTE DE REPRESENTATIVIDADE | K39: 37,86 | L39: CAIXA REFERENCIAL
A40: ASSENTAMENTO DE TUBOS E PECAS | B40: ASTU | C40: FORNEC E/OU ASSENT DE TUBO DE ACO COM JUNTA SOLDADA | D40: 0046 | G40: 97174 | H40: ASSENTAMENTO DE TUBO DE AÇO CARBONO PARA REDE DE ÁGUA, DN 700 MM (28), JUNTA SOLDADA, INSTALADO EM LOCAL COM NÍVEL ALTO DE INTERFERÊNCIAS (NÃO INCLUI FORNECIMENTO). AF_11/2017 | I40: M | J40: COEFICIENTE DE REPRESENTATIVIDADE | K40: 43,78 | L40: CAIXA REFERENCIAL
A41: ASSENTAMENTO DE TUBOS E PECAS | B41: ASTU | C41: FORNEC E/OU ASSENT DE TUBO DE ACO COM JUNTA SOLDADA | D41: 0046 | G41: 97175 | H41: ASSENTAMENTO DE TUBO DE AÇO CARBONO PARA REDE DE ÁGUA, DN 800 MM (32), JUNTA SOLDADA, INSTALADO EM LOCAL COM NÍVEL ALTO DE INTERFERÊNCIAS (NÃO INCLUI FORNECIMENTO). AF_11/2017 | I41: M | J41: COEFICIENTE DE REPRESENTATIVIDADE | K41: 49,71 | L41: CAIXA REFERENCIAL
A42: ASSENTAMENTO DE TUBOS E PECAS | B42: ASTU | C42: FORNEC E/OU ASSENT DE TUBO DE ACO COM JUNTA SOLDADA | D42: 0046 | G42: 97176 | H42: ASSENTAMENTO DE TUBO DE AÇO CARBONO PARA REDE DE ÁGUA, DN 900 MM (36), JUNTA SOLDADA, INSTALADO EM LOCAL COM NÍVEL ALTO DE INTERFERÊNCIAS (NÃO INCLUI FORNECIMENTO). AF_11/2017 | I42: M | J42: COEFICIENTE DE REPRESENTATIVIDADE | K42: 55,63 | L42: CAIXA REFERENCIAL
A43: ASSENTAMENTO DE TUBOS E PECAS | B43: ASTU | C43: FORNEC E/OU ASSENT DE TUBO DE ACO COM JUNTA SOLDADA | D43: 0046 | G43: 97177 | H43: ASSENTAMENTO DE TUBO DE AÇO CARBONO PARA REDE DE ÁGUA, DN 1000 MM (40) OU DN 1100 MM (44), JUNTA SOLDADA, INSTALADO EM LOCAL COM NÍVEL ALTO DE INTERFERÊNCIAS (NÃO INCLUI FORNECIMENTO). AF_11/2017 | I43: M | J43: COEFICIENTE DE REPRESENTATIVIDADE | K43: 67,48 | L43: CAIXA REFERENCIAL
A44: ASSENTAMENTO DE TUBOS E PECAS | B44: ASTU | C44: FORNEC E/OU ASSENT DE TUBO DE ACO COM JUNTA SOLDADA | D44: 0046 | G44: 97178 | H44: ASSENTAMENTO DE TUBO DE AÇO CARBONO PARA REDE DE ÁGUA, DN 1200 MM (48) OU DN 1300 MM (52), JUNTA SOLDADA, INSTALADO EM LOCAL COM NÍVEL ALTO DE INTERFERÊNCIAS (NÃO INCLUI FORNECIMENTO). AF_11/2017 | I44: M | J44: COEFICIENTE DE REPRESENTATIVIDADE | K44: 79,34 | L44: CAIXA REFERENCIAL
A45: ASSENTAMENTO DE TUBOS E PECAS | B45: ASTU | C45: FORNEC E/OU ASSENT DE TUBO DE ACO COM JUNTA SOLDADA | D45: 0046 | G45: 97179 | H45: ASSENTAMENTO DE TUBO DE AÇO CARBONO PARA REDE DE ÁGUA, DN 1400 MM (56'') OU DN 1500 MM (60), JUNTA SOLDADA, INSTALADO EM LOCAL COM NÍVEL ALTO DE INTERFERÊNCIAS (NÃO INCLUI FORNECIMENTO). AF_11/2017 | I45: M | J45: COEFICIENTE DE REPRESENTATIVIDADE | K45: 91,19 | L45: CAIXA REFERENCIAL
A46: ASSENTAMENTO DE TUBOS E PECAS | B46: ASTU | C46: FORNEC E/OU ASSENT DE TUBO DE ACO COM JUNTA SOLDADA | D46: 0046 | G46: 97180 | H46: ASSENTAMENTO DE TUBO DE AÇO CARBONO PARA REDE DE ÁGUA, DN 1600 MM (64) OU DN 1700 MM (68), JUNTA SOLDADA, INSTALADO EM LOCAL COM NÍVEL ALTO DE INTERFERÊNCIAS (NÃO INCLUI FORNECIMENTO). AF_11/2017 | I46: M | J46: COEFICIENTE DE REPRESENTATIVIDADE | K46: 103,05 | L46: CAIXA REFERENCIAL
A47: ASSENTAMENTO DE TUBOS E PECAS | B47: ASTU | C47: FORNEC E/OU ASSENT DE TUBO DE ACO COM JUNTA SOLDADA | D47: 0046 | G47: 97181 | H47: ASSENTAMENTO DE TUBO DE AÇO CARBONO PARA REDE DE ÁGUA, DN 1800 MM (72) OU DN 1900 MM (76), JUNTA SOLDADA, INSTALADO EM LOCAL COM NÍVEL ALTO DE INTERFERÊNCIAS (NÃO INCLUI FORNECIMENTO). AF_11/2017 | I47: M | J47: COEFICIENTE DE REPRESENTATIVIDADE | K47: 119,67 | L47: CAIXA REFERENCIAL
A48: ASSENTAMENTO DE TUBOS E PECAS | B48: ASTU | C48: FORNEC E/OU ASSENT DE TUBO DE ACO COM JUNTA SOLDADA | D48: 0046 | G48: 97182 | H48: ASSENTAMENTO DE TUBO DE AÇO CARBONO PARA REDE DE ÁGUA, DN 2000 MM (80) OU DN 2100 MM (84), JUNTA SOLDADA, INSTALADO EM LOCAL COM NÍVEL ALTO DE INTERFERÊNCIAS (NÃO INCLUI FORNECIMENTO). AF_11/2017 | I48: M | J48: COEFICIENTE DE REPRESENTATIVIDADE | K48: 132,04 | L48: CAIXA REFERENCIAL
A49: ASSENTAMENTO DE TUBOS E PECAS | B49: ASTU | C49: FORNEC E/OU ASSENT DE TUBO DE ACO COM JUNTA SOLDADA | D49: 0046 | G49: 97183 | H49: ASSENTAMENTO DE TUBO DE AÇO CARBONO PARA REDE DE ÁGUA, DN 600 MM (24), JUNTA SOLDADA, INSTALADO EM LOCAL COM NÍVEL BAIXO DE INTERFERÊNCIAS (NÃO INCLUI FORNECIMENTO). AF_11/2017 | I49: M | J49: COEFICIENTE DE REPRESENTATIVIDADE | K49: 29,80 | L49: CAIXA REFERENCIAL
A50: ASSENTAMENTO DE TUBOS E PECAS | B50: ASTU | C50: FORNEC E/OU ASSENT DE TUBO DE ACO COM JUNTA SOLDADA | D50: 0046 | G50: 97184 | H50: ASSENTAMENTO DE TUBO DE AÇO CARBONO PARA REDE DE ÁGUA, DN 700 MM (28), JUNTA SOLDADA, INSTALADO EM LOCAL COM NÍVEL BAIXO DE INTERFERÊNCIAS (NÃO INCLUI FORNECIMENTO). AF_11/2017 | I50: M | J50: COEFICIENTE DE REPRESENTATIVIDADE | K50: 34,52 | L50: CAIXA REFERENCIAL
A51: ASSENTAMENTO DE TUBOS E PECAS | B51: ASTU | C51: FORNEC E/OU ASSENT DE TUBO DE ACO COM JUNTA SOLDADA | D51: 0046 | G51: 97185 | H51: ASSENTAMENTO DE TUBO DE AÇO CARBONO PARA REDE DE ÁGUA, DN 800 MM (32), JUNTA SOLDADA, INSTALADO EM LOCAL COM NÍVEL BAIXO DE INTERFERÊNCIAS (NÃO INCLUI FORNECIMENTO). AF_11/2017 | I51: M | J51: COEFICIENTE DE REPRESENTATIVIDADE | K51: 39,26 | L51: CAIXA REFERENCIAL
A52: ASSENTAMENTO DE TUBOS E PECAS | B52: ASTU | C52: FORNEC E/OU ASSENT DE TUBO DE ACO COM JUNTA SOLDADA | D52: 0046 | G52: 97186 | H52: ASSENTAMENTO DE TUBO DE AÇO CARBONO PARA REDE DE ÁGUA, DN 900 MM (36), JUNTA SOLDADA, INSTALADO EM LOCAL COM NÍVEL BAIXO DE INTERFERÊNCIAS (NÃO INCLUI FORNECIMENTO). AF_11/2017 | I52: M | J52: COEFICIENTE DE REPRESENTATIVIDADE | K52: 44,00 | L52: CAIXA REFERENCIAL
A53: ASSENTAMENTO DE TUBOS E PECAS | B53: ASTU | C53: FORNEC E/OU ASSENT DE TUBO DE ACO COM JUNTA SOLDADA | D53: 0046 | G53: 97187 | H53: ASSENTAMENTO DE TUBO DE AÇO CARBONO PARA REDE DE ÁGUA, DN 1000 MM (40 ) OU DN 1100 MM (44 ), JUNTA SOLDADA, INSTALADO EM LOCAL COM NÍVEL BAIXO DE INTERFERÊNCIAS (NÃO INCLUI FORNECIMENTO). AF_11/2017 | I53: M | J53: COEFICIENTE DE REPRESENTATIVIDADE | K53: 53,47 | L53: CAIXA REFERENCIAL
A54: ASSENTAMENTO DE TUBOS E PECAS | B54: ASTU | C54: FORNEC E/OU ASSENT DE TUBO DE ACO COM JUNTA SOLDADA | D54: 0046 | G54: 97188 | H54: ASSENTAMENTO DE TUBO DE AÇO CARBONO PARA REDE DE ÁGUA, DN 1200 MM (48) OU DN 1300 MM (52), JUNTA SOLDADA, INSTALADO EM LOCAL COM NÍVEL BAIXO DE INTERFERÊNCIAS (NÃO INCLUI FORNECIMENTO). AF_11/2017 | I54: M | J54: COEFICIENTE DE REPRESENTATIVIDADE | K54: 62,94 | L54: CAIXA REFERENCIAL
A55: ASSENTAMENTO DE TUBOS E PECAS | B55: ASTU | C55: FORNEC E/OU ASSENT DE TUBO DE ACO COM JUNTA SOLDADA | D55: 0046 | G55: 97189 | H55: ASSENTAMENTO DE TUBO DE AÇO CARBONO PARA REDE DE ÁGUA, DN 1400 MM (56'') OU DN 1500 MM (60), JUNTA SOLDADA, INSTALADO EM LOCAL COM NÍVEL BAIXO DE INTERFERÊNCIAS (NÃO INCLUI FORNECIMENTO). AF_11/2017 | I55: M | J55: COEFICIENTE DE REPRESENTATIVIDADE | K55: 72,40 | L55: CAIXA REFERENCIAL
A56: ASSENTAMENTO DE TUBOS E PECAS | B56: ASTU | C56: FORNEC E/OU ASSENT DE TUBO DE ACO COM JUNTA SOLDADA | D56: 0046 | G56: 97190 | H56: ASSENTAMENTO DE TUBO DE AÇO CARBONO PARA REDE DE ÁGUA, DN 1600 MM (64) OU DN 1700 MM (68), JUNTA SOLDADA, INSTALADO EM LOCAL COM NÍVEL BAIXO DE INTERFERÊNCIAS (NÃO INCLUI FORNECIMENTO). AF_11/2017 | I56: M | J56: COEFICIENTE DE REPRESENTATIVIDADE | K56: 81,88 | L56: CAIXA REFERENCIAL
A57: ASSENTAMENTO DE TUBOS E PECAS | B57: ASTU | C57: FORNEC E/OU ASSENT DE TUBO DE ACO COM JUNTA SOLDADA | D57: 0046 | G57: 97191 | H57: ASSENTAMENTO DE TUBO DE AÇO CARBONO PARA REDE DE ÁGUA, DN 1800 MM (72) OU DN 1900 MM (76), JUNTA SOLDADA, INSTALADO EM LOCAL COM NÍVEL BAIXO DE INTERFERÊNCIAS (NÃO INCLUI FORNECIMENTO). AF_11/2017 | I57: M | J57: COEFICIENTE DE REPRESENTATIVIDADE | K57: 94,85 | L57: CAIXA REFERENCIAL
A58: ASSENTAMENTO DE TUBOS E PECAS | B58: ASTU | C58: FORNEC E/OU ASSENT DE TUBO DE ACO COM JUNTA SOLDADA | D58: 0046 | G58: 97192 | H58: ASSENTAMENTO DE TUBO DE AÇO CARBONO PARA REDE DE ÁGUA, DN 2000 MM (80) OU DN 2100 MM (84), JUNTA SOLDADA, INSTALADO EM LOCAL COM NÍVEL BAIXO DE INTERFERÊNCIAS (NÃO INCLUI FORNECIMENTO). AF_11/2017 | I58: M | J58: COEFICIENTE DE REPRESENTATIVIDADE | K58: 104,70 | L58: CAIXA REFERENCIAL
A59: ASSENTAMENTO DE TUBOS E PECAS | B59: ASTU | C59: FORNEC E/OU ASSENT DE TUBO DE PVC COM JUNTA ELASTICA | D59: 0048 | G59: 90694 | H59: TUBO DE PVC PARA REDE COLETORA DE ESGOTO DE PAREDE MACIÇA, DN 100 MM, JUNTA ELÁSTICA - FORNECIMENTO E ASSENTAMENTO. AF_01/2021 | I59: M | J59: COEFICIENTE DE REPRESENTATIVIDADE | K59: 50,73 | L59: CAIXA REFERENCIAL
A60: ASSENTAMENTO DE TUBOS E PECAS | B60: ASTU | C60: FORNEC E/OU ASSENT DE TUBO DE PVC COM JUNTA ELASTICA | D60: 0048 | G60: 90695 | H60: TUBO DE PVC PARA REDE COLETORA DE ESGOTO DE PAREDE MACIÇA, DN 150 MM, JUNTA ELÁSTICA - FORNECIMENTO E ASSENTAMENTO. AF_01/2021 | I60: M | J60: COEFICIENTE DE REPRESENTATIVIDADE | K60: 96,37 | L60: CAIXA REFERENCIAL
A61: ASSENTAMENTO DE TUBOS E PECAS | B61: ASTU | C61: FORNEC E/OU ASSENT DE TUBO DE PVC COM JUNTA ELASTICA | D61: 0048 | G61: 90696 | H61: TUBO DE PVC PARA REDE COLETORA DE ESGOTO DE PAREDE MACIÇA, DN 200 MM, JUNTA ELÁSTICA - FORNECIMENTO E ASSENTAMENTO. AF_01/2021 | I61: M | J61: COEFICIENTE DE REPRESENTATIVIDADE | K61: 161,04 | L61: CAIXA REFERENCIAL
A62: ASSENTAMENTO DE TUBOS E PECAS | B62: ASTU | C62: FORNEC E/OU ASSENT DE TUBO DE PVC COM JUNTA ELASTICA | D62: 0048 | G62: 90697 | H62: TUBO DE PVC PARA REDE COLETORA DE ESGOTO DE PAREDE MACIÇA, DN 250 MM, JUNTA ELÁSTICA - FORNECIMENTO E ASSENTAMENTO. AF_01/2021 | I62: M | J62: COEFICIENTE DE REPRESENTATIVIDADE | K62: 249,83 | L62: CAIXA REFERENCIAL
A63: ASSENTAMENTO DE TUBOS E PECAS | B63: ASTU | C63: FORNEC E/OU ASSENT DE TUBO DE PVC COM JUNTA ELASTICA | D63: 0048 | G63: 90698 | H63: TUBO DE PVC PARA REDE COLETORA DE ESGOTO DE PAREDE MACIÇA, DN 300 MM, JUNTA ELÁSTICA, FORNECIMENTO E ASSENTAMENTO. AF_01/2021 | I63: M | J63: COEFICIENTE DE REPRESENTATIVIDADE | K63: 381,89 | L63: CAIXA REFERENCIAL
A64: ASSENTAMENTO DE TUBOS E PECAS | B64: ASTU | C64: FORNEC E/OU ASSENT DE TUBO DE PVC COM JUNTA ELASTICA | D64: 0048 | G64: 90699 | H64: TUBO DE PVC PARA REDE COLETORA DE ESGOTO DE PAREDE MACIÇA, DN 350 MM, JUNTA ELÁSTICA - FORNECIMENTO E ASSENTAMENTO. AF_01/2021 | I64: M | J64: COEFICIENTE DE REPRESENTATIVIDADE | K64: 537,51 | L64: CAIXA REFERENCIAL
A65: ASSENTAMENTO DE TUBOS E PECAS | B65: ASTU | C65: FORNEC E/OU ASSENT DE TUBO DE PVC COM JUNTA ELASTICA | D65: 0048 | G65: 90700 | H65: TUBO DE PVC PARA REDE COLETORA DE ESGOTO DE PAREDE MACIÇA, DN 400 MM, JUNTA ELÁSTICA FORNECIMENTO E ASSENTAMENTO. AF_01/2021 | I65: M | J65: COEFICIENTE DE REPRESENTATIVIDADE | K65: 627,74 | L65: CAIXA REFERENCIAL
A66: ASSENTAMENTO DE TUBOS E PECAS | B66: ASTU | C66: FORNEC E/OU ASSENT DE TUBO DE PVC COM JUNTA ELASTICA | D66: 0048 | G66: 90701 | H66: TUBO DE PVC CORRUGADO DE DUPLA PAREDE PARA REDE COLETORA DE ESGOTO, DN 150 MM, JUNTA ELÁSTICA - FORNECIMENTO E ASSENTAMENTO. AF_01/2021 | I66: M | J66: COEFICIENTE DE REPRESENTATIVIDADE | K66: 76,17 | L66: CAIXA REFERENCIAL
A67: ASSENTAMENTO DE TUBOS E PECAS | B67: ASTU | C67: FORNEC E/OU ASSENT DE TUBO DE PVC COM JUNTA ELASTICA | D67: 0048 | G67: 90702 | H67: TUBO DE PVC CORRUGADO DE DUPLA PAREDE PARA REDE COLETORA DE ESGOTO, DN 200 MM, JUNTA ELÁSTICA - FORNECIMENTO E ASSENTAMENTO. AF_01/2021 | I67: M | J67: COEFICIENTE DE REPRESENTATIVIDADE | K67: 126,03 | L67: CAIXA REFERENCIAL
A68: ASSENTAMENTO DE TUBOS E PECAS | B68: ASTU | C68: FORNEC E/OU ASSENT DE TUBO DE PVC COM JUNTA ELASTICA | D68: 0048 | G68: 90703 | H68: TUBO DE PVC CORRUGADO DE DUPLA PAREDE PARA REDE COLETORA DE ESGOTO, DN 250 MM, JUNTA ELÁSTICA - FORNECIMENTO E ASSENTAMENTO. AF_01/2021 | I68: M | J68: COEFICIENTE DE REPRESENTATIVIDADE | K68: 198,10 | L68: CAIXA REFERENCIAL
A69: ASSENTAMENTO DE TUBOS E PECAS | B69: ASTU | C69: FORNEC E/OU ASSENT DE TUBO DE PVC COM JUNTA ELASTICA | D69: 0048 | G69: 90704 | H69: TUBO DE PVC CORRUGADO DE DUPLA PAREDE PARA REDE COLETORA DE ESGOTO, DN 300 MM, JUNTA ELÁSTICA - FORNECIMENTO E ASSENTAMENTO. AF_01/2021 | I69: M | J69: COEFICIENTE DE REPRESENTATIVIDADE | K69: 295,72 | L69: CAIXA REFERENCIAL
A70: ASSENTAMENTO DE TUBOS E PECAS | B70: ASTU | C70: FORNEC E/OU ASSENT DE TUBO DE PVC COM JUNTA ELASTICA | D70: 0048 | G70: 90705 | H70: TUBO DE PVC CORRUGADO DE DUPLA PAREDE PARA REDE COLETORA DE ESGOTO, DN 350 MM, JUNTA ELÁSTICA - FORNECIMENTO E ASSENTAMENTO. AF_01/2021 | I70: M | J70: COEFICIENTE DE REPRESENTATIVIDADE | K70: 384,27 | L70: CAIXA REFERENCIAL
A71: ASSENTAMENTO DE TUBOS E PECAS | B71: ASTU | C71: FORNEC E/OU ASSENT DE TUBO DE PVC COM JUNTA ELASTICA | D71: 0048 | G71: 90706 | H71: TUBO DE PVC CORRUGADO DE DUPLA PAREDE PARA REDE COLETORA DE ESGOTO, DN 400 MM, JUNTA ELÁSTICA - FORNECIMENTO E ASSENTAMENTO. AF_01/2021 | I71: M | J71: COEFICIENTE DE REPRESENTATIVIDADE | K71: 509,52 | L71: CAIXA REFERENCIAL
A72: ASSENTAMENTO DE TUBOS E PECAS | B72: ASTU | C72: FORNEC E/OU ASSENT DE TUBO DE PVC COM JUNTA ELASTICA | D72: 0048 | G72: 90708 | H72: TUBO DE PEAD CORRUGADO DE DUPLA PAREDE PARA REDE COLETORA DE ESGOTO, DN 600 MM, JUNTA ELÁSTICA INTEGRADA - FORNECIMENTO E ASSENTAMENTO. AF_01/2021 | I72: M | J72: COEFICIENTE DE REPRESENTATIVIDADE | K72: 1.644,39 | L72: CAIXA REFERENCIAL
A73: ASSENTAMENTO DE TUBOS E PECAS | B73: ASTU | C73: FORNEC E/OU ASSENT DE TUBO DE PVC COM JUNTA ELASTICA | D73: 0048 | G73: 90724 | H73: JUNTA ARGAMASSADA ENTRE TUBO DN 100 MM E O POÇO DE VISITA/ CAIXA DE CONCRETO OU ALVENARIA EM REDES DE ESGOTO. AF_01/2021 | I73: UN | J73: COEFICIENTE DE REPRESENTATIVIDADE | K73: 27,09 | L73: CAIXA REFERENCIAL
A74: ASSENTAMENTO DE TUBOS E PECAS | B74: ASTU | C74: FORNEC E/OU ASSENT DE TUBO DE PVC COM JUNTA ELASTICA | D74: 0048 | G74: 90725 | H74: JUNTA ARGAMASSADA ENTRE TUBO DN 150 MM E O POÇO DE VISITA/ CAIXA DE CONCRETO OU ALVENARIA EM REDES DE ESGOTO. AF_01/2021 | I74: UN | J74: COEFICIENTE DE REPRESENTATIVIDADE | K74: 33,31 | L74: CAIXA REFERENCIAL
A75: ASSENTAMENTO DE TUBOS E PECAS | B75: ASTU | C75: FORNEC E/OU ASSENT DE TUBO DE PVC COM JUNTA ELASTICA | D75: 0048 | G75: 90726 | H75: JUNTA ARGAMASSADA ENTRE TUBO DN 200 MM E O POÇO/ CAIXA DE CONCRETO OU ALVENARIA EM REDES DE ESGOTO. AF_01/2021 | I75: UN | J75: COEFICIENTE DE REPRESENTATIVIDADE | K75: 39,60 | L75: CAIXA REFERENCIAL
A76: ASSENTAMENTO DE TUBOS E PECAS | B76: ASTU | C76: FORNEC E/OU ASSENT DE TUBO DE PVC COM JUNTA ELASTICA | D76: 0048 | G76: 90727 | H76: JUNTA ARGAMASSADA ENTRE TUBO DN 250 MM E O POÇO DE VISITA/ CAIXA DE CONCRETO OU ALVENARIA EM REDES DE ESGOTO. AF_01/2021 | I76: UN | J76: COEFICIENTE DE REPRESENTATIVIDADE | K76: 45,83 | L76: CAIXA REFERENCIAL
A77: ASSENTAMENTO DE TUBOS E PECAS | B77: ASTU | C77: FORNEC E/OU ASSENT DE TUBO DE PVC COM JUNTA ELASTICA | D77: 0048 | G77: 90728 | H77: JUNTA ARGAMASSADA ENTRE TUBO DN 300 MM E O POÇO DE VISITA/ CAIXA DE CONCRETO OU ALVENARIA EM REDES DE ESGOTO. AF_01/2021 | I77: UN | J77: COEFICIENTE DE REPRESENTATIVIDADE | K77: 52,06 | L77: CAIXA REFERENCIAL
A78: ASSENTAMENTO DE TUBOS E PECAS | B78: ASTU | C78: FORNEC E/OU ASSENT DE TUBO DE PVC COM JUNTA ELASTICA | D78: 0048 | G78: 90729 | H78: JUNTA ARGAMASSADA ENTRE TUBO DN 350 MM E O POÇO DE VISITA/ CAIXA DE CONCRETO OU ALVENARIA EM REDES DE ESGOTO. AF_01/2021 | I78: UN | J78: COEFICIENTE DE REPRESENTATIVIDADE | K78: 58,28 | L78: CAIXA REFERENCIAL
A79: ASSENTAMENTO DE TUBOS E PECAS | B79: ASTU | C79: FORNEC E/OU ASSENT DE TUBO DE PVC COM JUNTA ELASTICA | D79: 0048 | G79: 90730 | H79: JUNTA ARGAMASSADA ENTRE TUBO DN 400 MM E O POÇO DE VISITA/ CAIXA DE CONCRETO OU ALVENARIA EM REDES DE ESGOTO. AF_01/2021 | I79: UN | J79: COEFICIENTE DE REPRESENTATIVIDADE | K79: 64,51 | L79: CAIXA REFERENCIAL
A80: ASSENTAMENTO DE TUBOS E PECAS | B80: ASTU | C80: FORNEC E/OU ASSENT DE TUBO DE PVC COM JUNTA ELASTICA | D80: 0048 | G80: 90731 | H80: JUNTA ARGAMASSADA ENTRE TUBO DN 450 MM E O POÇO DE VISITA/ CAIXA DE CONCRETO OU ALVENARIA EM REDES DE ESGOTO. AF_01/2021 | I80: UN | J80: COEFICIENTE DE REPRESENTATIVIDADE | K80: 70,74 | L80: CAIXA REFERENCIAL
A81: ASSENTAMENTO DE TUBOS E PECAS | B81: ASTU | C81: FORNEC E/OU ASSENT DE TUBO DE PVC COM JUNTA ELASTICA | D81: 0048 | G81: 90732 | H81: JUNTA ARGAMASSADA ENTRE TUBO DN 600 MM E O POÇO DE VISITA/ CAIXA DE CONCRETO OU ALVENARIA EM REDES DE ESGOTO. AF_01/2021 | I81: UN | J81: COEFICIENTE DE REPRESENTATIVIDADE | K81: 89,41 | L81: CAIXA REFERENCIAL
A82: ASSENTAMENTO DE TUBOS E PECAS | B82: ASTU | C82: FORNEC E/OU ASSENT DE TUBO DE PVC COM JUNTA ELASTICA | D82: 0048 | G82: 90733 | H82: ASSENTAMENTO DE TUBO DE PVC PARA REDE COLETORA DE ESGOTO DE PAREDE MACIÇA, DN 100 MM, JUNTA ELÁSTICA (NÃO INCLUI FORNECIMENTO). AF_01/2021 | I82: M | J82: COEFICIENTE DE REPRESENTATIVIDADE | K82: 3,83 | L82: CAIXA REFERENCIAL
A83: ASSENTAMENTO DE TUBOS E PECAS | B83: ASTU | C83: FORNEC E/OU ASSENT DE TUBO DE PVC COM JUNTA ELASTICA | D83: 0048 | G83: 90734 | H83: ASSENTAMENTO DE TUBO DE PVC PARA REDE COLETORA DE ESGOTO DE PAREDE MACIÇA, DN 150 MM, JUNTA ELÁSTICA, (NÃO INCLUI FORNECIMENTO). AF_01/2021 | I83: M | J83: COEFICIENTE DE REPRESENTATIVIDADE | K83: 4,53 | L83: CAIXA REFERENCIAL
